Workbook

Sheet Dataset
A1: ='[1]Monthly Data'!A1 -> Date | B1: ='[1]Monthly Data'!B1 -> Year | C1: Month | D1: ='[1]Monthly Data'!D1 -> ReskWh | E1: ='[1]Monthly Data'!E1 -> ResCDM | F1: ='[1]Monthly Data'!F1 -> Res_NoCDM | G1: ='[1]Monthly Data'!G1 -> GSlt50kWh | H1: ='[1]Monthly Data'!H1 -> GSlt50kW_CDM | I1: ='[1]Monthly Data'!I1 -> GSlt50kW_NoCDM | J1: ='[1]Monthly Data'!J1 -> GSgt50kWh | K1: ='[1]Monthly Data'!K1 -> GSgt50kWh_CDM | L1: ='[1]Monthly Data'!L1 -> GSgt50kWh_NoCDM | M1: ='[1]Monthly Data'!M1 -> StreetkWh | N1: ='[1]Monthly Data'!N1 -> USLkWh | O1: ='[1]Monthly Data'!O1 -> GSgt50kW | P1: ='[1]Monthly Data'!P1 -> Street_kW | Q1: ='[1]Monthly Data'!Q1 -> Res Cust | R1: ='[1]Monthly Data'!R1 -> GSlt50 Cust | S1: ='[1]Monthly Data'!S1 -> GSgt50Cust | T1: ='[1]Monthly Data'!T1 -> Street Cust | U1: ='[1]Monthly Data'!U1 -> USL Cust | V1: =[1]Weather!C1 -> Avg. Temp | W1: =[1]Weather!D1 -> HDD22 | X1: =[1]Weather!E1 -> CDD22 | Y1: =[1]Weather!F1 -> HDD20 | Z1: =[1]Weather!G1 -> CDD20 | AA1: =[1]Weather!H1 -> HDD18 | AB1: =[1]Weather!I1 -> CDD18 | AC1: =[1]Weather!J1 -> HDD16 | AD1: =[1]Weather!K1 -> CDD16 | AE1: =[1]Weather!L1 -> HDD14 | AF1: =[1]Weather!M1 -> CDD14 | AG1: =[1]Weather!N1 -> HDD12 | AH1: =[1]Weather!O1 -> CDD12 | AI1: =[1]Weather!P1 -> HDD10 | AJ1: =[1]Weather!Q1 -> CDD10 | AK1: =[1]Weather!R1 -> HDD8 | AL1: =[1]Weather!S1 -> CDD8 | AM1: =[1]Economic!C1 -> OntarioGDP | AN1: =[1]Economic!D1 -> OntarioFTEAdj | AO1: =[1]Economic!E1 -> OntarioFTE | AP1: =[1]Economic!F1 -> BarrieFTEAdj | AQ1: =[1]Economic!G1 -> BarrieFTE | AR1: MonthDays | AS1: PeakDays | AT1: Trend | AU1: Jan | AV1: Feb | AW1: Mar | AX1: Apr | AY1: May | AZ1: Jun | BA1: Jul | BB1: Aug | BC1: Sep | BD1: Oct | BE1: Nov | BF1: Dec | BG1: Spring | BH1: Fall | BI1: Shoulder | BJ1: COVID | BK1: COVID_AM | BL1: COVID2020 | BM1: D_2012 | BN1: =$BJ$1&W1 -> COVIDHDD22 | BO1: =$BJ$1&X1 -> COVIDCDD22 | BP1: =$BJ$1&Y1 -> COVIDHDD20 | BQ1: =$BJ$1&Z1 -> COVIDCDD20 | BR1: =$BJ$1&AA1 -> COVIDHDD18 | BS1: =$BJ$1&AB1 -> COVIDCDD18 | BT1: =$BJ$1&AC1 -> COVIDHDD16 | BU1: =$BJ$1&AD1 -> COVIDCDD16 | BV1: =$BJ$1&AE1 -> COVIDHDD14 | BW1: =$BJ$1&AF1 -> COVIDCDD14 | BX1: =$BJ$1&AG1 -> COVIDHDD12 | BY1: =$BJ$1&AH1 -> COVIDCDD12 | BZ1: =$BJ$1&AI1 -> COVIDHDD10 | CA1: =$BJ$1&AJ1 -> COVIDCDD10 | CB1: =$BJ$1&AK1 -> COVIDHDD8 | CC1: =$BJ$1&AL1 -> COVIDCDD8 | CD1: ResPerCust | CE1: GSlt50PerCust | CF1: GSgt50PerCust
A2: ='[1]Monthly Data'!A2 -> 2012-01-01 | B2: ='[1]Monthly Data'!B2 -> 2012 | C2: =MONTH(A2) -> 1 | D2: ='[1]Monthly Data'!D2 -> 12827420.3 | E2: ='[1]Monthly Data'!E2 -> 7616.598672 | F2: ='[1]Monthly Data'!F2 -> 12835036.9 | G2: ='[1]Monthly Data'!G2 -> 4478351.067 | H2: ='[1]Monthly Data'!H2 -> 26559.00922 | I2: ='[1]Monthly Data'!I2 -> 4504910.076 | J2: ='[1]Monthly Data'!J2 -> 12990962.84 | K2: ='[1]Monthly Data'!K2 -> 37506.85164 | L2: ='[1]Monthly Data'!L2 -> 13028469.69 | M2: ='[1]Monthly Data'!M2 -> 231418.9036 | N2: ='[1]Monthly Data'!N2 -> 35978.10124 | O2: ='[1]Monthly Data'!O2 -> 28201.79 | P2: ='[1]Monthly Data'!P2 -> 507.87 | Q2: ='[1]Monthly Data'!Q2 -> 13894 | R2: ='[1]Monthly Data'!R2 -> 1705 | S2: ='[1]Monthly Data'!S2 -> 116 | T2: ='[1]Monthly Data'!T2 -> 3018 | U2: ='[1]Monthly Data'!U2 -> 30 | V2: =[1]Weather!C122 -> -2.441935484 | W2: =[1]Weather!D122 -> 757.7 | X2: =[1]Weather!E122 -> 0 | Y2: =[1]Weather!F122 -> 695.7 | Z2: =[1]Weather!G122 -> 0 | AA2: =[1]Weather!H122 -> 633.7 | AB2: =[1]Weather!I122 -> 0 | AC2: =[1]Weather!J122 -> 571.7 | AD2: =[1]Weather!K122 -> 0 | AE2: =[1]Weather!L122 -> 509.7 | AF2: =[1]Weather!M122 -> 0 | AG2: =[1]Weather!N122 -> 447.7 | AH2: =[1]Weather!O122 -> 0 | AI2: =[1]Weather!P122 -> 385.7 | AJ2: =[1]Weather!Q122 -> 0 | AK2: =[1]Weather!R122 -> 323.7 | AL2: =[1]Weather!S122 -> 0 | AM2: =[1]Economic!C2 -> 634944.3 | AN2: =[1]Economic!D2 -> 6646.5 | AO2: =[1]Economic!E2 -> 6611.1 | AP2: =[1]Economic!F2 -> 98.8 | AQ2: =[1]Economic!G2 -> 99.3 | AR2: 31 | AS2: 20 | AT2: 1 | AU2: 1 | AV2: 0 | AW2: 0 | AX2: 0 | AY2: 0 | AZ2: 0 | BA2: 0 | BB2: 0 | BC2: 0 | BD2: 0 | BE2: 0 | BF2: 0 | BG2: 0 | BH2: 0 | BI2: =BG2+BH2 -> 0 | BJ2: 0 | BK2: 0 | BL2: =BK2 -> 0 | BM2: 1 | BN2: =$BJ2*W2 -> 0 | BO2: =$BJ2*X2 -> 0 | BP2: =$BJ2*Y2 -> 0 | BQ2: =$BJ2*Z2 -> 0 | BR2: =$BJ2*AA2 -> 0 | BS2: =$BJ2*AB2 -> 0 | BT2: =$BJ2*AC2 -> 0 | BU2: =$BJ2*AD2 -> 0 | BV2: =$BJ2*AE2 -> 0 | BW2: =$BJ2*AF2 -> 0 | BX2: =$BJ2*AG2 -> 0 | BY2: =$BJ2*AH2 -> 0 | BZ2: =$BJ2*AI2 -> 0 | CA2: =$BJ2*AJ2 -> 0 | CB2: =$BJ2*AK2 -> 0 | CC2: =$BJ2*AL2 -> 0 | CD2: =F2/Q2 -> 923.7827046 | CE2: =I2/R2 -> 2642.175998 | CF2: =L2/S2 -> 112314.3939
A3: ='[1]Monthly Data'!A3 -> 2012-02-01 | B3: ='[1]Monthly Data'!B3 -> 2012 | C3: =MONTH(A3) -> 2 | D3: ='[1]Monthly Data'!D3 -> 11197440.04 | E3: ='[1]Monthly Data'!E3 -> 7616.598672 | F3: ='[1]Monthly Data'!F3 -> 11205056.64 | G3: ='[1]Monthly Data'!G3 -> 4065707.558 | H3: ='[1]Monthly Data'!H3 -> 26559.00922 | I3: ='[1]Monthly Data'!I3 -> 4092266.567 | J3: ='[1]Monthly Data'!J3 -> 12511988.18 | K3: ='[1]Monthly Data'!K3 -> 37506.85164 | L3: ='[1]Monthly Data'!L3 -> 12549495.03 | M3: ='[1]Monthly Data'!M3 -> 199041.4692 | N3: ='[1]Monthly Data'!N3 -> 32624.22486 | O3: ='[1]Monthly Data'!O3 -> 28498.41 | P3: ='[1]Monthly Data'!P3 -> 507.87 | Q3: ='[1]Monthly Data'!Q3 -> 13839 | R3: ='[1]Monthly Data'!R3 -> 1686 | S3: ='[1]Monthly Data'!S3 -> 114 | T3: ='[1]Monthly Data'!T3 -> 3018 | U3: ='[1]Monthly Data'!U3 -> 30 | V3: =[1]Weather!C123 -> -1.020689655 | W3: =[1]Weather!D123 -> 667.6 | X3: =[1]Weather!E123 -> 0 | Y3: =[1]Weather!F123 -> 609.6 | Z3: =[1]Weather!G123 -> 0 | AA3: =[1]Weather!H123 -> 551.6 | AB3: =[1]Weather!I123 -> 0 | AC3: =[1]Weather!J123 -> 493.6 | AD3: =[1]Weather!K123 -> 0 | AE3: =[1]Weather!L123 -> 435.6 | AF3: =[1]Weather!M123 -> 0 | AG3: =[1]Weather!N123 -> 377.6 | AH3: =[1]Weather!O123 -> 0 | AI3: =[1]Weather!P123 -> 319.6 | AJ3: =[1]Weather!Q123 -> 0 | AK3: =[1]Weather!R123 -> 261.6 | AL3: =[1]Weather!S123 -> 0 | AM3: =[1]Economic!C3 -> 634944.3 | AN3: =[1]Economic!D3 -> 6641.1 | AO3: =[1]Economic!E3 -> 6571.2 | AP3: =[1]Economic!F3 -> 97.7 | AQ3: =[1]Economic!G3 -> 97.2 | AR3: 29 | AS3: 19 | AT3: =1+AT2 -> 2 | AU3: 0 | AV3: 1 | AW3: 0 | AX3: 0 | AY3: 0 | AZ3: 0 | BA3: 0 | BB3: 0 | BC3: 0 | BD3: 0 | BE3: 0 | BF3: 0 | BG3: 0 | BH3: 0 | BI3: =BG3+BH3 -> 0 | BJ3: 0 | BK3: 0 | BL3: =BK3 -> 0 | BM3: 1 | BN3: =$BJ3*W3 -> 0 | BO3: =$BJ3*X3 -> 0 | BP3: =$BJ3*Y3 -> 0 | BQ3: =$BJ3*Z3 -> 0 | BR3: =$BJ3*AA3 -> 0 | BS3: =$BJ3*AB3 -> 0 | BT3: =$BJ3*AC3 -> 0 | BU3: =$BJ3*AD3 -> 0 | BV3: =$BJ3*AE3 -> 0 | BW3: =$BJ3*AF3 -> 0 | BX3: =$BJ3*AG3 -> 0 | BY3: =$BJ3*AH3 -> 0 | BZ3: =$BJ3*AI3 -> 0 | CA3: =$BJ3*AJ3 -> 0 | CB3: =$BJ3*AK3 -> 0 | CC3: =$BJ3*AL3 -> 0 | CD3: =F3/Q3 -> 809.6724214 | CE3: =I3/R3 -> 2427.20437 | CF3: =L3/S3 -> 110083.2898
A4: ='[1]Monthly Data'!A4 -> 2012-03-01 | B4: ='[1]Monthly Data'!B4 -> 2012 | C4: =MONTH(A4) -> 3 | D4: ='[1]Monthly Data'!D4 -> 10111651.61 | E4: ='[1]Monthly Data'!E4 -> 7616.598672 | F4: ='[1]Monthly Data'!F4 -> 10119268.21 | G4: ='[1]Monthly Data'!G4 -> 3961602.633 | H4: ='[1]Monthly Data'!H4 -> 26559.00922 | I4: ='[1]Monthly Data'!I4 -> 3988161.642 | J4: ='[1]Monthly Data'!J4 -> 12515628.79 | K4: ='[1]Monthly Data'!K4 -> 37506.85164 | L4: ='[1]Monthly Data'!L4 -> 12553135.64 | M4: ='[1]Monthly Data'!M4 -> 189823.6295 | N4: ='[1]Monthly Data'!N4 -> 34083.13108 | O4: ='[1]Monthly Data'!O4 -> 27880.02 | P4: ='[1]Monthly Data'!P4 -> 507.87 | Q4: ='[1]Monthly Data'!Q4 -> 13913 | R4: ='[1]Monthly Data'!R4 -> 1687 | S4: ='[1]Monthly Data'!S4 -> 116 | T4: ='[1]Monthly Data'!T4 -> 3018 | U4: ='[1]Monthly Data'!U4 -> 30 | V4: =[1]Weather!C124 -> 6.4 | W4: =[1]Weather!D124 -> 483.6 | X4: =[1]Weather!E124 -> 0 | Y4: =[1]Weather!F124 -> 421.6 | Z4: =[1]Weather!G124 -> 0 | AA4: =[1]Weather!H124 -> 362.4 | AB4: =[1]Weather!I124 -> 2.8 | AC4: =[1]Weather!J124 -> 304.4 | AD4: =[1]Weather!K124 -> 6.8 | AE4: =[1]Weather!L124 -> 247.9 | AF4: =[1]Weather!M124 -> 12.3 | AG4: =[1]Weather!N124 -> 198.9 | AH4: =[1]Weather!O124 -> 25.3 | AI4: =[1]Weather!P124 -> 158.7 | AJ4: =[1]Weather!Q124 -> 47.1 | AK4: =[1]Weather!R124 -> 123.7 | AL4: =[1]Weather!S124 -> 74.1 | AM4: =[1]Economic!C4 -> 634944.3 | AN4: =[1]Economic!D4 -> 6644.1 | AO4: =[1]Economic!E4 -> 6541.5 | AP4: =[1]Economic!F4 -> 97.7 | AQ4: =[1]Economic!G4 -> 96.8 | AR4: 31 | AS4: 23 | AT4: =1+AT3 -> 3 | AU4: 0 | AV4: 0 | AW4: 1 | AX4: 0 | AY4: 0 | AZ4: 0 | BA4: 0 | BB4: 0 | BC4: 0 | BD4: 0 | BE4: 0 | BF4: 0 | BG4: 1 | BH4: 0 | BI4: =BG4+BH4 -> 1 | BJ4: 0 | BK4: 0 | BL4: =BK4 -> 0 | BM4: 1 | BN4: =$BJ4*W4 -> 0 | BO4: =$BJ4*X4 -> 0 | BP4: =$BJ4*Y4 -> 0 | BQ4: =$BJ4*Z4 -> 0 | BR4: =$BJ4*AA4 -> 0 | BS4: =$BJ4*AB4 -> 0 | BT4: =$BJ4*AC4 -> 0 | BU4: =$BJ4*AD4 -> 0 | BV4: =$BJ4*AE4 -> 0 | BW4: =$BJ4*AF4 -> 0 | BX4: =$BJ4*AG4 -> 0 | BY4: =$BJ4*AH4 -> 0 | BZ4: =$BJ4*AI4 -> 0 | CA4: =$BJ4*AJ4 -> 0 | CB4: =$BJ4*AK4 -> 0 | CC4: =$BJ4*AL4 -> 0 | CD4: =F4/Q4 -> 727.3246753 | CE4: =I4/R4 -> 2364.055508 | CF4: =L4/S4 -> 108216.6866
A5: ='[1]Monthly Data'!A5 -> 2012-04-01 | B5: ='[1]Monthly Data'!B5 -> 2012 | C5: =MONTH(A5) -> 4 | D5: ='[1]Monthly Data'!D5 -> 8478796.545 | E5: ='[1]Monthly Data'!E5 -> 7616.598672 | F5: ='[1]Monthly Data'!F5 -> 8486413.144 | G5: ='[1]Monthly Data'!G5 -> 3489558.973 | H5: ='[1]Monthly Data'!H5 -> 26559.00922 | I5: ='[1]Monthly Data'!I5 -> 3516117.982 | J5: ='[1]Monthly Data'!J5 -> 11581560.75 | K5: ='[1]Monthly Data'!K5 -> 37506.85164 | L5: ='[1]Monthly Data'!L5 -> 11619067.6 | M5: ='[1]Monthly Data'!M5 -> 160050.0073 | N5: ='[1]Monthly Data'!N5 -> 34777.12685 | O5: ='[1]Monthly Data'!O5 -> 28650.76 | P5: ='[1]Monthly Data'!P5 -> 507.87 | Q5: ='[1]Monthly Data'!Q5 -> 13930 | R5: ='[1]Monthly Data'!R5 -> 1677 | S5: ='[1]Monthly Data'!S5 -> 115 | T5: ='[1]Monthly Data'!T5 -> 3018 | U5: ='[1]Monthly Data'!U5 -> 30 | V5: =[1]Weather!C125 -> 5.403333333 | W5: =[1]Weather!D125 -> 497.9 | X5: =[1]Weather!E125 -> 0 | Y5: =[1]Weather!F125 -> 437.9 | Z5: =[1]Weather!G125 -> 0 | AA5: =[1]Weather!H125 -> 377.9 | AB5: =[1]Weather!I125 -> 0 | AC5: =[1]Weather!J125 -> 318.7 | AD5: =[1]Weather!K125 -> 0.8 | AE5: =[1]Weather!L125 -> 262 | AF5: =[1]Weather!M125 -> 4.1 | AG5: =[1]Weather!N125 -> 206.9 | AH5: =[1]Weather!O125 -> 9 | AI5: =[1]Weather!P125 -> 153.5 | AJ5: =[1]Weather!Q125 -> 15.6 | AK5: =[1]Weather!R125 -> 102.4 | AL5: =[1]Weather!S125 -> 24.5 | AM5: =[1]Economic!C5 -> 634944.3 | AN5: =[1]Economic!D5 -> 6654.6 | AO5: =[1]Economic!E5 -> 6574.2 | AP5: =[1]Economic!F5 -> 98.5 | AQ5: =[1]Economic!G5 -> 96.2 | AR5: 30 | AS5: 20 | AT5: =1+AT4 -> 4 | AU5: 0 | AV5: 0 | AW5: 0 | AX5: 1 | AY5: 0 | AZ5: 0 | BA5: 0 | BB5: 0 | BC5: 0 | BD5: 0 | BE5: 0 | BF5: 0 | BG5: 1 | BH5: 0 | BI5: =BG5+BH5 -> 1 | BJ5: 0 | BK5: 0 | BL5: =BK5 -> 0 | BM5: 1 | BN5: =$BJ5*W5 -> 0 | BO5: =$BJ5*X5 -> 0 | BP5: =$BJ5*Y5 -> 0 | BQ5: =$BJ5*Z5 -> 0 | BR5: =$BJ5*AA5 -> 0 | BS5: =$BJ5*AB5 -> 0 | BT5: =$BJ5*AC5 -> 0 | BU5: =$BJ5*AD5 -> 0 | BV5: =$BJ5*AE5 -> 0 | BW5: =$BJ5*AF5 -> 0 | BX5: =$BJ5*AG5 -> 0 | BY5: =$BJ5*AH5 -> 0 | BZ5: =$BJ5*AI5 -> 0 | CA5: =$BJ5*AJ5 -> 0 | CB5: =$BJ5*AK5 -> 0 | CC5: =$BJ5*AL5 -> 0 | CD5: =F5/Q5 -> 609.2184597 | CE5: =I5/R5 -> 2096.671426 | CF5: =L5/S5 -> 101035.3705
A6: ='[1]Monthly Data'!A6 -> 2012-05-01 | B6: ='[1]Monthly Data'!B6 -> 2012 | C6: =MONTH(A6) -> 5 | D6: ='[1]Monthly Data'!D6 -> 7926945.921 | E6: ='[1]Monthly Data'!E6 -> 7616.598672 | F6: ='[1]Monthly Data'!F6 -> 7934562.519 | G6: ='[1]Monthly Data'!G6 -> 3594919.67 | H6: ='[1]Monthly Data'!H6 -> 26559.00922 | I6: ='[1]Monthly Data'!I6 -> 3621478.679 | J6: ='[1]Monthly Data'!J6 -> 12251017.85 | K6: ='[1]Monthly Data'!K6 -> 37506.85164 | L6: ='[1]Monthly Data'!L6 -> 12288524.7 | M6: ='[1]Monthly Data'!M6 -> 144384.1913 | N6: ='[1]Monthly Data'!N6 -> 33019.137 | O6: ='[1]Monthly Data'!O6 -> 27422.9 | P6: ='[1]Monthly Data'!P6 -> 507.87 | Q6: ='[1]Monthly Data'!Q6 -> 13951 | R6: ='[1]Monthly Data'!R6 -> 1682 | S6: ='[1]Monthly Data'!S6 -> 115 | T6: ='[1]Monthly Data'!T6 -> 3018 | U6: ='[1]Monthly Data'!U6 -> 30 | V6: =[1]Weather!C126 -> 14.48064516 | W6: =[1]Weather!D126 -> 235.9 | X6: =[1]Weather!E126 -> 2.8 | Y6: =[1]Weather!F126 -> 183.3 | Z6: =[1]Weather!G126 -> 12.2 | AA6: =[1]Weather!H126 -> 133.5 | AB6: =[1]Weather!I126 -> 24.4 | AC6: =[1]Weather!J126 -> 89.2 | AD6: =[1]Weather!K126 -> 42.1 | AE6: =[1]Weather!L126 -> 52.1 | AF6: =[1]Weather!M126 -> 67 | AG6: =[1]Weather!N126 -> 22.5 | AH6: =[1]Weather!O126 -> 99.4 | AI6: =[1]Weather!P126 -> 7.3 | AJ6: =[1]Weather!Q126 -> 146.2 | AK6: =[1]Weather!R126 -> 1.3 | AL6: =[1]Weather!S126 -> 202.2 | AM6: =[1]Economic!C6 -> 634944.3 | AN6: =[1]Economic!D6 -> 6655.4 | AO6: =[1]Economic!E6 -> 6626.1 | AP6: =[1]Economic!F6 -> 99.9 | AQ6: =[1]Economic!G6 -> 98.3 | AR6: 31 | AS6: 20 | AT6: =1+AT5 -> 5 | AU6: 0 | AV6: 0 | AW6: 0 | AX6: 0 | AY6: 1 | AZ6: 0 | BA6: 0 | BB6: 0 | BC6: 0 | BD6: 0 | BE6: 0 | BF6: 0 | BG6: 1 | BH6: 0 | BI6: =BG6+BH6 -> 1 | BJ6: 0 | BK6: 0 | BL6: =BK6 -> 0 | BM6: 1 | BN6: =$BJ6*W6 -> 0 | BO6: =$BJ6*X6 -> 0 | BP6: =$BJ6*Y6 -> 0 | BQ6: =$BJ6*Z6 -> 0 | BR6: =$BJ6*AA6 -> 0 | BS6: =$BJ6*AB6 -> 0 | BT6: =$BJ6*AC6 -> 0 | BU6: =$BJ6*AD6 -> 0 | BV6: =$BJ6*AE6 -> 0 | BW6: =$BJ6*AF6 -> 0 | BX6: =$BJ6*AG6 -> 0 | BY6: =$BJ6*AH6 -> 0 | BZ6: =$BJ6*AI6 -> 0 | CA6: =$BJ6*AJ6 -> 0 | CB6: =$BJ6*AK6 -> 0 | CC6: =$BJ6*AL6 -> 0 | CD6: =F6/Q6 -> 568.7450734 | CE6: =I6/R6 -> 2153.078882 | CF6: =L6/S6 -> 106856.7366
A7: ='[1]Monthly Data'!A7 -> 2012-06-01 | B7: ='[1]Monthly Data'!B7 -> 2012 | C7: =MONTH(A7) -> 6 | D7: ='[1]Monthly Data'!D7 -> 8454655.535 | E7: ='[1]Monthly Data'!E7 -> 7616.598672 | F7: ='[1]Monthly Data'!F7 -> 8462272.134 | G7: ='[1]Monthly Data'!G7 -> 3781481.984 | H7: ='[1]Monthly Data'!H7 -> 26559.00922 | I7: ='[1]Monthly Data'!I7 -> 3808040.993 | J7: ='[1]Monthly Data'!J7 -> 12310028.39 | K7: ='[1]Monthly Data'!K7 -> 37506.85164 | L7: ='[1]Monthly Data'!L7 -> 12347535.24 | M7: ='[1]Monthly Data'!M7 -> 129019.8121 | N7: ='[1]Monthly Data'!N7 -> 34805.06352 | O7: ='[1]Monthly Data'!O7 -> 28656.22 | P7: ='[1]Monthly Data'!P7 -> 507.87 | Q7: ='[1]Monthly Data'!Q7 -> 13951 | R7: ='[1]Monthly Data'!R7 -> 1682 | S7: ='[1]Monthly Data'!S7 -> 114 | T7: ='[1]Monthly Data'!T7 -> 3018 | U7: ='[1]Monthly Data'!U7 -> 30 | V7: =[1]Weather!C127 -> 19.23333333 | W7: =[1]Weather!D127 -> 108.7 | X7: =[1]Weather!E127 -> 25.7 | Y7: =[1]Weather!F127 -> 71.2 | Z7: =[1]Weather!G127 -> 48.2 | AA7: =[1]Weather!H127 -> 40.8 | AB7: =[1]Weather!I127 -> 77.8 | AC7: =[1]Weather!J127 -> 21.6 | AD7: =[1]Weather!K127 -> 118.6 | AE7: =[1]Weather!L127 -> 7.5 | AF7: =[1]Weather!M127 -> 164.5 | AG7: =[1]Weather!N127 -> 0.5 | AH7: =[1]Weather!O127 -> 217.5 | AI7: =[1]Weather!P127 -> 0 | AJ7: =[1]Weather!Q127 -> 277 | AK7: =[1]Weather!R127 -> 0 | AL7: =[1]Weather!S127 -> 337 | AM7: =[1]Economic!C7 -> 634944.3 | AN7: =[1]Economic!D7 -> 6655.3 | AO7: =[1]Economic!E7 -> 6702 | AP7: =[1]Economic!F7 -> 101.7 | AQ7: =[1]Economic!G7 -> 101.9 | AR7: 30 | AS7: 22 | AT7: =1+AT6 -> 6 | AU7: 0 | AV7: 0 | AW7: 0 | AX7: 0 | AY7: 0 | AZ7: 1 | BA7: 0 | BB7: 0 | BC7: 0 | BD7: 0 | BE7: 0 | BF7: 0 | BG7: 0 | BH7: 0 | BI7: =BG7+BH7 -> 0 | BJ7: 0 | BK7: 0 | BL7: =BK7 -> 0 | BM7: 1 | BN7: =$BJ7*W7 -> 0 | BO7: =$BJ7*X7 -> 0 | BP7: =$BJ7*Y7 -> 0 | BQ7: =$BJ7*Z7 -> 0 | BR7: =$BJ7*AA7 -> 0 | BS7: =$BJ7*AB7 -> 0 | BT7: =$BJ7*AC7 -> 0 | BU7: =$BJ7*AD7 -> 0 | BV7: =$BJ7*AE7 -> 0 | BW7: =$BJ7*AF7 -> 0 | BX7: =$BJ7*AG7 -> 0 | BY7: =$BJ7*AH7 -> 0 | BZ7: =$BJ7*AI7 -> 0 | CA7: =$BJ7*AJ7 -> 0 | CB7: =$BJ7*AK7 -> 0 | CC7: =$BJ7*AL7 -> 0 | CD7: =F7/Q7 -> 606.5710081 | CE7: =I7/R7 -> 2263.995834 | CF7: =L7/S7 -> 108311.7127
A8: ='[1]Monthly Data'!A8 -> 2012-07-01 | B8: ='[1]Monthly Data'!B8 -> 2012 | C8: =MONTH(A8) -> 7 | D8: ='[1]Monthly Data'!D8 -> 9826603.063 | E8: ='[1]Monthly Data'!E8 -> 7616.598672 | F8: ='[1]Monthly Data'!F8 -> 9834219.662 | G8: ='[1]Monthly Data'!G8 -> 4207305.327 | H8: ='[1]Monthly Data'!H8 -> 26559.00922 | I8: ='[1]Monthly Data'!I8 -> 4233864.336 | J8: ='[1]Monthly Data'!J8 -> 11300716.16 | K8: ='[1]Monthly Data'!K8 -> 37506.85164 | L8: ='[1]Monthly Data'!L8 -> 11338223.01 | M8: ='[1]Monthly Data'!M8 -> 138431.4261 | N8: ='[1]Monthly Data'!N8 -> 33577.12248 | O8: ='[1]Monthly Data'!O8 -> 28813.03 | P8: ='[1]Monthly Data'!P8 -> 507.87 | Q8: ='[1]Monthly Data'!Q8 -> 14026 | R8: ='[1]Monthly Data'!R8 -> 1691 | S8: ='[1]Monthly Data'!S8 -> 113 | T8: ='[1]Monthly Data'!T8 -> 3018 | U8: ='[1]Monthly Data'!U8 -> 30 | V8: =[1]Weather!C128 -> 22.0483871 | W8: =[1]Weather!D128 -> 34.8 | X8: =[1]Weather!E128 -> 36.3 | Y8: =[1]Weather!F128 -> 8.5 | Z8: =[1]Weather!G128 -> 72 | AA8: =[1]Weather!H128 -> 0.2 | AB8: =[1]Weather!I128 -> 125.7 | AC8: =[1]Weather!J128 -> 0 | AD8: =[1]Weather!K128 -> 187.5 | AE8: =[1]Weather!L128 -> 0 | AF8: =[1]Weather!M128 -> 249.5 | AG8: =[1]Weather!N128 -> 0 | AH8: =[1]Weather!O128 -> 311.5 | AI8: =[1]Weather!P128 -> 0 | AJ8: =[1]Weather!Q128 -> 373.5 | AK8: =[1]Weather!R128 -> 0 | AL8: =[1]Weather!S128 -> 435.5 | AM8: =[1]Economic!C8 -> 634944.3 | AN8: =[1]Economic!D8 -> 6654 | AO8: =[1]Economic!E8 -> 6741.1 | AP8: =[1]Economic!F8 -> 101.3 | AQ8: =[1]Economic!G8 -> 103.7 | AR8: 31 | AS8: 21 | AT8: =1+AT7 -> 7 | AU8: 0 | AV8: 0 | AW8: 0 | AX8: 0 | AY8: 0 | AZ8: 0 | BA8: 1 | BB8: 0 | BC8: 0 | BD8: 0 | BE8: 0 | BF8: 0 | BG8: 0 | BH8: 0 | BI8: =BG8+BH8 -> 0 | BJ8: 0 | BK8: 0 | BL8: =BK8 -> 0 | BM8: 1 | BN8: =$BJ8*W8 -> 0 | BO8: =$BJ8*X8 -> 0 | BP8: =$BJ8*Y8 -> 0 | BQ8: =$BJ8*Z8 -> 0 | BR8: =$BJ8*AA8 -> 0 | BS8: =$BJ8*AB8 -> 0 | BT8: =$BJ8*AC8 -> 0 | BU8: =$BJ8*AD8 -> 0 | BV8: =$BJ8*AE8 -> 0 | BW8: =$BJ8*AF8 -> 0 | BX8: =$BJ8*AG8 -> 0 | BY8: =$BJ8*AH8 -> 0 | BZ8: =$BJ8*AI8 -> 0 | CA8: =$BJ8*AJ8 -> 0 | CB8: =$BJ8*AK8 -> 0 | CC8: =$BJ8*AL8 -> 0 | CD8: =F8/Q8 -> 701.1421404 | CE8: =I8/R8 -> 2503.763652 | CF8: =L8/S8 -> 100338.2567
A9: ='[1]Monthly Data'!A9 -> 2012-08-01 | B9: ='[1]Monthly Data'!B9 -> 2012 | C9: =MONTH(A9) -> 8 | D9: ='[1]Monthly Data'!D9 -> 9147834.009 | E9: ='[1]Monthly Data'!E9 -> 7616.598672 | F9: ='[1]Monthly Data'!F9 -> 9155450.608 | G9: ='[1]Monthly Data'!G9 -> 4030620.291 | H9: ='[1]Monthly Data'!H9 -> 26559.00922 | I9: ='[1]Monthly Data'!I9 -> 4057179.301 | J9: ='[1]Monthly Data'!J9 -> 10221475.76 | K9: ='[1]Monthly Data'!K9 -> 37506.85164 | L9: ='[1]Monthly Data'!L9 -> 10258982.61 | M9: ='[1]Monthly Data'!M9 -> 156496.6751 | N9: ='[1]Monthly Data'!N9 -> 34380.76217 | O9: ='[1]Monthly Data'!O9 -> 28999.7 | P9: ='[1]Monthly Data'!P9 -> 507.87 | Q9: ='[1]Monthly Data'!Q9 -> 14008 | R9: ='[1]Monthly Data'!R9 -> 1683 | S9: ='[1]Monthly Data'!S9 -> 115 | T9: ='[1]Monthly Data'!T9 -> 3018 | U9: ='[1]Monthly Data'!U9 -> 30 | V9: =[1]Weather!C129 -> 20.74300874 | W9: =[1]Weather!D129 -> 58.3 | X9: =[1]Weather!E129 -> 19.3 | Y9: =[1]Weather!F129 -> 24.4 | Z9: =[1]Weather!G129 -> 47.4 | AA9: =[1]Weather!H129 -> 4.7 | AB9: =[1]Weather!I129 -> 89.7 | AC9: =[1]Weather!J129 -> 0 | AD9: =[1]Weather!K129 -> 147 | AE9: =[1]Weather!L129 -> 0 | AF9: =[1]Weather!M129 -> 209 | AG9: =[1]Weather!N129 -> 0 | AH9: =[1]Weather!O129 -> 271 | AI9: =[1]Weather!P129 -> 0 | AJ9: =[1]Weather!Q129 -> 333 | AK9: =[1]Weather!R129 -> 0 | AL9: =[1]Weather!S129 -> 395 | AM9: =[1]Economic!C9 -> 634944.3 | AN9: =[1]Economic!D9 -> 6661.5 | AO9: =[1]Economic!E9 -> 6758.8 | AP9: =[1]Economic!F9 -> 99.8 | AQ9: =[1]Economic!G9 -> 102 | AR9: 31 | AS9: 21 | AT9: =1+AT8 -> 8 | AU9: 0 | AV9: 0 | AW9: 0 | AX9: 0 | AY9: 0 | AZ9: 0 | BA9: 0 | BB9: 1 | BC9: 0 | BD9: 0 | BE9: 0 | BF9: 0 | BG9: 0 | BH9: 0 | BI9: =BG9+BH9 -> 0 | BJ9: 0 | BK9: 0 | BL9: =BK9 -> 0 | BM9: 0 | BN9: =$BJ9*W9 -> 0 | BO9: =$BJ9*X9 -> 0 | BP9: =$BJ9*Y9 -> 0 | BQ9: =$BJ9*Z9 -> 0 | BR9: =$BJ9*AA9 -> 0 | BS9: =$BJ9*AB9 -> 0 | BT9: =$BJ9*AC9 -> 0 | BU9: =$BJ9*AD9 -> 0 | BV9: =$BJ9*AE9 -> 0 | BW9: =$BJ9*AF9 -> 0 | BX9: =$BJ9*AG9 -> 0 | BY9: =$BJ9*AH9 -> 0 | BZ9: =$BJ9*AI9 -> 0 | CA9: =$BJ9*AJ9 -> 0 | CB9: =$BJ9*AK9 -> 0 | CC9: =$BJ9*AL9 -> 0 | CD9: =F9/Q9 -> 653.5872793 | CE9: =I9/R9 -> 2410.682888 | CF9: =L9/S9 -> 89208.54447
A10: ='[1]Monthly Data'!A10 -> 2012-09-01 | B10: ='[1]Monthly Data'!B10 -> 2012 | C10: =MONTH(A10) -> 9 | D10: ='[1]Monthly Data'!D10 -> 7812356.941 | E10: ='[1]Monthly Data'!E10 -> 7616.598672 | F10: ='[1]Monthly Data'!F10 -> 7819973.539 | G10: ='[1]Monthly Data'!G10 -> 3577087.41 | H10: ='[1]Monthly Data'!H10 -> 26559.00922 | I10: ='[1]Monthly Data'!I10 -> 3603646.419 | J10: ='[1]Monthly Data'!J10 -> 9495774.283 | K10: ='[1]Monthly Data'!K10 -> 37506.85164 | L10: ='[1]Monthly Data'!L10 -> 9533281.134 | M10: ='[1]Monthly Data'!M10 -> 174006.8148 | N10: ='[1]Monthly Data'!N10 -> 35375.65403 | O10: ='[1]Monthly Data'!O10 -> 24615.15 | P10: ='[1]Monthly Data'!P10 -> 507.87 | Q10: ='[1]Monthly Data'!Q10 -> 14087 | R10: ='[1]Monthly Data'!R10 -> 1686 | S10: ='[1]Monthly Data'!S10 -> 116 | T10: ='[1]Monthly Data'!T10 -> 3018 | U10: ='[1]Monthly Data'!U10 -> 30 | V10: =[1]Weather!C130 -> 15.80666667 | W10: =[1]Weather!D130 -> 187.6 | X10: =[1]Weather!E130 -> 1.8 | Y10: =[1]Weather!F130 -> 133.9 | Z10: =[1]Weather!G130 -> 8.1 | AA10: =[1]Weather!H130 -> 90.2 | AB10: =[1]Weather!I130 -> 24.4 | AC10: =[1]Weather!J130 -> 53.8 | AD10: =[1]Weather!K130 -> 48 | AE10: =[1]Weather!L130 -> 24.4 | AF10: =[1]Weather!M130 -> 78.6 | AG10: =[1]Weather!N130 -> 5.5 | AH10: =[1]Weather!O130 -> 119.7 | AI10: =[1]Weather!P130 -> 0 | AJ10: =[1]Weather!Q130 -> 174.2 | AK10: =[1]Weather!R130 -> 0 | AL10: =[1]Weather!S130 -> 234.2 | AM10: =[1]Economic!C10 -> 634944.3 | AN10: =[1]Economic!D10 -> 6671.5 | AO10: =[1]Economic!E10 -> 6722.8 | AP10: =[1]Economic!F10 -> 98.9 | AQ10: =[1]Economic!G10 -> 100.1 | AR10: 30 | AS10: 21 | AT10: =1+AT9 -> 9 | AU10: 0 | AV10: 0 | AW10: 0 | AX10: 0 | AY10: 0 | AZ10: 0 | BA10: 0 | BB10: 0 | BC10: 1 | BD10: 0 | BE10: 0 | BF10: 0 | BG10: 0 | BH10: 1 | BI10: =BG10+BH10 -> 1 | BJ10: 0 | BK10: 0 | BL10: =BK10 -> 0 | BM10: 0 | BN10: =$BJ10*W10 -> 0 | BO10: =$BJ10*X10 -> 0 | BP10: =$BJ10*Y10 -> 0 | BQ10: =$BJ10*Z10 -> 0 | BR10: =$BJ10*AA10 -> 0 | BS10: =$BJ10*AB10 -> 0 | BT10: =$BJ10*AC10 -> 0 | BU10: =$BJ10*AD10 -> 0 | BV10: =$BJ10*AE10 -> 0 | BW10: =$BJ10*AF10 -> 0 | BX10: =$BJ10*AG10 -> 0 | BY10: =$BJ10*AH10 -> 0 | BZ10: =$BJ10*AI10 -> 0 | CA10: =$BJ10*AJ10 -> 0 | CB10: =$BJ10*AK10 -> 0 | CC10: =$BJ10*AL10 -> 0 | CD10: =F10/Q10 -> 555.1198651 | CE10: =I10/R10 -> 2137.39408 | CF10: =L10/S10 -> 82183.45805
A11: ='[1]Monthly Data'!A11 -> 2012-10-01 | B11: ='[1]Monthly Data'!B11 -> 2012 | C11: =MONTH(A11) -> 10 | D11: ='[1]Monthly Data'!D11 -> 8482688.65 | E11: ='[1]Monthly Data'!E11 -> 7616.598672 | F11: ='[1]Monthly Data'!F11 -> 8490305.249 | G11: ='[1]Monthly Data'!G11 -> 3583266.354 | H11: ='[1]Monthly Data'!H11 -> 26559.00922 | I11: ='[1]Monthly Data'!I11 -> 3609825.363 | J11: ='[1]Monthly Data'!J11 -> 10069244.85 | K11: ='[1]Monthly Data'!K11 -> 37506.85164 | L11: ='[1]Monthly Data'!L11 -> 10106751.7 | M11: ='[1]Monthly Data'!M11 -> 204099.7953 | N11: ='[1]Monthly Data'!N11 -> 36526.96272 | O11: ='[1]Monthly Data'!O11 -> 24974.51 | P11: ='[1]Monthly Data'!P11 -> 507.87 | Q11: ='[1]Monthly Data'!Q11 -> 14124 | R11: ='[1]Monthly Data'!R11 -> 1691 | S11: ='[1]Monthly Data'!S11 -> 114 | T11: ='[1]Monthly Data'!T11 -> 3018 | U11: ='[1]Monthly Data'!U11 -> 30 | V11: =[1]Weather!C131 -> 10.38494422 | W11: =[1]Weather!D131 -> 360.1 | X11: =[1]Weather!E131 -> 0 | Y11: =[1]Weather!F131 -> 298.1 | Z11: =[1]Weather!G131 -> 0 | AA11: =[1]Weather!H131 -> 237.6 | AB11: =[1]Weather!I131 -> 1.5 | AC11: =[1]Weather!J131 -> 179.6 | AD11: =[1]Weather!K131 -> 5.5 | AE11: =[1]Weather!L131 -> 124.7 | AF11: =[1]Weather!M131 -> 12.6 | AG11: =[1]Weather!N131 -> 79.4 | AH11: =[1]Weather!O131 -> 29.3 | AI11: =[1]Weather!P131 -> 45.3 | AJ11: =[1]Weather!Q131 -> 57.2 | AK11: =[1]Weather!R131 -> 19.1 | AL11: =[1]Weather!S131 -> 93 | AM11: =[1]Economic!C11 -> 634944.3 | AN11: =[1]Economic!D11 -> 6675.2 | AO11: =[1]Economic!E11 -> 6699.2 | AP11: =[1]Economic!F11 -> 99.5 | AQ11: =[1]Economic!G11 -> 101.2 | AR11: 31 | AS11: 20 | AT11: =1+AT10 -> 10 | AU11: 0 | AV11: 0 | AW11: 0 | AX11: 0 | AY11: 0 | AZ11: 0 | BA11: 0 | BB11: 0 | BC11: 0 | BD11: 1 | BE11: 0 | BF11: 0 | BG11: 0 | BH11: 1 | BI11: =BG11+BH11 -> 1 | BJ11: 0 | BK11: 0 | BL11: =BK11 -> 0 | BM11: 0 | BN11: =$BJ11*W11 -> 0 | BO11: =$BJ11*X11 -> 0 | BP11: =$BJ11*Y11 -> 0 | BQ11: =$BJ11*Z11 -> 0 | BR11: =$BJ11*AA11 -> 0 | BS11: =$BJ11*AB11 -> 0 | BT11: =$BJ11*AC11 -> 0 | BU11: =$BJ11*AD11 -> 0 | BV11: =$BJ11*AE11 -> 0 | BW11: =$BJ11*AF11 -> 0 | BX11: =$BJ11*AG11 -> 0 | BY11: =$BJ11*AH11 -> 0 | BZ11: =$BJ11*AI11 -> 0 | CA11: =$BJ11*AJ11 -> 0 | CB11: =$BJ11*AK11 -> 0 | CC11: =$BJ11*AL11 -> 0 | CD11: =F11/Q11 -> 601.1261151 | CE11: =I11/R11 -> 2134.728187 | CF11: =L11/S11 -> 88655.71665
A12: ='[1]Monthly Data'!A12 -> 2012-11-01 | B12: ='[1]Monthly Data'!B12 -> 2012 | C12: =MONTH(A12) -> 11 | D12: ='[1]Monthly Data'!D12 -> 9857148.413 | E12: ='[1]Monthly Data'!E12 -> 7616.598672 | F12: ='[1]Monthly Data'!F12 -> 9864765.012 | G12: ='[1]Monthly Data'!G12 -> 3885581.044 | H12: ='[1]Monthly Data'!H12 -> 26559.00922 | I12: ='[1]Monthly Data'!I12 -> 3912140.053 | J12: ='[1]Monthly Data'!J12 -> 9879832.737 | K12: ='[1]Monthly Data'!K12 -> 37506.85164 | L12: ='[1]Monthly Data'!L12 -> 9917339.589 | M12: ='[1]Monthly Data'!M12 -> 218255.4668 | N12: ='[1]Monthly Data'!N12 -> 34618.93063 | O12: ='[1]Monthly Data'!O12 -> 24244.86 | P12: ='[1]Monthly Data'!P12 -> 507.87 | Q12: ='[1]Monthly Data'!Q12 -> 14160 | R12: ='[1]Monthly Data'!R12 -> 1696 | S12: ='[1]Monthly Data'!S12 -> 114 | T12: ='[1]Monthly Data'!T12 -> 3018 | U12: ='[1]Monthly Data'!U12 -> 30 | V12: =[1]Weather!C132 -> 3.133333333 | W12: =[1]Weather!D132 -> 566 | X12: =[1]Weather!E132 -> 0 | Y12: =[1]Weather!F132 -> 506 | Z12: =[1]Weather!G132 -> 0 | AA12: =[1]Weather!H132 -> 446 | AB12: =[1]Weather!I132 -> 0 | AC12: =[1]Weather!J132 -> 386 | AD12: =[1]Weather!K132 -> 0 | AE12: =[1]Weather!L132 -> 326 | AF12: =[1]Weather!M132 -> 0 | AG12: =[1]Weather!N132 -> 266.6 | AH12: =[1]Weather!O132 -> 0.6 | AI12: =[1]Weather!P132 -> 210.2 | AJ12: =[1]Weather!Q132 -> 4.2 | AK12: =[1]Weather!R132 -> 156 | AL12: =[1]Weather!S132 -> 10 | AM12: =[1]Economic!C12 -> 634944.3 | AN12: =[1]Economic!D12 -> 6686.6 | AO12: =[1]Economic!E12 -> 6685.6 | AP12: =[1]Economic!F12 -> 101.1 | AQ12: =[1]Economic!G12 -> 103.2 | AR12: 30 | AS12: 21 | AT12: =1+AT11 -> 11 | AU12: 0 | AV12: 0 | AW12: 0 | AX12: 0 | AY12: 0 | AZ12: 0 | BA12: 0 | BB12: 0 | BC12: 0 | BD12: 0 | BE12: 1 | BF12: 0 | BG12: 0 | BH12: 1 | BI12: =BG12+BH12 -> 1 | BJ12: 0 | BK12: 0 | BL12: =BK12 -> 0 | BM12: 0 | BN12: =$BJ12*W12 -> 0 | BO12: =$BJ12*X12 -> 0 | BP12: =$BJ12*Y12 -> 0 | BQ12: =$BJ12*Z12 -> 0 | BR12: =$BJ12*AA12 -> 0 | BS12: =$BJ12*AB12 -> 0 | BT12: =$BJ12*AC12 -> 0 | BU12: =$BJ12*AD12 -> 0 | BV12: =$BJ12*AE12 -> 0 | BW12: =$BJ12*AF12 -> 0 | BX12: =$BJ12*AG12 -> 0 | BY12: =$BJ12*AH12 -> 0 | BZ12: =$BJ12*AI12 -> 0 | CA12: =$BJ12*AJ12 -> 0 | CB12: =$BJ12*AK12 -> 0 | CC12: =$BJ12*AL12 -> 0 | CD12: =F12/Q12 -> 696.6641957 | CE12: =I12/R12 -> 2306.686352 | CF12: =L12/S12 -> 86994.20692
A13: ='[1]Monthly Data'!A13 -> 2012-12-01 | B13: ='[1]Monthly Data'!B13 -> 2012 | C13: =MONTH(A13) -> 12 | D13: ='[1]Monthly Data'!D13 -> 12044245.79 | E13: ='[1]Monthly Data'!E13 -> 7616.598672 | F13: ='[1]Monthly Data'!F13 -> 12051862.39 | G13: ='[1]Monthly Data'!G13 -> 4326765.493 | H13: ='[1]Monthly Data'!H13 -> 26559.00922 | I13: ='[1]Monthly Data'!I13 -> 4353324.502 | J13: ='[1]Monthly Data'!J13 -> 9921360.888 | K13: ='[1]Monthly Data'!K13 -> 37506.85164 | L13: ='[1]Monthly Data'!L13 -> 9958867.74 | M13: ='[1]Monthly Data'!M13 -> 238214.4046 | N13: ='[1]Monthly Data'!N13 -> 36066.83919 | O13: ='[1]Monthly Data'!O13 -> 24083.31 | P13: ='[1]Monthly Data'!P13 -> 507.87 | Q13: ='[1]Monthly Data'!Q13 -> 14224.5 | R13: ='[1]Monthly Data'!R13 -> 1691.5 | S13: ='[1]Monthly Data'!S13 -> 116 | T13: ='[1]Monthly Data'!T13 -> 3018 | U13: ='[1]Monthly Data'!U13 -> 30 | V13: =[1]Weather!C133 -> 0.4709677419 | W13: =[1]Weather!D133 -> 667.4 | X13: =[1]Weather!E133 -> 0 | Y13: =[1]Weather!F133 -> 605.4 | Z13: =[1]Weather!G133 -> 0 | AA13: =[1]Weather!H133 -> 543.4 | AB13: =[1]Weather!I133 -> 0 | AC13: =[1]Weather!J133 -> 481.4 | AD13: =[1]Weather!K133 -> 0 | AE13: =[1]Weather!L133 -> 419.4 | AF13: =[1]Weather!M133 -> 0 | AG13: =[1]Weather!N133 -> 357.4 | AH13: =[1]Weather!O133 -> 0 | AI13: =[1]Weather!P133 -> 295.4 | AJ13: =[1]Weather!Q133 -> 0 | AK13: =[1]Weather!R133 -> 235.5 | AL13: =[1]Weather!S133 -> 2.1 | AM13: =[1]Economic!C13 -> 634944.3 | AN13: =[1]Economic!D13 -> 6697 | AO13: =[1]Economic!E13 -> 6700.5 | AP13: =[1]Economic!F13 -> 104.6 | AQ13: =[1]Economic!G13 -> 106.3 | AR13: 31 | AS13: 23 | AT13: =1+AT12 -> 12 | AU13: 0 | AV13: 0 | AW13: 0 | AX13: 0 | AY13: 0 | AZ13: 0 | BA13: 0 | BB13: 0 | BC13: 0 | BD13: 0 | BE13: 0 | BF13: 1 | BG13: 0 | BH13: 0 | BI13: =BG13+BH13 -> 0 | BJ13: 0 | BK13: 0 | BL13: =BK13 -> 0 | BM13: =BM12 -> 0 | BN13: =$BJ13*W13 -> 0 | BO13: =$BJ13*X13 -> 0 | BP13: =$BJ13*Y13 -> 0 | BQ13: =$BJ13*Z13 -> 0 | BR13: =$BJ13*AA13 -> 0 | BS13: =$BJ13*AB13 -> 0 | BT13: =$BJ13*AC13 -> 0 | BU13: =$BJ13*AD13 -> 0 | BV13: =$BJ13*AE13 -> 0 | BW13: =$BJ13*AF13 -> 0 | BX13: =$BJ13*AG13 -> 0 | BY13: =$BJ13*AH13 -> 0 | BZ13: =$BJ13*AI13 -> 0 | CA13: =$BJ13*AJ13 -> 0 | CB13: =$BJ13*AK13 -> 0 | CC13: =$BJ13*AL13 -> 0 | CD13: =F13/Q13 -> 847.26088 | CE13: =I13/R13 -> 2573.647356 | CF13: =L13/S13 -> 85852.3081
A14: ='[1]Monthly Data'!A14 -> 2013-01-01 | B14: ='[1]Monthly Data'!B14 -> 2013 | C14: =MONTH(A14) -> 1 | D14: ='[1]Monthly Data'!D14 -> 13215525.72 | E14: ='[1]Monthly Data'!E14 -> 22973.53096 | F14: ='[1]Monthly Data'!F14 -> 13238499.25 | G14: ='[1]Monthly Data'!G14 -> 4635815.409 | H14: ='[1]Monthly Data'!H14 -> 86206.06426 | I14: ='[1]Monthly Data'!I14 -> 4722021.473 | J14: ='[1]Monthly Data'!J14 -> 10592340.06 | K14: ='[1]Monthly Data'!K14 -> 100316.9764 | L14: ='[1]Monthly Data'!L14 -> 10692657.03 | M14: ='[1]Monthly Data'!M14 -> 231418.9036 | N14: ='[1]Monthly Data'!N14 -> 34772.24685 | O14: ='[1]Monthly Data'!O14 -> 24385.01 | P14: ='[1]Monthly Data'!P14 -> 507.87 | Q14: ='[1]Monthly Data'!Q14 -> 14224.5 | R14: ='[1]Monthly Data'!R14 -> 1691.5 | S14: ='[1]Monthly Data'!S14 -> 114 | T14: ='[1]Monthly Data'!T14 -> 3018 | U14: ='[1]Monthly Data'!U14 -> 30 | V14: =[1]Weather!C134 -> -2.609677419 | W14: =[1]Weather!D134 -> 762.9 | X14: =[1]Weather!E134 -> 0 | Y14: =[1]Weather!F134 -> 700.9 | Z14: =[1]Weather!G134 -> 0 | AA14: =[1]Weather!H134 -> 638.9 | AB14: =[1]Weather!I134 -> 0 | AC14: =[1]Weather!J134 -> 576.9 | AD14: =[1]Weather!K134 -> 0 | AE14: =[1]Weather!L134 -> 514.9 | AF14: =[1]Weather!M134 -> 0 | AG14: =[1]Weather!N134 -> 452.9 | AH14: =[1]Weather!O134 -> 0 | AI14: =[1]Weather!P134 -> 390.9 | AJ14: =[1]Weather!Q134 -> 0 | AK14: =[1]Weather!R134 -> 331.1 | AL14: =[1]Weather!S134 -> 2.2 | AM14: =[1]Economic!C14 -> 643937 | AN14: =[1]Economic!D14 -> 6711.6 | AO14: =[1]Economic!E14 -> 6680.9 | AP14: =[1]Economic!F14 -> 107.5 | AQ14: =[1]Economic!G14 -> 107.4 | AR14: =AR2 -> 31 | AS14: 21 | AT14: =1+AT13 -> 13 | AU14: =AU2 -> 1 | AV14: =AV2 -> 0 | AW14: =AW2 -> 0 | AX14: =AX2 -> 0 | AY14: =AY2 -> 0 | AZ14: =AZ2 -> 0 | BA14: =BA2 -> 0 | BB14: =BB2 -> 0 | BC14: =BC2 -> 0 | BD14: =BD2 -> 0 | BE14: =BE2 -> 0 | BF14: =BF2 -> 0 | BG14: =BG2 -> 0 | BH14: =BH2 -> 0 | BI14: =BG14+BH14 -> 0 | BJ14: 0 | BK14: 0 | BL14: =BK14 -> 0 | BM14: =BM13 -> 0 | BN14: =$BJ14*W14 -> 0 | BO14: =$BJ14*X14 -> 0 | BP14: =$BJ14*Y14 -> 0 | BQ14: =$BJ14*Z14 -> 0 | BR14: =$BJ14*AA14 -> 0 | BS14: =$BJ14*AB14 -> 0 | BT14: =$BJ14*AC14 -> 0 | BU14: =$BJ14*AD14 -> 0 | BV14: =$BJ14*AE14 -> 0 | BW14: =$BJ14*AF14 -> 0 | BX14: =$BJ14*AG14 -> 0 | BY14: =$BJ14*AH14 -> 0 | BZ14: =$BJ14*AI14 -> 0 | CA14: =$BJ14*AJ14 -> 0 | CB14: =$BJ14*AK14 -> 0 | CC14: =$BJ14*AL14 -> 0 | CD14: =F14/Q14 -> 930.682924 | CE14: =I14/R14 -> 2791.617779 | CF14: =L14/S14 -> 93795.23714
A15: ='[1]Monthly Data'!A15 -> 2013-02-01 | B15: ='[1]Monthly Data'!B15 -> 2013 | C15: =MONTH(A15) -> 2 | D15: ='[1]Monthly Data'!D15 -> 11933004.62 | E15: ='[1]Monthly Data'!E15 -> 22973.53096 | F15: ='[1]Monthly Data'!F15 -> 11955978.15 | G15: ='[1]Monthly Data'!G15 -> 4293515.412 | H15: ='[1]Monthly Data'!H15 -> 86206.06426 | I15: ='[1]Monthly Data'!I15 -> 4379721.476 | J15: ='[1]Monthly Data'!J15 -> 10066435.97 | K15: ='[1]Monthly Data'!K15 -> 100316.9764 | L15: ='[1]Monthly Data'!L15 -> 10166752.95 | M15: ='[1]Monthly Data'!M15 -> 192529.7128 | N15: ='[1]Monthly Data'!N15 -> 32880.69208 | O15: ='[1]Monthly Data'!O15 -> 24989.89 | P15: ='[1]Monthly Data'!P15 -> 507.87 | Q15: ='[1]Monthly Data'!Q15 -> 14229 | R15: ='[1]Monthly Data'!R15 -> 1694 | S15: ='[1]Monthly Data'!S15 -> 113 | T15: ='[1]Monthly Data'!T15 -> 3069 | U15: ='[1]Monthly Data'!U15 -> 30 | V15: =[1]Weather!C135 -> -5.135714286 | W15: =[1]Weather!D135 -> 759.8 | X15: =[1]Weather!E135 -> 0 | Y15: =[1]Weather!F135 -> 703.8 | Z15: =[1]Weather!G135 -> 0 | AA15: =[1]Weather!H135 -> 647.8 | AB15: =[1]Weather!I135 -> 0 | AC15: =[1]Weather!J135 -> 591.8 | AD15: =[1]Weather!K135 -> 0 | AE15: =[1]Weather!L135 -> 535.8 | AF15: =[1]Weather!M135 -> 0 | AG15: =[1]Weather!N135 -> 479.8 | AH15: =[1]Weather!O135 -> 0 | AI15: =[1]Weather!P135 -> 423.8 | AJ15: =[1]Weather!Q135 -> 0 | AK15: =[1]Weather!R135 -> 367.8 | AL15: =[1]Weather!S135 -> 0 | AM15: =[1]Economic!C15 -> 643937 | AN15: =[1]Economic!D15 -> 6728.5 | AO15: =[1]Economic!E15 -> 6660.8 | AP15: =[1]Economic!F15 -> 110.8 | AQ15: =[1]Economic!G15 -> 109.7 | AR15: 28 | AS15: 19 | AT15: =1+AT14 -> 14 | AU15: =AU3 -> 0 | AV15: =AV3 -> 1 | AW15: =AW3 -> 0 | AX15: =AX3 -> 0 | AY15: =AY3 -> 0 | AZ15: =AZ3 -> 0 | BA15: =BA3 -> 0 | BB15: =BB3 -> 0 | BC15: =BC3 -> 0 | BD15: =BD3 -> 0 | BE15: =BE3 -> 0 | BF15: =BF3 -> 0 | BG15: =BG3 -> 0 | BH15: =BH3 -> 0 | BI15: =BG15+BH15 -> 0 | BJ15: 0 | BK15: 0 | BL15: =BK15 -> 0 | BM15: =BM14 -> 0 | BN15: =$BJ15*W15 -> 0 | BO15: =$BJ15*X15 -> 0 | BP15: =$BJ15*Y15 -> 0 | BQ15: =$BJ15*Z15 -> 0 | BR15: =$BJ15*AA15 -> 0 | BS15: =$BJ15*AB15 -> 0 | BT15: =$BJ15*AC15 -> 0 | BU15: =$BJ15*AD15 -> 0 | BV15: =$BJ15*AE15 -> 0 | BW15: =$BJ15*AF15 -> 0 | BX15: =$BJ15*AG15 -> 0 | BY15: =$BJ15*AH15 -> 0 | BZ15: =$BJ15*AI15 -> 0 | CA15: =$BJ15*AJ15 -> 0 | CB15: =$BJ15*AK15 -> 0 | CC15: =$BJ15*AL15 -> 0 | CD15: =F15/Q15 -> 840.2542799 | CE15: =I15/R15 -> 2585.431804 | CF15: =L15/S15 -> 89971.26503
A16: ='[1]Monthly Data'!A16 -> 2013-03-01 | B16: ='[1]Monthly Data'!B16 -> 2013 | C16: =MONTH(A16) -> 3 | D16: ='[1]Monthly Data'!D16 -> 11808394.1 | E16: ='[1]Monthly Data'!E16 -> 22973.53096 | F16: ='[1]Monthly Data'!F16 -> 11831367.63 | G16: ='[1]Monthly Data'!G16 -> 4374623.36 | H16: ='[1]Monthly Data'!H16 -> 86206.06426 | I16: ='[1]Monthly Data'!I16 -> 4460829.424 | J16: ='[1]Monthly Data'!J16 -> 10688896.12 | K16: ='[1]Monthly Data'!K16 -> 100316.9764 | L16: ='[1]Monthly Data'!L16 -> 10789213.09 | M16: ='[1]Monthly Data'!M16 -> 189835.8714 | N16: ='[1]Monthly Data'!N16 -> 35975.8244 | O16: ='[1]Monthly Data'!O16 -> 24702.64 | P16: ='[1]Monthly Data'!P16 -> 507.87 | Q16: ='[1]Monthly Data'!Q16 -> 14244 | R16: ='[1]Monthly Data'!R16 -> 1690 | S16: ='[1]Monthly Data'!S16 -> 118 | T16: ='[1]Monthly Data'!T16 -> 3069 | U16: ='[1]Monthly Data'!U16 -> 31 | V16: =[1]Weather!C136 -> -0.7806451613 | W16: =[1]Weather!D136 -> 706.2 | X16: =[1]Weather!E136 -> 0 | Y16: =[1]Weather!F136 -> 644.2 | Z16: =[1]Weather!G136 -> 0 | AA16: =[1]Weather!H136 -> 582.2 | AB16: =[1]Weather!I136 -> 0 | AC16: =[1]Weather!J136 -> 520.2 | AD16: =[1]Weather!K136 -> 0 | AE16: =[1]Weather!L136 -> 458.2 | AF16: =[1]Weather!M136 -> 0 | AG16: =[1]Weather!N136 -> 396.2 | AH16: =[1]Weather!O136 -> 0 | AI16: =[1]Weather!P136 -> 334.2 | AJ16: =[1]Weather!Q136 -> 0 | AK16: =[1]Weather!R136 -> 272.7 | AL16: =[1]Weather!S136 -> 0.5 | AM16: =[1]Economic!C16 -> 643937 | AN16: =[1]Economic!D16 -> 6735.1 | AO16: =[1]Economic!E16 -> 6634.8 | AP16: =[1]Economic!F16 -> 110.9 | AQ16: =[1]Economic!G16 -> 109.2 | AR16: =AR4 -> 31 | AS16: 23 | AT16: =1+AT15 -> 15 | AU16: =AU4 -> 0 | AV16: =AV4 -> 0 | AW16: =AW4 -> 1 | AX16: =AX4 -> 0 | AY16: =AY4 -> 0 | AZ16: =AZ4 -> 0 | BA16: =BA4 -> 0 | BB16: =BB4 -> 0 | BC16: =BC4 -> 0 | BD16: =BD4 -> 0 | BE16: =BE4 -> 0 | BF16: =BF4 -> 0 | BG16: =BG4 -> 1 | BH16: =BH4 -> 0 | BI16: =BG16+BH16 -> 1 | BJ16: 0 | BK16: 0 | BL16: =BK16 -> 0 | BM16: =BM15 -> 0 | BN16: =$BJ16*W16 -> 0 | BO16: =$BJ16*X16 -> 0 | BP16: =$BJ16*Y16 -> 0 | BQ16: =$BJ16*Z16 -> 0 | BR16: =$BJ16*AA16 -> 0 | BS16: =$BJ16*AB16 -> 0 | BT16: =$BJ16*AC16 -> 0 | BU16: =$BJ16*AD16 -> 0 | BV16: =$BJ16*AE16 -> 0 | BW16: =$BJ16*AF16 -> 0 | BX16: =$BJ16*AG16 -> 0 | BY16: =$BJ16*AH16 -> 0 | BZ16: =$BJ16*AI16 -> 0 | CA16: =$BJ16*AJ16 -> 0 | CB16: =$BJ16*AK16 -> 0 | CC16: =$BJ16*AL16 -> 0 | CD16: =F16/Q16 -> 830.6211481 | CE16: =I16/R16 -> 2639.544038 | CF16: =L16/S16 -> 91434.00927
A17: ='[1]Monthly Data'!A17 -> 2013-04-01 | B17: ='[1]Monthly Data'!B17 -> 2013 | C17: =MONTH(A17) -> 4 | D17: ='[1]Monthly Data'!D17 -> 9226248.124 | E17: ='[1]Monthly Data'!E17 -> 22973.53096 | F17: ='[1]Monthly Data'!F17 -> 9249221.655 | G17: ='[1]Monthly Data'!G17 -> 3746140.205 | H17: ='[1]Monthly Data'!H17 -> 86206.06426 | I17: ='[1]Monthly Data'!I17 -> 3832346.27 | J17: ='[1]Monthly Data'!J17 -> 9803120.988 | K17: ='[1]Monthly Data'!K17 -> 100316.9764 | L17: ='[1]Monthly Data'!L17 -> 9903437.965 | M17: ='[1]Monthly Data'!M17 -> 160050.0073 | N17: ='[1]Monthly Data'!N17 -> 33768.96525 | O17: ='[1]Monthly Data'!O17 -> 24308.53 | P17: ='[1]Monthly Data'!P17 -> 507.87 | Q17: ='[1]Monthly Data'!Q17 -> 14259 | R17: ='[1]Monthly Data'!R17 -> 1686 | S17: ='[1]Monthly Data'!S17 -> 117 | T17: ='[1]Monthly Data'!T17 -> 3069 | U17: ='[1]Monthly Data'!U17 -> 31 | V17: =[1]Weather!C137 -> 5.71 | W17: =[1]Weather!D137 -> 488.7 | X17: =[1]Weather!E137 -> 0 | Y17: =[1]Weather!F137 -> 428.7 | Z17: =[1]Weather!G137 -> 0 | AA17: =[1]Weather!H137 -> 368.7 | AB17: =[1]Weather!I137 -> 0 | AC17: =[1]Weather!J137 -> 309.4 | AD17: =[1]Weather!K137 -> 0.7 | AE17: =[1]Weather!L137 -> 252.8 | AF17: =[1]Weather!M137 -> 4.1 | AG17: =[1]Weather!N137 -> 200.1 | AH17: =[1]Weather!O137 -> 11.4 | AI17: =[1]Weather!P137 -> 151.4 | AJ17: =[1]Weather!Q137 -> 22.7 | AK17: =[1]Weather!R137 -> 108.1 | AL17: =[1]Weather!S137 -> 39.4 | AM17: =[1]Economic!C17 -> 643937 | AN17: =[1]Economic!D17 -> 6742.7 | AO17: =[1]Economic!E17 -> 6662.1 | AP17: =[1]Economic!F17 -> 110.5 | AQ17: =[1]Economic!G17 -> 108.3 | AR17: =AR5 -> 30 | AS17: 20 | AT17: =1+AT16 -> 16 | AU17: =AU5 -> 0 | AV17: =AV5 -> 0 | AW17: =AW5 -> 0 | AX17: =AX5 -> 1 | AY17: =AY5 -> 0 | AZ17: =AZ5 -> 0 | BA17: =BA5 -> 0 | BB17: =BB5 -> 0 | BC17: =BC5 -> 0 | BD17: =BD5 -> 0 | BE17: =BE5 -> 0 | BF17: =BF5 -> 0 | BG17: =BG5 -> 1 | BH17: =BH5 -> 0 | BI17: =BG17+BH17 -> 1 | BJ17: 0 | BK17: 0 | BL17: =BK17 -> 0 | BM17: =BM16 -> 0 | BN17: =$BJ17*W17 -> 0 | BO17: =$BJ17*X17 -> 0 | BP17: =$BJ17*Y17 -> 0 | BQ17: =$BJ17*Z17 -> 0 | BR17: =$BJ17*AA17 -> 0 | BS17: =$BJ17*AB17 -> 0 | BT17: =$BJ17*AC17 -> 0 | BU17: =$BJ17*AD17 -> 0 | BV17: =$BJ17*AE17 -> 0 | BW17: =$BJ17*AF17 -> 0 | BX17: =$BJ17*AG17 -> 0 | BY17: =$BJ17*AH17 -> 0 | BZ17: =$BJ17*AI17 -> 0 | CA17: =$BJ17*AJ17 -> 0 | CB17: =$BJ17*AK17 -> 0 | CC17: =$BJ17*AL17 -> 0 | CD17: =F17/Q17 -> 648.6585072 | CE17: =I17/R17 -> 2273.040492 | CF17: =L17/S17 -> 84644.76893
A18: ='[1]Monthly Data'!A18 -> 2013-05-01 | B18: ='[1]Monthly Data'!B18 -> 2013 | C18: =MONTH(A18) -> 5 | D18: ='[1]Monthly Data'!D18 -> 8145944.878 | E18: ='[1]Monthly Data'!E18 -> 22973.53096 | F18: ='[1]Monthly Data'!F18 -> 8168918.409 | G18: ='[1]Monthly Data'!G18 -> 3595184.823 | H18: ='[1]Monthly Data'!H18 -> 86206.06426 | I18: ='[1]Monthly Data'!I18 -> 3681390.887 | J18: ='[1]Monthly Data'!J18 -> 9546584.766 | K18: ='[1]Monthly Data'!K18 -> 100316.9764 | L18: ='[1]Monthly Data'!L18 -> 9646901.742 | M18: ='[1]Monthly Data'!M18 -> 144384.1913 | N18: ='[1]Monthly Data'!N18 -> 35252.20518 | O18: ='[1]Monthly Data'!O18 -> 25640.87 | P18: ='[1]Monthly Data'!P18 -> 507.87 | Q18: ='[1]Monthly Data'!Q18 -> 14256 | R18: ='[1]Monthly Data'!R18 -> 1697 | S18: ='[1]Monthly Data'!S18 -> 117 | T18: ='[1]Monthly Data'!T18 -> 3069 | U18: ='[1]Monthly Data'!U18 -> 31 | V18: =[1]Weather!C138 -> 13.22580645 | W18: =[1]Weather!D138 -> 275.2 | X18: =[1]Weather!E138 -> 3.2 | Y18: =[1]Weather!F138 -> 215.9 | Z18: =[1]Weather!G138 -> 5.9 | AA18: =[1]Weather!H138 -> 163.7 | AB18: =[1]Weather!I138 -> 15.7 | AC18: =[1]Weather!J138 -> 120.1 | AD18: =[1]Weather!K138 -> 34.1 | AE18: =[1]Weather!L138 -> 80.2 | AF18: =[1]Weather!M138 -> 56.2 | AG18: =[1]Weather!N138 -> 48.9 | AH18: =[1]Weather!O138 -> 86.9 | AI18: =[1]Weather!P138 -> 26.1 | AJ18: =[1]Weather!Q138 -> 126.1 | AK18: =[1]Weather!R138 -> 10.7 | AL18: =[1]Weather!S138 -> 172.7 | AM18: =[1]Economic!C18 -> 643937 | AN18: =[1]Economic!D18 -> 6754.1 | AO18: =[1]Economic!E18 -> 6726.6 | AP18: =[1]Economic!F18 -> 109.4 | AQ18: =[1]Economic!G18 -> 108.2 | AR18: =AR6 -> 31 | AS18: 21 | AT18: =1+AT17 -> 17 | AU18: =AU6 -> 0 | AV18: =AV6 -> 0 | AW18: =AW6 -> 0 | AX18: =AX6 -> 0 | AY18: =AY6 -> 1 | AZ18: =AZ6 -> 0 | BA18: =BA6 -> 0 | BB18: =BB6 -> 0 | BC18: =BC6 -> 0 | BD18: =BD6 -> 0 | BE18: =BE6 -> 0 | BF18: =BF6 -> 0 | BG18: =BG6 -> 1 | BH18: =BH6 -> 0 | BI18: =BG18+BH18 -> 1 | BJ18: 0 | BK18: 0 | BL18: =BK18 -> 0 | BM18: =BM17 -> 0 | BN18: =$BJ18*W18 -> 0 | BO18: =$BJ18*X18 -> 0 | BP18: =$BJ18*Y18 -> 0 | BQ18: =$BJ18*Z18 -> 0 | BR18: =$BJ18*AA18 -> 0 | BS18: =$BJ18*AB18 -> 0 | BT18: =$BJ18*AC18 -> 0 | BU18: =$BJ18*AD18 -> 0 | BV18: =$BJ18*AE18 -> 0 | BW18: =$BJ18*AF18 -> 0 | BX18: =$BJ18*AG18 -> 0 | BY18: =$BJ18*AH18 -> 0 | BZ18: =$BJ18*AI18 -> 0 | CA18: =$BJ18*AJ18 -> 0 | CB18: =$BJ18*AK18 -> 0 | CC18: =$BJ18*AL18 -> 0 | CD18: =F18/Q18 -> 573.0161622 | CE18: =I18/R18 -> 2169.35232 | CF18: =L18/S18 -> 82452.15164
A19: ='[1]Monthly Data'!A19 -> 2013-06-01 | B19: ='[1]Monthly Data'!B19 -> 2013 | C19: =MONTH(A19) -> 6 | D19: ='[1]Monthly Data'!D19 -> 8158035.098 | E19: ='[1]Monthly Data'!E19 -> 22973.53096 | F19: ='[1]Monthly Data'!F19 -> 8181008.629 | G19: ='[1]Monthly Data'!G19 -> 3650453.626 | H19: ='[1]Monthly Data'!H19 -> 86206.06426 | I19: ='[1]Monthly Data'!I19 -> 3736659.69 | J19: ='[1]Monthly Data'!J19 -> 9600861.35 | K19: ='[1]Monthly Data'!K19 -> 100316.9764 | L19: ='[1]Monthly Data'!L19 -> 9701178.327 | M19: ='[1]Monthly Data'!M19 -> 129375.8902 | N19: ='[1]Monthly Data'!N19 -> 36201.1589 | O19: ='[1]Monthly Data'!O19 -> 25358.5 | P19: ='[1]Monthly Data'!P19 -> 507.87 | Q19: ='[1]Monthly Data'!Q19 -> 14221 | R19: ='[1]Monthly Data'!R19 -> 1696 | S19: ='[1]Monthly Data'!S19 -> 117 | T19: ='[1]Monthly Data'!T19 -> 3069 | U19: ='[1]Monthly Data'!U19 -> 31 | V19: =[1]Weather!C139 -> 16.88388785 | W19: =[1]Weather!D139 -> 162.1 | X19: =[1]Weather!E139 -> 8.6 | Y19: =[1]Weather!F139 -> 115.1 | Z19: =[1]Weather!G139 -> 21.6 | AA19: =[1]Weather!H139 -> 74.5 | AB19: =[1]Weather!I139 -> 41 | AC19: =[1]Weather!J139 -> 39.4 | AD19: =[1]Weather!K139 -> 65.9 | AE19: =[1]Weather!L139 -> 14.4 | AF19: =[1]Weather!M139 -> 100.9 | AG19: =[1]Weather!N139 -> 3.4 | AH19: =[1]Weather!O139 -> 149.9 | AI19: =[1]Weather!P139 -> 0 | AJ19: =[1]Weather!Q139 -> 206.5 | AK19: =[1]Weather!R139 -> 0 | AL19: =[1]Weather!S139 -> 266.5 | AM19: =[1]Economic!C19 -> 643937 | AN19: =[1]Economic!D19 -> 6766.1 | AO19: =[1]Economic!E19 -> 6812.7 | AP19: =[1]Economic!F19 -> 108.3 | AQ19: =[1]Economic!G19 -> 109 | AR19: =AR7 -> 30 | AS19: 22 | AT19: =1+AT18 -> 18 | AU19: =AU7 -> 0 | AV19: =AV7 -> 0 | AW19: =AW7 -> 0 | AX19: =AX7 -> 0 | AY19: =AY7 -> 0 | AZ19: =AZ7 -> 1 | BA19: =BA7 -> 0 | BB19: =BB7 -> 0 | BC19: =BC7 -> 0 | BD19: =BD7 -> 0 | BE19: =BE7 -> 0 | BF19: =BF7 -> 0 | BG19: =BG7 -> 0 | BH19: =BH7 -> 0 | BI19: =BG19+BH19 -> 0 | BJ19: 0 | BK19: 0 | BL19: =BK19 -> 0 | BM19: =BM18 -> 0 | BN19: =$BJ19*W19 -> 0 | BO19: =$BJ19*X19 -> 0 | BP19: =$BJ19*Y19 -> 0 | BQ19: =$BJ19*Z19 -> 0 | BR19: =$BJ19*AA19 -> 0 | BS19: =$BJ19*AB19 -> 0 | BT19: =$BJ19*AC19 -> 0 | BU19: =$BJ19*AD19 -> 0 | BV19: =$BJ19*AE19 -> 0 | BW19: =$BJ19*AF19 -> 0 | BX19: =$BJ19*AG19 -> 0 | BY19: =$BJ19*AH19 -> 0 | BZ19: =$BJ19*AI19 -> 0 | CA19: =$BJ19*AJ19 -> 0 | CB19: =$BJ19*AK19 -> 0 | CC19: =$BJ19*AL19 -> 0 | CD19: =F19/Q19 -> 575.276607 | CE19: =I19/R19 -> 2203.219157 | CF19: =L19/S19 -> 82916.05407
A20: ='[1]Monthly Data'!A20 -> 2013-07-01 | B20: ='[1]Monthly Data'!B20 -> 2013 | C20: =MONTH(A20) -> 7 | D20: ='[1]Monthly Data'!D20 -> 9381527.086 | E20: ='[1]Monthly Data'!E20 -> 22973.53096 | F20: ='[1]Monthly Data'!F20 -> 9404500.617 | G20: ='[1]Monthly Data'!G20 -> 4069837.848 | H20: ='[1]Monthly Data'!H20 -> 86206.06426 | I20: ='[1]Monthly Data'!I20 -> 4156043.913 | J20: ='[1]Monthly Data'!J20 -> 9700292.792 | K20: ='[1]Monthly Data'!K20 -> 100316.9764 | L20: ='[1]Monthly Data'!L20 -> 9800609.768 | M20: ='[1]Monthly Data'!M20 -> 138855.7404 | N20: ='[1]Monthly Data'!N20 -> 34296.7618 | O20: ='[1]Monthly Data'!O20 -> 24114.27 | P20: ='[1]Monthly Data'!P20 -> 509.43 | Q20: ='[1]Monthly Data'!Q20 -> 14329 | R20: ='[1]Monthly Data'!R20 -> 1698.5 | S20: ='[1]Monthly Data'!S20 -> 118 | T20: ='[1]Monthly Data'!T20 -> 3069 | U20: ='[1]Monthly Data'!U20 -> 31 | V20: =[1]Weather!C140 -> 20.95806452 | W20: =[1]Weather!D140 -> 62.2 | X20: =[1]Weather!E140 -> 29.9 | Y20: =[1]Weather!F140 -> 28.6 | Z20: =[1]Weather!G140 -> 58.3 | AA20: =[1]Weather!H140 -> 6.3 | AB20: =[1]Weather!I140 -> 98 | AC20: =[1]Weather!J140 -> 0.2 | AD20: =[1]Weather!K140 -> 153.9 | AE20: =[1]Weather!L140 -> 0 | AF20: =[1]Weather!M140 -> 215.7 | AG20: =[1]Weather!N140 -> 0 | AH20: =[1]Weather!O140 -> 277.7 | AI20: =[1]Weather!P140 -> 0 | AJ20: =[1]Weather!Q140 -> 339.7 | AK20: =[1]Weather!R140 -> 0 | AL20: =[1]Weather!S140 -> 401.7 | AM20: =[1]Economic!C20 -> 643937 | AN20: =[1]Economic!D20 -> 6774.7 | AO20: =[1]Economic!E20 -> 6863.4 | AP20: =[1]Economic!F20 -> 107.2 | AQ20: =[1]Economic!G20 -> 109.5 | AR20: =AR8 -> 31 | AS20: 20 | AT20: =1+AT19 -> 19 | AU20: =AU8 -> 0 | AV20: =AV8 -> 0 | AW20: =AW8 -> 0 | AX20: =AX8 -> 0 | AY20: =AY8 -> 0 | AZ20: =AZ8 -> 0 | BA20: =BA8 -> 1 | BB20: =BB8 -> 0 | BC20: =BC8 -> 0 | BD20: =BD8 -> 0 | BE20: =BE8 -> 0 | BF20: =BF8 -> 0 | BG20: =BG8 -> 0 | BH20: =BH8 -> 0 | BI20: =BG20+BH20 -> 0 | BJ20: 0 | BK20: 0 | BL20: =BK20 -> 0 | BM20: =BM19 -> 0 | BN20: =$BJ20*W20 -> 0 | BO20: =$BJ20*X20 -> 0 | BP20: =$BJ20*Y20 -> 0 | BQ20: =$BJ20*Z20 -> 0 | BR20: =$BJ20*AA20 -> 0 | BS20: =$BJ20*AB20 -> 0 | BT20: =$BJ20*AC20 -> 0 | BU20: =$BJ20*AD20 -> 0 | BV20: =$BJ20*AE20 -> 0 | BW20: =$BJ20*AF20 -> 0 | BX20: =$BJ20*AG20 -> 0 | BY20: =$BJ20*AH20 -> 0 | BZ20: =$BJ20*AI20 -> 0 | CA20: =$BJ20*AJ20 -> 0 | CB20: =$BJ20*AK20 -> 0 | CC20: =$BJ20*AL20 -> 0 | CD20: =F20/Q20 -> 656.3263743 | CE20: =I20/R20 -> 2446.890735 | CF20: =L20/S20 -> 83056.01498
A21: ='[1]Monthly Data'!A21 -> 2013-08-01 | B21: ='[1]Monthly Data'!B21 -> 2013 | C21: =MONTH(A21) -> 8 | D21: ='[1]Monthly Data'!D21 -> 8900086.941 | E21: ='[1]Monthly Data'!E21 -> 22973.53096 | F21: ='[1]Monthly Data'!F21 -> 8923060.472 | G21: ='[1]Monthly Data'!G21 -> 3921872.95 | H21: ='[1]Monthly Data'!H21 -> 86206.06426 | I21: ='[1]Monthly Data'!I21 -> 4008079.014 | J21: ='[1]Monthly Data'!J21 -> 9644399.649 | K21: ='[1]Monthly Data'!K21 -> 100316.9764 | L21: ='[1]Monthly Data'!L21 -> 9744716.625 | M21: ='[1]Monthly Data'!M21 -> 156977.3745 | N21: ='[1]Monthly Data'!N21 -> 35339.4269 | O21: ='[1]Monthly Data'!O21 -> 24204.95 | P21: ='[1]Monthly Data'!P21 -> 509.43 | Q21: ='[1]Monthly Data'!Q21 -> 14329 | R21: ='[1]Monthly Data'!R21 -> 1698.5 | S21: ='[1]Monthly Data'!S21 -> 107 | T21: ='[1]Monthly Data'!T21 -> 3069 | U21: ='[1]Monthly Data'!U21 -> 31 | V21: =[1]Weather!C141 -> 19.61612903 | W21: =[1]Weather!D141 -> 84.9 | X21: =[1]Weather!E141 -> 11 | Y21: =[1]Weather!F141 -> 42.5 | Z21: =[1]Weather!G141 -> 30.6 | AA21: =[1]Weather!H141 -> 13.8 | AB21: =[1]Weather!I141 -> 63.9 | AC21: =[1]Weather!J141 -> 1.8 | AD21: =[1]Weather!K141 -> 113.9 | AE21: =[1]Weather!L141 -> 0 | AF21: =[1]Weather!M141 -> 174.1 | AG21: =[1]Weather!N141 -> 0 | AH21: =[1]Weather!O141 -> 236.1 | AI21: =[1]Weather!P141 -> 0 | AJ21: =[1]Weather!Q141 -> 298.1 | AK21: =[1]Weather!R141 -> 0 | AL21: =[1]Weather!S141 -> 360.1 | AM21: =[1]Economic!C21 -> 643937 | AN21: =[1]Economic!D21 -> 6778.4 | AO21: =[1]Economic!E21 -> 6876.4 | AP21: =[1]Economic!F21 -> 106 | AQ21: =[1]Economic!G21 -> 107.9 | AR21: =AR9 -> 31 | AS21: 22 | AT21: =1+AT20 -> 20 | AU21: =AU9 -> 0 | AV21: =AV9 -> 0 | AW21: =AW9 -> 0 | AX21: =AX9 -> 0 | AY21: =AY9 -> 0 | AZ21: =AZ9 -> 0 | BA21: =BA9 -> 0 | BB21: =BB9 -> 1 | BC21: =BC9 -> 0 | BD21: =BD9 -> 0 | BE21: =BE9 -> 0 | BF21: =BF9 -> 0 | BG21: =BG9 -> 0 | BH21: =BH9 -> 0 | BI21: =BG21+BH21 -> 0 | BJ21: 0 | BK21: 0 | BL21: =BK21 -> 0 | BM21: =BM20 -> 0 | BN21: =$BJ21*W21 -> 0 | BO21: =$BJ21*X21 -> 0 | BP21: =$BJ21*Y21 -> 0 | BQ21: =$BJ21*Z21 -> 0 | BR21: =$BJ21*AA21 -> 0 | BS21: =$BJ21*AB21 -> 0 | BT21: =$BJ21*AC21 -> 0 | BU21: =$BJ21*AD21 -> 0 | BV21: =$BJ21*AE21 -> 0 | BW21: =$BJ21*AF21 -> 0 | BX21: =$BJ21*AG21 -> 0 | BY21: =$BJ21*AH21 -> 0 | BZ21: =$BJ21*AI21 -> 0 | CA21: =$BJ21*AJ21 -> 0 | CB21: =$BJ21*AK21 -> 0 | CC21: =$BJ21*AL21 -> 0 | CD21: =F21/Q21 -> 622.7273691 | CE21: =I21/R21 -> 2359.775693 | CF21: =L21/S21 -> 91072.11799
A22: ='[1]Monthly Data'!A22 -> 2013-09-01 | B22: ='[1]Monthly Data'!B22 -> 2013 | C22: =MONTH(A22) -> 9 | D22: ='[1]Monthly Data'!D22 -> 7939283.279 | E22: ='[1]Monthly Data'!E22 -> 22973.53096 | F22: ='[1]Monthly Data'!F22 -> 7962256.81 | G22: ='[1]Monthly Data'!G22 -> 3601551.125 | H22: ='[1]Monthly Data'!H22 -> 86206.06426 | I22: ='[1]Monthly Data'!I22 -> 3687757.189 | J22: ='[1]Monthly Data'!J22 -> 9357221.278 | K22: ='[1]Monthly Data'!K22 -> 100316.9764 | L22: ='[1]Monthly Data'!L22 -> 9457538.254 | M22: ='[1]Monthly Data'!M22 -> 174541.3024 | N22: ='[1]Monthly Data'!N22 -> 36282.24667 | O22: ='[1]Monthly Data'!O22 -> 23704.96 | P22: ='[1]Monthly Data'!P22 -> 509.43 | Q22: ='[1]Monthly Data'!Q22 -> 14293 | R22: ='[1]Monthly Data'!R22 -> 1698 | S22: ='[1]Monthly Data'!S22 -> 124 | T22: ='[1]Monthly Data'!T22 -> 3069 | U22: ='[1]Monthly Data'!U22 -> 31 | V22: =[1]Weather!C142 -> 15.35333333 | W22: =[1]Weather!D142 -> 205.2 | X22: =[1]Weather!E142 -> 5.8 | Y22: =[1]Weather!F142 -> 152.3 | Z22: =[1]Weather!G142 -> 12.9 | AA22: =[1]Weather!H142 -> 103.5 | AB22: =[1]Weather!I142 -> 24.1 | AC22: =[1]Weather!J142 -> 63.2 | AD22: =[1]Weather!K142 -> 43.8 | AE22: =[1]Weather!L142 -> 32.4 | AF22: =[1]Weather!M142 -> 73 | AG22: =[1]Weather!N142 -> 13.8 | AH22: =[1]Weather!O142 -> 114.4 | AI22: =[1]Weather!P142 -> 2.9 | AJ22: =[1]Weather!Q142 -> 163.5 | AK22: =[1]Weather!R142 -> 0 | AL22: =[1]Weather!S142 -> 220.6 | AM22: =[1]Economic!C22 -> 643937 | AN22: =[1]Economic!D22 -> 6782.1 | AO22: =[1]Economic!E22 -> 6841.7 | AP22: =[1]Economic!F22 -> 106.1 | AQ22: =[1]Economic!G22 -> 106.4 | AR22: =AR10 -> 30 | AS22: 21 | AT22: =1+AT21 -> 21 | AU22: =AU10 -> 0 | AV22: =AV10 -> 0 | AW22: =AW10 -> 0 | AX22: =AX10 -> 0 | AY22: =AY10 -> 0 | AZ22: =AZ10 -> 0 | BA22: =BA10 -> 0 | BB22: =BB10 -> 0 | BC22: =BC10 -> 1 | BD22: =BD10 -> 0 | BE22: =BE10 -> 0 | BF22: =BF10 -> 0 | BG22: =BG10 -> 0 | BH22: =BH10 -> 1 | BI22: =BG22+BH22 -> 1 | BJ22: 0 | BK22: 0 | BL22: =BK22 -> 0 | BM22: =BM21 -> 0 | BN22: =$BJ22*W22 -> 0 | BO22: =$BJ22*X22 -> 0 | BP22: =$BJ22*Y22 -> 0 | BQ22: =$BJ22*Z22 -> 0 | BR22: =$BJ22*AA22 -> 0 | BS22: =$BJ22*AB22 -> 0 | BT22: =$BJ22*AC22 -> 0 | BU22: =$BJ22*AD22 -> 0 | BV22: =$BJ22*AE22 -> 0 | BW22: =$BJ22*AF22 -> 0 | BX22: =$BJ22*AG22 -> 0 | BY22: =$BJ22*AH22 -> 0 | BZ22: =$BJ22*AI22 -> 0 | CA22: =$BJ22*AJ22 -> 0 | CB22: =$BJ22*AK22 -> 0 | CC22: =$BJ22*AL22 -> 0 | CD22: =F22/Q22 -> 557.073869 | CE22: =I22/R22 -> 2171.824022 | CF22: =L22/S22 -> 76270.46979
A23: ='[1]Monthly Data'!A23 -> 2013-10-01 | B23: ='[1]Monthly Data'!B23 -> 2013 | C23: =MONTH(A23) -> 10 | D23: ='[1]Monthly Data'!D23 -> 8433400.443 | E23: ='[1]Monthly Data'!E23 -> 22973.53096 | F23: ='[1]Monthly Data'!F23 -> 8456373.973 | G23: ='[1]Monthly Data'!G23 -> 3638006.199 | H23: ='[1]Monthly Data'!H23 -> 86206.06426 | I23: ='[1]Monthly Data'!I23 -> 3724212.263 | J23: ='[1]Monthly Data'!J23 -> 9397512.787 | K23: ='[1]Monthly Data'!K23 -> 100316.9764 | L23: ='[1]Monthly Data'!L23 -> 9497829.763 | M23: ='[1]Monthly Data'!M23 -> 204726.725 | N23: ='[1]Monthly Data'!N23 -> 36923.39992 | O23: ='[1]Monthly Data'!O23 -> 25974.63 | P23: ='[1]Monthly Data'!P23 -> 509.43 | Q23: =AVERAGE(Q22,Q24) -> 14329 | R23: =AVERAGE(R22,R24) -> 1704 | S23: =AVERAGE(S22,S24) -> 131.5 | T23: =AVERAGE(T22,T24) -> 3069 | U23: =AVERAGE(U22,U24) -> 31 | V23: =[1]Weather!C143 -> 10.42741633 | W23: =[1]Weather!D143 -> 358.8 | X23: =[1]Weather!E143 -> 0 | Y23: =[1]Weather!F143 -> 296.8 | Z23: =[1]Weather!G143 -> 0 | AA23: =[1]Weather!H143 -> 234.9 | AB23: =[1]Weather!I143 -> 0.1 | AC23: =[1]Weather!J143 -> 175.4 | AD23: =[1]Weather!K143 -> 2.6 | AE23: =[1]Weather!L143 -> 126 | AF23: =[1]Weather!M143 -> 15.2 | AG23: =[1]Weather!N143 -> 86.9 | AH23: =[1]Weather!O143 -> 38.1 | AI23: =[1]Weather!P143 -> 55.6 | AJ23: =[1]Weather!Q143 -> 68.8 | AK23: =[1]Weather!R143 -> 33.9 | AL23: =[1]Weather!S143 -> 109.1 | AM23: =[1]Economic!C23 -> 643937 | AN23: =[1]Economic!D23 -> 6784.2 | AO23: =[1]Economic!E23 -> 6821.6 | AP23: =[1]Economic!F23 -> 106.9 | AQ23: =[1]Economic!G23 -> 106.6 | AR23: =AR11 -> 31 | AS23: 20 | AT23: =1+AT22 -> 22 | AU23: =AU11 -> 0 | AV23: =AV11 -> 0 | AW23: =AW11 -> 0 | AX23: =AX11 -> 0 | AY23: =AY11 -> 0 | AZ23: =AZ11 -> 0 | BA23: =BA11 -> 0 | BB23: =BB11 -> 0 | BC23: =BC11 -> 0 | BD23: =BD11 -> 1 | BE23: =BE11 -> 0 | BF23: =BF11 -> 0 | BG23: =BG11 -> 0 | BH23: =BH11 -> 1 | BI23: =BG23+BH23 -> 1 | BJ23: 0 | BK23: 0 | BL23: =BK23 -> 0 | BM23: =BM22 -> 0 | BN23: =$BJ23*W23 -> 0 | BO23: =$BJ23*X23 -> 0 | BP23: =$BJ23*Y23 -> 0 | BQ23: =$BJ23*Z23 -> 0 | BR23: =$BJ23*AA23 -> 0 | BS23: =$BJ23*AB23 -> 0 | BT23: =$BJ23*AC23 -> 0 | BU23: =$BJ23*AD23 -> 0 | BV23: =$BJ23*AE23 -> 0 | BW23: =$BJ23*AF23 -> 0 | BX23: =$BJ23*AG23 -> 0 | BY23: =$BJ23*AH23 -> 0 | BZ23: =$BJ23*AI23 -> 0 | CA23: =$BJ23*AJ23 -> 0 | CB23: =$BJ23*AK23 -> 0 | CC23: =$BJ23*AL23 -> 0 | CD23: =F23/Q23 -> 590.1579994 | CE23: =I23/R23 -> 2185.570577 | CF23: =L23/S23 -> 72226.84231
A24: ='[1]Monthly Data'!A24 -> 2013-11-01 | B24: ='[1]Monthly Data'!B24 -> 2013 | C24: =MONTH(A24) -> 11 | D24: ='[1]Monthly Data'!D24 -> 10562999.85 | E24: ='[1]Monthly Data'!E24 -> 22973.53096 | F24: ='[1]Monthly Data'!F24 -> 10585973.39 | G24: ='[1]Monthly Data'!G24 -> 3996946.583 | H24: ='[1]Monthly Data'!H24 -> 86206.06426 | I24: ='[1]Monthly Data'!I24 -> 4083152.647 | J24: ='[1]Monthly Data'!J24 -> 9866184.017 | K24: ='[1]Monthly Data'!K24 -> 100316.9764 | L24: ='[1]Monthly Data'!L24 -> 9966500.993 | M24: ='[1]Monthly Data'!M24 -> 218135.9307 | N24: ='[1]Monthly Data'!N24 -> 35259.22929 | O24: ='[1]Monthly Data'!O24 -> 24182.96 | P24: ='[1]Monthly Data'!P24 -> 509.43 | Q24: ='[1]Monthly Data'!Q24 -> 14365 | R24: ='[1]Monthly Data'!R24 -> 1710 | S24: ='[1]Monthly Data'!S24 -> 139 | T24: ='[1]Monthly Data'!T24 -> 3069 | U24: ='[1]Monthly Data'!U24 -> 31 | V24: =[1]Weather!C144 -> 2.11 | W24: =[1]Weather!D144 -> 596.7 | X24: =[1]Weather!E144 -> 0 | Y24: =[1]Weather!F144 -> 536.7 | Z24: =[1]Weather!G144 -> 0 | AA24: =[1]Weather!H144 -> 476.7 | AB24: =[1]Weather!I144 -> 0 | AC24: =[1]Weather!J144 -> 416.7 | AD24: =[1]Weather!K144 -> 0 | AE24: =[1]Weather!L144 -> 356.7 | AF24: =[1]Weather!M144 -> 0 | AG24: =[1]Weather!N144 -> 298.4 | AH24: =[1]Weather!O144 -> 1.7 | AI24: =[1]Weather!P144 -> 243.3 | AJ24: =[1]Weather!Q144 -> 6.6 | AK24: =[1]Weather!R144 -> 190.4 | AL24: =[1]Weather!S144 -> 13.7 | AM24: =[1]Economic!C24 -> 643937 | AN24: =[1]Economic!D24 -> 6785.3 | AO24: =[1]Economic!E24 -> 6794.8 | AP24: =[1]Economic!F24 -> 107.9 | AQ24: =[1]Economic!G24 -> 107.5 | AR24: =AR12 -> 30 | AS24: 22 | AT24: =1+AT23 -> 23 | AU24: =AU12 -> 0 | AV24: =AV12 -> 0 | AW24: =AW12 -> 0 | AX24: =AX12 -> 0 | AY24: =AY12 -> 0 | AZ24: =AZ12 -> 0 | BA24: =BA12 -> 0 | BB24: =BB12 -> 0 | BC24: =BC12 -> 0 | BD24: =BD12 -> 0 | BE24: =BE12 -> 1 | BF24: =BF12 -> 0 | BG24: =BG12 -> 0 | BH24: =BH12 -> 1 | BI24: =BG24+BH24 -> 1 | BJ24: 0 | BK24: 0 | BL24: =BK24 -> 0 | BM24: =BM23 -> 0 | BN24: =$BJ24*W24 -> 0 | BO24: =$BJ24*X24 -> 0 | BP24: =$BJ24*Y24 -> 0 | BQ24: =$BJ24*Z24 -> 0 | BR24: =$BJ24*AA24 -> 0 | BS24: =$BJ24*AB24 -> 0 | BT24: =$BJ24*AC24 -> 0 | BU24: =$BJ24*AD24 -> 0 | BV24: =$BJ24*AE24 -> 0 | BW24: =$BJ24*AF24 -> 0 | BX24: =$BJ24*AG24 -> 0 | BY24: =$BJ24*AH24 -> 0 | BZ24: =$BJ24*AI24 -> 0 | CA24: =$BJ24*AJ24 -> 0 | CB24: =$BJ24*AK24 -> 0 | CC24: =$BJ24*AL24 -> 0 | CD24: =F24/Q24 -> 736.9281856 | CE24: =I24/R24 -> 2387.808565 | CF24: =L24/S24 -> 71701.446
A25: ='[1]Monthly Data'!A25 -> 2013-12-01 | B25: ='[1]Monthly Data'!B25 -> 2013 | C25: =MONTH(A25) -> 12 | D25: ='[1]Monthly Data'!D25 -> 13687777.93 | E25: ='[1]Monthly Data'!E25 -> 22973.53096 | F25: ='[1]Monthly Data'!F25 -> 13710751.47 | G25: ='[1]Monthly Data'!G25 -> 4631276.468 | H25: ='[1]Monthly Data'!H25 -> 86206.06426 | I25: ='[1]Monthly Data'!I25 -> 4717482.532 | J25: ='[1]Monthly Data'!J25 -> 9592904.317 | K25: ='[1]Monthly Data'!K25 -> 100316.9764 | L25: ='[1]Monthly Data'!L25 -> 9693221.294 | M25: ='[1]Monthly Data'!M25 -> 238437.5125 | N25: ='[1]Monthly Data'!N25 -> 34561.58745 | O25: ='[1]Monthly Data'!O25 -> 24251.51 | P25: ='[1]Monthly Data'!P25 -> 509.43 | Q25: ='[1]Monthly Data'!Q25 -> 14366 | R25: ='[1]Monthly Data'!R25 -> 1703 | S25: ='[1]Monthly Data'!S25 -> 118 | T25: ='[1]Monthly Data'!T25 -> 3069 | U25: ='[1]Monthly Data'!U25 -> 31 | V25: =[1]Weather!C145 -> -5.14516129 | W25: =[1]Weather!D145 -> 841.5 | X25: =[1]Weather!E145 -> 0 | Y25: =[1]Weather!F145 -> 779.5 | Z25: =[1]Weather!G145 -> 0 | AA25: =[1]Weather!H145 -> 717.5 | AB25: =[1]Weather!I145 -> 0 | AC25: =[1]Weather!J145 -> 655.5 | AD25: =[1]Weather!K145 -> 0 | AE25: =[1]Weather!L145 -> 593.5 | AF25: =[1]Weather!M145 -> 0 | AG25: =[1]Weather!N145 -> 531.5 | AH25: =[1]Weather!O145 -> 0 | AI25: =[1]Weather!P145 -> 469.5 | AJ25: =[1]Weather!Q145 -> 0 | AK25: =[1]Weather!R145 -> 407.5 | AL25: =[1]Weather!S145 -> 0 | AM25: =[1]Economic!C25 -> 643937 | AN25: =[1]Economic!D25 -> 6781.3 | AO25: =[1]Economic!E25 -> 6783.1 | AP25: =[1]Economic!F25 -> 107 | AQ25: =[1]Economic!G25 -> 106.5 | AR25: =AR13 -> 31 | AS25: 21 | AT25: =1+AT24 -> 24 | AU25: =AU13 -> 0 | AV25: =AV13 -> 0 | AW25: =AW13 -> 0 | AX25: =AX13 -> 0 | AY25: =AY13 -> 0 | AZ25: =AZ13 -> 0 | BA25: =BA13 -> 0 | BB25: =BB13 -> 0 | BC25: =BC13 -> 0 | BD25: =BD13 -> 0 | BE25: =BE13 -> 0 | BF25: =BF13 -> 1 | BG25: =BG13 -> 0 | BH25: =BH13 -> 0 | BI25: =BG25+BH25 -> 0 | BJ25: 0 | BK25: 0 | BL25: =BK25 -> 0 | BM25: =BM24 -> 0 | BN25: =$BJ25*W25 -> 0 | BO25: =$BJ25*X25 -> 0 | BP25: =$BJ25*Y25 -> 0 | BQ25: =$BJ25*Z25 -> 0 | BR25: =$BJ25*AA25 -> 0 | BS25: =$BJ25*AB25 -> 0 | BT25: =$BJ25*AC25 -> 0 | BU25: =$BJ25*AD25 -> 0 | BV25: =$BJ25*AE25 -> 0 | BW25: =$BJ25*AF25 -> 0 | BX25: =$BJ25*AG25 -> 0 | BY25: =$BJ25*AH25 -> 0 | BZ25: =$BJ25*AI25 -> 0 | CA25: =$BJ25*AJ25 -> 0 | CB25: =$BJ25*AK25 -> 0 | CC25: =$BJ25*AL25 -> 0 | CD25: =F25/Q25 -> 954.3889368 | CE25: =I25/R25 -> 2770.101311 | CF25: =L25/S25 -> 82145.94317
A26: ='[1]Monthly Data'!A26 -> 2014-01-01 | B26: ='[1]Monthly Data'!B26 -> 2014 | C26: =MONTH(A26) -> 1 | D26: ='[1]Monthly Data'!D26 -> 14704397.91 | E26: ='[1]Monthly Data'!E26 -> 57002.9499 | F26: ='[1]Monthly Data'!F26 -> 14761400.86 | G26: ='[1]Monthly Data'!G26 -> 4934336.587 | H26: ='[1]Monthly Data'!H26 -> 169942.9596 | I26: ='[1]Monthly Data'!I26 -> 5104279.547 | J26: ='[1]Monthly Data'!J26 -> 10681837.16 | K26: ='[1]Monthly Data'!K26 -> 147847.7491 | L26: ='[1]Monthly Data'!L26 -> 10829684.91 | M26: ='[1]Monthly Data'!M26 -> 231731.7602 | N26: ='[1]Monthly Data'!N26 -> 37255.98493 | O26: ='[1]Monthly Data'!O26 -> 24607.07 | P26: ='[1]Monthly Data'!P26 -> 510.27 | Q26: ='[1]Monthly Data'!Q26 -> 14366 | R26: ='[1]Monthly Data'!R26 -> 1703 | S26: ='[1]Monthly Data'!S26 -> 118 | T26: ='[1]Monthly Data'!T26 -> 3069 | U26: ='[1]Monthly Data'!U26 -> 31 | V26: =[1]Weather!C146 -> -8.648387097 | W26: =[1]Weather!D146 -> 950.1 | X26: =[1]Weather!E146 -> 0 | Y26: =[1]Weather!F146 -> 888.1 | Z26: =[1]Weather!G146 -> 0 | AA26: =[1]Weather!H146 -> 826.1 | AB26: =[1]Weather!I146 -> 0 | AC26: =[1]Weather!J146 -> 764.1 | AD26: =[1]Weather!K146 -> 0 | AE26: =[1]Weather!L146 -> 702.1 | AF26: =[1]Weather!M146 -> 0 | AG26: =[1]Weather!N146 -> 640.1 | AH26: =[1]Weather!O146 -> 0 | AI26: =[1]Weather!P146 -> 578.1 | AJ26: =[1]Weather!Q146 -> 0 | AK26: =[1]Weather!R146 -> 516.1 | AL26: =[1]Weather!S146 -> 0 | AM26: =[1]Economic!C26 -> 659861.2 | AN26: =[1]Economic!D26 -> 6780.9 | AO26: =[1]Economic!E26 -> 6741.6 | AP26: =[1]Economic!F26 -> 105.8 | AQ26: =[1]Economic!G26 -> 105.3 | AR26: =AR14 -> 31 | AS26: 21 | AT26: =1+AT25 -> 25 | AU26: =AU14 -> 1 | AV26: =AV14 -> 0 | AW26: =AW14 -> 0 | AX26: =AX14 -> 0 | AY26: =AY14 -> 0 | AZ26: =AZ14 -> 0 | BA26: =BA14 -> 0 | BB26: =BB14 -> 0 | BC26: =BC14 -> 0 | BD26: =BD14 -> 0 | BE26: =BE14 -> 0 | BF26: =BF14 -> 0 | BG26: =BG14 -> 0 | BH26: =BH14 -> 0 | BI26: =BG26+BH26 -> 0 | BJ26: 0 | BK26: 0 | BL26: =BK26 -> 0 | BM26: =BM25 -> 0 | BN26: =$BJ26*W26 -> 0 | BO26: =$BJ26*X26 -> 0 | BP26: =$BJ26*Y26 -> 0 | BQ26: =$BJ26*Z26 -> 0 | BR26: =$BJ26*AA26 -> 0 | BS26: =$BJ26*AB26 -> 0 | BT26: =$BJ26*AC26 -> 0 | BU26: =$BJ26*AD26 -> 0 | BV26: =$BJ26*AE26 -> 0 | BW26: =$BJ26*AF26 -> 0 | BX26: =$BJ26*AG26 -> 0 | BY26: =$BJ26*AH26 -> 0 | BZ26: =$BJ26*AI26 -> 0 | CA26: =$BJ26*AJ26 -> 0 | CB26: =$BJ26*AK26 -> 0 | CC26: =$BJ26*AL26 -> 0 | CD26: =F26/Q26 -> 1027.523379 | CE26: =I26/R26 -> 2997.228154 | CF26: =L26/S26 -> 91776.99073
A27: ='[1]Monthly Data'!A27 -> 2014-02-01 | B27: ='[1]Monthly Data'!B27 -> 2014 | C27: =MONTH(A27) -> 2 | D27: ='[1]Monthly Data'!D27 -> 12967153.88 | E27: ='[1]Monthly Data'!E27 -> 57002.9499 | F27: ='[1]Monthly Data'!F27 -> 13024156.83 | G27: ='[1]Monthly Data'!G27 -> 4526857.342 | H27: ='[1]Monthly Data'!H27 -> 169942.9596 | I27: ='[1]Monthly Data'!I27 -> 4696800.302 | J27: ='[1]Monthly Data'!J27 -> 9655716.082 | K27: ='[1]Monthly Data'!K27 -> 147847.7491 | L27: ='[1]Monthly Data'!L27 -> 9803563.832 | M27: ='[1]Monthly Data'!M27 -> 192813.3094 | N27: ='[1]Monthly Data'!N27 -> 35425.83956 | O27: ='[1]Monthly Data'!O27 -> 25233.64 | P27: ='[1]Monthly Data'!P27 -> 510.52 | Q27: ='[1]Monthly Data'!Q27 -> 14408 | R27: ='[1]Monthly Data'!R27 -> 1709 | S27: ='[1]Monthly Data'!S27 -> 116 | T27: ='[1]Monthly Data'!T27 -> 3069 | U27: ='[1]Monthly Data'!U27 -> 31 | V27: =[1]Weather!C147 -> -8.432142857 | W27: =[1]Weather!D147 -> 852.1 | X27: =[1]Weather!E147 -> 0 | Y27: =[1]Weather!F147 -> 796.1 | Z27: =[1]Weather!G147 -> 0 | AA27: =[1]Weather!H147 -> 740.1 | AB27: =[1]Weather!I147 -> 0 | AC27: =[1]Weather!J147 -> 684.1 | AD27: =[1]Weather!K147 -> 0 | AE27: =[1]Weather!L147 -> 628.1 | AF27: =[1]Weather!M147 -> 0 | AG27: =[1]Weather!N147 -> 572.1 | AH27: =[1]Weather!O147 -> 0 | AI27: =[1]Weather!P147 -> 516.1 | AJ27: =[1]Weather!Q147 -> 0 | AK27: =[1]Weather!R147 -> 460.1 | AL27: =[1]Weather!S147 -> 0 | AM27: =[1]Economic!C27 -> 659861.2 | AN27: =[1]Economic!D27 -> 6781.1 | AO27: =[1]Economic!E27 -> 6707.8 | AP27: =[1]Economic!F27 -> 104.9 | AQ27: =[1]Economic!G27 -> 103.9 | AR27: =AR15 -> 28 | AS27: 20 | AT27: =1+AT26 -> 26 | AU27: =AU15 -> 0 | AV27: =AV15 -> 1 | AW27: =AW15 -> 0 | AX27: =AX15 -> 0 | AY27: =AY15 -> 0 | AZ27: =AZ15 -> 0 | BA27: =BA15 -> 0 | BB27: =BB15 -> 0 | BC27: =BC15 -> 0 | BD27: =BD15 -> 0 | BE27: =BE15 -> 0 | BF27: =BF15 -> 0 | BG27: =BG15 -> 0 | BH27: =BH15 -> 0 | BI27: =BG27+BH27 -> 0 | BJ27: 0 | BK27: 0 | BL27: =BK27 -> 0 | BM27: =BM26 -> 0 | BN27: =$BJ27*W27 -> 0 | BO27: =$BJ27*X27 -> 0 | BP27: =$BJ27*Y27 -> 0 | BQ27: =$BJ27*Z27 -> 0 | BR27: =$BJ27*AA27 -> 0 | BS27: =$BJ27*AB27 -> 0 | BT27: =$BJ27*AC27 -> 0 | BU27: =$BJ27*AD27 -> 0 | BV27: =$BJ27*AE27 -> 0 | BW27: =$BJ27*AF27 -> 0 | BX27: =$BJ27*AG27 -> 0 | BY27: =$BJ27*AH27 -> 0 | BZ27: =$BJ27*AI27 -> 0 | CA27: =$BJ27*AJ27 -> 0 | CB27: =$BJ27*AK27 -> 0 | CC27: =$BJ27*AL27 -> 0 | CD27: =F27/Q27 -> 903.9531394 | CE27: =I27/R27 -> 2748.274021 | CF27: =L27/S27 -> 84513.48131
A28: ='[1]Monthly Data'!A28 -> 2014-03-01 | B28: ='[1]Monthly Data'!B28 -> 2014 | C28: =MONTH(A28) -> 3 | D28: ='[1]Monthly Data'!D28 -> 12728700.39 | E28: ='[1]Monthly Data'!E28 -> 57002.9499 | F28: ='[1]Monthly Data'!F28 -> 12785703.34 | G28: ='[1]Monthly Data'!G28 -> 4605272.076 | H28: ='[1]Monthly Data'!H28 -> 169942.9596 | I28: ='[1]Monthly Data'!I28 -> 4775215.035 | J28: ='[1]Monthly Data'!J28 -> 10469185.05 | K28: ='[1]Monthly Data'!K28 -> 147847.7491 | L28: ='[1]Monthly Data'!L28 -> 10617032.8 | M28: ='[1]Monthly Data'!M28 -> 190116.3424 | N28: ='[1]Monthly Data'!N28 -> 35730.68638 | O28: ='[1]Monthly Data'!O28 -> 24646.67 | P28: ='[1]Monthly Data'!P28 -> 510.52 | Q28: ='[1]Monthly Data'!Q28 -> 14376 | R28: ='[1]Monthly Data'!R28 -> 1714 | S28: ='[1]Monthly Data'!S28 -> 116 | T28: ='[1]Monthly Data'!T28 -> 3069 | U28: ='[1]Monthly Data'!U28 -> 31 | V28: =[1]Weather!C148 -> -5.548387097 | W28: =[1]Weather!D148 -> 854 | X28: =[1]Weather!E148 -> 0 | Y28: =[1]Weather!F148 -> 792 | Z28: =[1]Weather!G148 -> 0 | AA28: =[1]Weather!H148 -> 730 | AB28: =[1]Weather!I148 -> 0 | AC28: =[1]Weather!J148 -> 668 | AD28: =[1]Weather!K148 -> 0 | AE28: =[1]Weather!L148 -> 606 | AF28: =[1]Weather!M148 -> 0 | AG28: =[1]Weather!N148 -> 544 | AH28: =[1]Weather!O148 -> 0 | AI28: =[1]Weather!P148 -> 482 | AJ28: =[1]Weather!Q148 -> 0 | AK28: =[1]Weather!R148 -> 420 | AL28: =[1]Weather!S148 -> 0 | AM28: =[1]Economic!C28 -> 659861.2 | AN28: =[1]Economic!D28 -> 6786.1 | AO28: =[1]Economic!E28 -> 6686.4 | AP28: =[1]Economic!F28 -> 105.5 | AQ28: =[1]Economic!G28 -> 104.4 | AR28: =AR16 -> 31 | AS28: 22 | AT28: =1+AT27 -> 27 | AU28: =AU16 -> 0 | AV28: =AV16 -> 0 | AW28: =AW16 -> 1 | AX28: =AX16 -> 0 | AY28: =AY16 -> 0 | AZ28: =AZ16 -> 0 | BA28: =BA16 -> 0 | BB28: =BB16 -> 0 | BC28: =BC16 -> 0 | BD28: =BD16 -> 0 | BE28: =BE16 -> 0 | BF28: =BF16 -> 0 | BG28: =BG16 -> 1 | BH28: =BH16 -> 0 | BI28: =BG28+BH28 -> 1 | BJ28: 0 | BK28: 0 | BL28: =BK28 -> 0 | BM28: =BM27 -> 0 | BN28: =$BJ28*W28 -> 0 | BO28: =$BJ28*X28 -> 0 | BP28: =$BJ28*Y28 -> 0 | BQ28: =$BJ28*Z28 -> 0 | BR28: =$BJ28*AA28 -> 0 | BS28: =$BJ28*AB28 -> 0 | BT28: =$BJ28*AC28 -> 0 | BU28: =$BJ28*AD28 -> 0 | BV28: =$BJ28*AE28 -> 0 | BW28: =$BJ28*AF28 -> 0 | BX28: =$BJ28*AG28 -> 0 | BY28: =$BJ28*AH28 -> 0 | BZ28: =$BJ28*AI28 -> 0 | CA28: =$BJ28*AJ28 -> 0 | CB28: =$BJ28*AK28 -> 0 | CC28: =$BJ28*AL28 -> 0 | CD28: =F28/Q28 -> 889.3783626 | CE28: =I28/R28 -> 2786.006438 | CF28: =L28/S28 -> 91526.14481
A29: ='[1]Monthly Data'!A29 -> 2014-04-01 | B29: ='[1]Monthly Data'!B29 -> 2014 | C29: =MONTH(A29) -> 4 | D29: ='[1]Monthly Data'!D29 -> 9846452.683 | E29: ='[1]Monthly Data'!E29 -> 57002.9499 | F29: ='[1]Monthly Data'!F29 -> 9903455.633 | G29: ='[1]Monthly Data'!G29 -> 3814954.568 | H29: ='[1]Monthly Data'!H29 -> 169942.9596 | I29: ='[1]Monthly Data'!I29 -> 3984897.527 | J29: ='[1]Monthly Data'!J29 -> 9607017.802 | K29: ='[1]Monthly Data'!K29 -> 147847.7491 | L29: ='[1]Monthly Data'!L29 -> 9754865.551 | M29: ='[1]Monthly Data'!M29 -> 160286.3705 | N29: ='[1]Monthly Data'!N29 -> 33599.67394 | O29: ='[1]Monthly Data'!O29 -> 23896.28 | P29: ='[1]Monthly Data'!P29 -> 510.52 | Q29: ='[1]Monthly Data'!Q29 -> 14415 | R29: ='[1]Monthly Data'!R29 -> 1705.5 | S29: ='[1]Monthly Data'!S29 -> 114 | T29: ='[1]Monthly Data'!T29 -> 3069 | U29: ='[1]Monthly Data'!U29 -> 31 | V29: =[1]Weather!C149 -> 5.01 | W29: =[1]Weather!D149 -> 509.7 | X29: =[1]Weather!E149 -> 0 | Y29: =[1]Weather!F149 -> 449.7 | Z29: =[1]Weather!G149 -> 0 | AA29: =[1]Weather!H149 -> 389.7 | AB29: =[1]Weather!I149 -> 0 | AC29: =[1]Weather!J149 -> 329.7 | AD29: =[1]Weather!K149 -> 0 | AE29: =[1]Weather!L149 -> 269.7 | AF29: =[1]Weather!M149 -> 0 | AG29: =[1]Weather!N149 -> 210.8 | AH29: =[1]Weather!O149 -> 1.1 | AI29: =[1]Weather!P149 -> 155.3 | AJ29: =[1]Weather!Q149 -> 5.6 | AK29: =[1]Weather!R149 -> 105.1 | AL29: =[1]Weather!S149 -> 15.4 | AM29: =[1]Economic!C29 -> 659861.2 | AN29: =[1]Economic!D29 -> 6797.3 | AO29: =[1]Economic!E29 -> 6715.8 | AP29: =[1]Economic!F29 -> 106.4 | AQ29: =[1]Economic!G29 -> 104.6 | AR29: =AR17 -> 30 | AS29: 20 | AT29: =1+AT28 -> 28 | AU29: =AU17 -> 0 | AV29: =AV17 -> 0 | AW29: =AW17 -> 0 | AX29: =AX17 -> 1 | AY29: =AY17 -> 0 | AZ29: =AZ17 -> 0 | BA29: =BA17 -> 0 | BB29: =BB17 -> 0 | BC29: =BC17 -> 0 | BD29: =BD17 -> 0 | BE29: =BE17 -> 0 | BF29: =BF17 -> 0 | BG29: =BG17 -> 1 | BH29: =BH17 -> 0 | BI29: =BG29+BH29 -> 1 | BJ29: 0 | BK29: 0 | BL29: =BK29 -> 0 | BM29: =BM28 -> 0 | BN29: =$BJ29*W29 -> 0 | BO29: =$BJ29*X29 -> 0 | BP29: =$BJ29*Y29 -> 0 | BQ29: =$BJ29*Z29 -> 0 | BR29: =$BJ29*AA29 -> 0 | BS29: =$BJ29*AB29 -> 0 | BT29: =$BJ29*AC29 -> 0 | BU29: =$BJ29*AD29 -> 0 | BV29: =$BJ29*AE29 -> 0 | BW29: =$BJ29*AF29 -> 0 | BX29: =$BJ29*AG29 -> 0 | BY29: =$BJ29*AH29 -> 0 | BZ29: =$BJ29*AI29 -> 0 | CA29: =$BJ29*AJ29 -> 0 | CB29: =$BJ29*AK29 -> 0 | CC29: =$BJ29*AL29 -> 0 | CD29: =F29/Q29 -> 687.0243242 | CE29: =I29/R29 -> 2336.49811 | CF29: =L29/S29 -> 85568.99606
A30: ='[1]Monthly Data'!A30 -> 2014-05-01 | B30: ='[1]Monthly Data'!B30 -> 2014 | C30: =MONTH(A30) -> 5 | D30: ='[1]Monthly Data'!D30 -> 8148601.831 | E30: ='[1]Monthly Data'!E30 -> 57002.9499 | F30: ='[1]Monthly Data'!F30 -> 8205604.781 | G30: ='[1]Monthly Data'!G30 -> 3559502.155 | H30: ='[1]Monthly Data'!H30 -> 169942.9596 | I30: ='[1]Monthly Data'!I30 -> 3729445.114 | J30: ='[1]Monthly Data'!J30 -> 9541194.354 | K30: ='[1]Monthly Data'!K30 -> 147847.7491 | L30: ='[1]Monthly Data'!L30 -> 9689042.103 | M30: ='[1]Monthly Data'!M30 -> 144597.6333 | N30: ='[1]Monthly Data'!N30 -> 36537.38317 | O30: ='[1]Monthly Data'!O30 -> 23634.58 | P30: ='[1]Monthly Data'!P30 -> 510.52 | Q30: ='[1]Monthly Data'!Q30 -> 14415 | R30: ='[1]Monthly Data'!R30 -> 1705.5 | S30: ='[1]Monthly Data'!S30 -> 113 | T30: ='[1]Monthly Data'!T30 -> 3069 | U30: ='[1]Monthly Data'!U30 -> 31 | V30: =[1]Weather!C150 -> 12.40429906 | W30: =[1]Weather!D150 -> 297.5 | X30: =[1]Weather!E150 -> 0 | Y30: =[1]Weather!F150 -> 236.8 | Z30: =[1]Weather!G150 -> 1.3 | AA30: =[1]Weather!H150 -> 180.7 | AB30: =[1]Weather!I150 -> 7.2 | AC30: =[1]Weather!J150 -> 125.5 | AD30: =[1]Weather!K150 -> 14 | AE30: =[1]Weather!L150 -> 78.3 | AF30: =[1]Weather!M150 -> 28.8 | AG30: =[1]Weather!N150 -> 46 | AH30: =[1]Weather!O150 -> 58.5 | AI30: =[1]Weather!P150 -> 25.4 | AJ30: =[1]Weather!Q150 -> 99.9 | AK30: =[1]Weather!R150 -> 9.8 | AL30: =[1]Weather!S150 -> 146.3 | AM30: =[1]Economic!C30 -> 659861.2 | AN30: =[1]Economic!D30 -> 6798 | AO30: =[1]Economic!E30 -> 6770.1 | AP30: =[1]Economic!F30 -> 107.6 | AQ30: =[1]Economic!G30 -> 106.8 | AR30: =AR18 -> 31 | AS30: 22 | AT30: =1+AT29 -> 29 | AU30: =AU18 -> 0 | AV30: =AV18 -> 0 | AW30: =AW18 -> 0 | AX30: =AX18 -> 0 | AY30: =AY18 -> 1 | AZ30: =AZ18 -> 0 | BA30: =BA18 -> 0 | BB30: =BB18 -> 0 | BC30: =BC18 -> 0 | BD30: =BD18 -> 0 | BE30: =BE18 -> 0 | BF30: =BF18 -> 0 | BG30: =BG18 -> 1 | BH30: =BH18 -> 0 | BI30: =BG30+BH30 -> 1 | BJ30: 0 | BK30: 0 | BL30: =BK30 -> 0 | BM30: =BM29 -> 0 | BN30: =$BJ30*W30 -> 0 | BO30: =$BJ30*X30 -> 0 | BP30: =$BJ30*Y30 -> 0 | BQ30: =$BJ30*Z30 -> 0 | BR30: =$BJ30*AA30 -> 0 | BS30: =$BJ30*AB30 -> 0 | BT30: =$BJ30*AC30 -> 0 | BU30: =$BJ30*AD30 -> 0 | BV30: =$BJ30*AE30 -> 0 | BW30: =$BJ30*AF30 -> 0 | BX30: =$BJ30*AG30 -> 0 | BY30: =$BJ30*AH30 -> 0 | BZ30: =$BJ30*AI30 -> 0 | CA30: =$BJ30*AJ30 -> 0 | CB30: =$BJ30*AK30 -> 0 | CC30: =$BJ30*AL30 -> 0 | CD30: =F30/Q30 -> 569.2407063 | CE30: =I30/R30 -> 2186.716572 | CF30: =L30/S30 -> 85743.73543
A31: ='[1]Monthly Data'!A31 -> 2014-06-01 | B31: ='[1]Monthly Data'!B31 -> 2014 | C31: =MONTH(A31) -> 6 | D31: ='[1]Monthly Data'!D31 -> 7885359.615 | E31: ='[1]Monthly Data'!E31 -> 57002.9499 | F31: ='[1]Monthly Data'!F31 -> 7942362.565 | G31: ='[1]Monthly Data'!G31 -> 3502908.212 | H31: ='[1]Monthly Data'!H31 -> 169942.9596 | I31: ='[1]Monthly Data'!I31 -> 3672851.172 | J31: ='[1]Monthly Data'!J31 -> 9642768.534 | K31: ='[1]Monthly Data'!K31 -> 147847.7491 | L31: ='[1]Monthly Data'!L31 -> 9790616.283 | M31: ='[1]Monthly Data'!M31 -> 129210.3773 | N31: ='[1]Monthly Data'!N31 -> 33131.51889 | O31: ='[1]Monthly Data'!O31 -> 24168.47 | P31: ='[1]Monthly Data'!P31 -> 510.52 | Q31: ='[1]Monthly Data'!Q31 -> 14414 | R31: ='[1]Monthly Data'!R31 -> 1709 | S31: ='[1]Monthly Data'!S31 -> 114 | T31: ='[1]Monthly Data'!T31 -> 3069 | U31: ='[1]Monthly Data'!U31 -> 31 | V31: =[1]Weather!C151 -> 17.47666667 | W31: =[1]Weather!D151 -> 144.6 | X31: =[1]Weather!E151 -> 8.9 | Y31: =[1]Weather!F151 -> 95.4 | Z31: =[1]Weather!G151 -> 19.7 | AA31: =[1]Weather!H151 -> 57.2 | AB31: =[1]Weather!I151 -> 41.5 | AC31: =[1]Weather!J151 -> 24.3 | AD31: =[1]Weather!K151 -> 68.6 | AE31: =[1]Weather!L151 -> 8.3 | AF31: =[1]Weather!M151 -> 112.6 | AG31: =[1]Weather!N151 -> 1.6 | AH31: =[1]Weather!O151 -> 165.9 | AI31: =[1]Weather!P151 -> 0 | AJ31: =[1]Weather!Q151 -> 224.3 | AK31: =[1]Weather!R151 -> 0 | AL31: =[1]Weather!S151 -> 284.3 | AM31: =[1]Economic!C31 -> 659861.2 | AN31: =[1]Economic!D31 -> 6790.7 | AO31: =[1]Economic!E31 -> 6837.5 | AP31: =[1]Economic!F31 -> 107 | AQ31: =[1]Economic!G31 -> 107.4 | AR31: =AR19 -> 30 | AS31: 21 | AT31: =1+AT30 -> 30 | AU31: =AU19 -> 0 | AV31: =AV19 -> 0 | AW31: =AW19 -> 0 | AX31: =AX19 -> 0 | AY31: =AY19 -> 0 | AZ31: =AZ19 -> 1 | BA31: =BA19 -> 0 | BB31: =BB19 -> 0 | BC31: =BC19 -> 0 | BD31: =BD19 -> 0 | BE31: =BE19 -> 0 | BF31: =BF19 -> 0 | BG31: =BG19 -> 0 | BH31: =BH19 -> 0 | BI31: =BG31+BH31 -> 0 | BJ31: 0 | BK31: 0 | BL31: =BK31 -> 0 | BM31: =BM30 -> 0 | BN31: =$BJ31*W31 -> 0 | BO31: =$BJ31*X31 -> 0 | BP31: =$BJ31*Y31 -> 0 | BQ31: =$BJ31*Z31 -> 0 | BR31: =$BJ31*AA31 -> 0 | BS31: =$BJ31*AB31 -> 0 | BT31: =$BJ31*AC31 -> 0 | BU31: =$BJ31*AD31 -> 0 | BV31: =$BJ31*AE31 -> 0 | BW31: =$BJ31*AF31 -> 0 | BX31: =$BJ31*AG31 -> 0 | BY31: =$BJ31*AH31 -> 0 | BZ31: =$BJ31*AI31 -> 0 | CA31: =$BJ31*AJ31 -> 0 | CB31: =$BJ31*AK31 -> 0 | CC31: =$BJ31*AL31 -> 0 | CD31: =F31/Q31 -> 551.0172447 | CE31: =I31/R31 -> 2149.122979 | CF31: =L31/S31 -> 85882.59897
A32: ='[1]Monthly Data'!A32 -> 2014-07-01 | B32: ='[1]Monthly Data'!B32 -> 2014 | C32: =MONTH(A32) -> 7 | D32: ='[1]Monthly Data'!D32 -> 8590753.109 | E32: ='[1]Monthly Data'!E32 -> 57002.9499 | F32: ='[1]Monthly Data'!F32 -> 8647756.059 | G32: ='[1]Monthly Data'!G32 -> 3728634.308 | H32: ='[1]Monthly Data'!H32 -> 169942.9596 | I32: ='[1]Monthly Data'!I32 -> 3898577.267 | J32: ='[1]Monthly Data'!J32 -> 9404652.669 | K32: ='[1]Monthly Data'!K32 -> 147847.7491 | L32: ='[1]Monthly Data'!L32 -> 9552500.418 | M32: ='[1]Monthly Data'!M32 -> 138635.9267 | N32: ='[1]Monthly Data'!N32 -> 35036.51035 | O32: ='[1]Monthly Data'!O32 -> 25096.48 | P32: ='[1]Monthly Data'!P32 -> 510.52 | Q32: ='[1]Monthly Data'!Q32 -> 14386 | R32: ='[1]Monthly Data'!R32 -> 1703 | S32: ='[1]Monthly Data'!S32 -> 118 | T32: ='[1]Monthly Data'!T32 -> 3069 | U32: ='[1]Monthly Data'!U32 -> 32 | V32: =[1]Weather!C152 -> 18.66451613 | W32: =[1]Weather!D152 -> 110 | X32: =[1]Weather!E152 -> 6.6 | Y32: =[1]Weather!F152 -> 63.7 | Z32: =[1]Weather!G152 -> 22.3 | AA32: =[1]Weather!H152 -> 29.7 | AB32: =[1]Weather!I152 -> 50.3 | AC32: =[1]Weather!J152 -> 6.3 | AD32: =[1]Weather!K152 -> 88.9 | AE32: =[1]Weather!L152 -> 0 | AF32: =[1]Weather!M152 -> 144.6 | AG32: =[1]Weather!N152 -> 0 | AH32: =[1]Weather!O152 -> 206.6 | AI32: =[1]Weather!P152 -> 0 | AJ32: =[1]Weather!Q152 -> 268.6 | AK32: =[1]Weather!R152 -> 0 | AL32: =[1]Weather!S152 -> 330.6 | AM32: =[1]Economic!C32 -> 659861.2 | AN32: =[1]Economic!D32 -> 6792 | AO32: =[1]Economic!E32 -> 6884 | AP32: =[1]Economic!F32 -> 107.7 | AQ32: =[1]Economic!G32 -> 109 | AR32: =AR20 -> 31 | AS32: 21 | AT32: =1+AT31 -> 31 | AU32: =AU20 -> 0 | AV32: =AV20 -> 0 | AW32: =AW20 -> 0 | AX32: =AX20 -> 0 | AY32: =AY20 -> 0 | AZ32: =AZ20 -> 0 | BA32: =BA20 -> 1 | BB32: =BB20 -> 0 | BC32: =BC20 -> 0 | BD32: =BD20 -> 0 | BE32: =BE20 -> 0 | BF32: =BF20 -> 0 | BG32: =BG20 -> 0 | BH32: =BH20 -> 0 | BI32: =BG32+BH32 -> 0 | BJ32: 0 | BK32: 0 | BL32: =BK32 -> 0 | BM32: =BM31 -> 0 | BN32: =$BJ32*W32 -> 0 | BO32: =$BJ32*X32 -> 0 | BP32: =$BJ32*Y32 -> 0 | BQ32: =$BJ32*Z32 -> 0 | BR32: =$BJ32*AA32 -> 0 | BS32: =$BJ32*AB32 -> 0 | BT32: =$BJ32*AC32 -> 0 | BU32: =$BJ32*AD32 -> 0 | BV32: =$BJ32*AE32 -> 0 | BW32: =$BJ32*AF32 -> 0 | BX32: =$BJ32*AG32 -> 0 | BY32: =$BJ32*AH32 -> 0 | BZ32: =$BJ32*AI32 -> 0 | CA32: =$BJ32*AJ32 -> 0 | CB32: =$BJ32*AK32 -> 0 | CC32: =$BJ32*AL32 -> 0 | CD32: =F32/Q32 -> 601.1230404 | CE32: =I32/R32 -> 2289.240909 | CF32: =L32/S32 -> 80953.39337
A33: ='[1]Monthly Data'!A33 -> 2014-08-01 | B33: ='[1]Monthly Data'!B33 -> 2014 | C33: =MONTH(A33) -> 8 | D33: ='[1]Monthly Data'!D33 -> 8488281.978 | E33: ='[1]Monthly Data'!E33 -> 57002.9499 | F33: ='[1]Monthly Data'!F33 -> 8545284.928 | G33: ='[1]Monthly Data'!G33 -> 3693949.564 | H33: ='[1]Monthly Data'!H33 -> 169942.9596 | I33: ='[1]Monthly Data'!I33 -> 3863892.524 | J33: ='[1]Monthly Data'!J33 -> 9443378.838 | K33: ='[1]Monthly Data'!K33 -> 147847.7491 | L33: ='[1]Monthly Data'!L33 -> 9591226.587 | M33: ='[1]Monthly Data'!M33 -> 156727.8492 | N33: ='[1]Monthly Data'!N33 -> 35940.41329 | O33: ='[1]Monthly Data'!O33 -> 25166.66 | P33: ='[1]Monthly Data'!P33 -> 510.52 | Q33: ='[1]Monthly Data'!Q33 -> 14450 | R33: ='[1]Monthly Data'!R33 -> 1709 | S33: ='[1]Monthly Data'!S33 -> 118 | T33: ='[1]Monthly Data'!T33 -> 3069 | U33: ='[1]Monthly Data'!U33 -> 32 | V33: =[1]Weather!C153 -> 18.70322581 | W33: =[1]Weather!D153 -> 106.7 | X33: =[1]Weather!E153 -> 4.5 | Y33: =[1]Weather!F153 -> 58.1 | Z33: =[1]Weather!G153 -> 17.9 | AA33: =[1]Weather!H153 -> 24.1 | AB33: =[1]Weather!I153 -> 45.9 | AC33: =[1]Weather!J153 -> 7.6 | AD33: =[1]Weather!K153 -> 91.4 | AE33: =[1]Weather!L153 -> 1.3 | AF33: =[1]Weather!M153 -> 147.1 | AG33: =[1]Weather!N153 -> 0 | AH33: =[1]Weather!O153 -> 207.8 | AI33: =[1]Weather!P153 -> 0 | AJ33: =[1]Weather!Q153 -> 269.8 | AK33: =[1]Weather!R153 -> 0 | AL33: =[1]Weather!S153 -> 331.8 | AM33: =[1]Economic!C33 -> 659861.2 | AN33: =[1]Economic!D33 -> 6796.3 | AO33: =[1]Economic!E33 -> 6897.1 | AP33: =[1]Economic!F33 -> 108.8 | AQ33: =[1]Economic!G33 -> 109.8 | AR33: =AR21 -> 31 | AS33: 22 | AT33: =1+AT32 -> 32 | AU33: =AU21 -> 0 | AV33: =AV21 -> 0 | AW33: =AW21 -> 0 | AX33: =AX21 -> 0 | AY33: =AY21 -> 0 | AZ33: =AZ21 -> 0 | BA33: =BA21 -> 0 | BB33: =BB21 -> 1 | BC33: =BC21 -> 0 | BD33: =BD21 -> 0 | BE33: =BE21 -> 0 | BF33: =BF21 -> 0 | BG33: =BG21 -> 0 | BH33: =BH21 -> 0 | BI33: =BG33+BH33 -> 0 | BJ33: 0 | BK33: 0 | BL33: =BK33 -> 0 | BM33: =BM32 -> 0 | BN33: =$BJ33*W33 -> 0 | BO33: =$BJ33*X33 -> 0 | BP33: =$BJ33*Y33 -> 0 | BQ33: =$BJ33*Z33 -> 0 | BR33: =$BJ33*AA33 -> 0 | BS33: =$BJ33*AB33 -> 0 | BT33: =$BJ33*AC33 -> 0 | BU33: =$BJ33*AD33 -> 0 | BV33: =$BJ33*AE33 -> 0 | BW33: =$BJ33*AF33 -> 0 | BX33: =$BJ33*AG33 -> 0 | BY33: =$BJ33*AH33 -> 0 | BZ33: =$BJ33*AI33 -> 0 | CA33: =$BJ33*AJ33 -> 0 | CB33: =$BJ33*AK33 -> 0 | CC33: =$BJ33*AL33 -> 0 | CD33: =F33/Q33 -> 591.3691992 | CE33: =I33/R33 -> 2260.90844 | CF33: =L33/S33 -> 81281.58125
A34: ='[1]Monthly Data'!A34 -> 2014-09-01 | B34: ='[1]Monthly Data'!B34 -> 2014 | C34: =MONTH(A34) -> 9 | D34: ='[1]Monthly Data'!D34 -> 7873770.895 | E34: ='[1]Monthly Data'!E34 -> 57002.9499 | F34: ='[1]Monthly Data'!F34 -> 7930773.844 | G34: ='[1]Monthly Data'!G34 -> 3459435.161 | H34: ='[1]Monthly Data'!H34 -> 169942.9596 | I34: ='[1]Monthly Data'!I34 -> 3629378.121 | J34: ='[1]Monthly Data'!J34 -> 9519586.122 | K34: ='[1]Monthly Data'!K34 -> 147847.7491 | L34: ='[1]Monthly Data'!L34 -> 9667433.871 | M34: ='[1]Monthly Data'!M34 -> 174263.9188 | N34: ='[1]Monthly Data'!N34 -> 32737.92824 | O34: ='[1]Monthly Data'!O34 -> 24344.3 | P34: ='[1]Monthly Data'!P34 -> 510.52 | Q34: ='[1]Monthly Data'!Q34 -> 14436 | R34: ='[1]Monthly Data'!R34 -> 1713 | S34: ='[1]Monthly Data'!S34 -> 118 | T34: ='[1]Monthly Data'!T34 -> 3069 | U34: ='[1]Monthly Data'!U34 -> 34 | V34: =[1]Weather!C154 -> 15.83666667 | W34: =[1]Weather!D154 -> 188.5 | X34: =[1]Weather!E154 -> 3.6 | Y34: =[1]Weather!F154 -> 134.9 | Z34: =[1]Weather!G154 -> 10 | AA34: =[1]Weather!H154 -> 86.3 | AB34: =[1]Weather!I154 -> 21.4 | AC34: =[1]Weather!J154 -> 46 | AD34: =[1]Weather!K154 -> 41.1 | AE34: =[1]Weather!L154 -> 25 | AF34: =[1]Weather!M154 -> 80.1 | AG34: =[1]Weather!N154 -> 10.9 | AH34: =[1]Weather!O154 -> 126 | AI34: =[1]Weather!P154 -> 2.9 | AJ34: =[1]Weather!Q154 -> 178 | AK34: =[1]Weather!R154 -> 0 | AL34: =[1]Weather!S154 -> 235.1 | AM34: =[1]Economic!C34 -> 659861.2 | AN34: =[1]Economic!D34 -> 6817.7 | AO34: =[1]Economic!E34 -> 6875.4 | AP34: =[1]Economic!F34 -> 112 | AQ34: =[1]Economic!G34 -> 112.3 | AR34: =AR22 -> 30 | AS34: 19 | AT34: =1+AT33 -> 33 | AU34: =AU22 -> 0 | AV34: =AV22 -> 0 | AW34: =AW22 -> 0 | AX34: =AX22 -> 0 | AY34: =AY22 -> 0 | AZ34: =AZ22 -> 0 | BA34: =BA22 -> 0 | BB34: =BB22 -> 0 | BC34: =BC22 -> 1 | BD34: =BD22 -> 0 | BE34: =BE22 -> 0 | BF34: =BF22 -> 0 | BG34: =BG22 -> 0 | BH34: =BH22 -> 1 | BI34: =BG34+BH34 -> 1 | BJ34: 0 | BK34: 0 | BL34: =BK34 -> 0 | BM34: =BM33 -> 0 | BN34: =$BJ34*W34 -> 0 | BO34: =$BJ34*X34 -> 0 | BP34: =$BJ34*Y34 -> 0 | BQ34: =$BJ34*Z34 -> 0 | BR34: =$BJ34*AA34 -> 0 | BS34: =$BJ34*AB34 -> 0 | BT34: =$BJ34*AC34 -> 0 | BU34: =$BJ34*AD34 -> 0 | BV34: =$BJ34*AE34 -> 0 | BW34: =$BJ34*AF34 -> 0 | BX34: =$BJ34*AG34 -> 0 | BY34: =$BJ34*AH34 -> 0 | BZ34: =$BJ34*AI34 -> 0 | CA34: =$BJ34*AJ34 -> 0 | CB34: =$BJ34*AK34 -> 0 | CC34: =$BJ34*AL34 -> 0 | CD34: =F34/Q34 -> 549.3747468 | CE34: =I34/R34 -> 2118.726282 | CF34: =L34/S34 -> 81927.40569
A35: ='[1]Monthly Data'!A35 -> 2014-10-01 | B35: ='[1]Monthly Data'!B35 -> 2014 | C35: =MONTH(A35) -> 10 | D35: ='[1]Monthly Data'!D35 -> 8547840.061 | E35: ='[1]Monthly Data'!E35 -> 57002.9499 | F35: ='[1]Monthly Data'!F35 -> 8604843.011 | G35: ='[1]Monthly Data'!G35 -> 3530281.707 | H35: ='[1]Monthly Data'!H35 -> 169942.9596 | I35: ='[1]Monthly Data'!I35 -> 3700224.666 | J35: ='[1]Monthly Data'!J35 -> 9907377.341 | K35: ='[1]Monthly Data'!K35 -> 147847.7491 | L35: ='[1]Monthly Data'!L35 -> 10055225.09 | M35: ='[1]Monthly Data'!M35 -> 204600.4241 | N35: ='[1]Monthly Data'!N35 -> 35358.90296 | O35: ='[1]Monthly Data'!O35 -> 26046.34 | P35: ='[1]Monthly Data'!P35 -> 510.52 | Q35: ='[1]Monthly Data'!Q35 -> 14462 | R35: ='[1]Monthly Data'!R35 -> 1700 | S35: ='[1]Monthly Data'!S35 -> 124 | T35: ='[1]Monthly Data'!T35 -> 3069 | U35: ='[1]Monthly Data'!U35 -> 30 | V35: =[1]Weather!C155 -> 10.33548387 | W35: =[1]Weather!D155 -> 361.6 | X35: =[1]Weather!E155 -> 0 | Y35: =[1]Weather!F155 -> 299.6 | Z35: =[1]Weather!G155 -> 0 | AA35: =[1]Weather!H155 -> 238.8 | AB35: =[1]Weather!I155 -> 1.2 | AC35: =[1]Weather!J155 -> 181.9 | AD35: =[1]Weather!K155 -> 6.3 | AE35: =[1]Weather!L155 -> 128.9 | AF35: =[1]Weather!M155 -> 15.3 | AG35: =[1]Weather!N155 -> 85.3 | AH35: =[1]Weather!O155 -> 33.7 | AI35: =[1]Weather!P155 -> 47.3 | AJ35: =[1]Weather!Q155 -> 57.7 | AK35: =[1]Weather!R155 -> 15.4 | AL35: =[1]Weather!S155 -> 87.8 | AM35: =[1]Economic!C35 -> 659861.2 | AN35: =[1]Economic!D35 -> 6834 | AO35: =[1]Economic!E35 -> 6869.1 | AP35: =[1]Economic!F35 -> 114 | AQ35: =[1]Economic!G35 -> 114.1 | AR35: =AR23 -> 31 | AS35: 22 | AT35: =1+AT34 -> 34 | AU35: =AU23 -> 0 | AV35: =AV23 -> 0 | AW35: =AW23 -> 0 | AX35: =AX23 -> 0 | AY35: =AY23 -> 0 | AZ35: =AZ23 -> 0 | BA35: =BA23 -> 0 | BB35: =BB23 -> 0 | BC35: =BC23 -> 0 | BD35: =BD23 -> 1 | BE35: =BE23 -> 0 | BF35: =BF23 -> 0 | BG35: =BG23 -> 0 | BH35: =BH23 -> 1 | BI35: =BG35+BH35 -> 1 | BJ35: 0 | BK35: 0 | BL35: =BK35 -> 0 | BM35: =BM34 -> 0 | BN35: =$BJ35*W35 -> 0 | BO35: =$BJ35*X35 -> 0 | BP35: =$BJ35*Y35 -> 0 | BQ35: =$BJ35*Z35 -> 0 | BR35: =$BJ35*AA35 -> 0 | BS35: =$BJ35*AB35 -> 0 | BT35: =$BJ35*AC35 -> 0 | BU35: =$BJ35*AD35 -> 0 | BV35: =$BJ35*AE35 -> 0 | BW35: =$BJ35*AF35 -> 0 | BX35: =$BJ35*AG35 -> 0 | BY35: =$BJ35*AH35 -> 0 | BZ35: =$BJ35*AI35 -> 0 | CA35: =$BJ35*AJ35 -> 0 | CB35: =$BJ35*AK35 -> 0 | CC35: =$BJ35*AL35 -> 0 | CD35: =F35/Q35 -> 594.9967509 | CE35: =I35/R35 -> 2176.602745 | CF35: =L35/S35 -> 81090.52492
A36: ='[1]Monthly Data'!A36 -> 2014-11-01 | B36: ='[1]Monthly Data'!B36 -> 2014 | C36: =MONTH(A36) -> 11 | D36: ='[1]Monthly Data'!D36 -> 10325715.43 | E36: ='[1]Monthly Data'!E36 -> 57002.9499 | F36: ='[1]Monthly Data'!F36 -> 10382718.38 | G36: ='[1]Monthly Data'!G36 -> 3852411.996 | H36: ='[1]Monthly Data'!H36 -> 169942.9596 | I36: ='[1]Monthly Data'!I36 -> 4022354.955 | J36: ='[1]Monthly Data'!J36 -> 9984378.527 | K36: ='[1]Monthly Data'!K36 -> 147847.7491 | L36: ='[1]Monthly Data'!L36 -> 10132226.28 | M36: ='[1]Monthly Data'!M36 -> 218829.5105 | N36: ='[1]Monthly Data'!N36 -> 35846.98444 | O36: ='[1]Monthly Data'!O36 -> 24983.86 | P36: ='[1]Monthly Data'!P36 -> 511.04 | Q36: ='[1]Monthly Data'!Q36 -> 14576 | R36: ='[1]Monthly Data'!R36 -> 1707 | S36: ='[1]Monthly Data'!S36 -> 123 | T36: ='[1]Monthly Data'!T36 -> 3069 | U36: ='[1]Monthly Data'!U36 -> 30 | V36: =[1]Weather!C156 -> 2.057221181 | W36: =[1]Weather!D156 -> 598.3 | X36: =[1]Weather!E156 -> 0 | Y36: =[1]Weather!F156 -> 538.3 | Z36: =[1]Weather!G156 -> 0 | AA36: =[1]Weather!H156 -> 478.3 | AB36: =[1]Weather!I156 -> 0 | AC36: =[1]Weather!J156 -> 418.3 | AD36: =[1]Weather!K156 -> 0 | AE36: =[1]Weather!L156 -> 358.3 | AF36: =[1]Weather!M156 -> 0 | AG36: =[1]Weather!N156 -> 298.3 | AH36: =[1]Weather!O156 -> 0 | AI36: =[1]Weather!P156 -> 240.6 | AJ36: =[1]Weather!Q156 -> 2.3 | AK36: =[1]Weather!R156 -> 187.8 | AL36: =[1]Weather!S156 -> 9.5 | AM36: =[1]Economic!C36 -> 659861.2 | AN36: =[1]Economic!D36 -> 6842 | AO36: =[1]Economic!E36 -> 6850 | AP36: =[1]Economic!F36 -> 114.4 | AQ36: =[1]Economic!G36 -> 114.3 | AR36: =AR24 -> 30 | AS36: 22 | AT36: =1+AT35 -> 35 | AU36: =AU24 -> 0 | AV36: =AV24 -> 0 | AW36: =AW24 -> 0 | AX36: =AX24 -> 0 | AY36: =AY24 -> 0 | AZ36: =AZ24 -> 0 | BA36: =BA24 -> 0 | BB36: =BB24 -> 0 | BC36: =BC24 -> 0 | BD36: =BD24 -> 0 | BE36: =BE24 -> 1 | BF36: =BF24 -> 0 | BG36: =BG24 -> 0 | BH36: =BH24 -> 1 | BI36: =BG36+BH36 -> 1 | BJ36: 0 | BK36: 0 | BL36: =BK36 -> 0 | BM36: =BM35 -> 0 | BN36: =$BJ36*W36 -> 0 | BO36: =$BJ36*X36 -> 0 | BP36: =$BJ36*Y36 -> 0 | BQ36: =$BJ36*Z36 -> 0 | BR36: =$BJ36*AA36 -> 0 | BS36: =$BJ36*AB36 -> 0 | BT36: =$BJ36*AC36 -> 0 | BU36: =$BJ36*AD36 -> 0 | BV36: =$BJ36*AE36 -> 0 | BW36: =$BJ36*AF36 -> 0 | BX36: =$BJ36*AG36 -> 0 | BY36: =$BJ36*AH36 -> 0 | BZ36: =$BJ36*AI36 -> 0 | CA36: =$BJ36*AJ36 -> 0 | CB36: =$BJ36*AK36 -> 0 | CC36: =$BJ36*AL36 -> 0 | CD36: =F36/Q36 -> 712.3160253 | CE36: =I36/R36 -> 2356.388374 | CF36: =L36/S36 -> 82375.82339
A37: ='[1]Monthly Data'!A37 -> 2014-12-01 | B37: ='[1]Monthly Data'!B37 -> 2014 | C37: =MONTH(A37) -> 12 | D37: ='[1]Monthly Data'!D37 -> 12627538.65 | E37: ='[1]Monthly Data'!E37 -> 57002.9499 | F37: ='[1]Monthly Data'!F37 -> 12684541.6 | G37: ='[1]Monthly Data'!G37 -> 4331408.369 | H37: ='[1]Monthly Data'!H37 -> 169942.9596 | I37: ='[1]Monthly Data'!I37 -> 4501351.328 | J37: ='[1]Monthly Data'!J37 -> 10635777.26 | K37: ='[1]Monthly Data'!K37 -> 147847.7491 | L37: ='[1]Monthly Data'!L37 -> 10783625.01 | M37: ='[1]Monthly Data'!M37 -> 239041.1154 | N37: ='[1]Monthly Data'!N37 -> 32031.37062 | O37: ='[1]Monthly Data'!O37 -> 24835.77 | P37: ='[1]Monthly Data'!P37 -> 511.55 | Q37: ='[1]Monthly Data'!Q37 -> 14485 | R37: ='[1]Monthly Data'!R37 -> 1699 | S37: ='[1]Monthly Data'!S37 -> 122 | T37: ='[1]Monthly Data'!T37 -> 3069 | U37: ='[1]Monthly Data'!U37 -> 31 | V37: =[1]Weather!C157 -> -0.711829973 | W37: =[1]Weather!D157 -> 704.1 | X37: =[1]Weather!E157 -> 0 | Y37: =[1]Weather!F157 -> 642.1 | Z37: =[1]Weather!G157 -> 0 | AA37: =[1]Weather!H157 -> 580.1 | AB37: =[1]Weather!I157 -> 0 | AC37: =[1]Weather!J157 -> 518.1 | AD37: =[1]Weather!K157 -> 0 | AE37: =[1]Weather!L157 -> 456.1 | AF37: =[1]Weather!M157 -> 0 | AG37: =[1]Weather!N157 -> 394.1 | AH37: =[1]Weather!O157 -> 0 | AI37: =[1]Weather!P157 -> 332.1 | AJ37: =[1]Weather!Q157 -> 0 | AK37: =[1]Weather!R157 -> 270.1 | AL37: =[1]Weather!S157 -> 0 | AM37: =[1]Economic!C37 -> 659861.2 | AN37: =[1]Economic!D37 -> 6833.4 | AO37: =[1]Economic!E37 -> 6837.3 | AP37: =[1]Economic!F37 -> 113.5 | AQ37: =[1]Economic!G37 -> 113.2 | AR37: =AR25 -> 31 | AS37: 19 | AT37: =1+AT36 -> 36 | AU37: =AU25 -> 0 | AV37: =AV25 -> 0 | AW37: =AW25 -> 0 | AX37: =AX25 -> 0 | AY37: =AY25 -> 0 | AZ37: =AZ25 -> 0 | BA37: =BA25 -> 0 | BB37: =BB25 -> 0 | BC37: =BC25 -> 0 | BD37: =BD25 -> 0 | BE37: =BE25 -> 0 | BF37: =BF25 -> 1 | BG37: =BG25 -> 0 | BH37: =BH25 -> 0 | BI37: =BG37+BH37 -> 0 | BJ37: 0 | BK37: 0 | BL37: =BK37 -> 0 | BM37: =BM36 -> 0 | BN37: =$BJ37*W37 -> 0 | BO37: =$BJ37*X37 -> 0 | BP37: =$BJ37*Y37 -> 0 | BQ37: =$BJ37*Z37 -> 0 | BR37: =$BJ37*AA37 -> 0 | BS37: =$BJ37*AB37 -> 0 | BT37: =$BJ37*AC37 -> 0 | BU37: =$BJ37*AD37 -> 0 | BV37: =$BJ37*AE37 -> 0 | BW37: =$BJ37*AF37 -> 0 | BX37: =$BJ37*AG37 -> 0 | BY37: =$BJ37*AH37 -> 0 | BZ37: =$BJ37*AI37 -> 0 | CA37: =$BJ37*AJ37 -> 0 | CB37: =$BJ37*AK37 -> 0 | CC37: =$BJ37*AL37 -> 0 | CD37: =F37/Q37 -> 875.7018707 | CE37: =I37/R37 -> 2649.4122 | CF37: =L37/S37 -> 88390.36892
A38: ='[1]Monthly Data'!A38 -> 2015-01-01 | B38: ='[1]Monthly Data'!B38 -> 2015 | C38: =MONTH(A38) -> 1 | D38: ='[1]Monthly Data'!D38 -> 14310997.56 | E38: ='[1]Monthly Data'!E38 -> 102708.2464 | F38: ='[1]Monthly Data'!F38 -> 14413705.81 | G38: ='[1]Monthly Data'!G38 -> 4747575.133 | H38: ='[1]Monthly Data'!H38 -> 238440.1466 | I38: ='[1]Monthly Data'!I38 -> 4986015.28 | J38: ='[1]Monthly Data'!J38 -> 11168744.57 | K38: ='[1]Monthly Data'!K38 -> 201348.0619 | L38: ='[1]Monthly Data'!L38 -> 11370092.64 | M38: ='[1]Monthly Data'!M38 -> 232228.2449 | N38: ='[1]Monthly Data'!N38 -> 34098.46505 | O38: ='[1]Monthly Data'!O38 -> 25753.44 | P38: ='[1]Monthly Data'!P38 -> 511.55 | Q38: ='[1]Monthly Data'!Q38 -> 14609 | R38: ='[1]Monthly Data'!R38 -> 1702 | S38: ='[1]Monthly Data'!S38 -> 123 | T38: ='[1]Monthly Data'!T38 -> 3018 | U38: ='[1]Monthly Data'!U38 -> 32 | V38: =[1]Weather!C158 -> -8.60268918 | W38: =[1]Weather!D158 -> 948.7 | X38: =[1]Weather!E158 -> 0 | Y38: =[1]Weather!F158 -> 886.7 | Z38: =[1]Weather!G158 -> 0 | AA38: =[1]Weather!H158 -> 824.7 | AB38: =[1]Weather!I158 -> 0 | AC38: =[1]Weather!J158 -> 762.7 | AD38: =[1]Weather!K158 -> 0 | AE38: =[1]Weather!L158 -> 700.7 | AF38: =[1]Weather!M158 -> 0 | AG38: =[1]Weather!N158 -> 638.7 | AH38: =[1]Weather!O158 -> 0 | AI38: =[1]Weather!P158 -> 576.7 | AJ38: =[1]Weather!Q158 -> 0 | AK38: =[1]Weather!R158 -> 514.7 | AL38: =[1]Weather!S158 -> 0 | AM38: =[1]Economic!C38 -> 677384 | AN38: =[1]Economic!D38 -> 6815.7 | AO38: =[1]Economic!E38 -> 6777.3 | AP38: =[1]Economic!F38 -> 112.3 | AQ38: =[1]Economic!G38 -> 112.3 | AR38: =AR26 -> 31 | AS38: 22 | AT38: =1+AT37 -> 37 | AU38: =AU26 -> 1 | AV38: =AV26 -> 0 | AW38: =AW26 -> 0 | AX38: =AX26 -> 0 | AY38: =AY26 -> 0 | AZ38: =AZ26 -> 0 | BA38: =BA26 -> 0 | BB38: =BB26 -> 0 | BC38: =BC26 -> 0 | BD38: =BD26 -> 0 | BE38: =BE26 -> 0 | BF38: =BF26 -> 0 | BG38: =BG26 -> 0 | BH38: =BH26 -> 0 | BI38: =BG38+BH38 -> 0 | BJ38: 0 | BK38: 0 | BL38: =BK38 -> 0 | BM38: =BM37 -> 0 | BN38: =$BJ38*W38 -> 0 | BO38: =$BJ38*X38 -> 0 | BP38: =$BJ38*Y38 -> 0 | BQ38: =$BJ38*Z38 -> 0 | BR38: =$BJ38*AA38 -> 0 | BS38: =$BJ38*AB38 -> 0 | BT38: =$BJ38*AC38 -> 0 | BU38: =$BJ38*AD38 -> 0 | BV38: =$BJ38*AE38 -> 0 | BW38: =$BJ38*AF38 -> 0 | BX38: =$BJ38*AG38 -> 0 | BY38: =$BJ38*AH38 -> 0 | BZ38: =$BJ38*AI38 -> 0 | CA38: =$BJ38*AJ38 -> 0 | CB38: =$BJ38*AK38 -> 0 | CC38: =$BJ38*AL38 -> 0 | CD38: =F38/Q38 -> 986.6319259 | CE38: =I38/R38 -> 2929.50369 | CF38: =L38/S38 -> 92439.77753
A39: ='[1]Monthly Data'!A39 -> 2015-02-01 | B39: ='[1]Monthly Data'!B39 -> 2015 | C39: =MONTH(A39) -> 2 | D39: ='[1]Monthly Data'!D39 -> 13534834.08 | E39: ='[1]Monthly Data'!E39 -> 102708.2464 | F39: ='[1]Monthly Data'!F39 -> 13637542.33 | G39: ='[1]Monthly Data'!G39 -> 4458878.839 | H39: ='[1]Monthly Data'!H39 -> 238440.1466 | I39: ='[1]Monthly Data'!I39 -> 4697318.986 | J39: ='[1]Monthly Data'!J39 -> 10648933.92 | K39: ='[1]Monthly Data'!K39 -> 201348.0619 | L39: ='[1]Monthly Data'!L39 -> 10850281.98 | M39: ='[1]Monthly Data'!M39 -> 193203.1075 | N39: ='[1]Monthly Data'!N39 -> 32794.76456 | O39: ='[1]Monthly Data'!O39 -> 26516.78 | P39: ='[1]Monthly Data'!P39 -> 59.01 | Q39: ='[1]Monthly Data'!Q39 -> 14571 | R39: ='[1]Monthly Data'!R39 -> 1706 | S39: ='[1]Monthly Data'!S39 -> 123 | T39: ='[1]Monthly Data'!T39 -> 3018 | U39: ='[1]Monthly Data'!U39 -> 31 | V39: =[1]Weather!C159 -> -12.73928571 | W39: =[1]Weather!D159 -> 972.7 | X39: =[1]Weather!E159 -> 0 | Y39: =[1]Weather!F159 -> 916.7 | Z39: =[1]Weather!G159 -> 0 | AA39: =[1]Weather!H159 -> 860.7 | AB39: =[1]Weather!I159 -> 0 | AC39: =[1]Weather!J159 -> 804.7 | AD39: =[1]Weather!K159 -> 0 | AE39: =[1]Weather!L159 -> 748.7 | AF39: =[1]Weather!M159 -> 0 | AG39: =[1]Weather!N159 -> 692.7 | AH39: =[1]Weather!O159 -> 0 | AI39: =[1]Weather!P159 -> 636.7 | AJ39: =[1]Weather!Q159 -> 0 | AK39: =[1]Weather!R159 -> 580.7 | AL39: =[1]Weather!S159 -> 0 | AM39: =[1]Economic!C39 -> 677384 | AN39: =[1]Economic!D39 -> 6814.3 | AO39: =[1]Economic!E39 -> 6740.1 | AP39: =[1]Economic!F39 -> 110 | AQ39: =[1]Economic!G39 -> 109.1 | AR39: =AR27 -> 28 | AS39: 19 | AT39: =1+AT38 -> 38 | AU39: =AU27 -> 0 | AV39: =AV27 -> 1 | AW39: =AW27 -> 0 | AX39: =AX27 -> 0 | AY39: =AY27 -> 0 | AZ39: =AZ27 -> 0 | BA39: =BA27 -> 0 | BB39: =BB27 -> 0 | BC39: =BC27 -> 0 | BD39: =BD27 -> 0 | BE39: =BE27 -> 0 | BF39: =BF27 -> 0 | BG39: =BG27 -> 0 | BH39: =BH27 -> 0 | BI39: =BG39+BH39 -> 0 | BJ39: 0 | BK39: 0 | BL39: =BK39 -> 0 | BM39: =BM38 -> 0 | BN39: =$BJ39*W39 -> 0 | BO39: =$BJ39*X39 -> 0 | BP39: =$BJ39*Y39 -> 0 | BQ39: =$BJ39*Z39 -> 0 | BR39: =$BJ39*AA39 -> 0 | BS39: =$BJ39*AB39 -> 0 | BT39: =$BJ39*AC39 -> 0 | BU39: =$BJ39*AD39 -> 0 | BV39: =$BJ39*AE39 -> 0 | BW39: =$BJ39*AF39 -> 0 | BX39: =$BJ39*AG39 -> 0 | BY39: =$BJ39*AH39 -> 0 | BZ39: =$BJ39*AI39 -> 0 | CA39: =$BJ39*AJ39 -> 0 | CB39: =$BJ39*AK39 -> 0 | CC39: =$BJ39*AL39 -> 0 | CD39: =F39/Q39 -> 935.9372952 | CE39: =I39/R39 -> 2753.410894 | CF39: =L39/S39 -> 88213.67467
A40: ='[1]Monthly Data'!A40 -> 2015-03-01 | B40: ='[1]Monthly Data'!B40 -> 2015 | C40: =MONTH(A40) -> 3 | D40: ='[1]Monthly Data'!D40 -> 12423634.16 | E40: ='[1]Monthly Data'!E40 -> 102708.2464 | F40: ='[1]Monthly Data'!F40 -> 12526342.4 | G40: ='[1]Monthly Data'!G40 -> 4415788.606 | H40: ='[1]Monthly Data'!H40 -> 238440.1466 | I40: ='[1]Monthly Data'!I40 -> 4654228.753 | J40: ='[1]Monthly Data'!J40 -> 11290607.31 | K40: ='[1]Monthly Data'!K40 -> 201348.0619 | L40: ='[1]Monthly Data'!L40 -> 11491955.37 | M40: ='[1]Monthly Data'!M40 -> 190499.8207 | N40: ='[1]Monthly Data'!N40 -> 32040.14767 | O40: ='[1]Monthly Data'!O40 -> 26647.7 | P40: ='[1]Monthly Data'!P40 -> 511.55 | Q40: ='[1]Monthly Data'!Q40 -> 14535 | R40: ='[1]Monthly Data'!R40 -> 1706 | S40: ='[1]Monthly Data'!S40 -> 121 | T40: ='[1]Monthly Data'!T40 -> 3018 | U40: ='[1]Monthly Data'!U40 -> 31 | V40: =[1]Weather!C160 -> -2.861290323 | W40: =[1]Weather!D160 -> 770.7 | X40: =[1]Weather!E160 -> 0 | Y40: =[1]Weather!F160 -> 708.7 | Z40: =[1]Weather!G160 -> 0 | AA40: =[1]Weather!H160 -> 646.7 | AB40: =[1]Weather!I160 -> 0 | AC40: =[1]Weather!J160 -> 584.7 | AD40: =[1]Weather!K160 -> 0 | AE40: =[1]Weather!L160 -> 522.7 | AF40: =[1]Weather!M160 -> 0 | AG40: =[1]Weather!N160 -> 460.7 | AH40: =[1]Weather!O160 -> 0 | AI40: =[1]Weather!P160 -> 398.7 | AJ40: =[1]Weather!Q160 -> 0 | AK40: =[1]Weather!R160 -> 336.7 | AL40: =[1]Weather!S160 -> 0 | AM40: =[1]Economic!C40 -> 677384 | AN40: =[1]Economic!D40 -> 6821.3 | AO40: =[1]Economic!E40 -> 6712.3 | AP40: =[1]Economic!F40 -> 107.8 | AQ40: =[1]Economic!G40 -> 106.7 | AR40: =AR28 -> 31 | AS40: 20 | AT40: =1+AT39 -> 39 | AU40: =AU28 -> 0 | AV40: =AV28 -> 0 | AW40: =AW28 -> 1 | AX40: =AX28 -> 0 | AY40: =AY28 -> 0 | AZ40: =AZ28 -> 0 | BA40: =BA28 -> 0 | BB40: =BB28 -> 0 | BC40: =BC28 -> 0 | BD40: =BD28 -> 0 | BE40: =BE28 -> 0 | BF40: =BF28 -> 0 | BG40: =BG28 -> 1 | BH40: =BH28 -> 0 | BI40: =BG40+BH40 -> 1 | BJ40: 0 | BK40: 0 | BL40: =BK40 -> 0 | BM40: =BM39 -> 0 | BN40: =$BJ40*W40 -> 0 | BO40: =$BJ40*X40 -> 0 | BP40: =$BJ40*Y40 -> 0 | BQ40: =$BJ40*Z40 -> 0 | BR40: =$BJ40*AA40 -> 0 | BS40: =$BJ40*AB40 -> 0 | BT40: =$BJ40*AC40 -> 0 | BU40: =$BJ40*AD40 -> 0 | BV40: =$BJ40*AE40 -> 0 | BW40: =$BJ40*AF40 -> 0 | BX40: =$BJ40*AG40 -> 0 | BY40: =$BJ40*AH40 -> 0 | BZ40: =$BJ40*AI40 -> 0 | CA40: =$BJ40*AJ40 -> 0 | CB40: =$BJ40*AK40 -> 0 | CC40: =$BJ40*AL40 -> 0 | CD40: =F40/Q40 -> 861.8054629 | CE40: =I40/R40 -> 2728.152845 | CF40: =L40/S40 -> 94974.83779
A41: ='[1]Monthly Data'!A41 -> 2015-04-01 | B41: ='[1]Monthly Data'!B41 -> 2015 | C41: =MONTH(A41) -> 4 | D41: ='[1]Monthly Data'!D41 -> 9170383.72 | E41: ='[1]Monthly Data'!E41 -> 102708.2464 | F41: ='[1]Monthly Data'!F41 -> 9273091.966 | G41: ='[1]Monthly Data'!G41 -> 3591413.261 | H41: ='[1]Monthly Data'!H41 -> 238440.1466 | I41: ='[1]Monthly Data'!I41 -> 3829853.408 | J41: ='[1]Monthly Data'!J41 -> 10090976.86 | K41: ='[1]Monthly Data'!K41 -> 201348.0619 | L41: ='[1]Monthly Data'!L41 -> 10292324.93 | M41: ='[1]Monthly Data'!M41 -> 160609.7578 | N41: ='[1]Monthly Data'!N41 -> 33433.37356 | O41: ='[1]Monthly Data'!O41 -> 25822.03 | P41: ='[1]Monthly Data'!P41 -> 511.55 | Q41: ='[1]Monthly Data'!Q41 -> 14475 | R41: ='[1]Monthly Data'!R41 -> 1702 | S41: ='[1]Monthly Data'!S41 -> 123 | T41: ='[1]Monthly Data'!T41 -> 3018 | U41: ='[1]Monthly Data'!U41 -> 32 | V41: =[1]Weather!C161 -> 5.773333333 | W41: =[1]Weather!D161 -> 486.8 | X41: =[1]Weather!E161 -> 0 | Y41: =[1]Weather!F161 -> 426.8 | Z41: =[1]Weather!G161 -> 0 | AA41: =[1]Weather!H161 -> 366.8 | AB41: =[1]Weather!I161 -> 0 | AC41: =[1]Weather!J161 -> 306.8 | AD41: =[1]Weather!K161 -> 0 | AE41: =[1]Weather!L161 -> 246.8 | AF41: =[1]Weather!M161 -> 0 | AG41: =[1]Weather!N161 -> 189 | AH41: =[1]Weather!O161 -> 2.2 | AI41: =[1]Weather!P161 -> 134.6 | AJ41: =[1]Weather!Q161 -> 7.8 | AK41: =[1]Weather!R161 -> 86 | AL41: =[1]Weather!S161 -> 19.2 | AM41: =[1]Economic!C41 -> 677384 | AN41: =[1]Economic!D41 -> 6825 | AO41: =[1]Economic!E41 -> 6733.1 | AP41: =[1]Economic!F41 -> 106 | AQ41: =[1]Economic!G41 -> 104.2 | AR41: =AR29 -> 30 | AS41: 22 | AT41: =1+AT40 -> 40 | AU41: =AU29 -> 0 | AV41: =AV29 -> 0 | AW41: =AW29 -> 0 | AX41: =AX29 -> 1 | AY41: =AY29 -> 0 | AZ41: =AZ29 -> 0 | BA41: =BA29 -> 0 | BB41: =BB29 -> 0 | BC41: =BC29 -> 0 | BD41: =BD29 -> 0 | BE41: =BE29 -> 0 | BF41: =BF29 -> 0 | BG41: =BG29 -> 1 | BH41: =BH29 -> 0 | BI41: =BG41+BH41 -> 1 | BJ41: 0 | BK41: 0 | BL41: =BK41 -> 0 | BM41: =BM40 -> 0 | BN41: =$BJ41*W41 -> 0 | BO41: =$BJ41*X41 -> 0 | BP41: =$BJ41*Y41 -> 0 | BQ41: =$BJ41*Z41 -> 0 | BR41: =$BJ41*AA41 -> 0 | BS41: =$BJ41*AB41 -> 0 | BT41: =$BJ41*AC41 -> 0 | BU41: =$BJ41*AD41 -> 0 | BV41: =$BJ41*AE41 -> 0 | BW41: =$BJ41*AF41 -> 0 | BX41: =$BJ41*AG41 -> 0 | BY41: =$BJ41*AH41 -> 0 | BZ41: =$BJ41*AI41 -> 0 | CA41: =$BJ41*AJ41 -> 0 | CB41: =$BJ41*AK41 -> 0 | CC41: =$BJ41*AL41 -> 0 | CD41: =F41/Q41 -> 640.6281151 | CE41: =I41/R41 -> 2250.207643 | CF41: =L41/S41 -> 83677.43842
A42: ='[1]Monthly Data'!A42 -> 2015-05-01 | B42: ='[1]Monthly Data'!B42 -> 2015 | C42: =MONTH(A42) -> 5 | D42: ='[1]Monthly Data'!D42 -> 7979071.441 | E42: ='[1]Monthly Data'!E42 -> 102708.2464 | F42: ='[1]Monthly Data'!F42 -> 8081779.687 | G42: ='[1]Monthly Data'!G42 -> 3494942.467 | H42: ='[1]Monthly Data'!H42 -> 238440.1466 | I42: ='[1]Monthly Data'!I42 -> 3733382.613 | J42: ='[1]Monthly Data'!J42 -> 10181971.21 | K42: ='[1]Monthly Data'!K42 -> 201348.0619 | L42: ='[1]Monthly Data'!L42 -> 10383319.27 | M42: ='[1]Monthly Data'!M42 -> 144889.2036 | N42: ='[1]Monthly Data'!N42 -> 34787.30838 | O42: ='[1]Monthly Data'!O42 -> 25188.67 | P42: ='[1]Monthly Data'!P42 -> 511.55 | Q42: ='[1]Monthly Data'!Q42 -> 14627 | R42: ='[1]Monthly Data'!R42 -> 1704 | S42: ='[1]Monthly Data'!S42 -> 124 | T42: ='[1]Monthly Data'!T42 -> 3018 | U42: ='[1]Monthly Data'!U42 -> 30 | V42: =[1]Weather!C162 -> 13.77473017 | W42: =[1]Weather!D162 -> 258.7 | X42: =[1]Weather!E162 -> 3.7 | Y42: =[1]Weather!F162 -> 204 | Z42: =[1]Weather!G162 -> 11 | AA42: =[1]Weather!H162 -> 156 | AB42: =[1]Weather!I162 -> 25 | AC42: =[1]Weather!J162 -> 111.5 | AD42: =[1]Weather!K162 -> 42.5 | AE42: =[1]Weather!L162 -> 75.8 | AF42: =[1]Weather!M162 -> 68.8 | AG42: =[1]Weather!N162 -> 43 | AH42: =[1]Weather!O162 -> 98 | AI42: =[1]Weather!P162 -> 19.8 | AJ42: =[1]Weather!Q162 -> 136.8 | AK42: =[1]Weather!R162 -> 7 | AL42: =[1]Weather!S162 -> 186 | AM42: =[1]Economic!C42 -> 677384 | AN42: =[1]Economic!D42 -> 6830.5 | AO42: =[1]Economic!E42 -> 6793.2 | AP42: =[1]Economic!F42 -> 106.2 | AQ42: =[1]Economic!G42 -> 105.9 | AR42: =AR30 -> 31 | AS42: 22 | AT42: =1+AT41 -> 41 | AU42: =AU30 -> 0 | AV42: =AV30 -> 0 | AW42: =AW30 -> 0 | AX42: =AX30 -> 0 | AY42: =AY30 -> 1 | AZ42: =AZ30 -> 0 | BA42: =BA30 -> 0 | BB42: =BB30 -> 0 | BC42: =BC30 -> 0 | BD42: =BD30 -> 0 | BE42: =BE30 -> 0 | BF42: =BF30 -> 0 | BG42: =BG30 -> 1 | BH42: =BH30 -> 0 | BI42: =BG42+BH42 -> 1 | BJ42: 0 | BK42: 0 | BL42: =BK42 -> 0 | BM42: =BM41 -> 0 | BN42: =$BJ42*W42 -> 0 | BO42: =$BJ42*X42 -> 0 | BP42: =$BJ42*Y42 -> 0 | BQ42: =$BJ42*Z42 -> 0 | BR42: =$BJ42*AA42 -> 0 | BS42: =$BJ42*AB42 -> 0 | BT42: =$BJ42*AC42 -> 0 | BU42: =$BJ42*AD42 -> 0 | BV42: =$BJ42*AE42 -> 0 | BW42: =$BJ42*AF42 -> 0 | BX42: =$BJ42*AG42 -> 0 | BY42: =$BJ42*AH42 -> 0 | BZ42: =$BJ42*AI42 -> 0 | CA42: =$BJ42*AJ42 -> 0 | CB42: =$BJ42*AK42 -> 0 | CC42: =$BJ42*AL42 -> 0 | CD42: =F42/Q42 -> 552.5247615 | CE42: =I42/R42 -> 2190.952238 | CF42: =L42/S42 -> 83736.44573
A43: ='[1]Monthly Data'!A43 -> 2015-06-01 | B43: ='[1]Monthly Data'!B43 -> 2015 | C43: =MONTH(A43) -> 6 | D43: ='[1]Monthly Data'!D43 -> 7688038.79 | E43: ='[1]Monthly Data'!E43 -> 102708.2464 | F43: ='[1]Monthly Data'!F43 -> 7790747.037 | G43: ='[1]Monthly Data'!G43 -> 3453507.456 | H43: ='[1]Monthly Data'!H43 -> 238440.1466 | I43: ='[1]Monthly Data'!I43 -> 3691947.603 | J43: ='[1]Monthly Data'!J43 -> 10080433.9 | K43: ='[1]Monthly Data'!K43 -> 201348.0619 | L43: ='[1]Monthly Data'!L43 -> 10281781.96 | M43: ='[1]Monthly Data'!M43 -> 129471.036 | N43: ='[1]Monthly Data'!N43 -> 31577.38443 | O43: ='[1]Monthly Data'!O43 -> 25787.74 | P43: ='[1]Monthly Data'!P43 -> 511.55 | Q43: ='[1]Monthly Data'!Q43 -> 14580 | R43: ='[1]Monthly Data'!R43 -> 1729 | S43: ='[1]Monthly Data'!S43 -> 121 | T43: ='[1]Monthly Data'!T43 -> 3018 | U43: ='[1]Monthly Data'!U43 -> 30 | V43: =[1]Weather!C163 -> 15.87333333 | W43: =[1]Weather!D163 -> 183.8 | X43: =[1]Weather!E163 -> 0 | Y43: =[1]Weather!F163 -> 124.5 | Z43: =[1]Weather!G163 -> 0.7 | AA43: =[1]Weather!H163 -> 69.8 | AB43: =[1]Weather!I163 -> 6 | AC43: =[1]Weather!J163 -> 29.1 | AD43: =[1]Weather!K163 -> 25.3 | AE43: =[1]Weather!L163 -> 14.7 | AF43: =[1]Weather!M163 -> 70.9 | AG43: =[1]Weather!N163 -> 6.3 | AH43: =[1]Weather!O163 -> 122.5 | AI43: =[1]Weather!P163 -> 1.4 | AJ43: =[1]Weather!Q163 -> 177.6 | AK43: =[1]Weather!R163 -> 0 | AL43: =[1]Weather!S163 -> 236.2 | AM43: =[1]Economic!C43 -> 677384 | AN43: =[1]Economic!D43 -> 6841.5 | AO43: =[1]Economic!E43 -> 6885.3 | AP43: =[1]Economic!F43 -> 106.9 | AQ43: =[1]Economic!G43 -> 107.5 | AR43: =AR31 -> 30 | AS43: 20 | AT43: =1+AT42 -> 42 | AU43: =AU31 -> 0 | AV43: =AV31 -> 0 | AW43: =AW31 -> 0 | AX43: =AX31 -> 0 | AY43: =AY31 -> 0 | AZ43: =AZ31 -> 1 | BA43: =BA31 -> 0 | BB43: =BB31 -> 0 | BC43: =BC31 -> 0 | BD43: =BD31 -> 0 | BE43: =BE31 -> 0 | BF43: =BF31 -> 0 | BG43: =BG31 -> 0 | BH43: =BH31 -> 0 | BI43: =BG43+BH43 -> 0 | BJ43: 0 | BK43: 0 | BL43: =BK43 -> 0 | BM43: =BM42 -> 0 | BN43: =$BJ43*W43 -> 0 | BO43: =$BJ43*X43 -> 0 | BP43: =$BJ43*Y43 -> 0 | BQ43: =$BJ43*Z43 -> 0 | BR43: =$BJ43*AA43 -> 0 | BS43: =$BJ43*AB43 -> 0 | BT43: =$BJ43*AC43 -> 0 | BU43: =$BJ43*AD43 -> 0 | BV43: =$BJ43*AE43 -> 0 | BW43: =$BJ43*AF43 -> 0 | BX43: =$BJ43*AG43 -> 0 | BY43: =$BJ43*AH43 -> 0 | BZ43: =$BJ43*AI43 -> 0 | CA43: =$BJ43*AJ43 -> 0 | CB43: =$BJ43*AK43 -> 0 | CC43: =$BJ43*AL43 -> 0 | CD43: =F43/Q43 -> 534.3447899 | CE43: =I43/R43 -> 2135.308041 | CF43: =L43/S43 -> 84973.40461
A44: ='[1]Monthly Data'!A44 -> 2015-07-01 | B44: ='[1]Monthly Data'!B44 -> 2015 | C44: =MONTH(A44) -> 7 | D44: ='[1]Monthly Data'!D44 -> 9081583.067 | E44: ='[1]Monthly Data'!E44 -> 102708.2464 | F44: ='[1]Monthly Data'!F44 -> 9184291.313 | G44: ='[1]Monthly Data'!G44 -> 3795705.288 | H44: ='[1]Monthly Data'!H44 -> 238440.1466 | I44: ='[1]Monthly Data'!I44 -> 4034145.435 | J44: ='[1]Monthly Data'!J44 -> 10316241.17 | K44: ='[1]Monthly Data'!K44 -> 201348.0619 | L44: ='[1]Monthly Data'!L44 -> 10517589.23 | M44: ='[1]Monthly Data'!M44 -> 138915.5508 | N44: ='[1]Monthly Data'!N44 -> 34246.80431 | O44: ='[1]Monthly Data'!O44 -> 25380.72 | P44: ='[1]Monthly Data'!P44 -> 511.55 | Q44: ='[1]Monthly Data'!Q44 -> 14553 | R44: ='[1]Monthly Data'!R44 -> 1717 | S44: ='[1]Monthly Data'!S44 -> 121 | T44: ='[1]Monthly Data'!T44 -> 3018 | U44: ='[1]Monthly Data'!U44 -> 30 | V44: =[1]Weather!C164 -> 20.01343985 | W44: =[1]Weather!D164 -> 77.8 | X44: =[1]Weather!E164 -> 16.2 | Y44: =[1]Weather!F164 -> 43.1 | Z44: =[1]Weather!G164 -> 43.5 | AA44: =[1]Weather!H164 -> 17.4 | AB44: =[1]Weather!I164 -> 79.8 | AC44: =[1]Weather!J164 -> 4.8 | AD44: =[1]Weather!K164 -> 129.2 | AE44: =[1]Weather!L164 -> 0 | AF44: =[1]Weather!M164 -> 186.4 | AG44: =[1]Weather!N164 -> 0 | AH44: =[1]Weather!O164 -> 248.4 | AI44: =[1]Weather!P164 -> 0 | AJ44: =[1]Weather!Q164 -> 310.4 | AK44: =[1]Weather!R164 -> 0 | AL44: =[1]Weather!S164 -> 372.4 | AM44: =[1]Economic!C44 -> 677384 | AN44: =[1]Economic!D44 -> 6859.4 | AO44: =[1]Economic!E44 -> 6951.4 | AP44: =[1]Economic!F44 -> 106.5 | AQ44: =[1]Economic!G44 -> 107.5 | AR44: =AR32 -> 31 | AS44: 22 | AT44: =1+AT43 -> 43 | AU44: =AU32 -> 0 | AV44: =AV32 -> 0 | AW44: =AW32 -> 0 | AX44: =AX32 -> 0 | AY44: =AY32 -> 0 | AZ44: =AZ32 -> 0 | BA44: =BA32 -> 1 | BB44: =BB32 -> 0 | BC44: =BC32 -> 0 | BD44: =BD32 -> 0 | BE44: =BE32 -> 0 | BF44: =BF32 -> 0 | BG44: =BG32 -> 0 | BH44: =BH32 -> 0 | BI44: =BG44+BH44 -> 0 | BJ44: 0 | BK44: 0 | BL44: =BK44 -> 0 | BM44: =BM43 -> 0 | BN44: =$BJ44*W44 -> 0 | BO44: =$BJ44*X44 -> 0 | BP44: =$BJ44*Y44 -> 0 | BQ44: =$BJ44*Z44 -> 0 | BR44: =$BJ44*AA44 -> 0 | BS44: =$BJ44*AB44 -> 0 | BT44: =$BJ44*AC44 -> 0 | BU44: =$BJ44*AD44 -> 0 | BV44: =$BJ44*AE44 -> 0 | BW44: =$BJ44*AF44 -> 0 | BX44: =$BJ44*AG44 -> 0 | BY44: =$BJ44*AH44 -> 0 | BZ44: =$BJ44*AI44 -> 0 | CA44: =$BJ44*AJ44 -> 0 | CB44: =$BJ44*AK44 -> 0 | CC44: =$BJ44*AL44 -> 0 | CD44: =F44/Q44 -> 631.0926485 | CE44: =I44/R44 -> 2349.531412 | CF44: =L44/S44 -> 86922.22506
A45: ='[1]Monthly Data'!A45 -> 2015-08-01 | B45: ='[1]Monthly Data'!B45 -> 2015 | C45: =MONTH(A45) -> 8 | D45: ='[1]Monthly Data'!D45 -> 9402564.307 | E45: ='[1]Monthly Data'!E45 -> 102708.2464 | F45: ='[1]Monthly Data'!F45 -> 9505272.554 | G45: ='[1]Monthly Data'!G45 -> 3871441.469 | H45: ='[1]Monthly Data'!H45 -> 238440.1466 | I45: ='[1]Monthly Data'!I45 -> 4109881.616 | J45: ='[1]Monthly Data'!J45 -> 10245247.73 | K45: ='[1]Monthly Data'!K45 -> 201348.0619 | L45: ='[1]Monthly Data'!L45 -> 10446595.79 | M45: ='[1]Monthly Data'!M45 -> 157044.0104 | N45: ='[1]Monthly Data'!N45 -> 34718.71375 | O45: ='[1]Monthly Data'!O45 -> 20514.96 | P45: ='[1]Monthly Data'!P45 -> 511.55 | Q45: ='[1]Monthly Data'!Q45 -> 14579 | R45: ='[1]Monthly Data'!R45 -> 1712 | S45: ='[1]Monthly Data'!S45 -> 125 | T45: ='[1]Monthly Data'!T45 -> 3018 | U45: ='[1]Monthly Data'!U45 -> 30 | V45: =[1]Weather!C165 -> 19.72258065 | W45: =[1]Weather!D165 -> 84.2 | X45: =[1]Weather!E165 -> 13.6 | Y45: =[1]Weather!F165 -> 41.4 | Z45: =[1]Weather!G165 -> 32.8 | AA45: =[1]Weather!H165 -> 12.2 | AB45: =[1]Weather!I165 -> 65.6 | AC45: =[1]Weather!J165 -> 0.4 | AD45: =[1]Weather!K165 -> 115.8 | AE45: =[1]Weather!L165 -> 0 | AF45: =[1]Weather!M165 -> 177.4 | AG45: =[1]Weather!N165 -> 0 | AH45: =[1]Weather!O165 -> 239.4 | AI45: =[1]Weather!P165 -> 0 | AJ45: =[1]Weather!Q165 -> 301.4 | AK45: =[1]Weather!R165 -> 0 | AL45: =[1]Weather!S165 -> 363.4 | AM45: =[1]Economic!C45 -> 677384 | AN45: =[1]Economic!D45 -> 6869.1 | AO45: =[1]Economic!E45 -> 6969.1 | AP45: =[1]Economic!F45 -> 106.4 | AQ45: =[1]Economic!G45 -> 107.5 | AR45: =AR33 -> 31 | AS45: 21 | AT45: =1+AT44 -> 44 | AU45: =AU33 -> 0 | AV45: =AV33 -> 0 | AW45: =AW33 -> 0 | AX45: =AX33 -> 0 | AY45: =AY33 -> 0 | AZ45: =AZ33 -> 0 | BA45: =BA33 -> 0 | BB45: =BB33 -> 1 | BC45: =BC33 -> 0 | BD45: =BD33 -> 0 | BE45: =BE33 -> 0 | BF45: =BF33 -> 0 | BG45: =BG33 -> 0 | BH45: =BH33 -> 0 | BI45: =BG45+BH45 -> 0 | BJ45: 0 | BK45: 0 | BL45: =BK45 -> 0 | BM45: =BM44 -> 0 | BN45: =$BJ45*W45 -> 0 | BO45: =$BJ45*X45 -> 0 | BP45: =$BJ45*Y45 -> 0 | BQ45: =$BJ45*Z45 -> 0 | BR45: =$BJ45*AA45 -> 0 | BS45: =$BJ45*AB45 -> 0 | BT45: =$BJ45*AC45 -> 0 | BU45: =$BJ45*AD45 -> 0 | BV45: =$BJ45*AE45 -> 0 | BW45: =$BJ45*AF45 -> 0 | BX45: =$BJ45*AG45 -> 0 | BY45: =$BJ45*AH45 -> 0 | BZ45: =$BJ45*AI45 -> 0 | CA45: =$BJ45*AJ45 -> 0 | CB45: =$BJ45*AK45 -> 0 | CC45: =$BJ45*AL45 -> 0 | CD45: =F45/Q45 -> 651.9838503 | CE45: =I45/R45 -> 2400.631785 | CF45: =L45/S45 -> 83572.76635
A46: ='[1]Monthly Data'!A46 -> 2015-09-01 | B46: ='[1]Monthly Data'!B46 -> 2015 | C46: =MONTH(A46) -> 9 | D46: ='[1]Monthly Data'!D46 -> 8349296.842 | E46: ='[1]Monthly Data'!E46 -> 102708.2464 | F46: ='[1]Monthly Data'!F46 -> 8452005.089 | G46: ='[1]Monthly Data'!G46 -> 3542652.794 | H46: ='[1]Monthly Data'!H46 -> 238440.1466 | I46: ='[1]Monthly Data'!I46 -> 3781092.941 | J46: ='[1]Monthly Data'!J46 -> 10545472.11 | K46: ='[1]Monthly Data'!K46 -> 201348.0619 | L46: ='[1]Monthly Data'!L46 -> 10746820.17 | M46: ='[1]Monthly Data'!M46 -> 174615.3871 | N46: ='[1]Monthly Data'!N46 -> 31559.35396 | O46: ='[1]Monthly Data'!O46 -> 29922.08 | P46: ='[1]Monthly Data'!P46 -> 511.55 | Q46: ='[1]Monthly Data'!Q46 -> 14628 | R46: ='[1]Monthly Data'!R46 -> 1723 | S46: ='[1]Monthly Data'!S46 -> 125 | T46: ='[1]Monthly Data'!T46 -> 3018 | U46: ='[1]Monthly Data'!U46 -> 30 | V46: =[1]Weather!C166 -> 19.41388785 | W46: =[1]Weather!D166 -> 95.3 | X46: =[1]Weather!E166 -> 17.7 | Y46: =[1]Weather!F166 -> 58.5 | Z46: =[1]Weather!G166 -> 40.9 | AA46: =[1]Weather!H166 -> 27.6 | AB46: =[1]Weather!I166 -> 70 | AC46: =[1]Weather!J166 -> 11.3 | AD46: =[1]Weather!K166 -> 113.7 | AE46: =[1]Weather!L166 -> 2.5 | AF46: =[1]Weather!M166 -> 164.9 | AG46: =[1]Weather!N166 -> 0 | AH46: =[1]Weather!O166 -> 222.4 | AI46: =[1]Weather!P166 -> 0 | AJ46: =[1]Weather!Q166 -> 282.4 | AK46: =[1]Weather!R166 -> 0 | AL46: =[1]Weather!S166 -> 342.4 | AM46: =[1]Economic!C46 -> 677384 | AN46: =[1]Economic!D46 -> 6860.5 | AO46: =[1]Economic!E46 -> 6917.2 | AP46: =[1]Economic!F46 -> 105 | AQ46: =[1]Economic!G46 -> 105.6 | AR46: =AR34 -> 30 | AS46: 20 | AT46: =1+AT45 -> 45 | AU46: =AU34 -> 0 | AV46: =AV34 -> 0 | AW46: =AW34 -> 0 | AX46: =AX34 -> 0 | AY46: =AY34 -> 0 | AZ46: =AZ34 -> 0 | BA46: =BA34 -> 0 | BB46: =BB34 -> 0 | BC46: =BC34 -> 1 | BD46: =BD34 -> 0 | BE46: =BE34 -> 0 | BF46: =BF34 -> 0 | BG46: =BG34 -> 0 | BH46: =BH34 -> 1 | BI46: =BG46+BH46 -> 1 | BJ46: 0 | BK46: 0 | BL46: =BK46 -> 0 | BM46: =BM45 -> 0 | BN46: =$BJ46*W46 -> 0 | BO46: =$BJ46*X46 -> 0 | BP46: =$BJ46*Y46 -> 0 | BQ46: =$BJ46*Z46 -> 0 | BR46: =$BJ46*AA46 -> 0 | BS46: =$BJ46*AB46 -> 0 | BT46: =$BJ46*AC46 -> 0 | BU46: =$BJ46*AD46 -> 0 | BV46: =$BJ46*AE46 -> 0 | BW46: =$BJ46*AF46 -> 0 | BX46: =$BJ46*AG46 -> 0 | BY46: =$BJ46*AH46 -> 0 | BZ46: =$BJ46*AI46 -> 0 | CA46: =$BJ46*AJ46 -> 0 | CB46: =$BJ46*AK46 -> 0 | CC46: =$BJ46*AL46 -> 0 | CD46: =F46/Q46 -> 577.7963555 | CE46: =I46/R46 -> 2194.482264 | CF46: =L46/S46 -> 85974.56136
A47: ='[1]Monthly Data'!A47 -> 2015-10-01 | B47: ='[1]Monthly Data'!B47 -> 2015 | C47: =MONTH(A47) -> 10 | D47: ='[1]Monthly Data'!D47 -> 8336110.068 | E47: ='[1]Monthly Data'!E47 -> 102708.2464 | F47: ='[1]Monthly Data'!F47 -> 8438818.314 | G47: ='[1]Monthly Data'!G47 -> 3362242.414 | H47: ='[1]Monthly Data'!H47 -> 238440.1466 | I47: ='[1]Monthly Data'!I47 -> 3600682.56 | J47: ='[1]Monthly Data'!J47 -> 10479372.68 | K47: ='[1]Monthly Data'!K47 -> 201348.0619 | L47: ='[1]Monthly Data'!L47 -> 10680720.74 | M47: ='[1]Monthly Data'!M47 -> 204813.6455 | N47: ='[1]Monthly Data'!N47 -> 34315.59476 | O47: ='[1]Monthly Data'!O47 -> 26569.5 | P47: ='[1]Monthly Data'!P47 -> 511.55 | Q47: ='[1]Monthly Data'!Q47 -> 14609 | R47: ='[1]Monthly Data'!R47 -> 1721 | S47: ='[1]Monthly Data'!S47 -> 125 | T47: ='[1]Monthly Data'!T47 -> 3018 | U47: ='[1]Monthly Data'!U47 -> 30 | V47: =[1]Weather!C167 -> 9.796774194 | W47: =[1]Weather!D167 -> 378.3 | X47: =[1]Weather!E167 -> 0 | Y47: =[1]Weather!F167 -> 316.8 | Z47: =[1]Weather!G167 -> 0.5 | AA47: =[1]Weather!H167 -> 257.1 | AB47: =[1]Weather!I167 -> 2.8 | AC47: =[1]Weather!J167 -> 199.1 | AD47: =[1]Weather!K167 -> 6.8 | AE47: =[1]Weather!L167 -> 141.1 | AF47: =[1]Weather!M167 -> 10.8 | AG47: =[1]Weather!N167 -> 90.9 | AH47: =[1]Weather!O167 -> 22.6 | AI47: =[1]Weather!P167 -> 51.4 | AJ47: =[1]Weather!Q167 -> 45.1 | AK47: =[1]Weather!R167 -> 26.6 | AL47: =[1]Weather!S167 -> 82.3 | AM47: =[1]Economic!C47 -> 677384 | AN47: =[1]Economic!D47 -> 6852.7 | AO47: =[1]Economic!E47 -> 6887.9 | AP47: =[1]Economic!F47 -> 103.9 | AQ47: =[1]Economic!G47 -> 104.7 | AR47: =AR35 -> 31 | AS47: 22 | AT47: =1+AT46 -> 46 | AU47: =AU35 -> 0 | AV47: =AV35 -> 0 | AW47: =AW35 -> 0 | AX47: =AX35 -> 0 | AY47: =AY35 -> 0 | AZ47: =AZ35 -> 0 | BA47: =BA35 -> 0 | BB47: =BB35 -> 0 | BC47: =BC35 -> 0 | BD47: =BD35 -> 1 | BE47: =BE35 -> 0 | BF47: =BF35 -> 0 | BG47: =BG35 -> 0 | BH47: =BH35 -> 1 | BI47: =BG47+BH47 -> 1 | BJ47: 0 | BK47: 0 | BL47: =BK47 -> 0 | BM47: =BM46 -> 0 | BN47: =$BJ47*W47 -> 0 | BO47: =$BJ47*X47 -> 0 | BP47: =$BJ47*Y47 -> 0 | BQ47: =$BJ47*Z47 -> 0 | BR47: =$BJ47*AA47 -> 0 | BS47: =$BJ47*AB47 -> 0 | BT47: =$BJ47*AC47 -> 0 | BU47: =$BJ47*AD47 -> 0 | BV47: =$BJ47*AE47 -> 0 | BW47: =$BJ47*AF47 -> 0 | BX47: =$BJ47*AG47 -> 0 | BY47: =$BJ47*AH47 -> 0 | BZ47: =$BJ47*AI47 -> 0 | CA47: =$BJ47*AJ47 -> 0 | CB47: =$BJ47*AK47 -> 0 | CC47: =$BJ47*AL47 -> 0 | CD47: =F47/Q47 -> 577.6451718 | CE47: =I47/R47 -> 2092.203696 | CF47: =L47/S47 -> 85445.76594
A48: ='[1]Monthly Data'!A48 -> 2015-11-01 | B48: ='[1]Monthly Data'!B48 -> 2015 | C48: =MONTH(A48) -> 11 | D48: ='[1]Monthly Data'!D48 -> 8980827.036 | E48: ='[1]Monthly Data'!E48 -> 102708.2464 | F48: ='[1]Monthly Data'!F48 -> 9083535.282 | G48: ='[1]Monthly Data'!G48 -> 3419201.747 | H48: ='[1]Monthly Data'!H48 -> 238440.1466 | I48: ='[1]Monthly Data'!I48 -> 3657641.893 | J48: ='[1]Monthly Data'!J48 -> 10130386.73 | K48: ='[1]Monthly Data'!K48 -> 201348.0619 | L48: ='[1]Monthly Data'!L48 -> 10331734.8 | M48: ='[1]Monthly Data'!M48 -> 219018.8544 | N48: ='[1]Monthly Data'!N48 -> 34103.11766 | O48: ='[1]Monthly Data'!O48 -> 25145.72 | P48: ='[1]Monthly Data'!P48 -> 511.55 | Q48: ='[1]Monthly Data'!Q48 -> 14586 | R48: ='[1]Monthly Data'!R48 -> 1718 | S48: ='[1]Monthly Data'!S48 -> 126 | T48: ='[1]Monthly Data'!T48 -> 3018 | U48: ='[1]Monthly Data'!U48 -> 30 | V48: =[1]Weather!C168 -> 6.747221181 | W48: =[1]Weather!D168 -> 457.6 | X48: =[1]Weather!E168 -> 0 | Y48: =[1]Weather!F168 -> 397.6 | Z48: =[1]Weather!G168 -> 0 | AA48: =[1]Weather!H168 -> 339.1 | AB48: =[1]Weather!I168 -> 1.5 | AC48: =[1]Weather!J168 -> 281.1 | AD48: =[1]Weather!K168 -> 3.5 | AE48: =[1]Weather!L168 -> 225 | AF48: =[1]Weather!M168 -> 7.4 | AG48: =[1]Weather!N168 -> 171.9 | AH48: =[1]Weather!O168 -> 14.3 | AI48: =[1]Weather!P168 -> 124.6 | AJ48: =[1]Weather!Q168 -> 27 | AK48: =[1]Weather!R168 -> 82.9 | AL48: =[1]Weather!S168 -> 45.3 | AM48: =[1]Economic!C48 -> 677384 | AN48: =[1]Economic!D48 -> 6843.8 | AO48: =[1]Economic!E48 -> 6853.9 | AP48: =[1]Economic!F48 -> 102.4 | AQ48: =[1]Economic!G48 -> 102.6 | AR48: =AR36 -> 30 | AS48: 21 | AT48: =1+AT47 -> 47 | AU48: =AU36 -> 0 | AV48: =AV36 -> 0 | AW48: =AW36 -> 0 | AX48: =AX36 -> 0 | AY48: =AY36 -> 0 | AZ48: =AZ36 -> 0 | BA48: =BA36 -> 0 | BB48: =BB36 -> 0 | BC48: =BC36 -> 0 | BD48: =BD36 -> 0 | BE48: =BE36 -> 1 | BF48: =BF36 -> 0 | BG48: =BG36 -> 0 | BH48: =BH36 -> 1 | BI48: =BG48+BH48 -> 1 | BJ48: 0 | BK48: 0 | BL48: =BK48 -> 0 | BM48: =BM47 -> 0 | BN48: =$BJ48*W48 -> 0 | BO48: =$BJ48*X48 -> 0 | BP48: =$BJ48*Y48 -> 0 | BQ48: =$BJ48*Z48 -> 0 | BR48: =$BJ48*AA48 -> 0 | BS48: =$BJ48*AB48 -> 0 | BT48: =$BJ48*AC48 -> 0 | BU48: =$BJ48*AD48 -> 0 | BV48: =$BJ48*AE48 -> 0 | BW48: =$BJ48*AF48 -> 0 | BX48: =$BJ48*AG48 -> 0 | BY48: =$BJ48*AH48 -> 0 | BZ48: =$BJ48*AI48 -> 0 | CA48: =$BJ48*AJ48 -> 0 | CB48: =$BJ48*AK48 -> 0 | CC48: =$BJ48*AL48 -> 0 | CD48: =F48/Q48 -> 622.7571152 | CE48: =I48/R48 -> 2129.011579 | CF48: =L48/S48 -> 81997.89521
A49: ='[1]Monthly Data'!A49 -> 2015-12-01 | B49: ='[1]Monthly Data'!B49 -> 2015 | C49: =MONTH(A49) -> 12 | D49: ='[1]Monthly Data'!D49 -> 11013126.29 | E49: ='[1]Monthly Data'!E49 -> 102708.2464 | F49: ='[1]Monthly Data'!F49 -> 11115834.53 | G49: ='[1]Monthly Data'!G49 -> 3821023.392 | H49: ='[1]Monthly Data'!H49 -> 238440.1466 | I49: ='[1]Monthly Data'!I49 -> 4059463.539 | J49: ='[1]Monthly Data'!J49 -> 10183472.1 | K49: ='[1]Monthly Data'!K49 -> 201348.0619 | L49: ='[1]Monthly Data'!L49 -> 10384820.16 | M49: ='[1]Monthly Data'!M49 -> 239047.4129 | N49: ='[1]Monthly Data'!N49 -> 32124.00119 | O49: ='[1]Monthly Data'!O49 -> 25555.9 | P49: ='[1]Monthly Data'!P49 -> 511.55 | Q49: ='[1]Monthly Data'!Q49 -> 14673 | R49: ='[1]Monthly Data'!R49 -> 1727 | S49: ='[1]Monthly Data'!S49 -> 126 | T49: ='[1]Monthly Data'!T49 -> 3018 | U49: ='[1]Monthly Data'!U49 -> 30 | V49: =[1]Weather!C169 -> 3.916665659 | W49: =[1]Weather!D169 -> 560.6 | X49: =[1]Weather!E169 -> 0 | Y49: =[1]Weather!F169 -> 498.6 | Z49: =[1]Weather!G169 -> 0 | AA49: =[1]Weather!H169 -> 436.6 | AB49: =[1]Weather!I169 -> 0 | AC49: =[1]Weather!J169 -> 374.6 | AD49: =[1]Weather!K169 -> 0 | AE49: =[1]Weather!L169 -> 312.6 | AF49: =[1]Weather!M169 -> 0 | AG49: =[1]Weather!N169 -> 250.6 | AH49: =[1]Weather!O169 -> 0 | AI49: =[1]Weather!P169 -> 190.4 | AJ49: =[1]Weather!Q169 -> 1.8 | AK49: =[1]Weather!R169 -> 133.7 | AL49: =[1]Weather!S169 -> 7.1 | AM49: =[1]Economic!C49 -> 677384 | AN49: =[1]Economic!D49 -> 6858.1 | AO49: =[1]Economic!E49 -> 6866.6 | AP49: =[1]Economic!F49 -> 103.1 | AQ49: =[1]Economic!G49 -> 103.1 | AR49: =AR37 -> 31 | AS49: 20 | AT49: =1+AT48 -> 48 | AU49: =AU37 -> 0 | AV49: =AV37 -> 0 | AW49: =AW37 -> 0 | AX49: =AX37 -> 0 | AY49: =AY37 -> 0 | AZ49: =AZ37 -> 0 | BA49: =BA37 -> 0 | BB49: =BB37 -> 0 | BC49: =BC37 -> 0 | BD49: =BD37 -> 0 | BE49: =BE37 -> 0 | BF49: =BF37 -> 1 | BG49: =BG37 -> 0 | BH49: =BH37 -> 0 | BI49: =BG49+BH49 -> 0 | BJ49: 0 | BK49: 0 | BL49: =BK49 -> 0 | BM49: =BM48 -> 0 | BN49: =$BJ49*W49 -> 0 | BO49: =$BJ49*X49 -> 0 | BP49: =$BJ49*Y49 -> 0 | BQ49: =$BJ49*Z49 -> 0 | BR49: =$BJ49*AA49 -> 0 | BS49: =$BJ49*AB49 -> 0 | BT49: =$BJ49*AC49 -> 0 | BU49: =$BJ49*AD49 -> 0 | BV49: =$BJ49*AE49 -> 0 | BW49: =$BJ49*AF49 -> 0 | BX49: =$BJ49*AG49 -> 0 | BY49: =$BJ49*AH49 -> 0 | BZ49: =$BJ49*AI49 -> 0 | CA49: =$BJ49*AJ49 -> 0 | CB49: =$BJ49*AK49 -> 0 | CC49: =$BJ49*AL49 -> 0 | CD49: =F49/Q49 -> 757.5706763 | CE49: =I49/R49 -> 2350.586878 | CF49: =L49/S49 -> 82419.20763
A50: ='[1]Monthly Data'!A50 -> 2016-01-01 | B50: ='[1]Monthly Data'!B50 -> 2016 | C50: =MONTH(A50) -> 1 | D50: ='[1]Monthly Data'!D50 -> 12387821.57 | E50: ='[1]Monthly Data'!E50 -> 198370.2915 | F50: ='[1]Monthly Data'!F50 -> 12586191.86 | G50: ='[1]Monthly Data'!G50 -> 4269798.735 | H50: ='[1]Monthly Data'!H50 -> 246828.5865 | I50: ='[1]Monthly Data'!I50 -> 4516627.322 | J50: ='[1]Monthly Data'!J50 -> 11266540.09 | K50: ='[1]Monthly Data'!K50 -> 255809.823 | L50: ='[1]Monthly Data'!L50 -> 11522349.91 | M50: ='[1]Monthly Data'!M50 -> 232228.2449 | N50: ='[1]Monthly Data'!N50 -> 34010.77224 | O50: ='[1]Monthly Data'!O50 -> 25271.99 | P50: ='[1]Monthly Data'!P50 -> 511.55 | Q50: ='[1]Monthly Data'!Q50 -> 14724 | R50: ='[1]Monthly Data'!R50 -> 1723 | S50: ='[1]Monthly Data'!S50 -> 126 | T50: ='[1]Monthly Data'!T50 -> 3018 | U50: ='[1]Monthly Data'!U50 -> 30 | V50: =[1]Weather!C170 -> -4.010220094 | W50: =[1]Weather!D170 -> 806.3 | X50: =[1]Weather!E170 -> 0 | Y50: =[1]Weather!F170 -> 744.3 | Z50: =[1]Weather!G170 -> 0 | AA50: =[1]Weather!H170 -> 682.3 | AB50: =[1]Weather!I170 -> 0 | AC50: =[1]Weather!J170 -> 620.3 | AD50: =[1]Weather!K170 -> 0 | AE50: =[1]Weather!L170 -> 558.3 | AF50: =[1]Weather!M170 -> 0 | AG50: =[1]Weather!N170 -> 496.3 | AH50: =[1]Weather!O170 -> 0 | AI50: =[1]Weather!P170 -> 434.3 | AJ50: =[1]Weather!Q170 -> 0 | AK50: =[1]Weather!R170 -> 372.3 | AL50: =[1]Weather!S170 -> 0 | AM50: =[1]Economic!C50 -> 692620.8 | AN50: =[1]Economic!D50 -> 6871.7 | AO50: =[1]Economic!E50 -> 6837.4 | AP50: =[1]Economic!F50 -> 105.1 | AQ50: =[1]Economic!G50 -> 105.5 | AR50: =AR2 -> 31 | AS50: 22 | AT50: =1+AT49 -> 49 | AU50: =AU38 -> 1 | AV50: =AV38 -> 0 | AW50: =AW38 -> 0 | AX50: =AX38 -> 0 | AY50: =AY38 -> 0 | AZ50: =AZ38 -> 0 | BA50: =BA38 -> 0 | BB50: =BB38 -> 0 | BC50: =BC38 -> 0 | BD50: =BD38 -> 0 | BE50: =BE38 -> 0 | BF50: =BF38 -> 0 | BG50: =BG38 -> 0 | BH50: =BH38 -> 0 | BI50: =BG50+BH50 -> 0 | BJ50: 0 | BK50: 0 | BL50: =BK50 -> 0 | BM50: =BM49 -> 0 | BN50: =$BJ50*W50 -> 0 | BO50: =$BJ50*X50 -> 0 | BP50: =$BJ50*Y50 -> 0 | BQ50: =$BJ50*Z50 -> 0 | BR50: =$BJ50*AA50 -> 0 | BS50: =$BJ50*AB50 -> 0 | BT50: =$BJ50*AC50 -> 0 | BU50: =$BJ50*AD50 -> 0 | BV50: =$BJ50*AE50 -> 0 | BW50: =$BJ50*AF50 -> 0 | BX50: =$BJ50*AG50 -> 0 | BY50: =$BJ50*AH50 -> 0 | BZ50: =$BJ50*AI50 -> 0 | CA50: =$BJ50*AJ50 -> 0 | CB50: =$BJ50*AK50 -> 0 | CC50: =$BJ50*AL50 -> 0 | CD50: =F50/Q50 -> 854.8079231 | CE50: =I50/R50 -> 2621.373953 | CF50: =L50/S50 -> 91447.22149
A51: ='[1]Monthly Data'!A51 -> 2016-02-01 | B51: ='[1]Monthly Data'!B51 -> 2016 | C51: =MONTH(A51) -> 2 | D51: ='[1]Monthly Data'!D51 -> 11677569.98 | E51: ='[1]Monthly Data'!E51 -> 198370.2915 | F51: ='[1]Monthly Data'!F51 -> 11875940.27 | G51: ='[1]Monthly Data'!G51 -> 4152083.773 | H51: ='[1]Monthly Data'!H51 -> 246828.5865 | I51: ='[1]Monthly Data'!I51 -> 4398912.36 | J51: ='[1]Monthly Data'!J51 -> 11106545.54 | K51: ='[1]Monthly Data'!K51 -> 255809.823 | L51: ='[1]Monthly Data'!L51 -> 11362355.36 | M51: ='[1]Monthly Data'!M51 -> 199737.6334 | N51: ='[1]Monthly Data'!N51 -> 31065.54345 | O51: ='[1]Monthly Data'!O51 -> 24882.78 | P51: ='[1]Monthly Data'!P51 -> 511.55 | Q51: ='[1]Monthly Data'!Q51 -> 14666 | R51: ='[1]Monthly Data'!R51 -> 1724 | S51: ='[1]Monthly Data'!S51 -> 144 | T51: ='[1]Monthly Data'!T51 -> 3069 | U51: ='[1]Monthly Data'!U51 -> 30 | V51: =[1]Weather!C171 -> -3.5 | W51: =[1]Weather!D171 -> 739.5 | X51: =[1]Weather!E171 -> 0 | Y51: =[1]Weather!F171 -> 681.5 | Z51: =[1]Weather!G171 -> 0 | AA51: =[1]Weather!H171 -> 623.5 | AB51: =[1]Weather!I171 -> 0 | AC51: =[1]Weather!J171 -> 565.5 | AD51: =[1]Weather!K171 -> 0 | AE51: =[1]Weather!L171 -> 507.5 | AF51: =[1]Weather!M171 -> 0 | AG51: =[1]Weather!N171 -> 449.5 | AH51: =[1]Weather!O171 -> 0 | AI51: =[1]Weather!P171 -> 391.5 | AJ51: =[1]Weather!Q171 -> 0 | AK51: =[1]Weather!R171 -> 333.5 | AL51: =[1]Weather!S171 -> 0 | AM51: =[1]Economic!C51 -> 692620.8 | AN51: =[1]Economic!D51 -> 6885.9 | AO51: =[1]Economic!E51 -> 6815.5 | AP51: =[1]Economic!F51 -> 106.4 | AQ51: =[1]Economic!G51 -> 105.7 | AR51: =AR3 -> 29 | AS51: 19 | AT51: =1+AT50 -> 50 | AU51: =AU39 -> 0 | AV51: =AV39 -> 1 | AW51: =AW39 -> 0 | AX51: =AX39 -> 0 | AY51: =AY39 -> 0 | AZ51: =AZ39 -> 0 | BA51: =BA39 -> 0 | BB51: =BB39 -> 0 | BC51: =BC39 -> 0 | BD51: =BD39 -> 0 | BE51: =BE39 -> 0 | BF51: =BF39 -> 0 | BG51: =BG39 -> 0 | BH51: =BH39 -> 0 | BI51: =BG51+BH51 -> 0 | BJ51: 0 | BK51: 0 | BL51: =BK51 -> 0 | BM51: =BM50 -> 0 | BN51: =$BJ51*W51 -> 0 | BO51: =$BJ51*X51 -> 0 | BP51: =$BJ51*Y51 -> 0 | BQ51: =$BJ51*Z51 -> 0 | BR51: =$BJ51*AA51 -> 0 | BS51: =$BJ51*AB51 -> 0 | BT51: =$BJ51*AC51 -> 0 | BU51: =$BJ51*AD51 -> 0 | BV51: =$BJ51*AE51 -> 0 | BW51: =$BJ51*AF51 -> 0 | BX51: =$BJ51*AG51 -> 0 | BY51: =$BJ51*AH51 -> 0 | BZ51: =$BJ51*AI51 -> 0 | CA51: =$BJ51*AJ51 -> 0 | CB51: =$BJ51*AK51 -> 0 | CC51: =$BJ51*AL51 -> 0 | CD51: =F51/Q51 -> 809.7600075 | CE51: =I51/R51 -> 2551.573295 | CF51: =L51/S51 -> 78905.24558
A52: ='[1]Monthly Data'!A52 -> 2016-03-01 | B52: ='[1]Monthly Data'!B52 -> 2016 | C52: =MONTH(A52) -> 3 | D52: ='[1]Monthly Data'!D52 -> 11211169.24 | E52: ='[1]Monthly Data'!E52 -> 198370.2915 | F52: ='[1]Monthly Data'!F52 -> 11409539.53 | G52: ='[1]Monthly Data'!G52 -> 4135689.96 | H52: ='[1]Monthly Data'!H52 -> 246828.5865 | I52: ='[1]Monthly Data'!I52 -> 4382518.546 | J52: ='[1]Monthly Data'!J52 -> 11187739.52 | K52: ='[1]Monthly Data'!K52 -> 255809.823 | L52: ='[1]Monthly Data'!L52 -> 11443549.35 | M52: ='[1]Monthly Data'!M52 -> 176768.3977 | N52: ='[1]Monthly Data'!N52 -> 34160.89319 | O52: ='[1]Monthly Data'!O52 -> 27735.63 | P52: ='[1]Monthly Data'!P52 -> 511.55 | Q52: ='[1]Monthly Data'!Q52 -> 14697.5 | R52: ='[1]Monthly Data'!R52 -> 1731 | S52: ='[1]Monthly Data'!S52 -> 136 | T52: ='[1]Monthly Data'!T52 -> 3069 | U52: ='[1]Monthly Data'!U52 -> 30 | V52: =[1]Weather!C172 -> 1.44247211 | W52: =[1]Weather!D172 -> 637.3 | X52: =[1]Weather!E172 -> 0 | Y52: =[1]Weather!F172 -> 575.3 | Z52: =[1]Weather!G172 -> 0 | AA52: =[1]Weather!H172 -> 513.3 | AB52: =[1]Weather!I172 -> 0 | AC52: =[1]Weather!J172 -> 451.3 | AD52: =[1]Weather!K172 -> 0 | AE52: =[1]Weather!L172 -> 389.3 | AF52: =[1]Weather!M172 -> 0 | AG52: =[1]Weather!N172 -> 327.8 | AH52: =[1]Weather!O172 -> 0.5 | AI52: =[1]Weather!P172 -> 268.7 | AJ52: =[1]Weather!Q172 -> 3.4 | AK52: =[1]Weather!R172 -> 210.7 | AL52: =[1]Weather!S172 -> 7.4 | AM52: =[1]Economic!C52 -> 692620.8 | AN52: =[1]Economic!D52 -> 6897.7 | AO52: =[1]Economic!E52 -> 6793.5 | AP52: =[1]Economic!F52 -> 106.8 | AQ52: =[1]Economic!G52 -> 105.8 | AR52: =AR4 -> 31 | AS52: 21 | AT52: =1+AT51 -> 51 | AU52: =AU40 -> 0 | AV52: =AV40 -> 0 | AW52: =AW40 -> 1 | AX52: =AX40 -> 0 | AY52: =AY40 -> 0 | AZ52: =AZ40 -> 0 | BA52: =BA40 -> 0 | BB52: =BB40 -> 0 | BC52: =BC40 -> 0 | BD52: =BD40 -> 0 | BE52: =BE40 -> 0 | BF52: =BF40 -> 0 | BG52: =BG40 -> 1 | BH52: =BH40 -> 0 | BI52: =BG52+BH52 -> 1 | BJ52: 0 | BK52: 0 | BL52: =BK52 -> 0 | BM52: =BM51 -> 0 | BN52: =$BJ52*W52 -> 0 | BO52: =$BJ52*X52 -> 0 | BP52: =$BJ52*Y52 -> 0 | BQ52: =$BJ52*Z52 -> 0 | BR52: =$BJ52*AA52 -> 0 | BS52: =$BJ52*AB52 -> 0 | BT52: =$BJ52*AC52 -> 0 | BU52: =$BJ52*AD52 -> 0 | BV52: =$BJ52*AE52 -> 0 | BW52: =$BJ52*AF52 -> 0 | BX52: =$BJ52*AG52 -> 0 | BY52: =$BJ52*AH52 -> 0 | BZ52: =$BJ52*AI52 -> 0 | CA52: =$BJ52*AJ52 -> 0 | CB52: =$BJ52*AK52 -> 0 | CC52: =$BJ52*AL52 -> 0 | CD52: =F52/Q52 -> 776.2911738 | CE52: =I52/R52 -> 2531.784255 | CF52: =L52/S52 -> 84143.74521
A53: ='[1]Monthly Data'!A53 -> 2016-04-01 | B53: ='[1]Monthly Data'!B53 -> 2016 | C53: =MONTH(A53) -> 4 | D53: ='[1]Monthly Data'!D53 -> 9324741.163 | E53: ='[1]Monthly Data'!E53 -> 198370.2915 | F53: ='[1]Monthly Data'!F53 -> 9523111.455 | G53: ='[1]Monthly Data'!G53 -> 3689399.714 | H53: ='[1]Monthly Data'!H53 -> 246828.5865 | I53: ='[1]Monthly Data'!I53 -> 3936228.301 | J53: ='[1]Monthly Data'!J53 -> 10070952.85 | K53: ='[1]Monthly Data'!K53 -> 255809.823 | L53: ='[1]Monthly Data'!L53 -> 10326762.68 | M53: ='[1]Monthly Data'!M53 -> 148609.8936 | N53: ='[1]Monthly Data'!N53 -> 34364.84922 | O53: ='[1]Monthly Data'!O53 -> 26003.79 | P53: ='[1]Monthly Data'!P53 -> 501.99 | Q53: ='[1]Monthly Data'!Q53 -> 14697.5 | R53: ='[1]Monthly Data'!R53 -> 1731 | S53: ='[1]Monthly Data'!S53 -> 130 | T53: ='[1]Monthly Data'!T53 -> 3069 | U53: ='[1]Monthly Data'!U53 -> 30 | V53: =[1]Weather!C173 -> 3.341663542 | W53: =[1]Weather!D173 -> 559.8 | X53: =[1]Weather!E173 -> 0 | Y53: =[1]Weather!F173 -> 499.8 | Z53: =[1]Weather!G173 -> 0 | AA53: =[1]Weather!H173 -> 439.8 | AB53: =[1]Weather!I173 -> 0 | AC53: =[1]Weather!J173 -> 379.8 | AD53: =[1]Weather!K173 -> 0 | AE53: =[1]Weather!L173 -> 319.8 | AF53: =[1]Weather!M173 -> 0 | AG53: =[1]Weather!N173 -> 261.7 | AH53: =[1]Weather!O173 -> 1.9 | AI53: =[1]Weather!P173 -> 206.3 | AJ53: =[1]Weather!Q173 -> 6.5 | AK53: =[1]Weather!R173 -> 155.2 | AL53: =[1]Weather!S173 -> 15.4 | AM53: =[1]Economic!C53 -> 692620.8 | AN53: =[1]Economic!D53 -> 6905.4 | AO53: =[1]Economic!E53 -> 6814.3 | AP53: =[1]Economic!F53 -> 105.5 | AQ53: =[1]Economic!G53 -> 104 | AR53: =AR5 -> 30 | AS53: 20 | AT53: =1+AT52 -> 52 | AU53: =AU41 -> 0 | AV53: =AV41 -> 0 | AW53: =AW41 -> 0 | AX53: =AX41 -> 1 | AY53: =AY41 -> 0 | AZ53: =AZ41 -> 0 | BA53: =BA41 -> 0 | BB53: =BB41 -> 0 | BC53: =BC41 -> 0 | BD53: =BD41 -> 0 | BE53: =BE41 -> 0 | BF53: =BF41 -> 0 | BG53: =BG41 -> 1 | BH53: =BH41 -> 0 | BI53: =BG53+BH53 -> 1 | BJ53: 0 | BK53: 0 | BL53: =BK53 -> 0 | BM53: =BM52 -> 0 | BN53: =$BJ53*W53 -> 0 | BO53: =$BJ53*X53 -> 0 | BP53: =$BJ53*Y53 -> 0 | BQ53: =$BJ53*Z53 -> 0 | BR53: =$BJ53*AA53 -> 0 | BS53: =$BJ53*AB53 -> 0 | BT53: =$BJ53*AC53 -> 0 | BU53: =$BJ53*AD53 -> 0 | BV53: =$BJ53*AE53 -> 0 | BW53: =$BJ53*AF53 -> 0 | BX53: =$BJ53*AG53 -> 0 | BY53: =$BJ53*AH53 -> 0 | BZ53: =$BJ53*AI53 -> 0 | CA53: =$BJ53*AJ53 -> 0 | CB53: =$BJ53*AK53 -> 0 | CC53: =$BJ53*AL53 -> 0 | CD53: =F53/Q53 -> 647.9409053 | CE53: =I53/R53 -> 2273.962045 | CF53: =L53/S53 -> 79436.63598
A54: ='[1]Monthly Data'!A54 -> 2016-05-01 | B54: ='[1]Monthly Data'!B54 -> 2016 | C54: =MONTH(A54) -> 5 | D54: ='[1]Monthly Data'!D54 -> 8202425.033 | E54: ='[1]Monthly Data'!E54 -> 198370.2915 | F54: ='[1]Monthly Data'!F54 -> 8400795.324 | G54: ='[1]Monthly Data'!G54 -> 3635237.413 | H54: ='[1]Monthly Data'!H54 -> 246828.5865 | I54: ='[1]Monthly Data'!I54 -> 3882066 | J54: ='[1]Monthly Data'!J54 -> 10734126.73 | K54: ='[1]Monthly Data'!K54 -> 255809.823 | L54: ='[1]Monthly Data'!L54 -> 10989936.56 | M54: ='[1]Monthly Data'!M54 -> 134063.8599 | N54: ='[1]Monthly Data'!N54 -> 32305.71147 | O54: ='[1]Monthly Data'!O54 -> 25716.51 | P54: ='[1]Monthly Data'!P54 -> 473.33 | Q54: ='[1]Monthly Data'!Q54 -> 14833 | R54: ='[1]Monthly Data'!R54 -> 1735 | S54: ='[1]Monthly Data'!S54 -> 129 | T54: ='[1]Monthly Data'!T54 -> 3069 | U54: ='[1]Monthly Data'!U54 -> 30 | V54: =[1]Weather!C174 -> 11.9483871 | W54: =[1]Weather!D174 -> 318 | X54: =[1]Weather!E174 -> 6.4 | Y54: =[1]Weather!F174 -> 260.7 | Z54: =[1]Weather!G174 -> 11.1 | AA54: =[1]Weather!H174 -> 206 | AB54: =[1]Weather!I174 -> 18.4 | AC54: =[1]Weather!J174 -> 156.2 | AD54: =[1]Weather!K174 -> 30.6 | AE54: =[1]Weather!L174 -> 108.8 | AF54: =[1]Weather!M174 -> 45.2 | AG54: =[1]Weather!N174 -> 68.8 | AH54: =[1]Weather!O174 -> 67.2 | AI54: =[1]Weather!P174 -> 41.7 | AJ54: =[1]Weather!Q174 -> 102.1 | AK54: =[1]Weather!R174 -> 18.5 | AL54: =[1]Weather!S174 -> 140.9 | AM54: =[1]Economic!C54 -> 692620.8 | AN54: =[1]Economic!D54 -> 6917.8 | AO54: =[1]Economic!E54 -> 6884.3 | AP54: =[1]Economic!F54 -> 103.6 | AQ54: =[1]Economic!G54 -> 103.5 | AR54: =AR6 -> 31 | AS54: 21 | AT54: =1+AT53 -> 53 | AU54: =AU42 -> 0 | AV54: =AV42 -> 0 | AW54: =AW42 -> 0 | AX54: =AX42 -> 0 | AY54: =AY42 -> 1 | AZ54: =AZ42 -> 0 | BA54: =BA42 -> 0 | BB54: =BB42 -> 0 | BC54: =BC42 -> 0 | BD54: =BD42 -> 0 | BE54: =BE42 -> 0 | BF54: =BF42 -> 0 | BG54: =BG42 -> 1 | BH54: =BH42 -> 0 | BI54: =BG54+BH54 -> 1 | BJ54: 0 | BK54: 0 | BL54: =BK54 -> 0 | BM54: =BM53 -> 0 | BN54: =$BJ54*W54 -> 0 | BO54: =$BJ54*X54 -> 0 | BP54: =$BJ54*Y54 -> 0 | BQ54: =$BJ54*Z54 -> 0 | BR54: =$BJ54*AA54 -> 0 | BS54: =$BJ54*AB54 -> 0 | BT54: =$BJ54*AC54 -> 0 | BU54: =$BJ54*AD54 -> 0 | BV54: =$BJ54*AE54 -> 0 | BW54: =$BJ54*AF54 -> 0 | BX54: =$BJ54*AG54 -> 0 | BY54: =$BJ54*AH54 -> 0 | BZ54: =$BJ54*AI54 -> 0 | CA54: =$BJ54*AJ54 -> 0 | CB54: =$BJ54*AK54 -> 0 | CC54: =$BJ54*AL54 -> 0 | CD54: =F54/Q54 -> 566.3584794 | CE54: =I54/R54 -> 2237.502017 | CF54: =L54/S54 -> 85193.30664
A55: ='[1]Monthly Data'!A55 -> 2016-06-01 | B55: ='[1]Monthly Data'!B55 -> 2016 | C55: =MONTH(A55) -> 6 | D55: ='[1]Monthly Data'!D55 -> 8210837.071 | E55: ='[1]Monthly Data'!E55 -> 198370.2915 | F55: ='[1]Monthly Data'!F55 -> 8409207.362 | G55: ='[1]Monthly Data'!G55 -> 3724923.813 | H55: ='[1]Monthly Data'!H55 -> 246828.5865 | I55: ='[1]Monthly Data'!I55 -> 3971752.4 | J55: ='[1]Monthly Data'!J55 -> 10682680.94 | K55: ='[1]Monthly Data'!K55 -> 255809.823 | L55: ='[1]Monthly Data'!L55 -> 10938490.76 | M55: ='[1]Monthly Data'!M55 -> 119797.869 | N55: ='[1]Monthly Data'!N55 -> 33307.50568 | O55: ='[1]Monthly Data'!O55 -> 26115.98 | P55: ='[1]Monthly Data'!P55 -> 473.33 | Q55: ='[1]Monthly Data'!Q55 -> 14776 | R55: ='[1]Monthly Data'!R55 -> 1738 | S55: ='[1]Monthly Data'!S55 -> 124 | T55: ='[1]Monthly Data'!T55 -> 3069 | U55: ='[1]Monthly Data'!U55 -> 30 | V55: =[1]Weather!C175 -> 17.30055451 | W55: =[1]Weather!D175 -> 149.3 | X55: =[1]Weather!E175 -> 8.3 | Y55: =[1]Weather!F175 -> 101.2 | Z55: =[1]Weather!G175 -> 20.2 | AA55: =[1]Weather!H175 -> 58.3 | AB55: =[1]Weather!I175 -> 37.3 | AC55: =[1]Weather!J175 -> 28.5 | AD55: =[1]Weather!K175 -> 67.5 | AE55: =[1]Weather!L175 -> 10.2 | AF55: =[1]Weather!M175 -> 109.2 | AG55: =[1]Weather!N175 -> 2 | AH55: =[1]Weather!O175 -> 161 | AI55: =[1]Weather!P175 -> 0 | AJ55: =[1]Weather!Q175 -> 219 | AK55: =[1]Weather!R175 -> 0 | AL55: =[1]Weather!S175 -> 279 | AM55: =[1]Economic!C55 -> 692620.8 | AN55: =[1]Economic!D55 -> 6923.9 | AO55: =[1]Economic!E55 -> 6966.5 | AP55: =[1]Economic!F55 -> 101.2 | AQ55: =[1]Economic!G55 -> 102.1 | AR55: =AR7 -> 30 | AS55: 21 | AT55: =1+AT54 -> 54 | AU55: =AU43 -> 0 | AV55: =AV43 -> 0 | AW55: =AW43 -> 0 | AX55: =AX43 -> 0 | AY55: =AY43 -> 0 | AZ55: =AZ43 -> 1 | BA55: =BA43 -> 0 | BB55: =BB43 -> 0 | BC55: =BC43 -> 0 | BD55: =BD43 -> 0 | BE55: =BE43 -> 0 | BF55: =BF43 -> 0 | BG55: =BG43 -> 0 | BH55: =BH43 -> 0 | BI55: =BG55+BH55 -> 0 | BJ55: 0 | BK55: 0 | BL55: =BK55 -> 0 | BM55: =BM54 -> 0 | BN55: =$BJ55*W55 -> 0 | BO55: =$BJ55*X55 -> 0 | BP55: =$BJ55*Y55 -> 0 | BQ55: =$BJ55*Z55 -> 0 | BR55: =$BJ55*AA55 -> 0 | BS55: =$BJ55*AB55 -> 0 | BT55: =$BJ55*AC55 -> 0 | BU55: =$BJ55*AD55 -> 0 | BV55: =$BJ55*AE55 -> 0 | BW55: =$BJ55*AF55 -> 0 | BX55: =$BJ55*AG55 -> 0 | BY55: =$BJ55*AH55 -> 0 | BZ55: =$BJ55*AI55 -> 0 | CA55: =$BJ55*AJ55 -> 0 | CB55: =$BJ55*AK55 -> 0 | CC55: =$BJ55*AL55 -> 0 | CD55: =F55/Q55 -> 569.1125719 | CE55: =I55/R55 -> 2285.243038 | CF55: =L55/S55 -> 88213.63519
A56: ='[1]Monthly Data'!A56 -> 2016-07-01 | B56: ='[1]Monthly Data'!B56 -> 2016 | C56: =MONTH(A56) -> 7 | D56: ='[1]Monthly Data'!D56 -> 10177405.28 | E56: ='[1]Monthly Data'!E56 -> 198370.2915 | F56: ='[1]Monthly Data'!F56 -> 10375775.57 | G56: ='[1]Monthly Data'!G56 -> 4130566.742 | H56: ='[1]Monthly Data'!H56 -> 246828.5865 | I56: ='[1]Monthly Data'!I56 -> 4377395.328 | J56: ='[1]Monthly Data'!J56 -> 10785755.64 | K56: ='[1]Monthly Data'!K56 -> 255809.823 | L56: ='[1]Monthly Data'!L56 -> 11041565.47 | M56: ='[1]Monthly Data'!M56 -> 128536.5739 | N56: ='[1]Monthly Data'!N56 -> 34508.64538 | O56: ='[1]Monthly Data'!O56 -> 26453.4 | P56: ='[1]Monthly Data'!P56 -> 473.33 | Q56: ='[1]Monthly Data'!Q56 -> 14784 | R56: ='[1]Monthly Data'!R56 -> 1753 | S56: ='[1]Monthly Data'!S56 -> 126 | T56: ='[1]Monthly Data'!T56 -> 3069 | U56: ='[1]Monthly Data'!U56 -> 30 | V56: =[1]Weather!C176 -> 21.88440759 | W56: =[1]Weather!D176 -> 39.3 | X56: =[1]Weather!E176 -> 35.7 | Y56: =[1]Weather!F176 -> 14.5 | Z56: =[1]Weather!G176 -> 72.9 | AA56: =[1]Weather!H176 -> 2.9 | AB56: =[1]Weather!I176 -> 123.3 | AC56: =[1]Weather!J176 -> 0 | AD56: =[1]Weather!K176 -> 182.4 | AE56: =[1]Weather!L176 -> 0 | AF56: =[1]Weather!M176 -> 244.4 | AG56: =[1]Weather!N176 -> 0 | AH56: =[1]Weather!O176 -> 306.4 | AI56: =[1]Weather!P176 -> 0 | AJ56: =[1]Weather!Q176 -> 368.4 | AK56: =[1]Weather!R176 -> 0 | AL56: =[1]Weather!S176 -> 430.4 | AM56: =[1]Economic!C56 -> 692620.8 | AN56: =[1]Economic!D56 -> 6918.7 | AO56: =[1]Economic!E56 -> 7011.7 | AP56: =[1]Economic!F56 -> 99.6 | AQ56: =[1]Economic!G56 -> 100.3 | AR56: =AR8 -> 31 | AS56: 22 | AT56: =1+AT55 -> 55 | AU56: =AU44 -> 0 | AV56: =AV44 -> 0 | AW56: =AW44 -> 0 | AX56: =AX44 -> 0 | AY56: =AY44 -> 0 | AZ56: =AZ44 -> 0 | BA56: =BA44 -> 1 | BB56: =BB44 -> 0 | BC56: =BC44 -> 0 | BD56: =BD44 -> 0 | BE56: =BE44 -> 0 | BF56: =BF44 -> 0 | BG56: =BG44 -> 0 | BH56: =BH44 -> 0 | BI56: =BG56+BH56 -> 0 | BJ56: 0 | BK56: 0 | BL56: =BK56 -> 0 | BM56: =BM55 -> 0 | BN56: =$BJ56*W56 -> 0 | BO56: =$BJ56*X56 -> 0 | BP56: =$BJ56*Y56 -> 0 | BQ56: =$BJ56*Z56 -> 0 | BR56: =$BJ56*AA56 -> 0 | BS56: =$BJ56*AB56 -> 0 | BT56: =$BJ56*AC56 -> 0 | BU56: =$BJ56*AD56 -> 0 | BV56: =$BJ56*AE56 -> 0 | BW56: =$BJ56*AF56 -> 0 | BX56: =$BJ56*AG56 -> 0 | BY56: =$BJ56*AH56 -> 0 | BZ56: =$BJ56*AI56 -> 0 | CA56: =$BJ56*AJ56 -> 0 | CB56: =$BJ56*AK56 -> 0 | CC56: =$BJ56*AL56 -> 0 | CD56: =F56/Q56 -> 701.8246466 | CE56: =I56/R56 -> 2497.088037 | CF56: =L56/S56 -> 87631.47195
A57: ='[1]Monthly Data'!A57 -> 2016-08-01 | B57: ='[1]Monthly Data'!B57 -> 2016 | C57: =MONTH(A57) -> 8 | D57: ='[1]Monthly Data'!D57 -> 10526912.75 | E57: ='[1]Monthly Data'!E57 -> 198370.2915 | F57: ='[1]Monthly Data'!F57 -> 10725283.04 | G57: ='[1]Monthly Data'!G57 -> 4169701.231 | H57: ='[1]Monthly Data'!H57 -> 246828.5865 | I57: ='[1]Monthly Data'!I57 -> 4416529.817 | J57: ='[1]Monthly Data'!J57 -> 11225991.63 | K57: ='[1]Monthly Data'!K57 -> 255809.823 | L57: ='[1]Monthly Data'!L57 -> 11481801.46 | M57: ='[1]Monthly Data'!M57 -> 145310.5979 | N57: ='[1]Monthly Data'!N57 -> 31788.62635 | O57: ='[1]Monthly Data'!O57 -> 27287.14 | P57: ='[1]Monthly Data'!P57 -> 473.33 | Q57: ='[1]Monthly Data'!Q57 -> 14829 | R57: ='[1]Monthly Data'!R57 -> 1757 | S57: ='[1]Monthly Data'!S57 -> 128 | T57: ='[1]Monthly Data'!T57 -> 3069 | U57: ='[1]Monthly Data'!U57 -> 29 | V57: =[1]Weather!C177 -> 22.39193246 | W57: =[1]Weather!D177 -> 20.5 | X57: =[1]Weather!E177 -> 32.6 | Y57: =[1]Weather!F177 -> 4.4 | Z57: =[1]Weather!G177 -> 78.5 | AA57: =[1]Weather!H177 -> 0.4 | AB57: =[1]Weather!I177 -> 136.5 | AC57: =[1]Weather!J177 -> 0 | AD57: =[1]Weather!K177 -> 198.1 | AE57: =[1]Weather!L177 -> 0 | AF57: =[1]Weather!M177 -> 260.1 | AG57: =[1]Weather!N177 -> 0 | AH57: =[1]Weather!O177 -> 322.1 | AI57: =[1]Weather!P177 -> 0 | AJ57: =[1]Weather!Q177 -> 384.1 | AK57: =[1]Weather!R177 -> 0 | AL57: =[1]Weather!S177 -> 446.1 | AM57: =[1]Economic!C57 -> 692620.8 | AN57: =[1]Economic!D57 -> 6916.3 | AO57: =[1]Economic!E57 -> 7009.1 | AP57: =[1]Economic!F57 -> 98.8 | AQ57: =[1]Economic!G57 -> 99.6 | AR57: =AR9 -> 31 | AS57: 20 | AT57: =1+AT56 -> 56 | AU57: =AU45 -> 0 | AV57: =AV45 -> 0 | AW57: =AW45 -> 0 | AX57: =AX45 -> 0 | AY57: =AY45 -> 0 | AZ57: =AZ45 -> 0 | BA57: =BA45 -> 0 | BB57: =BB45 -> 1 | BC57: =BC45 -> 0 | BD57: =BD45 -> 0 | BE57: =BE45 -> 0 | BF57: =BF45 -> 0 | BG57: =BG45 -> 0 | BH57: =BH45 -> 0 | BI57: =BG57+BH57 -> 0 | BJ57: 0 | BK57: 0 | BL57: =BK57 -> 0 | BM57: =BM56 -> 0 | BN57: =$BJ57*W57 -> 0 | BO57: =$BJ57*X57 -> 0 | BP57: =$BJ57*Y57 -> 0 | BQ57: =$BJ57*Z57 -> 0 | BR57: =$BJ57*AA57 -> 0 | BS57: =$BJ57*AB57 -> 0 | BT57: =$BJ57*AC57 -> 0 | BU57: =$BJ57*AD57 -> 0 | BV57: =$BJ57*AE57 -> 0 | BW57: =$BJ57*AF57 -> 0 | BX57: =$BJ57*AG57 -> 0 | BY57: =$BJ57*AH57 -> 0 | BZ57: =$BJ57*AI57 -> 0 | CA57: =$BJ57*AJ57 -> 0 | CB57: =$BJ57*AK57 -> 0 | CC57: =$BJ57*AL57 -> 0 | CD57: =F57/Q57 -> 723.2640796 | CE57: =I57/R57 -> 2513.676618 | CF57: =L57/S57 -> 89701.57388
A58: ='[1]Monthly Data'!A58 -> 2016-09-01 | B58: ='[1]Monthly Data'!B58 -> 2016 | C58: =MONTH(A58) -> 9 | D58: ='[1]Monthly Data'!D58 -> 8416839.494 | E58: ='[1]Monthly Data'!E58 -> 198370.2915 | F58: ='[1]Monthly Data'!F58 -> 8615209.785 | G58: ='[1]Monthly Data'!G58 -> 3609723.921 | H58: ='[1]Monthly Data'!H58 -> 246828.5865 | I58: ='[1]Monthly Data'!I58 -> 3856552.507 | J58: ='[1]Monthly Data'!J58 -> 10573681.35 | K58: ='[1]Monthly Data'!K58 -> 255809.823 | L58: ='[1]Monthly Data'!L58 -> 10829491.17 | M58: ='[1]Monthly Data'!M58 -> 161569.0641 | N58: ='[1]Monthly Data'!N58 -> 33369.21737 | O58: ='[1]Monthly Data'!O58 -> 27545.47 | P58: ='[1]Monthly Data'!P58 -> 473.33 | Q58: ='[1]Monthly Data'!Q58 -> 14797 | R58: ='[1]Monthly Data'!R58 -> 1734 | S58: ='[1]Monthly Data'!S58 -> 127 | T58: ='[1]Monthly Data'!T58 -> 3069 | U58: ='[1]Monthly Data'!U58 -> 31 | V58: =[1]Weather!C178 -> 17.86666667 | W58: =[1]Weather!D178 -> 131.1 | X58: =[1]Weather!E178 -> 7.1 | Y58: =[1]Weather!F178 -> 80.6 | Z58: =[1]Weather!G178 -> 16.6 | AA58: =[1]Weather!H178 -> 45.4 | AB58: =[1]Weather!I178 -> 41.4 | AC58: =[1]Weather!J178 -> 19.5 | AD58: =[1]Weather!K178 -> 75.5 | AE58: =[1]Weather!L178 -> 4.4 | AF58: =[1]Weather!M178 -> 120.4 | AG58: =[1]Weather!N178 -> 0.2 | AH58: =[1]Weather!O178 -> 176.2 | AI58: =[1]Weather!P178 -> 0 | AJ58: =[1]Weather!Q178 -> 236 | AK58: =[1]Weather!R178 -> 0 | AL58: =[1]Weather!S178 -> 296 | AM58: =[1]Economic!C58 -> 692620.8 | AN58: =[1]Economic!D58 -> 6914.1 | AO58: =[1]Economic!E58 -> 6963.5 | AP58: =[1]Economic!F58 -> 98.3 | AQ58: =[1]Economic!G58 -> 98.7 | AR58: =AR10 -> 30 | AS58: 21 | AT58: =1+AT57 -> 57 | AU58: =AU46 -> 0 | AV58: =AV46 -> 0 | AW58: =AW46 -> 0 | AX58: =AX46 -> 0 | AY58: =AY46 -> 0 | AZ58: =AZ46 -> 0 | BA58: =BA46 -> 0 | BB58: =BB46 -> 0 | BC58: =BC46 -> 1 | BD58: =BD46 -> 0 | BE58: =BE46 -> 0 | BF58: =BF46 -> 0 | BG58: =BG46 -> 0 | BH58: =BH46 -> 1 | BI58: =BG58+BH58 -> 1 | BJ58: 0 | BK58: 0 | BL58: =BK58 -> 0 | BM58: =BM57 -> 0 | BN58: =$BJ58*W58 -> 0 | BO58: =$BJ58*X58 -> 0 | BP58: =$BJ58*Y58 -> 0 | BQ58: =$BJ58*Z58 -> 0 | BR58: =$BJ58*AA58 -> 0 | BS58: =$BJ58*AB58 -> 0 | BT58: =$BJ58*AC58 -> 0 | BU58: =$BJ58*AD58 -> 0 | BV58: =$BJ58*AE58 -> 0 | BW58: =$BJ58*AF58 -> 0 | BX58: =$BJ58*AG58 -> 0 | BY58: =$BJ58*AH58 -> 0 | BZ58: =$BJ58*AI58 -> 0 | CA58: =$BJ58*AJ58 -> 0 | CB58: =$BJ58*AK58 -> 0 | CC58: =$BJ58*AL58 -> 0 | CD58: =F58/Q58 -> 582.2267882 | CE58: =I58/R58 -> 2224.078724 | CF58: =L58/S58 -> 85271.58402
A59: ='[1]Monthly Data'!A59 -> 2016-10-01 | B59: ='[1]Monthly Data'!B59 -> 2016 | C59: =MONTH(A59) -> 10 | D59: ='[1]Monthly Data'!D59 -> 8058372.039 | E59: ='[1]Monthly Data'!E59 -> 198370.2915 | F59: ='[1]Monthly Data'!F59 -> 8256742.331 | G59: ='[1]Monthly Data'!G59 -> 3420216.315 | H59: ='[1]Monthly Data'!H59 -> 246828.5865 | I59: ='[1]Monthly Data'!I59 -> 3667044.901 | J59: ='[1]Monthly Data'!J59 -> 10860702.4 | K59: ='[1]Monthly Data'!K59 -> 255809.823 | L59: ='[1]Monthly Data'!L59 -> 11116512.22 | M59: ='[1]Monthly Data'!M59 -> 189685.4487 | N59: ='[1]Monthly Data'!N59 -> 34830.20401 | O59: ='[1]Monthly Data'!O59 -> 27124.48 | P59: ='[1]Monthly Data'!P59 -> 473.33 | Q59: ='[1]Monthly Data'!Q59 -> 14916 | R59: ='[1]Monthly Data'!R59 -> 1744 | S59: ='[1]Monthly Data'!S59 -> 128 | T59: ='[1]Monthly Data'!T59 -> 3069 | U59: ='[1]Monthly Data'!U59 -> 30 | V59: =[1]Weather!C179 -> 11.7483871 | W59: =[1]Weather!D179 -> 317.8 | X59: =[1]Weather!E179 -> 0 | Y59: =[1]Weather!F179 -> 256.2 | Z59: =[1]Weather!G179 -> 0.4 | AA59: =[1]Weather!H179 -> 198.3 | AB59: =[1]Weather!I179 -> 4.5 | AC59: =[1]Weather!J179 -> 147.6 | AD59: =[1]Weather!K179 -> 15.8 | AE59: =[1]Weather!L179 -> 104.9 | AF59: =[1]Weather!M179 -> 35.1 | AG59: =[1]Weather!N179 -> 71.1 | AH59: =[1]Weather!O179 -> 63.3 | AI59: =[1]Weather!P179 -> 43.4 | AJ59: =[1]Weather!Q179 -> 97.6 | AK59: =[1]Weather!R179 -> 22 | AL59: =[1]Weather!S179 -> 138.2 | AM59: =[1]Economic!C59 -> 692620.8 | AN59: =[1]Economic!D59 -> 6929.7 | AO59: =[1]Economic!E59 -> 6956.2 | AP59: =[1]Economic!F59 -> 97.6 | AQ59: =[1]Economic!G59 -> 98.7 | AR59: =AR11 -> 31 | AS59: 22 | AT59: =1+AT58 -> 58 | AU59: =AU47 -> 0 | AV59: =AV47 -> 0 | AW59: =AW47 -> 0 | AX59: =AX47 -> 0 | AY59: =AY47 -> 0 | AZ59: =AZ47 -> 0 | BA59: =BA47 -> 0 | BB59: =BB47 -> 0 | BC59: =BC47 -> 0 | BD59: =BD47 -> 1 | BE59: =BE47 -> 0 | BF59: =BF47 -> 0 | BG59: =BG47 -> 0 | BH59: =BH47 -> 1 | BI59: =BG59+BH59 -> 1 | BJ59: 0 | BK59: 0 | BL59: =BK59 -> 0 | BM59: =BM58 -> 0 | BN59: =$BJ59*W59 -> 0 | BO59: =$BJ59*X59 -> 0 | BP59: =$BJ59*Y59 -> 0 | BQ59: =$BJ59*Z59 -> 0 | BR59: =$BJ59*AA59 -> 0 | BS59: =$BJ59*AB59 -> 0 | BT59: =$BJ59*AC59 -> 0 | BU59: =$BJ59*AD59 -> 0 | BV59: =$BJ59*AE59 -> 0 | BW59: =$BJ59*AF59 -> 0 | BX59: =$BJ59*AG59 -> 0 | BY59: =$BJ59*AH59 -> 0 | BZ59: =$BJ59*AI59 -> 0 | CA59: =$BJ59*AJ59 -> 0 | CB59: =$BJ59*AK59 -> 0 | CC59: =$BJ59*AL59 -> 0 | CD59: =F59/Q59 -> 553.5493652 | CE59: =I59/R59 -> 2102.663361 | CF59: =L59/S59 -> 86847.75174
A60: ='[1]Monthly Data'!A60 -> 2016-11-01 | B60: ='[1]Monthly Data'!B60 -> 2016 | C60: =MONTH(A60) -> 11 | D60: ='[1]Monthly Data'!D60 -> 9135930.717 | E60: ='[1]Monthly Data'!E60 -> 198370.2915 | F60: ='[1]Monthly Data'!F60 -> 9334301.009 | G60: ='[1]Monthly Data'!G60 -> 3591797.475 | H60: ='[1]Monthly Data'!H60 -> 246828.5865 | I60: ='[1]Monthly Data'!I60 -> 3838626.062 | J60: ='[1]Monthly Data'!J60 -> 10718526.34 | K60: ='[1]Monthly Data'!K60 -> 255809.823 | L60: ='[1]Monthly Data'!L60 -> 10974336.17 | M60: ='[1]Monthly Data'!M60 -> 202943.4679 | N60: ='[1]Monthly Data'!N60 -> 33679.86054 | O60: ='[1]Monthly Data'!O60 -> 27066.76 | P60: ='[1]Monthly Data'!P60 -> 474.01 | Q60: ='[1]Monthly Data'!Q60 -> 14928 | R60: ='[1]Monthly Data'!R60 -> 1744.5 | S60: ='[1]Monthly Data'!S60 -> 128 | T60: ='[1]Monthly Data'!T60 -> 3069 | U60: ='[1]Monthly Data'!U60 -> 30 | V60: =[1]Weather!C180 -> 7.436105903 | W60: =[1]Weather!D180 -> 436.9 | X60: =[1]Weather!E180 -> 0 | Y60: =[1]Weather!F180 -> 376.9 | Z60: =[1]Weather!G180 -> 0 | AA60: =[1]Weather!H180 -> 316.9 | AB60: =[1]Weather!I180 -> 0 | AC60: =[1]Weather!J180 -> 257 | AD60: =[1]Weather!K180 -> 0.1 | AE60: =[1]Weather!L180 -> 199 | AF60: =[1]Weather!M180 -> 2.1 | AG60: =[1]Weather!N180 -> 143 | AH60: =[1]Weather!O180 -> 6.1 | AI60: =[1]Weather!P180 -> 97 | AJ60: =[1]Weather!Q180 -> 20.1 | AK60: =[1]Weather!R180 -> 63.4 | AL60: =[1]Weather!S180 -> 46.5 | AM60: =[1]Economic!C60 -> 692620.8 | AN60: =[1]Economic!D60 -> 6939.8 | AO60: =[1]Economic!E60 -> 6946.2 | AP60: =[1]Economic!F60 -> 98.7 | AQ60: =[1]Economic!G60 -> 99.7 | AR60: =AR12 -> 30 | AS60: 19 | AT60: =1+AT59 -> 59 | AU60: =AU48 -> 0 | AV60: =AV48 -> 0 | AW60: =AW48 -> 0 | AX60: =AX48 -> 0 | AY60: =AY48 -> 0 | AZ60: =AZ48 -> 0 | BA60: =BA48 -> 0 | BB60: =BB48 -> 0 | BC60: =BC48 -> 0 | BD60: =BD48 -> 0 | BE60: =BE48 -> 1 | BF60: =BF48 -> 0 | BG60: =BG48 -> 0 | BH60: =BH48 -> 1 | BI60: =BG60+BH60 -> 1 | BJ60: 0 | BK60: 0 | BL60: =BK60 -> 0 | BM60: =BM59 -> 0 | BN60: =$BJ60*W60 -> 0 | BO60: =$BJ60*X60 -> 0 | BP60: =$BJ60*Y60 -> 0 | BQ60: =$BJ60*Z60 -> 0 | BR60: =$BJ60*AA60 -> 0 | BS60: =$BJ60*AB60 -> 0 | BT60: =$BJ60*AC60 -> 0 | BU60: =$BJ60*AD60 -> 0 | BV60: =$BJ60*AE60 -> 0 | BW60: =$BJ60*AF60 -> 0 | BX60: =$BJ60*AG60 -> 0 | BY60: =$BJ60*AH60 -> 0 | BZ60: =$BJ60*AI60 -> 0 | CA60: =$BJ60*AJ60 -> 0 | CB60: =$BJ60*AK60 -> 0 | CC60: =$BJ60*AL60 -> 0 | CD60: =F60/Q60 -> 625.2881169 | CE60: =I60/R60 -> 2200.416201 | CF60: =L60/S60 -> 85737.00131
A61: ='[1]Monthly Data'!A61 -> 2016-12-01 | B61: ='[1]Monthly Data'!B61 -> 2016 | C61: =MONTH(A61) -> 12 | D61: ='[1]Monthly Data'!D61 -> 12042494.79 | E61: ='[1]Monthly Data'!E61 -> 198370.2915 | F61: ='[1]Monthly Data'!F61 -> 12240865.08 | G61: ='[1]Monthly Data'!G61 -> 4193924.055 | H61: ='[1]Monthly Data'!H61 -> 246828.5865 | I61: ='[1]Monthly Data'!I61 -> 4440752.642 | J61: ='[1]Monthly Data'!J61 -> 10221670.92 | K61: ='[1]Monthly Data'!K61 -> 255809.823 | L61: ='[1]Monthly Data'!L61 -> 10477480.75 | M61: ='[1]Monthly Data'!M61 -> 221504.9159 | N61: ='[1]Monthly Data'!N61 -> 31784.61911 | O61: ='[1]Monthly Data'!O61 -> 26087.76 | P61: ='[1]Monthly Data'!P61 -> 474.01 | Q61: ='[1]Monthly Data'!Q61 -> 14928 | R61: ='[1]Monthly Data'!R61 -> 1744.5 | S61: ='[1]Monthly Data'!S61 -> 130 | T61: ='[1]Monthly Data'!T61 -> 3069 | U61: ='[1]Monthly Data'!U61 -> 30 | V61: =[1]Weather!C181 -> -1.238709677 | W61: =[1]Weather!D181 -> 720.4 | X61: =[1]Weather!E181 -> 0 | Y61: =[1]Weather!F181 -> 658.4 | Z61: =[1]Weather!G181 -> 0 | AA61: =[1]Weather!H181 -> 596.4 | AB61: =[1]Weather!I181 -> 0 | AC61: =[1]Weather!J181 -> 534.4 | AD61: =[1]Weather!K181 -> 0 | AE61: =[1]Weather!L181 -> 472.4 | AF61: =[1]Weather!M181 -> 0 | AG61: =[1]Weather!N181 -> 410.4 | AH61: =[1]Weather!O181 -> 0 | AI61: =[1]Weather!P181 -> 348.4 | AJ61: =[1]Weather!Q181 -> 0 | AK61: =[1]Weather!R181 -> 286.4 | AL61: =[1]Weather!S181 -> 0 | AM61: =[1]Economic!C61 -> 692620.8 | AN61: =[1]Economic!D61 -> 6952.3 | AO61: =[1]Economic!E61 -> 6962 | AP61: =[1]Economic!F61 -> 99.9 | AQ61: =[1]Economic!G61 -> 100.6 | AR61: =AR13 -> 31 | AS61: 21 | AT61: =1+AT60 -> 60 | AU61: =AU49 -> 0 | AV61: =AV49 -> 0 | AW61: =AW49 -> 0 | AX61: =AX49 -> 0 | AY61: =AY49 -> 0 | AZ61: =AZ49 -> 0 | BA61: =BA49 -> 0 | BB61: =BB49 -> 0 | BC61: =BC49 -> 0 | BD61: =BD49 -> 0 | BE61: =BE49 -> 0 | BF61: =BF49 -> 1 | BG61: =BG49 -> 0 | BH61: =BH49 -> 0 | BI61: =BG61+BH61 -> 0 | BJ61: 0 | BK61: 0 | BL61: =BK61 -> 0 | BM61: =BM60 -> 0 | BN61: =$BJ61*W61 -> 0 | BO61: =$BJ61*X61 -> 0 | BP61: =$BJ61*Y61 -> 0 | BQ61: =$BJ61*Z61 -> 0 | BR61: =$BJ61*AA61 -> 0 | BS61: =$BJ61*AB61 -> 0 | BT61: =$BJ61*AC61 -> 0 | BU61: =$BJ61*AD61 -> 0 | BV61: =$BJ61*AE61 -> 0 | BW61: =$BJ61*AF61 -> 0 | BX61: =$BJ61*AG61 -> 0 | BY61: =$BJ61*AH61 -> 0 | BZ61: =$BJ61*AI61 -> 0 | CA61: =$BJ61*AJ61 -> 0 | CB61: =$BJ61*AK61 -> 0 | CC61: =$BJ61*AL61 -> 0 | CD61: =F61/Q61 -> 819.9936414 | CE61: =I61/R61 -> 2545.573311 | CF61: =L61/S61 -> 80596.00575
A62: ='[1]Monthly Data'!A62 -> 2017-01-01 | B62: ='[1]Monthly Data'!B62 -> 2017 | C62: =MONTH(A62) -> 1 | D62: ='[1]Monthly Data'!D62 -> 12402016.34 | E62: ='[1]Monthly Data'!E62 -> 424165.6436 | F62: ='[1]Monthly Data'!F62 -> 12826181.98 | G62: ='[1]Monthly Data'!G62 -> 4320040.451 | H62: ='[1]Monthly Data'!H62 -> 249658.9577 | I62: ='[1]Monthly Data'!I62 -> 4569699.409 | J62: ='[1]Monthly Data'!J62 -> 11262659.05 | K62: ='[1]Monthly Data'!K62 -> 361922.6657 | L62: ='[1]Monthly Data'!L62 -> 11624581.71 | M62: ='[1]Monthly Data'!M62 -> 133380.7012 | N62: ='[1]Monthly Data'!N62 -> 33734.31913 | O62: ='[1]Monthly Data'!O62 -> 26034.58 | P62: ='[1]Monthly Data'!P62 -> 474.01 | Q62: ='[1]Monthly Data'!Q62 -> 15020 | R62: ='[1]Monthly Data'!R62 -> 1739 | S62: ='[1]Monthly Data'!S62 -> 126 | T62: ='[1]Monthly Data'!T62 -> 3069 | U62: ='[1]Monthly Data'!U62 -> 30 | V62: =[1]Weather!C182 -> -1.806451613 | W62: =[1]Weather!D182 -> 738 | X62: =[1]Weather!E182 -> 0 | Y62: =[1]Weather!F182 -> 676 | Z62: =[1]Weather!G182 -> 0 | AA62: =[1]Weather!H182 -> 614 | AB62: =[1]Weather!I182 -> 0 | AC62: =[1]Weather!J182 -> 552 | AD62: =[1]Weather!K182 -> 0 | AE62: =[1]Weather!L182 -> 490 | AF62: =[1]Weather!M182 -> 0 | AG62: =[1]Weather!N182 -> 428 | AH62: =[1]Weather!O182 -> 0 | AI62: =[1]Weather!P182 -> 366 | AJ62: =[1]Weather!Q182 -> 0 | AK62: =[1]Weather!R182 -> 304 | AL62: =[1]Weather!S182 -> 0 | AM62: =[1]Economic!C62 -> 711695.1 | AN62: =[1]Economic!D62 -> 6971 | AO62: =[1]Economic!E62 -> 6942.1 | AP62: =[1]Economic!F62 -> 102.6 | AQ62: =[1]Economic!G62 -> 102.2 | AR62: =AR14 -> 31 | AS62: 21 | AT62: =1+AT61 -> 61 | AU62: =AU50 -> 1 | AV62: =AV50 -> 0 | AW62: =AW50 -> 0 | AX62: =AX50 -> 0 | AY62: =AY50 -> 0 | AZ62: =AZ50 -> 0 | BA62: =BA50 -> 0 | BB62: =BB50 -> 0 | BC62: =BC50 -> 0 | BD62: =BD50 -> 0 | BE62: =BE50 -> 0 | BF62: =BF50 -> 0 | BG62: =BG50 -> 0 | BH62: =BH50 -> 0 | BI62: =BG62+BH62 -> 0 | BJ62: 0 | BK62: 0 | BL62: =BK62 -> 0 | BM62: =BM61 -> 0 | BN62: =$BJ62*W62 -> 0 | BO62: =$BJ62*X62 -> 0 | BP62: =$BJ62*Y62 -> 0 | BQ62: =$BJ62*Z62 -> 0 | BR62: =$BJ62*AA62 -> 0 | BS62: =$BJ62*AB62 -> 0 | BT62: =$BJ62*AC62 -> 0 | BU62: =$BJ62*AD62 -> 0 | BV62: =$BJ62*AE62 -> 0 | BW62: =$BJ62*AF62 -> 0 | BX62: =$BJ62*AG62 -> 0 | BY62: =$BJ62*AH62 -> 0 | BZ62: =$BJ62*AI62 -> 0 | CA62: =$BJ62*AJ62 -> 0 | CB62: =$BJ62*AK62 -> 0 | CC62: =$BJ62*AL62 -> 0 | CD62: =F62/Q62 -> 853.9402117 | CE62: =I62/R62 -> 2627.774243 | CF62: =L62/S62 -> 92258.58502
A63: ='[1]Monthly Data'!A63 -> 2017-02-01 | B63: ='[1]Monthly Data'!B63 -> 2017 | C63: =MONTH(A63) -> 2 | D63: ='[1]Monthly Data'!D63 -> 10732724.53 | E63: ='[1]Monthly Data'!E63 -> 424165.6436 | F63: ='[1]Monthly Data'!F63 -> 11156890.17 | G63: ='[1]Monthly Data'!G63 -> 3893047.722 | H63: ='[1]Monthly Data'!H63 -> 249658.9577 | I63: ='[1]Monthly Data'!I63 -> 4142706.68 | J63: ='[1]Monthly Data'!J63 -> 10276279.22 | K63: ='[1]Monthly Data'!K63 -> 361922.6657 | L63: ='[1]Monthly Data'!L63 -> 10638201.89 | M63: ='[1]Monthly Data'!M63 -> 108624.9951 | N63: ='[1]Monthly Data'!N63 -> 30132.43831 | O63: ='[1]Monthly Data'!O63 -> 25927.16 | P63: ='[1]Monthly Data'!P63 -> 427.41 | Q63: ='[1]Monthly Data'!Q63 -> 14981 | R63: ='[1]Monthly Data'!R63 -> 1744 | S63: ='[1]Monthly Data'!S63 -> 126 | T63: ='[1]Monthly Data'!T63 -> 3069 | U63: ='[1]Monthly Data'!U63 -> 30 | V63: =[1]Weather!C183 -> -0.3 | W63: =[1]Weather!D183 -> 624.4 | X63: =[1]Weather!E183 -> 0 | Y63: =[1]Weather!F183 -> 568.4 | Z63: =[1]Weather!G183 -> 0 | AA63: =[1]Weather!H183 -> 512.4 | AB63: =[1]Weather!I183 -> 0 | AC63: =[1]Weather!J183 -> 456.4 | AD63: =[1]Weather!K183 -> 0 | AE63: =[1]Weather!L183 -> 400.4 | AF63: =[1]Weather!M183 -> 0 | AG63: =[1]Weather!N183 -> 344.4 | AH63: =[1]Weather!O183 -> 0 | AI63: =[1]Weather!P183 -> 288.4 | AJ63: =[1]Weather!Q183 -> 0 | AK63: =[1]Weather!R183 -> 236.2 | AL63: =[1]Weather!S183 -> 3.8 | AM63: =[1]Economic!C63 -> 711695.1 | AN63: =[1]Economic!D63 -> 6987.8 | AO63: =[1]Economic!E63 -> 6920.9 | AP63: =[1]Economic!F63 -> 105.9 | AQ63: =[1]Economic!G63 -> 104.1 | AR63: =AR15 -> 28 | AS63: 19 | AT63: =1+AT62 -> 62 | AU63: =AU51 -> 0 | AV63: =AV51 -> 1 | AW63: =AW51 -> 0 | AX63: =AX51 -> 0 | AY63: =AY51 -> 0 | AZ63: =AZ51 -> 0 | BA63: =BA51 -> 0 | BB63: =BB51 -> 0 | BC63: =BC51 -> 0 | BD63: =BD51 -> 0 | BE63: =BE51 -> 0 | BF63: =BF51 -> 0 | BG63: =BG51 -> 0 | BH63: =BH51 -> 0 | BI63: =BG63+BH63 -> 0 | BJ63: 0 | BK63: 0 | BL63: =BK63 -> 0 | BM63: =BM62 -> 0 | BN63: =$BJ63*W63 -> 0 | BO63: =$BJ63*X63 -> 0 | BP63: =$BJ63*Y63 -> 0 | BQ63: =$BJ63*Z63 -> 0 | BR63: =$BJ63*AA63 -> 0 | BS63: =$BJ63*AB63 -> 0 | BT63: =$BJ63*AC63 -> 0 | BU63: =$BJ63*AD63 -> 0 | BV63: =$BJ63*AE63 -> 0 | BW63: =$BJ63*AF63 -> 0 | BX63: =$BJ63*AG63 -> 0 | BY63: =$BJ63*AH63 -> 0 | BZ63: =$BJ63*AI63 -> 0 | CA63: =$BJ63*AJ63 -> 0 | CB63: =$BJ63*AK63 -> 0 | CC63: =$BJ63*AL63 -> 0 | CD63: =F63/Q63 -> 744.7360102 | CE63: =I63/R63 -> 2375.405206 | CF63: =L63/S63 -> 84430.1737
A64: ='[1]Monthly Data'!A64 -> 2017-03-01 | B64: ='[1]Monthly Data'!B64 -> 2017 | C64: =MONTH(A64) -> 3 | D64: ='[1]Monthly Data'!D64 -> 11246900.82 | E64: ='[1]Monthly Data'!E64 -> 424165.6436 | F64: ='[1]Monthly Data'!F64 -> 11671066.46 | G64: ='[1]Monthly Data'!G64 -> 4171063.56 | H64: ='[1]Monthly Data'!H64 -> 249658.9577 | I64: ='[1]Monthly Data'!I64 -> 4420722.518 | J64: ='[1]Monthly Data'!J64 -> 11335383.6 | K64: ='[1]Monthly Data'!K64 -> 361922.6657 | L64: ='[1]Monthly Data'!L64 -> 11697306.27 | M64: ='[1]Monthly Data'!M64 -> 107105.1136 | N64: ='[1]Monthly Data'!N64 -> 33972.70548 | O64: ='[1]Monthly Data'!O64 -> 25972.27 | P64: ='[1]Monthly Data'!P64 -> 287.61 | Q64: ='[1]Monthly Data'!Q64 -> 14985 | R64: ='[1]Monthly Data'!R64 -> 1736 | S64: ='[1]Monthly Data'!S64 -> 124 | T64: ='[1]Monthly Data'!T64 -> 3069 | U64: ='[1]Monthly Data'!U64 -> 30 | V64: =[1]Weather!C184 -> -1.64785047 | W64: =[1]Weather!D184 -> 733.1 | X64: =[1]Weather!E184 -> 0 | Y64: =[1]Weather!F184 -> 671.1 | Z64: =[1]Weather!G184 -> 0 | AA64: =[1]Weather!H184 -> 609.1 | AB64: =[1]Weather!I184 -> 0 | AC64: =[1]Weather!J184 -> 547.1 | AD64: =[1]Weather!K184 -> 0 | AE64: =[1]Weather!L184 -> 485.1 | AF64: =[1]Weather!M184 -> 0 | AG64: =[1]Weather!N184 -> 423.1 | AH64: =[1]Weather!O184 -> 0 | AI64: =[1]Weather!P184 -> 361.1 | AJ64: =[1]Weather!Q184 -> 0 | AK64: =[1]Weather!R184 -> 301.1 | AL64: =[1]Weather!S184 -> 2 | AM64: =[1]Economic!C64 -> 711695.1 | AN64: =[1]Economic!D64 -> 7000.6 | AO64: =[1]Economic!E64 -> 6896.8 | AP64: =[1]Economic!F64 -> 109.2 | AQ64: =[1]Economic!G64 -> 107 | AR64: =AR16 -> 31 | AS64: 22 | AT64: =1+AT63 -> 63 | AU64: =AU52 -> 0 | AV64: =AV52 -> 0 | AW64: =AW52 -> 1 | AX64: =AX52 -> 0 | AY64: =AY52 -> 0 | AZ64: =AZ52 -> 0 | BA64: =BA52 -> 0 | BB64: =BB52 -> 0 | BC64: =BC52 -> 0 | BD64: =BD52 -> 0 | BE64: =BE52 -> 0 | BF64: =BF52 -> 0 | BG64: =BG52 -> 1 | BH64: =BH52 -> 0 | BI64: =BG64+BH64 -> 1 | BJ64: 0 | BK64: 0 | BL64: =BK64 -> 0 | BM64: =BM63 -> 0 | BN64: =$BJ64*W64 -> 0 | BO64: =$BJ64*X64 -> 0 | BP64: =$BJ64*Y64 -> 0 | BQ64: =$BJ64*Z64 -> 0 | BR64: =$BJ64*AA64 -> 0 | BS64: =$BJ64*AB64 -> 0 | BT64: =$BJ64*AC64 -> 0 | BU64: =$BJ64*AD64 -> 0 | BV64: =$BJ64*AE64 -> 0 | BW64: =$BJ64*AF64 -> 0 | BX64: =$BJ64*AG64 -> 0 | BY64: =$BJ64*AH64 -> 0 | BZ64: =$BJ64*AI64 -> 0 | CA64: =$BJ64*AJ64 -> 0 | CB64: =$BJ64*AK64 -> 0 | CC64: =$BJ64*AL64 -> 0 | CD64: =F64/Q64 -> 778.8499474 | CE64: =I64/R64 -> 2546.499146 | CF64: =L64/S64 -> 94333.11505
A65: ='[1]Monthly Data'!A65 -> 2017-04-01 | B65: ='[1]Monthly Data'!B65 -> 2017 | C65: =MONTH(A65) -> 4 | D65: ='[1]Monthly Data'!D65 -> 8824164.516 | E65: ='[1]Monthly Data'!E65 -> 424165.6436 | F65: ='[1]Monthly Data'!F65 -> 9248330.159 | G65: ='[1]Monthly Data'!G65 -> 3496506.359 | H65: ='[1]Monthly Data'!H65 -> 249658.9577 | I65: ='[1]Monthly Data'!I65 -> 3746165.316 | J65: ='[1]Monthly Data'!J65 -> 9494360.78 | K65: ='[1]Monthly Data'!K65 -> 361922.6657 | L65: ='[1]Monthly Data'!L65 -> 9856283.446 | M65: ='[1]Monthly Data'!M65 -> 90299.89731 | N65: ='[1]Monthly Data'!N65 -> 33841.68334 | O65: ='[1]Monthly Data'!O65 -> 25778.84 | P65: ='[1]Monthly Data'!P65 -> 287.61 | Q65: ='[1]Monthly Data'!Q65 -> 14923 | R65: ='[1]Monthly Data'!R65 -> 1748 | S65: ='[1]Monthly Data'!S65 -> 125 | T65: ='[1]Monthly Data'!T65 -> 3069 | U65: ='[1]Monthly Data'!U65 -> 30 | V65: =[1]Weather!C185 -> 8.053333333 | W65: =[1]Weather!D185 -> 418.4 | X65: =[1]Weather!E185 -> 0 | Y65: =[1]Weather!F185 -> 358.4 | Z65: =[1]Weather!G185 -> 0 | AA65: =[1]Weather!H185 -> 298.9 | AB65: =[1]Weather!I185 -> 0.5 | AC65: =[1]Weather!J185 -> 240.9 | AD65: =[1]Weather!K185 -> 2.5 | AE65: =[1]Weather!L185 -> 185.2 | AF65: =[1]Weather!M185 -> 6.8 | AG65: =[1]Weather!N185 -> 134.9 | AH65: =[1]Weather!O185 -> 16.5 | AI65: =[1]Weather!P185 -> 91.3 | AJ65: =[1]Weather!Q185 -> 32.9 | AK65: =[1]Weather!R185 -> 53.6 | AL65: =[1]Weather!S185 -> 55.2 | AM65: =[1]Economic!C65 -> 711695.1 | AN65: =[1]Economic!D65 -> 6999.5 | AO65: =[1]Economic!E65 -> 6905.1 | AP65: =[1]Economic!F65 -> 111.5 | AQ65: =[1]Economic!G65 -> 110.1 | AR65: =AR17 -> 30 | AS65: 21 | AT65: =1+AT64 -> 64 | AU65: =AU53 -> 0 | AV65: =AV53 -> 0 | AW65: =AW53 -> 0 | AX65: =AX53 -> 1 | AY65: =AY53 -> 0 | AZ65: =AZ53 -> 0 | BA65: =BA53 -> 0 | BB65: =BB53 -> 0 | BC65: =BC53 -> 0 | BD65: =BD53 -> 0 | BE65: =BE53 -> 0 | BF65: =BF53 -> 0 | BG65: =BG53 -> 1 | BH65: =BH53 -> 0 | BI65: =BG65+BH65 -> 1 | BJ65: 0 | BK65: 0 | BL65: =BK65 -> 0 | BM65: =BM64 -> 0 | BN65: =$BJ65*W65 -> 0 | BO65: =$BJ65*X65 -> 0 | BP65: =$BJ65*Y65 -> 0 | BQ65: =$BJ65*Z65 -> 0 | BR65: =$BJ65*AA65 -> 0 | BS65: =$BJ65*AB65 -> 0 | BT65: =$BJ65*AC65 -> 0 | BU65: =$BJ65*AD65 -> 0 | BV65: =$BJ65*AE65 -> 0 | BW65: =$BJ65*AF65 -> 0 | BX65: =$BJ65*AG65 -> 0 | BY65: =$BJ65*AH65 -> 0 | BZ65: =$BJ65*AI65 -> 0 | CA65: =$BJ65*AJ65 -> 0 | CB65: =$BJ65*AK65 -> 0 | CC65: =$BJ65*AL65 -> 0 | CD65: =F65/Q65 -> 619.7366588 | CE65: =I65/R65 -> 2143.11517 | CF65: =L65/S65 -> 78850.26757
A66: ='[1]Monthly Data'!A66 -> 2017-05-01 | B66: ='[1]Monthly Data'!B66 -> 2017 | C66: =MONTH(A66) -> 5 | D66: ='[1]Monthly Data'!D66 -> 8161256.906 | E66: ='[1]Monthly Data'!E66 -> 424165.6436 | F66: ='[1]Monthly Data'!F66 -> 8585422.55 | G66: ='[1]Monthly Data'!G66 -> 3468969.09 | H66: ='[1]Monthly Data'!H66 -> 249658.9577 | I66: ='[1]Monthly Data'!I66 -> 3718628.048 | J66: ='[1]Monthly Data'!J66 -> 10255185.62 | K66: ='[1]Monthly Data'!K66 -> 361922.6657 | L66: ='[1]Monthly Data'!L66 -> 10617108.29 | M66: ='[1]Monthly Data'!M66 -> 81461.24994 | N66: ='[1]Monthly Data'!N66 -> 31829.16767 | O66: ='[1]Monthly Data'!O66 -> 24976.59 | P66: ='[1]Monthly Data'!P66 -> 287.61 | Q66: ='[1]Monthly Data'!Q66 -> 15053 | R66: ='[1]Monthly Data'!R66 -> 1737 | S66: ='[1]Monthly Data'!S66 -> 125 | T66: ='[1]Monthly Data'!T66 -> 3069 | U66: ='[1]Monthly Data'!U66 -> 30 | V66: =[1]Weather!C186 -> 11.1483871 | W66: =[1]Weather!D186 -> 338.7 | X66: =[1]Weather!E186 -> 2.3 | Y66: =[1]Weather!F186 -> 278.7 | Z66: =[1]Weather!G186 -> 4.3 | AA66: =[1]Weather!H186 -> 221 | AB66: =[1]Weather!I186 -> 8.6 | AC66: =[1]Weather!J186 -> 167.7 | AD66: =[1]Weather!K186 -> 17.3 | AE66: =[1]Weather!L186 -> 117.6 | AF66: =[1]Weather!M186 -> 29.2 | AG66: =[1]Weather!N186 -> 75.6 | AH66: =[1]Weather!O186 -> 49.2 | AI66: =[1]Weather!P186 -> 43.8 | AJ66: =[1]Weather!Q186 -> 79.4 | AK66: =[1]Weather!R186 -> 20.2 | AL66: =[1]Weather!S186 -> 117.8 | AM66: =[1]Economic!C66 -> 711695.1 | AN66: =[1]Economic!D66 -> 7006.2 | AO66: =[1]Economic!E66 -> 6969.8 | AP66: =[1]Economic!F66 -> 112.3 | AQ66: =[1]Economic!G66 -> 112.3 | AR66: =AR18 -> 31 | AS66: 20 | AT66: =1+AT65 -> 65 | AU66: =AU54 -> 0 | AV66: =AV54 -> 0 | AW66: =AW54 -> 0 | AX66: =AX54 -> 0 | AY66: =AY54 -> 1 | AZ66: =AZ54 -> 0 | BA66: =BA54 -> 0 | BB66: =BB54 -> 0 | BC66: =BC54 -> 0 | BD66: =BD54 -> 0 | BE66: =BE54 -> 0 | BF66: =BF54 -> 0 | BG66: =BG54 -> 1 | BH66: =BH54 -> 0 | BI66: =BG66+BH66 -> 1 | BJ66: 0 | BK66: 0 | BL66: =BK66 -> 0 | BM66: =BM65 -> 0 | BN66: =$BJ66*W66 -> 0 | BO66: =$BJ66*X66 -> 0 | BP66: =$BJ66*Y66 -> 0 | BQ66: =$BJ66*Z66 -> 0 | BR66: =$BJ66*AA66 -> 0 | BS66: =$BJ66*AB66 -> 0 | BT66: =$BJ66*AC66 -> 0 | BU66: =$BJ66*AD66 -> 0 | BV66: =$BJ66*AE66 -> 0 | BW66: =$BJ66*AF66 -> 0 | BX66: =$BJ66*AG66 -> 0 | BY66: =$BJ66*AH66 -> 0 | BZ66: =$BJ66*AI66 -> 0 | CA66: =$BJ66*AJ66 -> 0 | CB66: =$BJ66*AK66 -> 0 | CC66: =$BJ66*AL66 -> 0 | CD66: =F66/Q66 -> 570.3462798 | CE66: =I66/R66 -> 2140.833649 | CF66: =L66/S66 -> 84936.86629
A67: ='[1]Monthly Data'!A67 -> 2017-06-01 | B67: ='[1]Monthly Data'!B67 -> 2017 | C67: =MONTH(A67) -> 6 | D67: ='[1]Monthly Data'!D67 -> 8070742.915 | E67: ='[1]Monthly Data'!E67 -> 424165.6436 | F67: ='[1]Monthly Data'!F67 -> 8494908.558 | G67: ='[1]Monthly Data'!G67 -> 3471006.038 | H67: ='[1]Monthly Data'!H67 -> 249658.9577 | I67: ='[1]Monthly Data'!I67 -> 3720664.995 | J67: ='[1]Monthly Data'!J67 -> 10162898.99 | K67: ='[1]Monthly Data'!K67 -> 361922.6657 | L67: ='[1]Monthly Data'!L67 -> 10524821.66 | M67: ='[1]Monthly Data'!M67 -> 72792.82071 | N67: ='[1]Monthly Data'!N67 -> 33369.96038 | O67: ='[1]Monthly Data'!O67 -> 26002.26 | P67: ='[1]Monthly Data'!P67 -> 287.61 | Q67: ='[1]Monthly Data'!Q67 -> 14924 | R67: ='[1]Monthly Data'!R67 -> 1739 | S67: ='[1]Monthly Data'!S67 -> 125 | T67: ='[1]Monthly Data'!T67 -> 3069 | U67: ='[1]Monthly Data'!U67 -> 30 | V67: =[1]Weather!C187 -> 17.22 | W67: =[1]Weather!D187 -> 150.8 | X67: =[1]Weather!E187 -> 7.4 | Y67: =[1]Weather!F187 -> 103.5 | Z67: =[1]Weather!G187 -> 20.1 | AA67: =[1]Weather!H187 -> 64.3 | AB67: =[1]Weather!I187 -> 40.9 | AC67: =[1]Weather!J187 -> 34.1 | AD67: =[1]Weather!K187 -> 70.7 | AE67: =[1]Weather!L187 -> 13.2 | AF67: =[1]Weather!M187 -> 109.8 | AG67: =[1]Weather!N187 -> 1 | AH67: =[1]Weather!O187 -> 157.6 | AI67: =[1]Weather!P187 -> 0 | AJ67: =[1]Weather!Q187 -> 216.6 | AK67: =[1]Weather!R187 -> 0 | AL67: =[1]Weather!S187 -> 276.6 | AM67: =[1]Economic!C67 -> 711695.1 | AN67: =[1]Economic!D67 -> 7010.4 | AO67: =[1]Economic!E67 -> 7051.6 | AP67: =[1]Economic!F67 -> 113.3 | AQ67: =[1]Economic!G67 -> 114.7 | AR67: =AR19 -> 30 | AS67: 22 | AT67: =1+AT66 -> 66 | AU67: =AU55 -> 0 | AV67: =AV55 -> 0 | AW67: =AW55 -> 0 | AX67: =AX55 -> 0 | AY67: =AY55 -> 0 | AZ67: =AZ55 -> 1 | BA67: =BA55 -> 0 | BB67: =BB55 -> 0 | BC67: =BC55 -> 0 | BD67: =BD55 -> 0 | BE67: =BE55 -> 0 | BF67: =BF55 -> 0 | BG67: =BG55 -> 0 | BH67: =BH55 -> 0 | BI67: =BG67+BH67 -> 0 | BJ67: 0 | BK67: 0 | BL67: =BK67 -> 0 | BM67: =BM66 -> 0 | BN67: =$BJ67*W67 -> 0 | BO67: =$BJ67*X67 -> 0 | BP67: =$BJ67*Y67 -> 0 | BQ67: =$BJ67*Z67 -> 0 | BR67: =$BJ67*AA67 -> 0 | BS67: =$BJ67*AB67 -> 0 | BT67: =$BJ67*AC67 -> 0 | BU67: =$BJ67*AD67 -> 0 | BV67: =$BJ67*AE67 -> 0 | BW67: =$BJ67*AF67 -> 0 | BX67: =$BJ67*AG67 -> 0 | BY67: =$BJ67*AH67 -> 0 | BZ67: =$BJ67*AI67 -> 0 | CA67: =$BJ67*AJ67 -> 0 | CB67: =$BJ67*AK67 -> 0 | CC67: =$BJ67*AL67 -> 0 | CD67: =F67/Q67 -> 569.2112408 | CE67: =I67/R67 -> 2139.542838 | CF67: =L67/S67 -> 84198.57327
A68: ='[1]Monthly Data'!A68 -> 2017-07-01 | B68: ='[1]Monthly Data'!B68 -> 2017 | C68: =MONTH(A68) -> 7 | D68: ='[1]Monthly Data'!D68 -> 9056278.687 | E68: ='[1]Monthly Data'!E68 -> 424165.6436 | F68: ='[1]Monthly Data'!F68 -> 9480444.33 | G68: ='[1]Monthly Data'!G68 -> 3789392.473 | H68: ='[1]Monthly Data'!H68 -> 249658.9577 | I68: ='[1]Monthly Data'!I68 -> 4039051.431 | J68: ='[1]Monthly Data'!J68 -> 9531247.608 | K68: ='[1]Monthly Data'!K68 -> 361922.6657 | L68: ='[1]Monthly Data'!L68 -> 9893170.273 | M68: ='[1]Monthly Data'!M68 -> 78102.7472 | N68: ='[1]Monthly Data'!N68 -> 34423.69134 | O68: ='[1]Monthly Data'!O68 -> 25979.75 | P68: ='[1]Monthly Data'!P68 -> 287.61 | Q68: ='[1]Monthly Data'!Q68 -> 15264 | R68: ='[1]Monthly Data'!R68 -> 1748 | S68: ='[1]Monthly Data'!S68 -> 127 | T68: ='[1]Monthly Data'!T68 -> 3069 | U68: ='[1]Monthly Data'!U68 -> 30 | V68: =[1]Weather!C188 -> 19.86774194 | W68: =[1]Weather!D188 -> 67.1 | X68: =[1]Weather!E188 -> 1 | Y68: =[1]Weather!F188 -> 20.6 | Z68: =[1]Weather!G188 -> 16.5 | AA68: =[1]Weather!H188 -> 3.9 | AB68: =[1]Weather!I188 -> 61.8 | AC68: =[1]Weather!J188 -> 0 | AD68: =[1]Weather!K188 -> 119.9 | AE68: =[1]Weather!L188 -> 0 | AF68: =[1]Weather!M188 -> 181.9 | AG68: =[1]Weather!N188 -> 0 | AH68: =[1]Weather!O188 -> 243.9 | AI68: =[1]Weather!P188 -> 0 | AJ68: =[1]Weather!Q188 -> 305.9 | AK68: =[1]Weather!R188 -> 0 | AL68: =[1]Weather!S188 -> 367.9 | AM68: =[1]Economic!C68 -> 711695.1 | AN68: =[1]Economic!D68 -> 7022.8 | AO68: =[1]Economic!E68 -> 7118.5 | AP68: =[1]Economic!F68 -> 114 | AQ68: =[1]Economic!G68 -> 114.9 | AR68: =AR20 -> 31 | AS68: 22 | AT68: =1+AT67 -> 67 | AU68: =AU56 -> 0 | AV68: =AV56 -> 0 | AW68: =AW56 -> 0 | AX68: =AX56 -> 0 | AY68: =AY56 -> 0 | AZ68: =AZ56 -> 0 | BA68: =BA56 -> 1 | BB68: =BB56 -> 0 | BC68: =BC56 -> 0 | BD68: =BD56 -> 0 | BE68: =BE56 -> 0 | BF68: =BF56 -> 0 | BG68: =BG56 -> 0 | BH68: =BH56 -> 0 | BI68: =BG68+BH68 -> 0 | BJ68: 0 | BK68: 0 | BL68: =BK68 -> 0 | BM68: =BM67 -> 0 | BN68: =$BJ68*W68 -> 0 | BO68: =$BJ68*X68 -> 0 | BP68: =$BJ68*Y68 -> 0 | BQ68: =$BJ68*Z68 -> 0 | BR68: =$BJ68*AA68 -> 0 | BS68: =$BJ68*AB68 -> 0 | BT68: =$BJ68*AC68 -> 0 | BU68: =$BJ68*AD68 -> 0 | BV68: =$BJ68*AE68 -> 0 | BW68: =$BJ68*AF68 -> 0 | BX68: =$BJ68*AG68 -> 0 | BY68: =$BJ68*AH68 -> 0 | BZ68: =$BJ68*AI68 -> 0 | CA68: =$BJ68*AJ68 -> 0 | CB68: =$BJ68*AK68 -> 0 | CC68: =$BJ68*AL68 -> 0 | CD68: =F68/Q68 -> 621.0982921 | CE68: =I68/R68 -> 2310.670155 | CF68: =L68/S68 -> 77898.97853
A69: ='[1]Monthly Data'!A69 -> 2017-08-01 | B69: ='[1]Monthly Data'!B69 -> 2017 | C69: =MONTH(A69) -> 8 | D69: ='[1]Monthly Data'!D69 -> 8724675.001 | E69: ='[1]Monthly Data'!E69 -> 424165.6436 | F69: ='[1]Monthly Data'!F69 -> 9148840.645 | G69: ='[1]Monthly Data'!G69 -> 3707499.939 | H69: ='[1]Monthly Data'!H69 -> 249658.9577 | I69: ='[1]Monthly Data'!I69 -> 3957158.897 | J69: ='[1]Monthly Data'!J69 -> 10132328.04 | K69: ='[1]Monthly Data'!K69 -> 361922.6657 | L69: ='[1]Monthly Data'!L69 -> 10494250.71 | M69: ='[1]Monthly Data'!M69 -> 88295.15677 | N69: ='[1]Monthly Data'!N69 -> 31793.62925 | O69: ='[1]Monthly Data'!O69 -> 25670.32 | P69: ='[1]Monthly Data'!P69 -> 287.61 | Q69: ='[1]Monthly Data'!Q69 -> 15122 | R69: ='[1]Monthly Data'!R69 -> 1746 | S69: ='[1]Monthly Data'!S69 -> 129 | T69: ='[1]Monthly Data'!T69 -> 3069 | U69: ='[1]Monthly Data'!U69 -> 30 | V69: =[1]Weather!C189 -> 18.81612903 | W69: =[1]Weather!D189 -> 100.3 | X69: =[1]Weather!E189 -> 1.6 | Y69: =[1]Weather!F189 -> 51.8 | Z69: =[1]Weather!G189 -> 15.1 | AA69: =[1]Weather!H189 -> 19.3 | AB69: =[1]Weather!I189 -> 44.6 | AC69: =[1]Weather!J189 -> 5.9 | AD69: =[1]Weather!K189 -> 93.2 | AE69: =[1]Weather!L189 -> 0 | AF69: =[1]Weather!M189 -> 149.3 | AG69: =[1]Weather!N189 -> 0 | AH69: =[1]Weather!O189 -> 211.3 | AI69: =[1]Weather!P189 -> 0 | AJ69: =[1]Weather!Q189 -> 273.3 | AK69: =[1]Weather!R189 -> 0 | AL69: =[1]Weather!S189 -> 335.3 | AM69: =[1]Economic!C69 -> 711695.1 | AN69: =[1]Economic!D69 -> 7041.5 | AO69: =[1]Economic!E69 -> 7139 | AP69: =[1]Economic!F69 -> 114 | AQ69: =[1]Economic!G69 -> 115.4 | AR69: =AR21 -> 31 | AS69: 20 | AT69: =1+AT68 -> 68 | AU69: =AU57 -> 0 | AV69: =AV57 -> 0 | AW69: =AW57 -> 0 | AX69: =AX57 -> 0 | AY69: =AY57 -> 0 | AZ69: =AZ57 -> 0 | BA69: =BA57 -> 0 | BB69: =BB57 -> 1 | BC69: =BC57 -> 0 | BD69: =BD57 -> 0 | BE69: =BE57 -> 0 | BF69: =BF57 -> 0 | BG69: =BG57 -> 0 | BH69: =BH57 -> 0 | BI69: =BG69+BH69 -> 0 | BJ69: 0 | BK69: 0 | BL69: =BK69 -> 0 | BM69: =BM68 -> 0 | BN69: =$BJ69*W69 -> 0 | BO69: =$BJ69*X69 -> 0 | BP69: =$BJ69*Y69 -> 0 | BQ69: =$BJ69*Z69 -> 0 | BR69: =$BJ69*AA69 -> 0 | BS69: =$BJ69*AB69 -> 0 | BT69: =$BJ69*AC69 -> 0 | BU69: =$BJ69*AD69 -> 0 | BV69: =$BJ69*AE69 -> 0 | BW69: =$BJ69*AF69 -> 0 | BX69: =$BJ69*AG69 -> 0 | BY69: =$BJ69*AH69 -> 0 | BZ69: =$BJ69*AI69 -> 0 | CA69: =$BJ69*AJ69 -> 0 | CB69: =$BJ69*AK69 -> 0 | CC69: =$BJ69*AL69 -> 0 | CD69: =F69/Q69 -> 605.0020265 | CE69: =I69/R69 -> 2266.41403 | CF69: =L69/S69 -> 81350.7807
A70: ='[1]Monthly Data'!A70 -> 2017-09-01 | B70: ='[1]Monthly Data'!B70 -> 2017 | C70: =MONTH(A70) -> 9 | D70: ='[1]Monthly Data'!D70 -> 8151924.732 | E70: ='[1]Monthly Data'!E70 -> 424165.6436 | F70: ='[1]Monthly Data'!F70 -> 8576090.376 | G70: ='[1]Monthly Data'!G70 -> 3428070.839 | H70: ='[1]Monthly Data'!H70 -> 249658.9577 | I70: ='[1]Monthly Data'!I70 -> 3677729.797 | J70: ='[1]Monthly Data'!J70 -> 10432795.83 | K70: ='[1]Monthly Data'!K70 -> 361922.6657 | L70: ='[1]Monthly Data'!L70 -> 10794718.5 | M70: ='[1]Monthly Data'!M70 -> 98174.32666 | N70: ='[1]Monthly Data'!N70 -> 33438.75083 | O70: ='[1]Monthly Data'!O70 -> 24722.83 | P70: ='[1]Monthly Data'!P70 -> 287.61 | Q70: ='[1]Monthly Data'!Q70 -> 15188 | R70: ='[1]Monthly Data'!R70 -> 1740 | S70: ='[1]Monthly Data'!S70 -> 127 | T70: ='[1]Monthly Data'!T70 -> 3069 | U70: ='[1]Monthly Data'!U70 -> 30 | V70: =[1]Weather!C190 -> 17.43333333 | W70: =[1]Weather!D190 -> 147.7 | X70: =[1]Weather!E190 -> 10.7 | Y70: =[1]Weather!F190 -> 103.5 | Z70: =[1]Weather!G190 -> 26.5 | AA70: =[1]Weather!H190 -> 69 | AB70: =[1]Weather!I190 -> 52 | AC70: =[1]Weather!J190 -> 40.9 | AD70: =[1]Weather!K190 -> 83.9 | AE70: =[1]Weather!L190 -> 18.1 | AF70: =[1]Weather!M190 -> 121.1 | AG70: =[1]Weather!N190 -> 5.2 | AH70: =[1]Weather!O190 -> 168.2 | AI70: =[1]Weather!P190 -> 1.6 | AJ70: =[1]Weather!Q190 -> 224.6 | AK70: =[1]Weather!R190 -> 0 | AL70: =[1]Weather!S190 -> 283 | AM70: =[1]Economic!C70 -> 711695.1 | AN70: =[1]Economic!D70 -> 7068.5 | AO70: =[1]Economic!E70 -> 7121.5 | AP70: =[1]Economic!F70 -> 114.1 | AQ70: =[1]Economic!G70 -> 115 | AR70: =AR22 -> 30 | AS70: 21 | AT70: =1+AT69 -> 69 | AU70: =AU58 -> 0 | AV70: =AV58 -> 0 | AW70: =AW58 -> 0 | AX70: =AX58 -> 0 | AY70: =AY58 -> 0 | AZ70: =AZ58 -> 0 | BA70: =BA58 -> 0 | BB70: =BB58 -> 0 | BC70: =BC58 -> 1 | BD70: =BD58 -> 0 | BE70: =BE58 -> 0 | BF70: =BF58 -> 0 | BG70: =BG58 -> 0 | BH70: =BH58 -> 1 | BI70: =BG70+BH70 -> 1 | BJ70: 0 | BK70: 0 | BL70: =BK70 -> 0 | BM70: =BM69 -> 0 | BN70: =$BJ70*W70 -> 0 | BO70: =$BJ70*X70 -> 0 | BP70: =$BJ70*Y70 -> 0 | BQ70: =$BJ70*Z70 -> 0 | BR70: =$BJ70*AA70 -> 0 | BS70: =$BJ70*AB70 -> 0 | BT70: =$BJ70*AC70 -> 0 | BU70: =$BJ70*AD70 -> 0 | BV70: =$BJ70*AE70 -> 0 | BW70: =$BJ70*AF70 -> 0 | BX70: =$BJ70*AG70 -> 0 | BY70: =$BJ70*AH70 -> 0 | BZ70: =$BJ70*AI70 -> 0 | CA70: =$BJ70*AJ70 -> 0 | CB70: =$BJ70*AK70 -> 0 | CC70: =$BJ70*AL70 -> 0 | CD70: =F70/Q70 -> 564.6622581 | CE70: =I70/R70 -> 2113.637814 | CF70: =L70/S70 -> 84997.78347
A71: ='[1]Monthly Data'!A71 -> 2017-10-01 | B71: ='[1]Monthly Data'!B71 -> 2017 | C71: =MONTH(A71) -> 10 | D71: ='[1]Monthly Data'!D71 -> 8318972.338 | E71: ='[1]Monthly Data'!E71 -> 424165.6436 | F71: ='[1]Monthly Data'!F71 -> 8743137.982 | G71: ='[1]Monthly Data'!G71 -> 3435622.395 | H71: ='[1]Monthly Data'!H71 -> 249658.9577 | I71: ='[1]Monthly Data'!I71 -> 3685281.353 | J71: ='[1]Monthly Data'!J71 -> 10910463.65 | K71: ='[1]Monthly Data'!K71 -> 361922.6657 | L71: ='[1]Monthly Data'!L71 -> 11272386.32 | M71: ='[1]Monthly Data'!M71 -> 115152.7668 | N71: ='[1]Monthly Data'!N71 -> 34830.20401 | O71: ='[1]Monthly Data'!O71 -> 26566.62 | P71: ='[1]Monthly Data'!P71 -> 287.61 | Q71: ='[1]Monthly Data'!Q71 -> 15208 | R71: ='[1]Monthly Data'!R71 -> 1743 | S71: ='[1]Monthly Data'!S71 -> 128 | T71: ='[1]Monthly Data'!T71 -> 3069 | U71: ='[1]Monthly Data'!U71 -> 30 | V71: =[1]Weather!C191 -> 13.07419355 | W71: =[1]Weather!D191 -> 276.7 | X71: =[1]Weather!E191 -> 0 | Y71: =[1]Weather!F191 -> 214.7 | Z71: =[1]Weather!G191 -> 0 | AA71: =[1]Weather!H191 -> 158.2 | AB71: =[1]Weather!I191 -> 5.5 | AC71: =[1]Weather!J191 -> 111.2 | AD71: =[1]Weather!K191 -> 20.5 | AE71: =[1]Weather!L191 -> 78.7 | AF71: =[1]Weather!M191 -> 50 | AG71: =[1]Weather!N191 -> 53.4 | AH71: =[1]Weather!O191 -> 86.7 | AI71: =[1]Weather!P191 -> 31.4 | AJ71: =[1]Weather!Q191 -> 126.7 | AK71: =[1]Weather!R191 -> 13.8 | AL71: =[1]Weather!S191 -> 171.1 | AM71: =[1]Economic!C71 -> 711695.1 | AN71: =[1]Economic!D71 -> 7092.3 | AO71: =[1]Economic!E71 -> 7117.9 | AP71: =[1]Economic!F71 -> 114.8 | AQ71: =[1]Economic!G71 -> 116.6 | AR71: =AR23 -> 31 | AS71: 21 | AT71: =1+AT70 -> 70 | AU71: =AU59 -> 0 | AV71: =AV59 -> 0 | AW71: =AW59 -> 0 | AX71: =AX59 -> 0 | AY71: =AY59 -> 0 | AZ71: =AZ59 -> 0 | BA71: =BA59 -> 0 | BB71: =BB59 -> 0 | BC71: =BC59 -> 0 | BD71: =BD59 -> 1 | BE71: =BE59 -> 0 | BF71: =BF59 -> 0 | BG71: =BG59 -> 0 | BH71: =BH59 -> 1 | BI71: =BG71+BH71 -> 1 | BJ71: 0 | BK71: 0 | BL71: =BK71 -> 0 | BM71: =BM70 -> 0 | BN71: =$BJ71*W71 -> 0 | BO71: =$BJ71*X71 -> 0 | BP71: =$BJ71*Y71 -> 0 | BQ71: =$BJ71*Z71 -> 0 | BR71: =$BJ71*AA71 -> 0 | BS71: =$BJ71*AB71 -> 0 | BT71: =$BJ71*AC71 -> 0 | BU71: =$BJ71*AD71 -> 0 | BV71: =$BJ71*AE71 -> 0 | BW71: =$BJ71*AF71 -> 0 | BX71: =$BJ71*AG71 -> 0 | BY71: =$BJ71*AH71 -> 0 | BZ71: =$BJ71*AI71 -> 0 | CA71: =$BJ71*AJ71 -> 0 | CB71: =$BJ71*AK71 -> 0 | CC71: =$BJ71*AL71 -> 0 | CD71: =F71/Q71 -> 574.9038652 | CE71: =I71/R71 -> 2114.332388 | CF71: =L71/S71 -> 88065.51812
A72: ='[1]Monthly Data'!A72 -> 2017-11-01 | B72: ='[1]Monthly Data'!B72 -> 2017 | C72: =MONTH(A72) -> 11 | D72: ='[1]Monthly Data'!D72 -> 9874516.671 | E72: ='[1]Monthly Data'!E72 -> 424165.6436 | F72: ='[1]Monthly Data'!F72 -> 10298682.32 | G72: ='[1]Monthly Data'!G72 -> 3671837.966 | H72: ='[1]Monthly Data'!H72 -> 249658.9577 | I72: ='[1]Monthly Data'!I72 -> 3921496.924 | J72: ='[1]Monthly Data'!J72 -> 10855073.55 | K72: ='[1]Monthly Data'!K72 -> 361922.6657 | L72: ='[1]Monthly Data'!L72 -> 11216996.21 | M72: ='[1]Monthly Data'!M72 -> 123139.423 | N72: ='[1]Monthly Data'!N72 -> 34180.59566 | O72: ='[1]Monthly Data'!O72 -> 26094.43 | P72: ='[1]Monthly Data'!P72 -> 287.61 | Q72: ='[1]Monthly Data'!Q72 -> 15218 | R72: ='[1]Monthly Data'!R72 -> 1738 | S72: ='[1]Monthly Data'!S72 -> 130 | T72: ='[1]Monthly Data'!T72 -> 3069 | U72: ='[1]Monthly Data'!U72 -> 30 | V72: =[1]Weather!C192 -> 3.173333333 | W72: =[1]Weather!D192 -> 564.8 | X72: =[1]Weather!E192 -> 0 | Y72: =[1]Weather!F192 -> 504.8 | Z72: =[1]Weather!G192 -> 0 | AA72: =[1]Weather!H192 -> 444.8 | AB72: =[1]Weather!I192 -> 0 | AC72: =[1]Weather!J192 -> 384.8 | AD72: =[1]Weather!K192 -> 0 | AE72: =[1]Weather!L192 -> 324.8 | AF72: =[1]Weather!M192 -> 0 | AG72: =[1]Weather!N192 -> 264.8 | AH72: =[1]Weather!O192 -> 0 | AI72: =[1]Weather!P192 -> 204.8 | AJ72: =[1]Weather!Q192 -> 0 | AK72: =[1]Weather!R192 -> 148.2 | AL72: =[1]Weather!S192 -> 3.4 | AM72: =[1]Economic!C72 -> 711695.1 | AN72: =[1]Economic!D72 -> 7114.4 | AO72: =[1]Economic!E72 -> 7117.8 | AP72: =[1]Economic!F72 -> 114.7 | AQ72: =[1]Economic!G72 -> 116.3 | AR72: =AR24 -> 30 | AS72: 20 | AT72: =1+AT71 -> 71 | AU72: =AU60 -> 0 | AV72: =AV60 -> 0 | AW72: =AW60 -> 0 | AX72: =AX60 -> 0 | AY72: =AY60 -> 0 | AZ72: =AZ60 -> 0 | BA72: =BA60 -> 0 | BB72: =BB60 -> 0 | BC72: =BC60 -> 0 | BD72: =BD60 -> 0 | BE72: =BE60 -> 1 | BF72: =BF60 -> 0 | BG72: =BG60 -> 0 | BH72: =BH60 -> 1 | BI72: =BG72+BH72 -> 1 | BJ72: 0 | BK72: 0 | BL72: =BK72 -> 0 | BM72: =BM71 -> 0 | BN72: =$BJ72*W72 -> 0 | BO72: =$BJ72*X72 -> 0 | BP72: =$BJ72*Y72 -> 0 | BQ72: =$BJ72*Z72 -> 0 | BR72: =$BJ72*AA72 -> 0 | BS72: =$BJ72*AB72 -> 0 | BT72: =$BJ72*AC72 -> 0 | BU72: =$BJ72*AD72 -> 0 | BV72: =$BJ72*AE72 -> 0 | BW72: =$BJ72*AF72 -> 0 | BX72: =$BJ72*AG72 -> 0 | BY72: =$BJ72*AH72 -> 0 | BZ72: =$BJ72*AI72 -> 0 | CA72: =$BJ72*AJ72 -> 0 | CB72: =$BJ72*AK72 -> 0 | CC72: =$BJ72*AL72 -> 0 | CD72: =F72/Q72 -> 676.7434824 | CE72: =I72/R72 -> 2256.327344 | CF72: =L72/S72 -> 86284.58626
A73: ='[1]Monthly Data'!A73 -> 2017-12-01 | B73: ='[1]Monthly Data'!B73 -> 2017 | C73: =MONTH(A73) -> 12 | D73: ='[1]Monthly Data'!D73 -> 13025738.64 | E73: ='[1]Monthly Data'!E73 -> 424165.6436 | F73: ='[1]Monthly Data'!F73 -> 13449904.29 | G73: ='[1]Monthly Data'!G73 -> 4345470.865 | H73: ='[1]Monthly Data'!H73 -> 249658.9577 | I73: ='[1]Monthly Data'!I73 -> 4595129.823 | J73: ='[1]Monthly Data'!J73 -> 10712352.51 | K73: ='[1]Monthly Data'!K73 -> 361922.6657 | L73: ='[1]Monthly Data'!L73 -> 11074275.18 | M73: ='[1]Monthly Data'!M73 -> 134400.2023 | N73: ='[1]Monthly Data'!N73 -> 34569.16941 | O73: ='[1]Monthly Data'!O73 -> 24596.64 | P73: ='[1]Monthly Data'!P73 -> 287.61 | Q73: ='[1]Monthly Data'!Q73 -> 15228 | R73: ='[1]Monthly Data'!R73 -> 1732 | S73: ='[1]Monthly Data'!S73 -> 131 | T73: ='[1]Monthly Data'!T73 -> 3069 | U73: ='[1]Monthly Data'!U73 -> 30 | V73: =[1]Weather!C193 -> -5.086023521 | W73: =[1]Weather!D193 -> 839.7 | X73: =[1]Weather!E193 -> 0 | Y73: =[1]Weather!F193 -> 777.7 | Z73: =[1]Weather!G193 -> 0 | AA73: =[1]Weather!H193 -> 715.7 | AB73: =[1]Weather!I193 -> 0 | AC73: =[1]Weather!J193 -> 653.7 | AD73: =[1]Weather!K193 -> 0 | AE73: =[1]Weather!L193 -> 591.7 | AF73: =[1]Weather!M193 -> 0 | AG73: =[1]Weather!N193 -> 529.7 | AH73: =[1]Weather!O193 -> 0 | AI73: =[1]Weather!P193 -> 467.7 | AJ73: =[1]Weather!Q193 -> 0 | AK73: =[1]Weather!R193 -> 405.7 | AL73: =[1]Weather!S193 -> 0 | AM73: =[1]Economic!C73 -> 711695.1 | AN73: =[1]Economic!D73 -> 7131.7 | AO73: =[1]Economic!E73 -> 7140.2 | AP73: =[1]Economic!F73 -> 114 | AQ73: =[1]Economic!G73 -> 115.3 | AR73: =AR25 -> 31 | AS73: 22 | AT73: =1+AT72 -> 72 | AU73: =AU61 -> 0 | AV73: =AV61 -> 0 | AW73: =AW61 -> 0 | AX73: =AX61 -> 0 | AY73: =AY61 -> 0 | AZ73: =AZ61 -> 0 | BA73: =BA61 -> 0 | BB73: =BB61 -> 0 | BC73: =BC61 -> 0 | BD73: =BD61 -> 0 | BE73: =BE61 -> 0 | BF73: =BF61 -> 1 | BG73: =BG61 -> 0 | BH73: =BH61 -> 0 | BI73: =BG73+BH73 -> 0 | BJ73: 0 | BK73: 0 | BL73: =BK73 -> 0 | BM73: =BM72 -> 0 | BN73: =$BJ73*W73 -> 0 | BO73: =$BJ73*X73 -> 0 | BP73: =$BJ73*Y73 -> 0 | BQ73: =$BJ73*Z73 -> 0 | BR73: =$BJ73*AA73 -> 0 | BS73: =$BJ73*AB73 -> 0 | BT73: =$BJ73*AC73 -> 0 | BU73: =$BJ73*AD73 -> 0 | BV73: =$BJ73*AE73 -> 0 | BW73: =$BJ73*AF73 -> 0 | BX73: =$BJ73*AG73 -> 0 | BY73: =$BJ73*AH73 -> 0 | BZ73: =$BJ73*AI73 -> 0 | CA73: =$BJ73*AJ73 -> 0 | CB73: =$BJ73*AK73 -> 0 | CC73: =$BJ73*AL73 -> 0 | CD73: =F73/Q73 -> 883.235112 | CE73: =I73/R73 -> 2653.077265 | CF73: =L73/S73 -> 84536.45173
A74: ='[1]Monthly Data'!A74 -> 2018-01-01 | B74: ='[1]Monthly Data'!B74 -> 2018 | C74: =MONTH(A74) -> 1 | D74: ='[1]Monthly Data'!D74 -> 13883435.47 | E74: ='[1]Monthly Data'!E74 -> 575271.5318 | F74: ='[1]Monthly Data'!F74 -> 14458707 | G74: ='[1]Monthly Data'!G74 -> 4634616.958 | H74: ='[1]Monthly Data'!H74 -> 263226.8338 | I74: ='[1]Monthly Data'!I74 -> 4897843.792 | J74: ='[1]Monthly Data'!J74 -> 12061651.91 | K74: ='[1]Monthly Data'!K74 -> 481211.6928 | L74: ='[1]Monthly Data'!L74 -> 12542863.6 | M74: ='[1]Monthly Data'!M74 -> 130566.1652 | N74: ='[1]Monthly Data'!N74 -> 32175.02899 | O74: ='[1]Monthly Data'!O74 -> 27106.87 | P74: ='[1]Monthly Data'!P74 -> 287.61 | Q74: ='[1]Monthly Data'!Q74 -> 15358 | R74: ='[1]Monthly Data'!R74 -> 1745 | S74: ='[1]Monthly Data'!S74 -> 131 | T74: ='[1]Monthly Data'!T74 -> 3069 | U74: ='[1]Monthly Data'!U74 -> 30 | V74: =[1]Weather!C194 -> -5.10268918 | W74: =[1]Weather!D194 -> 840.2 | X74: =[1]Weather!E194 -> 0 | Y74: =[1]Weather!F194 -> 778.2 | Z74: =[1]Weather!G194 -> 0 | AA74: =[1]Weather!H194 -> 716.2 | AB74: =[1]Weather!I194 -> 0 | AC74: =[1]Weather!J194 -> 654.2 | AD74: =[1]Weather!K194 -> 0 | AE74: =[1]Weather!L194 -> 592.2 | AF74: =[1]Weather!M194 -> 0 | AG74: =[1]Weather!N194 -> 530.2 | AH74: =[1]Weather!O194 -> 0 | AI74: =[1]Weather!P194 -> 468.2 | AJ74: =[1]Weather!Q194 -> 0 | AK74: =[1]Weather!R194 -> 408.2 | AL74: =[1]Weather!S194 -> 2 | AM74: =[1]Economic!C74 -> 732426.3 | AN74: =[1]Economic!D74 -> 7129.8 | AO74: =[1]Economic!E74 -> 7100.3 | AP74: =[1]Economic!F74 -> 110.6 | AQ74: =[1]Economic!G74 -> 110.5 | AR74: =AR26 -> 31 | AS74: 20 | AT74: =1+AT73 -> 73 | AU74: =AU62 -> 1 | AV74: =AV62 -> 0 | AW74: =AW62 -> 0 | AX74: =AX62 -> 0 | AY74: =AY62 -> 0 | AZ74: =AZ62 -> 0 | BA74: =BA62 -> 0 | BB74: =BB62 -> 0 | BC74: =BC62 -> 0 | BD74: =BD62 -> 0 | BE74: =BE62 -> 0 | BF74: =BF62 -> 0 | BG74: =BG62 -> 0 | BH74: =BH62 -> 0 | BI74: =BG74+BH74 -> 0 | BJ74: 0 | BK74: 0 | BL74: =BK74 -> 0 | BM74: =BM73 -> 0 | BN74: =$BJ74*W74 -> 0 | BO74: =$BJ74*X74 -> 0 | BP74: =$BJ74*Y74 -> 0 | BQ74: =$BJ74*Z74 -> 0 | BR74: =$BJ74*AA74 -> 0 | BS74: =$BJ74*AB74 -> 0 | BT74: =$BJ74*AC74 -> 0 | BU74: =$BJ74*AD74 -> 0 | BV74: =$BJ74*AE74 -> 0 | BW74: =$BJ74*AF74 -> 0 | BX74: =$BJ74*AG74 -> 0 | BY74: =$BJ74*AH74 -> 0 | BZ74: =$BJ74*AI74 -> 0 | CA74: =$BJ74*AJ74 -> 0 | CB74: =$BJ74*AK74 -> 0 | CC74: =$BJ74*AL74 -> 0 | CD74: =F74/Q74 -> 941.4446545 | CE74: =I74/R74 -> 2806.787273 | CF74: =L74/S74 -> 95747.05039
A75: ='[1]Monthly Data'!A75 -> 2018-02-01 | B75: ='[1]Monthly Data'!B75 -> 2018 | C75: =MONTH(A75) -> 2 | D75: ='[1]Monthly Data'!D75 -> 11384940.45 | E75: ='[1]Monthly Data'!E75 -> 575271.5318 | F75: ='[1]Monthly Data'!F75 -> 11960211.98 | G75: ='[1]Monthly Data'!G75 -> 3979045.029 | H75: ='[1]Monthly Data'!H75 -> 263226.8338 | I75: ='[1]Monthly Data'!I75 -> 4242271.863 | J75: ='[1]Monthly Data'!J75 -> 10569743.41 | K75: ='[1]Monthly Data'!K75 -> 481211.6928 | L75: ='[1]Monthly Data'!L75 -> 11050955.1 | M75: ='[1]Monthly Data'!M75 -> 108624.9951 | N75: ='[1]Monthly Data'!N75 -> 31694.43231 | O75: ='[1]Monthly Data'!O75 -> 26969.47 | P75: ='[1]Monthly Data'!P75 -> 287.61 | Q75: ='[1]Monthly Data'!Q75 -> 15245 | R75: ='[1]Monthly Data'!R75 -> 1738 | S75: ='[1]Monthly Data'!S75 -> 132 | T75: ='[1]Monthly Data'!T75 -> 3136 | U75: ='[1]Monthly Data'!U75 -> 30 | V75: =[1]Weather!C195 -> -1.792857143 | W75: =[1]Weather!D195 -> 666.2 | X75: =[1]Weather!E195 -> 0 | Y75: =[1]Weather!F195 -> 610.2 | Z75: =[1]Weather!G195 -> 0 | AA75: =[1]Weather!H195 -> 554.2 | AB75: =[1]Weather!I195 -> 0 | AC75: =[1]Weather!J195 -> 498.2 | AD75: =[1]Weather!K195 -> 0 | AE75: =[1]Weather!L195 -> 442.2 | AF75: =[1]Weather!M195 -> 0 | AG75: =[1]Weather!N195 -> 386.2 | AH75: =[1]Weather!O195 -> 0 | AI75: =[1]Weather!P195 -> 330.2 | AJ75: =[1]Weather!Q195 -> 0 | AK75: =[1]Weather!R195 -> 275.8 | AL75: =[1]Weather!S195 -> 1.6 | AM75: =[1]Economic!C75 -> 732426.3 | AN75: =[1]Economic!D75 -> 7121.1 | AO75: =[1]Economic!E75 -> 7053.7 | AP75: =[1]Economic!F75 -> 107.9 | AQ75: =[1]Economic!G75 -> 106.3 | AR75: =AR27 -> 28 | AS75: 20 | AT75: =1+AT74 -> 74 | AU75: =AU63 -> 0 | AV75: =AV63 -> 1 | AW75: =AW63 -> 0 | AX75: =AX63 -> 0 | AY75: =AY63 -> 0 | AZ75: =AZ63 -> 0 | BA75: =BA63 -> 0 | BB75: =BB63 -> 0 | BC75: =BC63 -> 0 | BD75: =BD63 -> 0 | BE75: =BE63 -> 0 | BF75: =BF63 -> 0 | BG75: =BG63 -> 0 | BH75: =BH63 -> 0 | BI75: =BG75+BH75 -> 0 | BJ75: 0 | BK75: 0 | BL75: =BK75 -> 0 | BM75: =BM74 -> 0 | BN75: =$BJ75*W75 -> 0 | BO75: =$BJ75*X75 -> 0 | BP75: =$BJ75*Y75 -> 0 | BQ75: =$BJ75*Z75 -> 0 | BR75: =$BJ75*AA75 -> 0 | BS75: =$BJ75*AB75 -> 0 | BT75: =$BJ75*AC75 -> 0 | BU75: =$BJ75*AD75 -> 0 | BV75: =$BJ75*AE75 -> 0 | BW75: =$BJ75*AF75 -> 0 | BX75: =$BJ75*AG75 -> 0 | BY75: =$BJ75*AH75 -> 0 | BZ75: =$BJ75*AI75 -> 0 | CA75: =$BJ75*AJ75 -> 0 | CB75: =$BJ75*AK75 -> 0 | CC75: =$BJ75*AL75 -> 0 | CD75: =F75/Q75 -> 784.5334197 | CE75: =I75/R75 -> 2440.892902 | CF75: =L75/S75 -> 83719.35681
A76: ='[1]Monthly Data'!A76 -> 2018-03-01 | B76: ='[1]Monthly Data'!B76 -> 2018 | C76: =MONTH(A76) -> 3 | D76: ='[1]Monthly Data'!D76 -> 11501016.11 | E76: ='[1]Monthly Data'!E76 -> 575271.5318 | F76: ='[1]Monthly Data'!F76 -> 12076287.65 | G76: ='[1]Monthly Data'!G76 -> 4130187.802 | H76: ='[1]Monthly Data'!H76 -> 263226.8338 | I76: ='[1]Monthly Data'!I76 -> 4393414.636 | J76: ='[1]Monthly Data'!J76 -> 11369524.38 | K76: ='[1]Monthly Data'!K76 -> 481211.6928 | L76: ='[1]Monthly Data'!L76 -> 11850736.07 | M76: ='[1]Monthly Data'!M76 -> 105479.3343 | N76: ='[1]Monthly Data'!N76 -> 34868.97159 | O76: ='[1]Monthly Data'!O76 -> 26484.61 | P76: ='[1]Monthly Data'!P76 -> 287.61 | Q76: ='[1]Monthly Data'!Q76 -> 15374 | R76: ='[1]Monthly Data'!R76 -> 1754 | S76: ='[1]Monthly Data'!S76 -> 129 | T76: ='[1]Monthly Data'!T76 -> 3136 | U76: ='[1]Monthly Data'!U76 -> 30 | V76: =[1]Weather!C196 -> -1.26021707 | W76: =[1]Weather!D196 -> 721.1 | X76: =[1]Weather!E196 -> 0 | Y76: =[1]Weather!F196 -> 659.1 | Z76: =[1]Weather!G196 -> 0 | AA76: =[1]Weather!H196 -> 597.1 | AB76: =[1]Weather!I196 -> 0 | AC76: =[1]Weather!J196 -> 535.1 | AD76: =[1]Weather!K196 -> 0 | AE76: =[1]Weather!L196 -> 473.1 | AF76: =[1]Weather!M196 -> 0 | AG76: =[1]Weather!N196 -> 411.1 | AH76: =[1]Weather!O196 -> 0 | AI76: =[1]Weather!P196 -> 349.1 | AJ76: =[1]Weather!Q196 -> 0 | AK76: =[1]Weather!R196 -> 287.1 | AL76: =[1]Weather!S196 -> 0 | AM76: =[1]Economic!C76 -> 732426.3 | AN76: =[1]Economic!D76 -> 7120.5 | AO76: =[1]Economic!E76 -> 7013.3 | AP76: =[1]Economic!F76 -> 105.9 | AQ76: =[1]Economic!G76 -> 103.7 | AR76: =AR28 -> 31 | AS76: 22 | AT76: =1+AT75 -> 75 | AU76: =AU64 -> 0 | AV76: =AV64 -> 0 | AW76: =AW64 -> 1 | AX76: =AX64 -> 0 | AY76: =AY64 -> 0 | AZ76: =AZ64 -> 0 | BA76: =BA64 -> 0 | BB76: =BB64 -> 0 | BC76: =BC64 -> 0 | BD76: =BD64 -> 0 | BE76: =BE64 -> 0 | BF76: =BF64 -> 0 | BG76: =BG64 -> 1 | BH76: =BH64 -> 0 | BI76: =BG76+BH76 -> 1 | BJ76: 0 | BK76: 0 | BL76: =BK76 -> 0 | BM76: =BM75 -> 0 | BN76: =$BJ76*W76 -> 0 | BO76: =$BJ76*X76 -> 0 | BP76: =$BJ76*Y76 -> 0 | BQ76: =$BJ76*Z76 -> 0 | BR76: =$BJ76*AA76 -> 0 | BS76: =$BJ76*AB76 -> 0 | BT76: =$BJ76*AC76 -> 0 | BU76: =$BJ76*AD76 -> 0 | BV76: =$BJ76*AE76 -> 0 | BW76: =$BJ76*AF76 -> 0 | BX76: =$BJ76*AG76 -> 0 | BY76: =$BJ76*AH76 -> 0 | BZ76: =$BJ76*AI76 -> 0 | CA76: =$BJ76*AJ76 -> 0 | CB76: =$BJ76*AK76 -> 0 | CC76: =$BJ76*AL76 -> 0 | CD76: =F76/Q76 -> 785.5006925 | CE76: =I76/R76 -> 2504.797398 | CF76: =L76/S76 -> 91866.17108
A77: ='[1]Monthly Data'!A77 -> 2018-04-01 | B77: ='[1]Monthly Data'!B77 -> 2018 | C77: =MONTH(A77) -> 4 | D77: ='[1]Monthly Data'!D77 -> 9828482.673 | E77: ='[1]Monthly Data'!E77 -> 575271.5318 | F77: ='[1]Monthly Data'!F77 -> 10403754.2 | G77: ='[1]Monthly Data'!G77 -> 3695184.307 | H77: ='[1]Monthly Data'!H77 -> 263226.8338 | I77: ='[1]Monthly Data'!I77 -> 3958411.141 | J77: ='[1]Monthly Data'!J77 -> 10356480.11 | K77: ='[1]Monthly Data'!K77 -> 481211.6928 | L77: ='[1]Monthly Data'!L77 -> 10837691.8 | M77: ='[1]Monthly Data'!M77 -> 88074.34208 | N77: ='[1]Monthly Data'!N77 -> 31778.662 | O77: ='[1]Monthly Data'!O77 -> 28368.31 | P77: ='[1]Monthly Data'!P77 -> 287.61 | Q77: ='[1]Monthly Data'!Q77 -> 15309 | R77: ='[1]Monthly Data'!R77 -> 1747 | S77: ='[1]Monthly Data'!S77 -> 137 | T77: ='[1]Monthly Data'!T77 -> 3136 | U77: ='[1]Monthly Data'!U77 -> 30 | V77: =[1]Weather!C197 -> 2.253333333 | W77: =[1]Weather!D197 -> 592.4 | X77: =[1]Weather!E197 -> 0 | Y77: =[1]Weather!F197 -> 532.4 | Z77: =[1]Weather!G197 -> 0 | AA77: =[1]Weather!H197 -> 472.4 | AB77: =[1]Weather!I197 -> 0 | AC77: =[1]Weather!J197 -> 412.4 | AD77: =[1]Weather!K197 -> 0 | AE77: =[1]Weather!L197 -> 352.4 | AF77: =[1]Weather!M197 -> 0 | AG77: =[1]Weather!N197 -> 292.4 | AH77: =[1]Weather!O197 -> 0 | AI77: =[1]Weather!P197 -> 234 | AJ77: =[1]Weather!Q197 -> 1.6 | AK77: =[1]Weather!R197 -> 180.6 | AL77: =[1]Weather!S197 -> 8.2 | AM77: =[1]Economic!C77 -> 732426.3 | AN77: =[1]Economic!D77 -> 7136.3 | AO77: =[1]Economic!E77 -> 7043.4 | AP77: =[1]Economic!F77 -> 107.9 | AQ77: =[1]Economic!G77 -> 105.1 | AR77: =AR29 -> 30 | AS77: 21 | AT77: =1+AT76 -> 76 | AU77: =AU65 -> 0 | AV77: =AV65 -> 0 | AW77: =AW65 -> 0 | AX77: =AX65 -> 1 | AY77: =AY65 -> 0 | AZ77: =AZ65 -> 0 | BA77: =BA65 -> 0 | BB77: =BB65 -> 0 | BC77: =BC65 -> 0 | BD77: =BD65 -> 0 | BE77: =BE65 -> 0 | BF77: =BF65 -> 0 | BG77: =BG65 -> 1 | BH77: =BH65 -> 0 | BI77: =BG77+BH77 -> 1 | BJ77: 0 | BK77: 0 | BL77: =BK77 -> 0 | BM77: =BM76 -> 0 | BN77: =$BJ77*W77 -> 0 | BO77: =$BJ77*X77 -> 0 | BP77: =$BJ77*Y77 -> 0 | BQ77: =$BJ77*Z77 -> 0 | BR77: =$BJ77*AA77 -> 0 | BS77: =$BJ77*AB77 -> 0 | BT77: =$BJ77*AC77 -> 0 | BU77: =$BJ77*AD77 -> 0 | BV77: =$BJ77*AE77 -> 0 | BW77: =$BJ77*AF77 -> 0 | BX77: =$BJ77*AG77 -> 0 | BY77: =$BJ77*AH77 -> 0 | BZ77: =$BJ77*AI77 -> 0 | CA77: =$BJ77*AJ77 -> 0 | CB77: =$BJ77*AK77 -> 0 | CC77: =$BJ77*AL77 -> 0 | CD77: =F77/Q77 -> 679.5841795 | CE77: =I77/R77 -> 2265.833509 | CF77: =L77/S77 -> 79107.23942
A78: ='[1]Monthly Data'!A78 -> 2018-05-01 | B78: ='[1]Monthly Data'!B78 -> 2018 | C78: =MONTH(A78) -> 5 | D78: ='[1]Monthly Data'!D78 -> 8619745.154 | E78: ='[1]Monthly Data'!E78 -> 575271.5318 | F78: ='[1]Monthly Data'!F78 -> 9195016.686 | G78: ='[1]Monthly Data'!G78 -> 3545274.159 | H78: ='[1]Monthly Data'!H78 -> 263226.8338 | I78: ='[1]Monthly Data'!I78 -> 3808500.993 | J78: ='[1]Monthly Data'!J78 -> 10469681.68 | K78: ='[1]Monthly Data'!K78 -> 481211.6928 | L78: ='[1]Monthly Data'!L78 -> 10950893.37 | M78: ='[1]Monthly Data'!M78 -> 79424.87722 | N78: ='[1]Monthly Data'!N78 -> 33064.71335 | O78: ='[1]Monthly Data'!O78 -> 24841.78 | P78: ='[1]Monthly Data'!P78 -> 280.42 | Q78: ='[1]Monthly Data'!Q78 -> 15374 | R78: ='[1]Monthly Data'!R78 -> 1745 | S78: ='[1]Monthly Data'!S78 -> 127 | T78: ='[1]Monthly Data'!T78 -> 3136 | U78: ='[1]Monthly Data'!U78 -> 30 | V78: =[1]Weather!C198 -> 14.38709677 | W78: =[1]Weather!D198 -> 240.8 | X78: =[1]Weather!E198 -> 4.8 | Y78: =[1]Weather!F198 -> 187.7 | Z78: =[1]Weather!G198 -> 13.7 | AA78: =[1]Weather!H198 -> 138.8 | AB78: =[1]Weather!I198 -> 26.8 | AC78: =[1]Weather!J198 -> 95.5 | AD78: =[1]Weather!K198 -> 45.5 | AE78: =[1]Weather!L198 -> 59.6 | AF78: =[1]Weather!M198 -> 71.6 | AG78: =[1]Weather!N198 -> 32.2 | AH78: =[1]Weather!O198 -> 106.2 | AI78: =[1]Weather!P198 -> 14 | AJ78: =[1]Weather!Q198 -> 150 | AK78: =[1]Weather!R198 -> 5.9 | AL78: =[1]Weather!S198 -> 203.9 | AM78: =[1]Economic!C78 -> 732426.3 | AN78: =[1]Economic!D78 -> 7145.7 | AO78: =[1]Economic!E78 -> 7111 | AP78: =[1]Economic!F78 -> 109.4 | AQ78: =[1]Economic!G78 -> 107.9 | AR78: =AR30 -> 31 | AS78: 21 | AT78: =1+AT77 -> 77 | AU78: =AU66 -> 0 | AV78: =AV66 -> 0 | AW78: =AW66 -> 0 | AX78: =AX66 -> 0 | AY78: =AY66 -> 1 | AZ78: =AZ66 -> 0 | BA78: =BA66 -> 0 | BB78: =BB66 -> 0 | BC78: =BC66 -> 0 | BD78: =BD66 -> 0 | BE78: =BE66 -> 0 | BF78: =BF66 -> 0 | BG78: =BG66 -> 1 | BH78: =BH66 -> 0 | BI78: =BG78+BH78 -> 1 | BJ78: 0 | BK78: 0 | BL78: =BK78 -> 0 | BM78: =BM77 -> 0 | BN78: =$BJ78*W78 -> 0 | BO78: =$BJ78*X78 -> 0 | BP78: =$BJ78*Y78 -> 0 | BQ78: =$BJ78*Z78 -> 0 | BR78: =$BJ78*AA78 -> 0 | BS78: =$BJ78*AB78 -> 0 | BT78: =$BJ78*AC78 -> 0 | BU78: =$BJ78*AD78 -> 0 | BV78: =$BJ78*AE78 -> 0 | BW78: =$BJ78*AF78 -> 0 | BX78: =$BJ78*AG78 -> 0 | BY78: =$BJ78*AH78 -> 0 | BZ78: =$BJ78*AI78 -> 0 | CA78: =$BJ78*AJ78 -> 0 | CB78: =$BJ78*AK78 -> 0 | CC78: =$BJ78*AL78 -> 0 | CD78: =F78/Q78 -> 598.0887658 | CE78: =I78/R78 -> 2182.522059 | CF78: =L78/S78 -> 86227.50687
A79: ='[1]Monthly Data'!A79 -> 2018-06-01 | B79: ='[1]Monthly Data'!B79 -> 2018 | C79: =MONTH(A79) -> 6 | D79: ='[1]Monthly Data'!D79 -> 8910906.606 | E79: ='[1]Monthly Data'!E79 -> 575271.5318 | F79: ='[1]Monthly Data'!F79 -> 9486178.137 | G79: ='[1]Monthly Data'!G79 -> 3630673.82 | H79: ='[1]Monthly Data'!H79 -> 263226.8338 | I79: ='[1]Monthly Data'!I79 -> 3893900.654 | J79: ='[1]Monthly Data'!J79 -> 10520542.29 | K79: ='[1]Monthly Data'!K79 -> 481211.6928 | L79: ='[1]Monthly Data'!L79 -> 11001753.99 | M79: ='[1]Monthly Data'!M79 -> 70972.98708 | N79: ='[1]Monthly Data'!N79 -> 33761.11645 | O79: ='[1]Monthly Data'!O79 -> 26233.82 | P79: ='[1]Monthly Data'!P79 -> 280.42 | Q79: ='[1]Monthly Data'!Q79 -> 15358 | R79: ='[1]Monthly Data'!R79 -> 1749 | S79: ='[1]Monthly Data'!S79 -> 127 | T79: ='[1]Monthly Data'!T79 -> 3136 | U79: ='[1]Monthly Data'!U79 -> 30 | V79: =[1]Weather!C199 -> 16.78388785 | W79: =[1]Weather!D199 -> 166.3 | X79: =[1]Weather!E199 -> 9.8 | Y79: =[1]Weather!F199 -> 116.3 | Z79: =[1]Weather!G199 -> 19.8 | AA79: =[1]Weather!H199 -> 67.9 | AB79: =[1]Weather!I199 -> 31.4 | AC79: =[1]Weather!J199 -> 30.9 | AD79: =[1]Weather!K199 -> 54.4 | AE79: =[1]Weather!L199 -> 9.3 | AF79: =[1]Weather!M199 -> 92.8 | AG79: =[1]Weather!N199 -> 2.8 | AH79: =[1]Weather!O199 -> 146.3 | AI79: =[1]Weather!P199 -> 0 | AJ79: =[1]Weather!Q199 -> 203.5 | AK79: =[1]Weather!R199 -> 0 | AL79: =[1]Weather!S199 -> 263.5 | AM79: =[1]Economic!C79 -> 732426.3 | AN79: =[1]Economic!D79 -> 7158.5 | AO79: =[1]Economic!E79 -> 7203.7 | AP79: =[1]Economic!F79 -> 110 | AQ79: =[1]Economic!G79 -> 110 | AR79: =AR31 -> 30 | AS79: 22 | AT79: =1+AT78 -> 78 | AU79: =AU67 -> 0 | AV79: =AV67 -> 0 | AW79: =AW67 -> 0 | AX79: =AX67 -> 0 | AY79: =AY67 -> 0 | AZ79: =AZ67 -> 1 | BA79: =BA67 -> 0 | BB79: =BB67 -> 0 | BC79: =BC67 -> 0 | BD79: =BD67 -> 0 | BE79: =BE67 -> 0 | BF79: =BF67 -> 0 | BG79: =BG67 -> 0 | BH79: =BH67 -> 0 | BI79: =BG79+BH79 -> 0 | BJ79: 0 | BK79: 0 | BL79: =BK79 -> 0 | BM79: =BM78 -> 0 | BN79: =$BJ79*W79 -> 0 | BO79: =$BJ79*X79 -> 0 | BP79: =$BJ79*Y79 -> 0 | BQ79: =$BJ79*Z79 -> 0 | BR79: =$BJ79*AA79 -> 0 | BS79: =$BJ79*AB79 -> 0 | BT79: =$BJ79*AC79 -> 0 | BU79: =$BJ79*AD79 -> 0 | BV79: =$BJ79*AE79 -> 0 | BW79: =$BJ79*AF79 -> 0 | BX79: =$BJ79*AG79 -> 0 | BY79: =$BJ79*AH79 -> 0 | BZ79: =$BJ79*AI79 -> 0 | CA79: =$BJ79*AJ79 -> 0 | CB79: =$BJ79*AK79 -> 0 | CC79: =$BJ79*AL79 -> 0 | CD79: =F79/Q79 -> 617.6701483 | CE79: =I79/R79 -> 2226.358293 | CF79: =L79/S79 -> 86627.98415
A80: ='[1]Monthly Data'!A80 -> 2018-07-01 | B80: ='[1]Monthly Data'!B80 -> 2018 | C80: =MONTH(A80) -> 7 | D80: ='[1]Monthly Data'!D80 -> 10787521.69 | E80: ='[1]Monthly Data'!E80 -> 575271.5318 | F80: ='[1]Monthly Data'!F80 -> 11362793.22 | G80: ='[1]Monthly Data'!G80 -> 4072890.039 | H80: ='[1]Monthly Data'!H80 -> 263226.8338 | I80: ='[1]Monthly Data'!I80 -> 4336116.872 | J80: ='[1]Monthly Data'!J80 -> 11306706.94 | K80: ='[1]Monthly Data'!K80 -> 481211.6928 | L80: ='[1]Monthly Data'!L80 -> 11787918.63 | M80: ='[1]Monthly Data'!M80 -> 76150.20048 | N80: ='[1]Monthly Data'!N80 -> 31700.89756 | O80: ='[1]Monthly Data'!O80 -> 26759.03 | P80: ='[1]Monthly Data'!P80 -> 280.42 | Q80: ='[1]Monthly Data'!Q80 -> 15420 | R80: ='[1]Monthly Data'!R80 -> 1753 | S80: ='[1]Monthly Data'!S80 -> 128 | T80: ='[1]Monthly Data'!T80 -> 3136 | U80: ='[1]Monthly Data'!U80 -> 30 | V80: =[1]Weather!C200 -> 21.37096774 | W80: =[1]Weather!D200 -> 49.9 | X80: =[1]Weather!E200 -> 30.4 | Y80: =[1]Weather!F200 -> 20 | Z80: =[1]Weather!G200 -> 62.5 | AA80: =[1]Weather!H200 -> 4.8 | AB80: =[1]Weather!I200 -> 109.3 | AC80: =[1]Weather!J200 -> 0 | AD80: =[1]Weather!K200 -> 166.5 | AE80: =[1]Weather!L200 -> 0 | AF80: =[1]Weather!M200 -> 228.5 | AG80: =[1]Weather!N200 -> 0 | AH80: =[1]Weather!O200 -> 290.5 | AI80: =[1]Weather!P200 -> 0 | AJ80: =[1]Weather!Q200 -> 352.5 | AK80: =[1]Weather!R200 -> 0 | AL80: =[1]Weather!S200 -> 414.5 | AM80: =[1]Economic!C80 -> 732426.3 | AN80: =[1]Economic!D80 -> 7189.2 | AO80: =[1]Economic!E80 -> 7285.2 | AP80: =[1]Economic!F80 -> 111.8 | AQ80: =[1]Economic!G80 -> 114 | AR80: =AR32 -> 31 | AS80: 20 | AT80: =1+AT79 -> 79 | AU80: =AU68 -> 0 | AV80: =AV68 -> 0 | AW80: =AW68 -> 0 | AX80: =AX68 -> 0 | AY80: =AY68 -> 0 | AZ80: =AZ68 -> 0 | BA80: =BA68 -> 1 | BB80: =BB68 -> 0 | BC80: =BC68 -> 0 | BD80: =BD68 -> 0 | BE80: =BE68 -> 0 | BF80: =BF68 -> 0 | BG80: =BG68 -> 0 | BH80: =BH68 -> 0 | BI80: =BG80+BH80 -> 0 | BJ80: 0 | BK80: 0 | BL80: =BK80 -> 0 | BM80: =BM79 -> 0 | BN80: =$BJ80*W80 -> 0 | BO80: =$BJ80*X80 -> 0 | BP80: =$BJ80*Y80 -> 0 | BQ80: =$BJ80*Z80 -> 0 | BR80: =$BJ80*AA80 -> 0 | BS80: =$BJ80*AB80 -> 0 | BT80: =$BJ80*AC80 -> 0 | BU80: =$BJ80*AD80 -> 0 | BV80: =$BJ80*AE80 -> 0 | BW80: =$BJ80*AF80 -> 0 | BX80: =$BJ80*AG80 -> 0 | BY80: =$BJ80*AH80 -> 0 | BZ80: =$BJ80*AI80 -> 0 | CA80: =$BJ80*AJ80 -> 0 | CB80: =$BJ80*AK80 -> 0 | CC80: =$BJ80*AL80 -> 0 | CD80: =F80/Q80 -> 736.8867197 | CE80: =I80/R80 -> 2473.540714 | CF80: =L80/S80 -> 92093.11432
A81: ='[1]Monthly Data'!A81 -> 2018-08-01 | B81: ='[1]Monthly Data'!B81 -> 2018 | C81: =MONTH(A81) -> 8 | D81: ='[1]Monthly Data'!D81 -> 10868070.74 | E81: ='[1]Monthly Data'!E81 -> 575271.5318 | F81: ='[1]Monthly Data'!F81 -> 11443342.27 | G81: ='[1]Monthly Data'!G81 -> 4102194.031 | H81: ='[1]Monthly Data'!H81 -> 263226.8338 | I81: ='[1]Monthly Data'!I81 -> 4365420.864 | J81: ='[1]Monthly Data'!J81 -> 11053462.96 | K81: ='[1]Monthly Data'!K81 -> 481211.6928 | L81: ='[1]Monthly Data'!L81 -> 11534674.65 | M81: ='[1]Monthly Data'!M81 -> 86087.93018 | N81: ='[1]Monthly Data'!N81 -> 34194.05742 | O81: ='[1]Monthly Data'!O81 -> 27108.51 | P81: ='[1]Monthly Data'!P81 -> 280.42 | Q81: ='[1]Monthly Data'!Q81 -> 15379 | R81: ='[1]Monthly Data'!R81 -> 1749 | S81: ='[1]Monthly Data'!S81 -> 126 | T81: ='[1]Monthly Data'!T81 -> 3136 | U81: ='[1]Monthly Data'!U81 -> 30 | V81: =[1]Weather!C201 -> 21.81935484 | W81: =[1]Weather!D201 -> 30.8 | X81: =[1]Weather!E201 -> 25.2 | Y81: =[1]Weather!F201 -> 10 | Z81: =[1]Weather!G201 -> 66.4 | AA81: =[1]Weather!H201 -> 3.7 | AB81: =[1]Weather!I201 -> 122.1 | AC81: =[1]Weather!J201 -> 1.1 | AD81: =[1]Weather!K201 -> 181.5 | AE81: =[1]Weather!L201 -> 0 | AF81: =[1]Weather!M201 -> 242.4 | AG81: =[1]Weather!N201 -> 0 | AH81: =[1]Weather!O201 -> 304.4 | AI81: =[1]Weather!P201 -> 0 | AJ81: =[1]Weather!Q201 -> 366.4 | AK81: =[1]Weather!R201 -> 0 | AL81: =[1]Weather!S201 -> 428.4 | AM81: =[1]Economic!C81 -> 732426.3 | AN81: =[1]Economic!D81 -> 7191.8 | AO81: =[1]Economic!E81 -> 7290.7 | AP81: =[1]Economic!F81 -> 114 | AQ81: =[1]Economic!G81 -> 117 | AR81: =AR33 -> 31 | AS81: 22 | AT81: =1+AT80 -> 80 | AU81: =AU69 -> 0 | AV81: =AV69 -> 0 | AW81: =AW69 -> 0 | AX81: =AX69 -> 0 | AY81: =AY69 -> 0 | AZ81: =AZ69 -> 0 | BA81: =BA69 -> 0 | BB81: =BB69 -> 1 | BC81: =BC69 -> 0 | BD81: =BD69 -> 0 | BE81: =BE69 -> 0 | BF81: =BF69 -> 0 | BG81: =BG69 -> 0 | BH81: =BH69 -> 0 | BI81: =BG81+BH81 -> 0 | BJ81: 0 | BK81: 0 | BL81: =BK81 -> 0 | BM81: =BM80 -> 0 | BN81: =$BJ81*W81 -> 0 | BO81: =$BJ81*X81 -> 0 | BP81: =$BJ81*Y81 -> 0 | BQ81: =$BJ81*Z81 -> 0 | BR81: =$BJ81*AA81 -> 0 | BS81: =$BJ81*AB81 -> 0 | BT81: =$BJ81*AC81 -> 0 | BU81: =$BJ81*AD81 -> 0 | BV81: =$BJ81*AE81 -> 0 | BW81: =$BJ81*AF81 -> 0 | BX81: =$BJ81*AG81 -> 0 | BY81: =$BJ81*AH81 -> 0 | BZ81: =$BJ81*AI81 -> 0 | CA81: =$BJ81*AJ81 -> 0 | CB81: =$BJ81*AK81 -> 0 | CC81: =$BJ81*AL81 -> 0 | CD81: =F81/Q81 -> 744.0888402 | CE81: =I81/R81 -> 2495.952467 | CF81: =L81/S81 -> 91545.0369
A82: ='[1]Monthly Data'!A82 -> 2018-09-01 | B82: ='[1]Monthly Data'!B82 -> 2018 | C82: =MONTH(A82) -> 9 | D82: ='[1]Monthly Data'!D82 -> 8995048.054 | E82: ='[1]Monthly Data'!E82 -> 575271.5318 | F82: ='[1]Monthly Data'!F82 -> 9570319.586 | G82: ='[1]Monthly Data'!G82 -> 3619310.064 | H82: ='[1]Monthly Data'!H82 -> 263226.8338 | I82: ='[1]Monthly Data'!I82 -> 3882536.898 | J82: ='[1]Monthly Data'!J82 -> 10606362.11 | K82: ='[1]Monthly Data'!K82 -> 481211.6928 | L82: ='[1]Monthly Data'!L82 -> 11087573.8 | M82: ='[1]Monthly Data'!M82 -> 95720.14323 | N82: ='[1]Monthly Data'!N82 -> 33715.36428 | O82: ='[1]Monthly Data'!O82 -> 26728.81 | P82: ='[1]Monthly Data'!P82 -> 280.42 | Q82: ='[1]Monthly Data'!Q82 -> 15441 | R82: ='[1]Monthly Data'!R82 -> 1762 | S82: ='[1]Monthly Data'!S82 -> 125 | T82: ='[1]Monthly Data'!T82 -> 3136 | U82: ='[1]Monthly Data'!U82 -> 30 | V82: =[1]Weather!C202 -> 17.29666667 | W82: =[1]Weather!D202 -> 154.5 | X82: =[1]Weather!E202 -> 13.4 | Y82: =[1]Weather!F202 -> 112.3 | Z82: =[1]Weather!G202 -> 31.2 | AA82: =[1]Weather!H202 -> 75.9 | AB82: =[1]Weather!I202 -> 54.8 | AC82: =[1]Weather!J202 -> 43.7 | AD82: =[1]Weather!K202 -> 82.6 | AE82: =[1]Weather!L202 -> 20 | AF82: =[1]Weather!M202 -> 118.9 | AG82: =[1]Weather!N202 -> 6.6 | AH82: =[1]Weather!O202 -> 165.5 | AI82: =[1]Weather!P202 -> 1.2 | AJ82: =[1]Weather!Q202 -> 220.1 | AK82: =[1]Weather!R202 -> 0 | AL82: =[1]Weather!S202 -> 278.9 | AM82: =[1]Economic!C82 -> 732426.3 | AN82: =[1]Economic!D82 -> 7195.6 | AO82: =[1]Economic!E82 -> 7249.1 | AP82: =[1]Economic!F82 -> 116.1 | AQ82: =[1]Economic!G82 -> 118.6 | AR82: =AR34 -> 30 | AS82: 21 | AT82: =1+AT81 -> 81 | AU82: =AU70 -> 0 | AV82: =AV70 -> 0 | AW82: =AW70 -> 0 | AX82: =AX70 -> 0 | AY82: =AY70 -> 0 | AZ82: =AZ70 -> 0 | BA82: =BA70 -> 0 | BB82: =BB70 -> 0 | BC82: =BC70 -> 1 | BD82: =BD70 -> 0 | BE82: =BE70 -> 0 | BF82: =BF70 -> 0 | BG82: =BG70 -> 0 | BH82: =BH70 -> 1 | BI82: =BG82+BH82 -> 1 | BJ82: 0 | BK82: 0 | BL82: =BK82 -> 0 | BM82: =BM81 -> 0 | BN82: =$BJ82*W82 -> 0 | BO82: =$BJ82*X82 -> 0 | BP82: =$BJ82*Y82 -> 0 | BQ82: =$BJ82*Z82 -> 0 | BR82: =$BJ82*AA82 -> 0 | BS82: =$BJ82*AB82 -> 0 | BT82: =$BJ82*AC82 -> 0 | BU82: =$BJ82*AD82 -> 0 | BV82: =$BJ82*AE82 -> 0 | BW82: =$BJ82*AF82 -> 0 | BX82: =$BJ82*AG82 -> 0 | BY82: =$BJ82*AH82 -> 0 | BZ82: =$BJ82*AI82 -> 0 | CA82: =$BJ82*AJ82 -> 0 | CB82: =$BJ82*AK82 -> 0 | CC82: =$BJ82*AL82 -> 0 | CD82: =F82/Q82 -> 619.799209 | CE82: =I82/R82 -> 2203.482916 | CF82: =L82/S82 -> 88700.5904
A83: ='[1]Monthly Data'!A83 -> 2018-10-01 | B83: ='[1]Monthly Data'!B83 -> 2018 | C83: =MONTH(A83) -> 10 | D83: ='[1]Monthly Data'!D83 -> 9113753.875 | E83: ='[1]Monthly Data'!E83 -> 575271.5318 | F83: ='[1]Monthly Data'!F83 -> 9689025.407 | G83: ='[1]Monthly Data'!G83 -> 3571668.753 | H83: ='[1]Monthly Data'!H83 -> 263226.8338 | I83: ='[1]Monthly Data'!I83 -> 3834895.587 | J83: ='[1]Monthly Data'!J83 -> 10844362.25 | K83: ='[1]Monthly Data'!K83 -> 481211.6928 | L83: ='[1]Monthly Data'!L83 -> 11325573.94 | M83: ='[1]Monthly Data'!M83 -> 112274.1012 | N83: ='[1]Monthly Data'!N83 -> 31672.80946 | O83: ='[1]Monthly Data'!O83 -> 28215.66 | P83: ='[1]Monthly Data'!P83 -> 280.42 | Q83: ='[1]Monthly Data'!Q83 -> 15434 | R83: ='[1]Monthly Data'!R83 -> 1757 | S83: ='[1]Monthly Data'!S83 -> 127 | T83: ='[1]Monthly Data'!T83 -> 3136 | U83: ='[1]Monthly Data'!U83 -> 30 | V83: =[1]Weather!C203 -> 8.953225806 | W83: =[1]Weather!D203 -> 409.1 | X83: =[1]Weather!E203 -> 4.6 | Y83: =[1]Weather!F203 -> 351.1 | Z83: =[1]Weather!G203 -> 8.6 | AA83: =[1]Weather!H203 -> 293.1 | AB83: =[1]Weather!I203 -> 12.6 | AC83: =[1]Weather!J203 -> 235.6 | AD83: =[1]Weather!K203 -> 17.1 | AE83: =[1]Weather!L203 -> 182.4 | AF83: =[1]Weather!M203 -> 25.9 | AG83: =[1]Weather!N203 -> 135.1 | AH83: =[1]Weather!O203 -> 40.6 | AI83: =[1]Weather!P203 -> 90.6 | AJ83: =[1]Weather!Q203 -> 58.1 | AK83: =[1]Weather!R203 -> 52 | AL83: =[1]Weather!S203 -> 81.5 | AM83: =[1]Economic!C83 -> 732426.3 | AN83: =[1]Economic!D83 -> 7181.8 | AO83: =[1]Economic!E83 -> 7206.5 | AP83: =[1]Economic!F83 -> 116 | AQ83: =[1]Economic!G83 -> 118.5 | AR83: =AR35 -> 31 | AS83: 20 | AT83: =1+AT82 -> 82 | AU83: =AU71 -> 0 | AV83: =AV71 -> 0 | AW83: =AW71 -> 0 | AX83: =AX71 -> 0 | AY83: =AY71 -> 0 | AZ83: =AZ71 -> 0 | BA83: =BA71 -> 0 | BB83: =BB71 -> 0 | BC83: =BC71 -> 0 | BD83: =BD71 -> 1 | BE83: =BE71 -> 0 | BF83: =BF71 -> 0 | BG83: =BG71 -> 0 | BH83: =BH71 -> 1 | BI83: =BG83+BH83 -> 1 | BJ83: 0 | BK83: 0 | BL83: =BK83 -> 0 | BM83: =BM82 -> 0 | BN83: =$BJ83*W83 -> 0 | BO83: =$BJ83*X83 -> 0 | BP83: =$BJ83*Y83 -> 0 | BQ83: =$BJ83*Z83 -> 0 | BR83: =$BJ83*AA83 -> 0 | BS83: =$BJ83*AB83 -> 0 | BT83: =$BJ83*AC83 -> 0 | BU83: =$BJ83*AD83 -> 0 | BV83: =$BJ83*AE83 -> 0 | BW83: =$BJ83*AF83 -> 0 | BX83: =$BJ83*AG83 -> 0 | BY83: =$BJ83*AH83 -> 0 | BZ83: =$BJ83*AI83 -> 0 | CA83: =$BJ83*AJ83 -> 0 | CB83: =$BJ83*AK83 -> 0 | CC83: =$BJ83*AL83 -> 0 | CD83: =F83/Q83 -> 627.7715049 | CE83: =I83/R83 -> 2182.638353 | CF83: =L83/S83 -> 89177.7476
A84: ='[1]Monthly Data'!A84 -> 2018-11-01 | B84: ='[1]Monthly Data'!B84 -> 2018 | C84: =MONTH(A84) -> 11 | D84: ='[1]Monthly Data'!D84 -> 10631086.82 | E84: ='[1]Monthly Data'!E84 -> 575271.5318 | F84: ='[1]Monthly Data'!F84 -> 11206358.36 | G84: ='[1]Monthly Data'!G84 -> 3898850.274 | H84: ='[1]Monthly Data'!H84 -> 263226.8338 | I84: ='[1]Monthly Data'!I84 -> 4162077.108 | J84: ='[1]Monthly Data'!J84 -> 10980433.19 | K84: ='[1]Monthly Data'!K84 -> 481211.6928 | L84: ='[1]Monthly Data'!L84 -> 11461644.89 | M84: ='[1]Monthly Data'!M84 -> 120061.0746 | N84: ='[1]Monthly Data'!N84 -> 33652.60964 | O84: ='[1]Monthly Data'!O84 -> 26456.25 | P84: ='[1]Monthly Data'!P84 -> 280.42 | Q84: ='[1]Monthly Data'!Q84 -> 15487 | R84: ='[1]Monthly Data'!R84 -> 1764 | S84: ='[1]Monthly Data'!S84 -> 124 | T84: ='[1]Monthly Data'!T84 -> 3136 | U84: ='[1]Monthly Data'!U84 -> 30 | V84: =[1]Weather!C204 -> 1.233333333 | W84: =[1]Weather!D204 -> 623 | X84: =[1]Weather!E204 -> 0 | Y84: =[1]Weather!F204 -> 563 | Z84: =[1]Weather!G204 -> 0 | AA84: =[1]Weather!H204 -> 503 | AB84: =[1]Weather!I204 -> 0 | AC84: =[1]Weather!J204 -> 443 | AD84: =[1]Weather!K204 -> 0 | AE84: =[1]Weather!L204 -> 383 | AF84: =[1]Weather!M204 -> 0 | AG84: =[1]Weather!N204 -> 323 | AH84: =[1]Weather!O204 -> 0 | AI84: =[1]Weather!P204 -> 264.3 | AJ84: =[1]Weather!Q204 -> 1.3 | AK84: =[1]Weather!R204 -> 206.3 | AL84: =[1]Weather!S204 -> 3.3 | AM84: =[1]Economic!C84 -> 732426.3 | AN84: =[1]Economic!D84 -> 7204.8 | AO84: =[1]Economic!E84 -> 7207.4 | AP84: =[1]Economic!F84 -> 115.8 | AQ84: =[1]Economic!G84 -> 117.9 | AR84: =AR36 -> 30 | AS84: 21 | AT84: =1+AT83 -> 83 | AU84: =AU72 -> 0 | AV84: =AV72 -> 0 | AW84: =AW72 -> 0 | AX84: =AX72 -> 0 | AY84: =AY72 -> 0 | AZ84: =AZ72 -> 0 | BA84: =BA72 -> 0 | BB84: =BB72 -> 0 | BC84: =BC72 -> 0 | BD84: =BD72 -> 0 | BE84: =BE72 -> 1 | BF84: =BF72 -> 0 | BG84: =BG72 -> 0 | BH84: =BH72 -> 1 | BI84: =BG84+BH84 -> 1 | BJ84: 0 | BK84: 0 | BL84: =BK84 -> 0 | BM84: =BM83 -> 0 | BN84: =$BJ84*W84 -> 0 | BO84: =$BJ84*X84 -> 0 | BP84: =$BJ84*Y84 -> 0 | BQ84: =$BJ84*Z84 -> 0 | BR84: =$BJ84*AA84 -> 0 | BS84: =$BJ84*AB84 -> 0 | BT84: =$BJ84*AC84 -> 0 | BU84: =$BJ84*AD84 -> 0 | BV84: =$BJ84*AE84 -> 0 | BW84: =$BJ84*AF84 -> 0 | BX84: =$BJ84*AG84 -> 0 | BY84: =$BJ84*AH84 -> 0 | BZ84: =$BJ84*AI84 -> 0 | CA84: =$BJ84*AJ84 -> 0 | CB84: =$BJ84*AK84 -> 0 | CC84: =$BJ84*AL84 -> 0 | CD84: =F84/Q84 -> 723.5977501 | CE84: =I84/R84 -> 2359.454143 | CF84: =L84/S84 -> 92432.62004
A85: ='[1]Monthly Data'!A85 -> 2018-12-01 | B85: ='[1]Monthly Data'!B85 -> 2018 | C85: =MONTH(A85) -> 12 | D85: ='[1]Monthly Data'!D85 -> 12518380.89 | E85: ='[1]Monthly Data'!E85 -> 575271.5318 | F85: ='[1]Monthly Data'!F85 -> 13093652.42 | G85: ='[1]Monthly Data'!G85 -> 4282117.56 | H85: ='[1]Monthly Data'!H85 -> 263226.8338 | I85: ='[1]Monthly Data'!I85 -> 4545344.394 | J85: ='[1]Monthly Data'!J85 -> 10851681.69 | K85: ='[1]Monthly Data'!K85 -> 481211.6928 | L85: ='[1]Monthly Data'!L85 -> 11332893.38 | M85: ='[1]Monthly Data'!M85 -> 131040.2865 | N85: ='[1]Monthly Data'!N85 -> 34772.94511 | O85: ='[1]Monthly Data'!O85 -> 25146.9 | P85: ='[1]Monthly Data'!P85 -> 280.42 | Q85: ='[1]Monthly Data'!Q85 -> 15461 | R85: ='[1]Monthly Data'!R85 -> 1753 | S85: ='[1]Monthly Data'!S85 -> 125 | T85: ='[1]Monthly Data'!T85 -> 3136 | U85: ='[1]Monthly Data'!U85 -> 30 | V85: =[1]Weather!C205 -> -0.9774193548 | W85: =[1]Weather!D205 -> 712.3 | X85: =[1]Weather!E205 -> 0 | Y85: =[1]Weather!F205 -> 650.3 | Z85: =[1]Weather!G205 -> 0 | AA85: =[1]Weather!H205 -> 588.3 | AB85: =[1]Weather!I205 -> 0 | AC85: =[1]Weather!J205 -> 526.3 | AD85: =[1]Weather!K205 -> 0 | AE85: =[1]Weather!L205 -> 464.3 | AF85: =[1]Weather!M205 -> 0 | AG85: =[1]Weather!N205 -> 402.3 | AH85: =[1]Weather!O205 -> 0 | AI85: =[1]Weather!P205 -> 340.3 | AJ85: =[1]Weather!Q205 -> 0 | AK85: =[1]Weather!R205 -> 278.3 | AL85: =[1]Weather!S205 -> 0 | AM85: =[1]Economic!C85 -> 732426.3 | AN85: =[1]Economic!D85 -> 7216.7 | AO85: =[1]Economic!E85 -> 7227.2 | AP85: =[1]Economic!F85 -> 115 | AQ85: =[1]Economic!G85 -> 116.7 | AR85: =AR37 -> 31 | AS85: 21 | AT85: =1+AT84 -> 84 | AU85: =AU73 -> 0 | AV85: =AV73 -> 0 | AW85: =AW73 -> 0 | AX85: =AX73 -> 0 | AY85: =AY73 -> 0 | AZ85: =AZ73 -> 0 | BA85: =BA73 -> 0 | BB85: =BB73 -> 0 | BC85: =BC73 -> 0 | BD85: =BD73 -> 0 | BE85: =BE73 -> 0 | BF85: =BF73 -> 1 | BG85: =BG73 -> 0 | BH85: =BH73 -> 0 | BI85: =BG85+BH85 -> 0 | BJ85: 0 | BK85: 0 | BL85: =BK85 -> 0 | BM85: =BM84 -> 0 | BN85: =$BJ85*W85 -> 0 | BO85: =$BJ85*X85 -> 0 | BP85: =$BJ85*Y85 -> 0 | BQ85: =$BJ85*Z85 -> 0 | BR85: =$BJ85*AA85 -> 0 | BS85: =$BJ85*AB85 -> 0 | BT85: =$BJ85*AC85 -> 0 | BU85: =$BJ85*AD85 -> 0 | BV85: =$BJ85*AE85 -> 0 | BW85: =$BJ85*AF85 -> 0 | BX85: =$BJ85*AG85 -> 0 | BY85: =$BJ85*AH85 -> 0 | BZ85: =$BJ85*AI85 -> 0 | CA85: =$BJ85*AJ85 -> 0 | CB85: =$BJ85*AK85 -> 0 | CC85: =$BJ85*AL85 -> 0 | CD85: =F85/Q85 -> 846.8826351 | CE85: =I85/R85 -> 2592.894691 | CF85: =L85/S85 -> 90663.14703
A86: ='[1]Monthly Data'!A86 -> 2019-01-01 | B86: ='[1]Monthly Data'!B86 -> 2019 | C86: =MONTH(A86) -> 1 | D86: ='[1]Monthly Data'!D86 -> 13960982.81 | E86: ='[1]Monthly Data'!E86 -> 605813.8379 | F86: ='[1]Monthly Data'!F86 -> 14566796.65 | G86: ='[1]Monthly Data'!G86 -> 4609255.608 | H86: ='[1]Monthly Data'!H86 -> 270693.9947 | I86: ='[1]Monthly Data'!I86 -> 4879949.603 | J86: ='[1]Monthly Data'!J86 -> 11617271.76 | K86: ='[1]Monthly Data'!K86 -> 578682.5547 | L86: ='[1]Monthly Data'!L86 -> 12195954.31 | M86: ='[1]Monthly Data'!M86 -> 127626.9495 | N86: ='[1]Monthly Data'!N86 -> 31844.40536 | O86: ='[1]Monthly Data'!O86 -> 25522.16 | P86: ='[1]Monthly Data'!P86 -> 280.42 | Q86: ='[1]Monthly Data'!Q86 -> 15584.5 | R86: ='[1]Monthly Data'!R86 -> 1756.5 | S86: ='[1]Monthly Data'!S86 -> 125 | T86: ='[1]Monthly Data'!T86 -> 3136 | U86: ='[1]Monthly Data'!U86 -> 30 | V86: =[1]Weather!C206 -> -7.093548387 | W86: =[1]Weather!D206 -> 901.9 | X86: =[1]Weather!E206 -> 0 | Y86: =[1]Weather!F206 -> 839.9 | Z86: =[1]Weather!G206 -> 0 | AA86: =[1]Weather!H206 -> 777.9 | AB86: =[1]Weather!I206 -> 0 | AC86: =[1]Weather!J206 -> 715.9 | AD86: =[1]Weather!K206 -> 0 | AE86: =[1]Weather!L206 -> 653.9 | AF86: =[1]Weather!M206 -> 0 | AG86: =[1]Weather!N206 -> 591.9 | AH86: =[1]Weather!O206 -> 0 | AI86: =[1]Weather!P206 -> 529.9 | AJ86: =[1]Weather!Q206 -> 0 | AK86: =[1]Weather!R206 -> 467.9 | AL86: =[1]Weather!S206 -> 0 | AM86: =[1]Economic!C86 -> 747589.4 | AN86: =[1]Economic!D86 -> 7242.3 | AO86: =[1]Economic!E86 -> 7214.9 | AP86: =[1]Economic!F86 -> 115.7 | AQ86: =[1]Economic!G86 -> 115.1 | AR86: =AR38 -> 31 | AS86: 21 | AT86: =1+AT85 -> 85 | AU86: =AU74 -> 1 | AV86: =AV74 -> 0 | AW86: =AW74 -> 0 | AX86: =AX74 -> 0 | AY86: =AY74 -> 0 | AZ86: =AZ74 -> 0 | BA86: =BA74 -> 0 | BB86: =BB74 -> 0 | BC86: =BC74 -> 0 | BD86: =BD74 -> 0 | BE86: =BE74 -> 0 | BF86: =BF74 -> 0 | BG86: =BG74 -> 0 | BH86: =BH74 -> 0 | BI86: =BG86+BH86 -> 0 | BJ86: 0 | BK86: 0 | BL86: =BK86 -> 0 | BM86: =BM85 -> 0 | BN86: =$BJ86*W86 -> 0 | BO86: =$BJ86*X86 -> 0 | BP86: =$BJ86*Y86 -> 0 | BQ86: =$BJ86*Z86 -> 0 | BR86: =$BJ86*AA86 -> 0 | BS86: =$BJ86*AB86 -> 0 | BT86: =$BJ86*AC86 -> 0 | BU86: =$BJ86*AD86 -> 0 | BV86: =$BJ86*AE86 -> 0 | BW86: =$BJ86*AF86 -> 0 | BX86: =$BJ86*AG86 -> 0 | BY86: =$BJ86*AH86 -> 0 | BZ86: =$BJ86*AI86 -> 0 | CA86: =$BJ86*AJ86 -> 0 | CB86: =$BJ86*AK86 -> 0 | CC86: =$BJ86*AL86 -> 0 | CD86: =F86/Q86 -> 934.6977219 | CE86: =I86/R86 -> 2778.223514 | CF86: =L86/S86 -> 97567.6345
A87: ='[1]Monthly Data'!A87 -> 2019-02-01 | B87: ='[1]Monthly Data'!B87 -> 2019 | C87: =MONTH(A87) -> 2 | D87: ='[1]Monthly Data'!D87 -> 12392903.76 | E87: ='[1]Monthly Data'!E87 -> 605813.8379 | F87: ='[1]Monthly Data'!F87 -> 12998717.6 | G87: ='[1]Monthly Data'!G87 -> 4226698.756 | H87: ='[1]Monthly Data'!H87 -> 270693.9947 | I87: ='[1]Monthly Data'!I87 -> 4497392.751 | J87: ='[1]Monthly Data'!J87 -> 10508434.24 | K87: ='[1]Monthly Data'!K87 -> 578682.5547 | L87: ='[1]Monthly Data'!L87 -> 11087116.8 | M87: ='[1]Monthly Data'!M87 -> 106189.0285 | N87: ='[1]Monthly Data'!N87 -> 31804.43984 | O87: ='[1]Monthly Data'!O87 -> 25897.03 | P87: ='[1]Monthly Data'!P87 -> 281.16 | Q87: ='[1]Monthly Data'!Q87 -> 15584.5 | R87: ='[1]Monthly Data'!R87 -> 1756.5 | S87: ='[1]Monthly Data'!S87 -> 124 | T87: ='[1]Monthly Data'!T87 -> 3261 | U87: ='[1]Monthly Data'!U87 -> 30 | V87: =[1]Weather!C207 -> -4.657142857 | W87: =[1]Weather!D207 -> 746.4 | X87: =[1]Weather!E207 -> 0 | Y87: =[1]Weather!F207 -> 690.4 | Z87: =[1]Weather!G207 -> 0 | AA87: =[1]Weather!H207 -> 634.4 | AB87: =[1]Weather!I207 -> 0 | AC87: =[1]Weather!J207 -> 578.4 | AD87: =[1]Weather!K207 -> 0 | AE87: =[1]Weather!L207 -> 522.4 | AF87: =[1]Weather!M207 -> 0 | AG87: =[1]Weather!N207 -> 466.4 | AH87: =[1]Weather!O207 -> 0 | AI87: =[1]Weather!P207 -> 410.4 | AJ87: =[1]Weather!Q207 -> 0 | AK87: =[1]Weather!R207 -> 354.9 | AL87: =[1]Weather!S207 -> 0.5 | AM87: =[1]Economic!C87 -> 747589.4 | AN87: =[1]Economic!D87 -> 7272.1 | AO87: =[1]Economic!E87 -> 7205 | AP87: =[1]Economic!F87 -> 115.6 | AQ87: =[1]Economic!G87 -> 113.1 | AR87: =AR39 -> 28 | AS87: 19 | AT87: =1+AT86 -> 86 | AU87: =AU75 -> 0 | AV87: =AV75 -> 1 | AW87: =AW75 -> 0 | AX87: =AX75 -> 0 | AY87: =AY75 -> 0 | AZ87: =AZ75 -> 0 | BA87: =BA75 -> 0 | BB87: =BB75 -> 0 | BC87: =BC75 -> 0 | BD87: =BD75 -> 0 | BE87: =BE75 -> 0 | BF87: =BF75 -> 0 | BG87: =BG75 -> 0 | BH87: =BH75 -> 0 | BI87: =BG87+BH87 -> 0 | BJ87: 0 | BK87: 0 | BL87: =BK87 -> 0 | BM87: =BM86 -> 0 | BN87: =$BJ87*W87 -> 0 | BO87: =$BJ87*X87 -> 0 | BP87: =$BJ87*Y87 -> 0 | BQ87: =$BJ87*Z87 -> 0 | BR87: =$BJ87*AA87 -> 0 | BS87: =$BJ87*AB87 -> 0 | BT87: =$BJ87*AC87 -> 0 | BU87: =$BJ87*AD87 -> 0 | BV87: =$BJ87*AE87 -> 0 | BW87: =$BJ87*AF87 -> 0 | BX87: =$BJ87*AG87 -> 0 | BY87: =$BJ87*AH87 -> 0 | BZ87: =$BJ87*AI87 -> 0 | CA87: =$BJ87*AJ87 -> 0 | CB87: =$BJ87*AK87 -> 0 | CC87: =$BJ87*AL87 -> 0 | CD87: =F87/Q87 -> 834.0798614 | CE87: =I87/R87 -> 2560.428551 | CF87: =L87/S87 -> 89412.23223
A88: ='[1]Monthly Data'!A88 -> 2019-03-01 | B88: ='[1]Monthly Data'!B88 -> 2019 | C88: =MONTH(A88) -> 3 | D88: ='[1]Monthly Data'!D88 -> 12063604.82 | E88: ='[1]Monthly Data'!E88 -> 605813.8379 | F88: ='[1]Monthly Data'!F88 -> 12669418.66 | G88: ='[1]Monthly Data'!G88 -> 4292846.575 | H88: ='[1]Monthly Data'!H88 -> 270693.9947 | I88: ='[1]Monthly Data'!I88 -> 4563540.57 | J88: ='[1]Monthly Data'!J88 -> 11100930.96 | K88: ='[1]Monthly Data'!K88 -> 578682.5547 | L88: ='[1]Monthly Data'!L88 -> 11679613.51 | M88: ='[1]Monthly Data'!M88 -> 104703.198 | N88: ='[1]Monthly Data'!N88 -> 34386.91383 | O88: ='[1]Monthly Data'!O88 -> 26683.68 | P88: ='[1]Monthly Data'!P88 -> 281.16 | Q88: ='[1]Monthly Data'!Q88 -> 15572 | R88: ='[1]Monthly Data'!R88 -> 1761 | S88: ='[1]Monthly Data'!S88 -> 124 | T88: ='[1]Monthly Data'!T88 -> 3261 | U88: ='[1]Monthly Data'!U88 -> 30 | V88: =[1]Weather!C208 -> -1.717741935 | W88: =[1]Weather!D208 -> 735.3 | X88: =[1]Weather!E208 -> 0 | Y88: =[1]Weather!F208 -> 673.3 | Z88: =[1]Weather!G208 -> 0 | AA88: =[1]Weather!H208 -> 611.3 | AB88: =[1]Weather!I208 -> 0 | AC88: =[1]Weather!J208 -> 549.3 | AD88: =[1]Weather!K208 -> 0 | AE88: =[1]Weather!L208 -> 487.3 | AF88: =[1]Weather!M208 -> 0 | AG88: =[1]Weather!N208 -> 425.3 | AH88: =[1]Weather!O208 -> 0 | AI88: =[1]Weather!P208 -> 363.3 | AJ88: =[1]Weather!Q208 -> 0 | AK88: =[1]Weather!R208 -> 301.3 | AL88: =[1]Weather!S208 -> 0 | AM88: =[1]Economic!C88 -> 747589.4 | AN88: =[1]Economic!D88 -> 7294 | AO88: =[1]Economic!E88 -> 7185 | AP88: =[1]Economic!F88 -> 115.6 | AQ88: =[1]Economic!G88 -> 112.4 | AR88: =AR40 -> 31 | AS88: 23 | AT88: =1+AT87 -> 87 | AU88: =AU76 -> 0 | AV88: =AV76 -> 0 | AW88: =AW76 -> 1 | AX88: =AX76 -> 0 | AY88: =AY76 -> 0 | AZ88: =AZ76 -> 0 | BA88: =BA76 -> 0 | BB88: =BB76 -> 0 | BC88: =BC76 -> 0 | BD88: =BD76 -> 0 | BE88: =BE76 -> 0 | BF88: =BF76 -> 0 | BG88: =BG76 -> 1 | BH88: =BH76 -> 0 | BI88: =BG88+BH88 -> 1 | BJ88: 0 | BK88: 0 | BL88: =BK88 -> 0 | BM88: =BM87 -> 0 | BN88: =$BJ88*W88 -> 0 | BO88: =$BJ88*X88 -> 0 | BP88: =$BJ88*Y88 -> 0 | BQ88: =$BJ88*Z88 -> 0 | BR88: =$BJ88*AA88 -> 0 | BS88: =$BJ88*AB88 -> 0 | BT88: =$BJ88*AC88 -> 0 | BU88: =$BJ88*AD88 -> 0 | BV88: =$BJ88*AE88 -> 0 | BW88: =$BJ88*AF88 -> 0 | BX88: =$BJ88*AG88 -> 0 | BY88: =$BJ88*AH88 -> 0 | BZ88: =$BJ88*AI88 -> 0 | CA88: =$BJ88*AJ88 -> 0 | CB88: =$BJ88*AK88 -> 0 | CC88: =$BJ88*AL88 -> 0 | CD88: =F88/Q88 -> 813.6025342 | CE88: =I88/R88 -> 2591.448364 | CF88: =L88/S88 -> 94190.43154
A89: ='[1]Monthly Data'!A89 -> 2019-04-01 | B89: ='[1]Monthly Data'!B89 -> 2019 | C89: =MONTH(A89) -> 4 | D89: ='[1]Monthly Data'!D89 -> 9719917.227 | E89: ='[1]Monthly Data'!E89 -> 605813.8379 | F89: ='[1]Monthly Data'!F89 -> 10325731.06 | G89: ='[1]Monthly Data'!G89 -> 3630067.614 | H89: ='[1]Monthly Data'!H89 -> 270693.9947 | I89: ='[1]Monthly Data'!I89 -> 3900761.609 | J89: ='[1]Monthly Data'!J89 -> 10142281.58 | K89: ='[1]Monthly Data'!K89 -> 578682.5547 | L89: ='[1]Monthly Data'!L89 -> 10720964.13 | M89: ='[1]Monthly Data'!M89 -> 88274.92259 | N89: ='[1]Monthly Data'!N89 -> 31113.86775 | O89: ='[1]Monthly Data'!O89 -> 25221.12 | P89: ='[1]Monthly Data'!P89 -> 281.16 | Q89: ='[1]Monthly Data'!Q89 -> 15622 | R89: ='[1]Monthly Data'!R89 -> 1761 | S89: ='[1]Monthly Data'!S89 -> 124 | T89: ='[1]Monthly Data'!T89 -> 3261 | U89: ='[1]Monthly Data'!U89 -> 30 | V89: =[1]Weather!C209 -> 4.963333333 | W89: =[1]Weather!D209 -> 511.1 | X89: =[1]Weather!E209 -> 0 | Y89: =[1]Weather!F209 -> 451.1 | Z89: =[1]Weather!G209 -> 0 | AA89: =[1]Weather!H209 -> 391.1 | AB89: =[1]Weather!I209 -> 0 | AC89: =[1]Weather!J209 -> 331.1 | AD89: =[1]Weather!K209 -> 0 | AE89: =[1]Weather!L209 -> 271.1 | AF89: =[1]Weather!M209 -> 0 | AG89: =[1]Weather!N209 -> 212 | AH89: =[1]Weather!O209 -> 0.9 | AI89: =[1]Weather!P209 -> 157.5 | AJ89: =[1]Weather!Q209 -> 6.4 | AK89: =[1]Weather!R209 -> 109.2 | AL89: =[1]Weather!S209 -> 18.1 | AM89: =[1]Economic!C89 -> 747589.4 | AN89: =[1]Economic!D89 -> 7316.8 | AO89: =[1]Economic!E89 -> 7222.7 | AP89: =[1]Economic!F89 -> 113.9 | AQ89: =[1]Economic!G89 -> 110.1 | AR89: =AR41 -> 30 | AS89: 19 | AT89: =1+AT88 -> 88 | AU89: =AU77 -> 0 | AV89: =AV77 -> 0 | AW89: =AW77 -> 0 | AX89: =AX77 -> 1 | AY89: =AY77 -> 0 | AZ89: =AZ77 -> 0 | BA89: =BA77 -> 0 | BB89: =BB77 -> 0 | BC89: =BC77 -> 0 | BD89: =BD77 -> 0 | BE89: =BE77 -> 0 | BF89: =BF77 -> 0 | BG89: =BG77 -> 1 | BH89: =BH77 -> 0 | BI89: =BG89+BH89 -> 1 | BJ89: 0 | BK89: 0 | BL89: =BK89 -> 0 | BM89: =BM88 -> 0 | BN89: =$BJ89*W89 -> 0 | BO89: =$BJ89*X89 -> 0 | BP89: =$BJ89*Y89 -> 0 | BQ89: =$BJ89*Z89 -> 0 | BR89: =$BJ89*AA89 -> 0 | BS89: =$BJ89*AB89 -> 0 | BT89: =$BJ89*AC89 -> 0 | BU89: =$BJ89*AD89 -> 0 | BV89: =$BJ89*AE89 -> 0 | BW89: =$BJ89*AF89 -> 0 | BX89: =$BJ89*AG89 -> 0 | BY89: =$BJ89*AH89 -> 0 | BZ89: =$BJ89*AI89 -> 0 | CA89: =$BJ89*AJ89 -> 0 | CB89: =$BJ89*AK89 -> 0 | CC89: =$BJ89*AL89 -> 0 | CD89: =F89/Q89 -> 660.9736951 | CE89: =I89/R89 -> 2215.083253 | CF89: =L89/S89 -> 86459.38818
A90: ='[1]Monthly Data'!A90 -> 2019-05-01 | B90: ='[1]Monthly Data'!B90 -> 2019 | C90: =MONTH(A90) -> 5 | D90: ='[1]Monthly Data'!D90 -> 8671238.639 | E90: ='[1]Monthly Data'!E90 -> 605813.8379 | F90: ='[1]Monthly Data'!F90 -> 9277052.477 | G90: ='[1]Monthly Data'!G90 -> 3445346.024 | H90: ='[1]Monthly Data'!H90 -> 270693.9947 | I90: ='[1]Monthly Data'!I90 -> 3716040.018 | J90: ='[1]Monthly Data'!J90 -> 10207613.68 | K90: ='[1]Monthly Data'!K90 -> 578682.5547 | L90: ='[1]Monthly Data'!L90 -> 10786296.24 | M90: ='[1]Monthly Data'!M90 -> 79634.4205 | N90: ='[1]Monthly Data'!N90 -> 34211.56536 | O90: ='[1]Monthly Data'!O90 -> 24107.83 | P90: ='[1]Monthly Data'!P90 -> 281.16 | Q90: ='[1]Monthly Data'!Q90 -> 15687 | R90: ='[1]Monthly Data'!R90 -> 1754 | S90: ='[1]Monthly Data'!S90 -> 124 | T90: ='[1]Monthly Data'!T90 -> 3261 | U90: ='[1]Monthly Data'!U90 -> 30 | V90: =[1]Weather!C210 -> 10.35483871 | W90: =[1]Weather!D210 -> 361 | X90: =[1]Weather!E210 -> 0 | Y90: =[1]Weather!F210 -> 299 | Z90: =[1]Weather!G210 -> 0 | AA90: =[1]Weather!H210 -> 237 | AB90: =[1]Weather!I210 -> 0 | AC90: =[1]Weather!J210 -> 179.6 | AD90: =[1]Weather!K210 -> 4.6 | AE90: =[1]Weather!L210 -> 126.3 | AF90: =[1]Weather!M210 -> 13.3 | AG90: =[1]Weather!N210 -> 76.1 | AH90: =[1]Weather!O210 -> 25.1 | AI90: =[1]Weather!P210 -> 39.3 | AJ90: =[1]Weather!Q210 -> 50.3 | AK90: =[1]Weather!R210 -> 17.8 | AL90: =[1]Weather!S210 -> 90.8 | AM90: =[1]Economic!C90 -> 747589.4 | AN90: =[1]Economic!D90 -> 7333.7 | AO90: =[1]Economic!E90 -> 7297.7 | AP90: =[1]Economic!F90 -> 114.8 | AQ90: =[1]Economic!G90 -> 112.2 | AR90: =AR42 -> 31 | AS90: 22 | AT90: =1+AT89 -> 89 | AU90: =AU78 -> 0 | AV90: =AV78 -> 0 | AW90: =AW78 -> 0 | AX90: =AX78 -> 0 | AY90: =AY78 -> 1 | AZ90: =AZ78 -> 0 | BA90: =BA78 -> 0 | BB90: =BB78 -> 0 | BC90: =BC78 -> 0 | BD90: =BD78 -> 0 | BE90: =BE78 -> 0 | BF90: =BF78 -> 0 | BG90: =BG78 -> 1 | BH90: =BH78 -> 0 | BI90: =BG90+BH90 -> 1 | BJ90: 0 | BK90: 0 | BL90: =BK90 -> 0 | BM90: =BM89 -> 0 | BN90: =$BJ90*W90 -> 0 | BO90: =$BJ90*X90 -> 0 | BP90: =$BJ90*Y90 -> 0 | BQ90: =$BJ90*Z90 -> 0 | BR90: =$BJ90*AA90 -> 0 | BS90: =$BJ90*AB90 -> 0 | BT90: =$BJ90*AC90 -> 0 | BU90: =$BJ90*AD90 -> 0 | BV90: =$BJ90*AE90 -> 0 | BW90: =$BJ90*AF90 -> 0 | BX90: =$BJ90*AG90 -> 0 | BY90: =$BJ90*AH90 -> 0 | BZ90: =$BJ90*AI90 -> 0 | CA90: =$BJ90*AJ90 -> 0 | CB90: =$BJ90*AK90 -> 0 | CC90: =$BJ90*AL90 -> 0 | CD90: =F90/Q90 -> 591.3847438 | CE90: =I90/R90 -> 2118.608904 | CF90: =L90/S90 -> 86986.25999
A91: ='[1]Monthly Data'!A91 -> 2019-06-01 | B91: ='[1]Monthly Data'!B91 -> 2019 | C91: =MONTH(A91) -> 6 | D91: ='[1]Monthly Data'!D91 -> 8331102.546 | E91: ='[1]Monthly Data'!E91 -> 605813.8379 | F91: ='[1]Monthly Data'!F91 -> 8936916.384 | G91: ='[1]Monthly Data'!G91 -> 3448489.991 | H91: ='[1]Monthly Data'!H91 -> 270693.9947 | I91: ='[1]Monthly Data'!I91 -> 3719183.986 | J91: ='[1]Monthly Data'!J91 -> 10060825.49 | K91: ='[1]Monthly Data'!K91 -> 578682.5547 | L91: ='[1]Monthly Data'!L91 -> 10639508.04 | M91: ='[1]Monthly Data'!M91 -> 71160.61062 | N91: ='[1]Monthly Data'!N91 -> 33715.37828 | O91: ='[1]Monthly Data'!O91 -> 24029.24 | P91: ='[1]Monthly Data'!P91 -> 281.16 | Q91: ='[1]Monthly Data'!Q91 -> 15728 | R91: ='[1]Monthly Data'!R91 -> 1766 | S91: ='[1]Monthly Data'!S91 -> 124 | T91: ='[1]Monthly Data'!T91 -> 3261 | U91: ='[1]Monthly Data'!U91 -> 30 | V91: =[1]Weather!C211 -> 15.36 | W91: =[1]Weather!D211 -> 199.2 | X91: =[1]Weather!E211 -> 0 | Y91: =[1]Weather!F211 -> 143.9 | Z91: =[1]Weather!G211 -> 4.7 | AA91: =[1]Weather!H211 -> 96.1 | AB91: =[1]Weather!I211 -> 16.9 | AC91: =[1]Weather!J211 -> 53.6 | AD91: =[1]Weather!K211 -> 34.4 | AE91: =[1]Weather!L211 -> 23.2 | AF91: =[1]Weather!M211 -> 64 | AG91: =[1]Weather!N211 -> 7.3 | AH91: =[1]Weather!O211 -> 108.1 | AI91: =[1]Weather!P211 -> 0.3 | AJ91: =[1]Weather!Q211 -> 161.1 | AK91: =[1]Weather!R211 -> 0 | AL91: =[1]Weather!S211 -> 220.8 | AM91: =[1]Economic!C91 -> 747589.4 | AN91: =[1]Economic!D91 -> 7355.7 | AO91: =[1]Economic!E91 -> 7398.9 | AP91: =[1]Economic!F91 -> 115.9 | AQ91: =[1]Economic!G91 -> 115.7 | AR91: =AR43 -> 30 | AS91: 22 | AT91: =1+AT90 -> 90 | AU91: =AU79 -> 0 | AV91: =AV79 -> 0 | AW91: =AW79 -> 0 | AX91: =AX79 -> 0 | AY91: =AY79 -> 0 | AZ91: =AZ79 -> 1 | BA91: =BA79 -> 0 | BB91: =BB79 -> 0 | BC91: =BC79 -> 0 | BD91: =BD79 -> 0 | BE91: =BE79 -> 0 | BF91: =BF79 -> 0 | BG91: =BG79 -> 0 | BH91: =BH79 -> 0 | BI91: =BG91+BH91 -> 0 | BJ91: 0 | BK91: 0 | BL91: =BK91 -> 0 | BM91: =BM90 -> 0 | BN91: =$BJ91*W91 -> 0 | BO91: =$BJ91*X91 -> 0 | BP91: =$BJ91*Y91 -> 0 | BQ91: =$BJ91*Z91 -> 0 | BR91: =$BJ91*AA91 -> 0 | BS91: =$BJ91*AB91 -> 0 | BT91: =$BJ91*AC91 -> 0 | BU91: =$BJ91*AD91 -> 0 | BV91: =$BJ91*AE91 -> 0 | BW91: =$BJ91*AF91 -> 0 | BX91: =$BJ91*AG91 -> 0 | BY91: =$BJ91*AH91 -> 0 | BZ91: =$BJ91*AI91 -> 0 | CA91: =$BJ91*AJ91 -> 0 | CB91: =$BJ91*AK91 -> 0 | CC91: =$BJ91*AL91 -> 0 | CD91: =F91/Q91 -> 568.2169624 | CE91: =I91/R91 -> 2105.993197 | CF91: =L91/S91 -> 85802.48422
A92: ='[1]Monthly Data'!A92 -> 2019-07-01 | B92: ='[1]Monthly Data'!B92 -> 2019 | C92: =MONTH(A92) -> 7 | D92: ='[1]Monthly Data'!D92 -> 10609156.91 | E92: ='[1]Monthly Data'!E92 -> 605813.8379 | F92: ='[1]Monthly Data'!F92 -> 11214970.75 | G92: ='[1]Monthly Data'!G92 -> 4014350.062 | H92: ='[1]Monthly Data'!H92 -> 270693.9947 | I92: ='[1]Monthly Data'!I92 -> 4285044.057 | J92: ='[1]Monthly Data'!J92 -> 10411256.7 | K92: ='[1]Monthly Data'!K92 -> 578682.5547 | L92: ='[1]Monthly Data'!L92 -> 10989939.25 | M92: ='[1]Monthly Data'!M92 -> 76351.30588 | N92: ='[1]Monthly Data'!N92 -> 31669.6425 | O92: ='[1]Monthly Data'!O92 -> 24951.92 | P92: ='[1]Monthly Data'!P92 -> 281.16 | Q92: ='[1]Monthly Data'!Q92 -> 15749 | R92: ='[1]Monthly Data'!R92 -> 1757 | S92: ='[1]Monthly Data'!S92 -> 124 | T92: ='[1]Monthly Data'!T92 -> 3261 | U92: ='[1]Monthly Data'!U92 -> 30 | V92: =[1]Weather!C212 -> 21.26827856 | W92: =[1]Weather!D212 -> 54.6 | X92: =[1]Weather!E212 -> 31.9 | Y92: =[1]Weather!F212 -> 23 | Z92: =[1]Weather!G212 -> 62.3 | AA92: =[1]Weather!H212 -> 4 | AB92: =[1]Weather!I212 -> 105.3 | AC92: =[1]Weather!J212 -> 0 | AD92: =[1]Weather!K212 -> 163.3 | AE92: =[1]Weather!L212 -> 0 | AF92: =[1]Weather!M212 -> 225.3 | AG92: =[1]Weather!N212 -> 0 | AH92: =[1]Weather!O212 -> 287.3 | AI92: =[1]Weather!P212 -> 0 | AJ92: =[1]Weather!Q212 -> 349.3 | AK92: =[1]Weather!R212 -> 0 | AL92: =[1]Weather!S212 -> 411.3 | AM92: =[1]Economic!C92 -> 747589.4 | AN92: =[1]Economic!D92 -> 7357.8 | AO92: =[1]Economic!E92 -> 7452.4 | AP92: =[1]Economic!F92 -> 114.8 | AQ92: =[1]Economic!G92 -> 118.2 | AR92: =AR44 -> 31 | AS92: 20 | AT92: =1+AT91 -> 91 | AU92: =AU80 -> 0 | AV92: =AV80 -> 0 | AW92: =AW80 -> 0 | AX92: =AX80 -> 0 | AY92: =AY80 -> 0 | AZ92: =AZ80 -> 0 | BA92: =BA80 -> 1 | BB92: =BB80 -> 0 | BC92: =BC80 -> 0 | BD92: =BD80 -> 0 | BE92: =BE80 -> 0 | BF92: =BF80 -> 0 | BG92: =BG80 -> 0 | BH92: =BH80 -> 0 | BI92: =BG92+BH92 -> 0 | BJ92: 0 | BK92: 0 | BL92: =BK92 -> 0 | BM92: =BM91 -> 0 | BN92: =$BJ92*W92 -> 0 | BO92: =$BJ92*X92 -> 0 | BP92: =$BJ92*Y92 -> 0 | BQ92: =$BJ92*Z92 -> 0 | BR92: =$BJ92*AA92 -> 0 | BS92: =$BJ92*AB92 -> 0 | BT92: =$BJ92*AC92 -> 0 | BU92: =$BJ92*AD92 -> 0 | BV92: =$BJ92*AE92 -> 0 | BW92: =$BJ92*AF92 -> 0 | BX92: =$BJ92*AG92 -> 0 | BY92: =$BJ92*AH92 -> 0 | BZ92: =$BJ92*AI92 -> 0 | CA92: =$BJ92*AJ92 -> 0 | CB92: =$BJ92*AK92 -> 0 | CC92: =$BJ92*AL92 -> 0 | CD92: =F92/Q92 -> 712.1068478 | CE92: =I92/R92 -> 2438.841239 | CF92: =L92/S92 -> 88628.54237
A93: ='[1]Monthly Data'!A93 -> 2019-08-01 | B93: ='[1]Monthly Data'!B93 -> 2019 | C93: =MONTH(A93) -> 8 | D93: ='[1]Monthly Data'!D93 -> 9801261.335 | E93: ='[1]Monthly Data'!E93 -> 605813.8379 | F93: ='[1]Monthly Data'!F93 -> 10407075.17 | G93: ='[1]Monthly Data'!G93 -> 3882002.772 | H93: ='[1]Monthly Data'!H93 -> 270693.9947 | I93: ='[1]Monthly Data'!I93 -> 4152696.766 | J93: ='[1]Monthly Data'!J93 -> 10709168.99 | K93: ='[1]Monthly Data'!K93 -> 578682.5547 | L93: ='[1]Monthly Data'!L93 -> 11287851.54 | M93: ='[1]Monthly Data'!M93 -> 86315.11792 | N93: ='[1]Monthly Data'!N93 -> 34025.15657 | O93: ='[1]Monthly Data'!O93 -> 26294.26 | P93: ='[1]Monthly Data'!P93 -> 281.16 | Q93: ='[1]Monthly Data'!Q93 -> 15732 | R93: ='[1]Monthly Data'!R93 -> 1746 | S93: ='[1]Monthly Data'!S93 -> 124 | T93: ='[1]Monthly Data'!T93 -> 3261 | U93: ='[1]Monthly Data'!U93 -> 30 | V93: =[1]Weather!C213 -> 19.59354839 | W93: =[1]Weather!D213 -> 77 | X93: =[1]Weather!E213 -> 2.4 | Y93: =[1]Weather!F213 -> 30.3 | Z93: =[1]Weather!G213 -> 17.7 | AA93: =[1]Weather!H213 -> 7.3 | AB93: =[1]Weather!I213 -> 56.7 | AC93: =[1]Weather!J213 -> 0 | AD93: =[1]Weather!K213 -> 111.4 | AE93: =[1]Weather!L213 -> 0 | AF93: =[1]Weather!M213 -> 173.4 | AG93: =[1]Weather!N213 -> 0 | AH93: =[1]Weather!O213 -> 235.4 | AI93: =[1]Weather!P213 -> 0 | AJ93: =[1]Weather!Q213 -> 297.4 | AK93: =[1]Weather!R213 -> 0 | AL93: =[1]Weather!S213 -> 359.4 | AM93: =[1]Economic!C93 -> 747589.4 | AN93: =[1]Economic!D93 -> 7373.4 | AO93: =[1]Economic!E93 -> 7472.4 | AP93: =[1]Economic!F93 -> 113.9 | AQ93: =[1]Economic!G93 -> 119.1 | AR93: =AR45 -> 31 | AS93: 22 | AT93: =1+AT92 -> 92 | AU93: =AU81 -> 0 | AV93: =AV81 -> 0 | AW93: =AW81 -> 0 | AX93: =AX81 -> 0 | AY93: =AY81 -> 0 | AZ93: =AZ81 -> 0 | BA93: =BA81 -> 0 | BB93: =BB81 -> 1 | BC93: =BC81 -> 0 | BD93: =BD81 -> 0 | BE93: =BE81 -> 0 | BF93: =BF81 -> 0 | BG93: =BG81 -> 0 | BH93: =BH81 -> 0 | BI93: =BG93+BH93 -> 0 | BJ93: 0 | BK93: 0 | BL93: =BK93 -> 0 | BM93: =BM92 -> 0 | BN93: =$BJ93*W93 -> 0 | BO93: =$BJ93*X93 -> 0 | BP93: =$BJ93*Y93 -> 0 | BQ93: =$BJ93*Z93 -> 0 | BR93: =$BJ93*AA93 -> 0 | BS93: =$BJ93*AB93 -> 0 | BT93: =$BJ93*AC93 -> 0 | BU93: =$BJ93*AD93 -> 0 | BV93: =$BJ93*AE93 -> 0 | BW93: =$BJ93*AF93 -> 0 | BX93: =$BJ93*AG93 -> 0 | BY93: =$BJ93*AH93 -> 0 | BZ93: =$BJ93*AI93 -> 0 | CA93: =$BJ93*AJ93 -> 0 | CB93: =$BJ93*AK93 -> 0 | CC93: =$BJ93*AL93 -> 0 | CD93: =F93/Q93 -> 661.5227036 | CE93: =I93/R93 -> 2378.405937 | CF93: =L93/S93 -> 91031.06082
A94: ='[1]Monthly Data'!A94 -> 2019-09-01 | B94: ='[1]Monthly Data'!B94 -> 2019 | C94: =MONTH(A94) -> 9 | D94: ='[1]Monthly Data'!D94 -> 8061127.085 | E94: ='[1]Monthly Data'!E94 -> 605813.8379 | F94: ='[1]Monthly Data'!F94 -> 8666940.922 | G94: ='[1]Monthly Data'!G94 -> 3448393.035 | H94: ='[1]Monthly Data'!H94 -> 270693.9947 | I94: ='[1]Monthly Data'!I94 -> 3719087.029 | J94: ='[1]Monthly Data'!J94 -> 10395119.14 | K94: ='[1]Monthly Data'!K94 -> 578682.5547 | L94: ='[1]Monthly Data'!L94 -> 10973801.69 | M94: ='[1]Monthly Data'!M94 -> 95972.64125 | N94: ='[1]Monthly Data'!N94 -> 33656.94376 | O94: ='[1]Monthly Data'!O94 -> 25467.44 | P94: ='[1]Monthly Data'!P94 -> 281.16 | Q94: ='[1]Monthly Data'!Q94 -> 15807 | R94: ='[1]Monthly Data'!R94 -> 1753 | S94: ='[1]Monthly Data'!S94 -> 127 | T94: ='[1]Monthly Data'!T94 -> 3261 | U94: ='[1]Monthly Data'!U94 -> 30 | V94: =[1]Weather!C214 -> 16.44 | W94: =[1]Weather!D214 -> 169.3 | X94: =[1]Weather!E214 -> 2.5 | Y94: =[1]Weather!F214 -> 112.2 | Z94: =[1]Weather!G214 -> 5.4 | AA94: =[1]Weather!H214 -> 61.6 | AB94: =[1]Weather!I214 -> 14.8 | AC94: =[1]Weather!J214 -> 25.8 | AD94: =[1]Weather!K214 -> 39 | AE94: =[1]Weather!L214 -> 7 | AF94: =[1]Weather!M214 -> 80.2 | AG94: =[1]Weather!N214 -> 0.2 | AH94: =[1]Weather!O214 -> 133.4 | AI94: =[1]Weather!P214 -> 0 | AJ94: =[1]Weather!Q214 -> 193.2 | AK94: =[1]Weather!R214 -> 0 | AL94: =[1]Weather!S214 -> 253.2 | AM94: =[1]Economic!C94 -> 747589.4 | AN94: =[1]Economic!D94 -> 7399.5 | AO94: =[1]Economic!E94 -> 7464.3 | AP94: =[1]Economic!F94 -> 113.5 | AQ94: =[1]Economic!G94 -> 116.9 | AR94: =AR46 -> 30 | AS94: 20 | AT94: =1+AT93 -> 93 | AU94: =AU82 -> 0 | AV94: =AV82 -> 0 | AW94: =AW82 -> 0 | AX94: =AX82 -> 0 | AY94: =AY82 -> 0 | AZ94: =AZ82 -> 0 | BA94: =BA82 -> 0 | BB94: =BB82 -> 0 | BC94: =BC82 -> 1 | BD94: =BD82 -> 0 | BE94: =BE82 -> 0 | BF94: =BF82 -> 0 | BG94: =BG82 -> 0 | BH94: =BH82 -> 1 | BI94: =BG94+BH94 -> 1 | BJ94: 0 | BK94: 0 | BL94: =BK94 -> 0 | BM94: =BM93 -> 0 | BN94: =$BJ94*W94 -> 0 | BO94: =$BJ94*X94 -> 0 | BP94: =$BJ94*Y94 -> 0 | BQ94: =$BJ94*Z94 -> 0 | BR94: =$BJ94*AA94 -> 0 | BS94: =$BJ94*AB94 -> 0 | BT94: =$BJ94*AC94 -> 0 | BU94: =$BJ94*AD94 -> 0 | BV94: =$BJ94*AE94 -> 0 | BW94: =$BJ94*AF94 -> 0 | BX94: =$BJ94*AG94 -> 0 | BY94: =$BJ94*AH94 -> 0 | BZ94: =$BJ94*AI94 -> 0 | CA94: =$BJ94*AJ94 -> 0 | CB94: =$BJ94*AK94 -> 0 | CC94: =$BJ94*AL94 -> 0 | CD94: =F94/Q94 -> 548.297648 | CE94: =I94/R94 -> 2121.555636 | CF94: =L94/S94 -> 86407.88733
A95: ='[1]Monthly Data'!A95 -> 2019-10-01 | B95: ='[1]Monthly Data'!B95 -> 2019 | C95: =MONTH(A95) -> 10 | D95: ='[1]Monthly Data'!D95 -> 8747393.622 | E95: ='[1]Monthly Data'!E95 -> 605813.8379 | F95: ='[1]Monthly Data'!F95 -> 9353207.46 | G95: ='[1]Monthly Data'!G95 -> 3461001.766 | H95: ='[1]Monthly Data'!H95 -> 270693.9947 | I95: ='[1]Monthly Data'!I95 -> 3731695.761 | J95: ='[1]Monthly Data'!J95 -> 10416127.54 | K95: ='[1]Monthly Data'!K95 -> 578682.5547 | L95: ='[1]Monthly Data'!L95 -> 10994810.1 | M95: ='[1]Monthly Data'!M95 -> 112570.4282 | N95: ='[1]Monthly Data'!N95 -> 32913.39146 | O95: ='[1]Monthly Data'!O95 -> 26140.64 | P95: ='[1]Monthly Data'!P95 -> 281.16 | Q95: ='[1]Monthly Data'!Q95 -> 15811 | R95: ='[1]Monthly Data'!R95 -> 1788 | S95: ='[1]Monthly Data'!S95 -> 129 | T95: ='[1]Monthly Data'!T95 -> 3261 | U95: ='[1]Monthly Data'!U95 -> 30 | V95: =[1]Weather!C215 -> 9.974193548 | W95: =[1]Weather!D215 -> 372.8 | X95: =[1]Weather!E215 -> 0 | Y95: =[1]Weather!F215 -> 312.6 | Z95: =[1]Weather!G215 -> 1.8 | AA95: =[1]Weather!H215 -> 252.6 | AB95: =[1]Weather!I215 -> 3.8 | AC95: =[1]Weather!J215 -> 192.6 | AD95: =[1]Weather!K215 -> 5.8 | AE95: =[1]Weather!L215 -> 134.7 | AF95: =[1]Weather!M215 -> 9.9 | AG95: =[1]Weather!N215 -> 81.1 | AH95: =[1]Weather!O215 -> 18.3 | AI95: =[1]Weather!P215 -> 41.7 | AJ95: =[1]Weather!Q215 -> 40.9 | AK95: =[1]Weather!R215 -> 14.9 | AL95: =[1]Weather!S215 -> 76.1 | AM95: =[1]Economic!C95 -> 747589.4 | AN95: =[1]Economic!D95 -> 7425.4 | AO95: =[1]Economic!E95 -> 7466.9 | AP95: =[1]Economic!F95 -> 118.2 | AQ95: =[1]Economic!G95 -> 119.9 | AR95: =AR47 -> 31 | AS95: 21 | AT95: =1+AT94 -> 94 | AU95: =AU83 -> 0 | AV95: =AV83 -> 0 | AW95: =AW83 -> 0 | AX95: =AX83 -> 0 | AY95: =AY83 -> 0 | AZ95: =AZ83 -> 0 | BA95: =BA83 -> 0 | BB95: =BB83 -> 0 | BC95: =BC83 -> 0 | BD95: =BD83 -> 1 | BE95: =BE83 -> 0 | BF95: =BF83 -> 0 | BG95: =BG83 -> 0 | BH95: =BH83 -> 1 | BI95: =BG95+BH95 -> 1 | BJ95: 0 | BK95: 0 | BL95: =BK95 -> 0 | BM95: =BM94 -> 0 | BN95: =$BJ95*W95 -> 0 | BO95: =$BJ95*X95 -> 0 | BP95: =$BJ95*Y95 -> 0 | BQ95: =$BJ95*Z95 -> 0 | BR95: =$BJ95*AA95 -> 0 | BS95: =$BJ95*AB95 -> 0 | BT95: =$BJ95*AC95 -> 0 | BU95: =$BJ95*AD95 -> 0 | BV95: =$BJ95*AE95 -> 0 | BW95: =$BJ95*AF95 -> 0 | BX95: =$BJ95*AG95 -> 0 | BY95: =$BJ95*AH95 -> 0 | BZ95: =$BJ95*AI95 -> 0 | CA95: =$BJ95*AJ95 -> 0 | CB95: =$BJ95*AK95 -> 0 | CC95: =$BJ95*AL95 -> 0 | CD95: =F95/Q95 -> 591.5633078 | CE95: =I95/R95 -> 2087.078166 | CF95: =L95/S95 -> 85231.08604
A96: ='[1]Monthly Data'!A96 -> 2019-11-01 | B96: ='[1]Monthly Data'!B96 -> 2019 | C96: =MONTH(A96) -> 11 | D96: ='[1]Monthly Data'!D96 -> 10760571.81 | E96: ='[1]Monthly Data'!E96 -> 605813.8379 | F96: ='[1]Monthly Data'!F96 -> 11366385.65 | G96: ='[1]Monthly Data'!G96 -> 3839348.931 | H96: ='[1]Monthly Data'!H96 -> 270693.9947 | I96: ='[1]Monthly Data'!I96 -> 4110042.926 | J96: ='[1]Monthly Data'!J96 -> 10847244.23 | K96: ='[1]Monthly Data'!K96 -> 578682.5547 | L96: ='[1]Monthly Data'!L96 -> 11425926.79 | M96: ='[1]Monthly Data'!M96 -> 120377.982 | N96: ='[1]Monthly Data'!N96 -> 32060.80849 | O96: ='[1]Monthly Data'!O96 -> 26288.27 | P96: ='[1]Monthly Data'!P96 -> 281.16 | Q96: ='[1]Monthly Data'!Q96 -> 15859 | R96: ='[1]Monthly Data'!R96 -> 1771 | S96: ='[1]Monthly Data'!S96 -> 126 | T96: ='[1]Monthly Data'!T96 -> 3261 | U96: ='[1]Monthly Data'!U96 -> 30 | V96: =[1]Weather!C216 -> 0.56 | W96: =[1]Weather!D216 -> 643.2 | X96: =[1]Weather!E216 -> 0 | Y96: =[1]Weather!F216 -> 583.2 | Z96: =[1]Weather!G216 -> 0 | AA96: =[1]Weather!H216 -> 523.2 | AB96: =[1]Weather!I216 -> 0 | AC96: =[1]Weather!J216 -> 463.2 | AD96: =[1]Weather!K216 -> 0 | AE96: =[1]Weather!L216 -> 403.2 | AF96: =[1]Weather!M216 -> 0 | AG96: =[1]Weather!N216 -> 343.2 | AH96: =[1]Weather!O216 -> 0 | AI96: =[1]Weather!P216 -> 283.2 | AJ96: =[1]Weather!Q216 -> 0 | AK96: =[1]Weather!R216 -> 223.2 | AL96: =[1]Weather!S216 -> 0 | AM96: =[1]Economic!C96 -> 747589.4 | AN96: =[1]Economic!D96 -> 7438.5 | AO96: =[1]Economic!E96 -> 7455 | AP96: =[1]Economic!F96 -> 120.1 | AQ96: =[1]Economic!G96 -> 119.9 | AR96: =AR48 -> 30 | AS96: 22 | AT96: =1+AT95 -> 95 | AU96: =AU84 -> 0 | AV96: =AV84 -> 0 | AW96: =AW84 -> 0 | AX96: =AX84 -> 0 | AY96: =AY84 -> 0 | AZ96: =AZ84 -> 0 | BA96: =BA84 -> 0 | BB96: =BB84 -> 0 | BC96: =BC84 -> 0 | BD96: =BD84 -> 0 | BE96: =BE84 -> 1 | BF96: =BF84 -> 0 | BG96: =BG84 -> 0 | BH96: =BH84 -> 1 | BI96: =BG96+BH96 -> 1 | BJ96: 0 | BK96: 0 | BL96: =BK96 -> 0 | BM96: =BM95 -> 0 | BN96: =$BJ96*W96 -> 0 | BO96: =$BJ96*X96 -> 0 | BP96: =$BJ96*Y96 -> 0 | BQ96: =$BJ96*Z96 -> 0 | BR96: =$BJ96*AA96 -> 0 | BS96: =$BJ96*AB96 -> 0 | BT96: =$BJ96*AC96 -> 0 | BU96: =$BJ96*AD96 -> 0 | BV96: =$BJ96*AE96 -> 0 | BW96: =$BJ96*AF96 -> 0 | BX96: =$BJ96*AG96 -> 0 | BY96: =$BJ96*AH96 -> 0 | BZ96: =$BJ96*AI96 -> 0 | CA96: =$BJ96*AJ96 -> 0 | CB96: =$BJ96*AK96 -> 0 | CC96: =$BJ96*AL96 -> 0 | CD96: =F96/Q96 -> 716.7151553 | CE96: =I96/R96 -> 2320.746994 | CF96: =L96/S96 -> 90681.95864
A97: ='[1]Monthly Data'!A97 -> 2019-12-01 | B97: ='[1]Monthly Data'!B97 -> 2019 | C97: =MONTH(A97) -> 12 | D97: ='[1]Monthly Data'!D97 -> 12817933.1 | E97: ='[1]Monthly Data'!E97 -> 605813.8379 | F97: ='[1]Monthly Data'!F97 -> 13423746.93 | G97: ='[1]Monthly Data'!G97 -> 4227042.481 | H97: ='[1]Monthly Data'!H97 -> 270693.9947 | I97: ='[1]Monthly Data'!I97 -> 4497736.476 | J97: ='[1]Monthly Data'!J97 -> 10361685.65 | K97: ='[1]Monthly Data'!K97 -> 578682.5547 | L97: ='[1]Monthly Data'!L97 -> 10940368.21 | M97: ='[1]Monthly Data'!M97 -> 133510.4931 | N97: ='[1]Monthly Data'!N97 -> 32602.37766 | O97: ='[1]Monthly Data'!O97 -> 25377.78 | P97: ='[1]Monthly Data'!P97 -> 281.16 | Q97: ='[1]Monthly Data'!Q97 -> 15922 | R97: ='[1]Monthly Data'!R97 -> 1763 | S97: ='[1]Monthly Data'!S97 -> 126 | T97: ='[1]Monthly Data'!T97 -> 3261 | U97: ='[1]Monthly Data'!U97 -> 30 | V97: =[1]Weather!C217 -> -0.8096774194 | W97: =[1]Weather!D217 -> 707.1 | X97: =[1]Weather!E217 -> 0 | Y97: =[1]Weather!F217 -> 645.1 | Z97: =[1]Weather!G217 -> 0 | AA97: =[1]Weather!H217 -> 583.1 | AB97: =[1]Weather!I217 -> 0 | AC97: =[1]Weather!J217 -> 521.1 | AD97: =[1]Weather!K217 -> 0 | AE97: =[1]Weather!L217 -> 459.1 | AF97: =[1]Weather!M217 -> 0 | AG97: =[1]Weather!N217 -> 397.1 | AH97: =[1]Weather!O217 -> 0 | AI97: =[1]Weather!P217 -> 335.1 | AJ97: =[1]Weather!Q217 -> 0 | AK97: =[1]Weather!R217 -> 273.1 | AL97: =[1]Weather!S217 -> 0 | AM97: =[1]Economic!C97 -> 747589.4 | AN97: =[1]Economic!D97 -> 7450.8 | AO97: =[1]Economic!E97 -> 7459.6 | AP97: =[1]Economic!F97 -> 123.9 | AQ97: =[1]Economic!G97 -> 112.5 | AR97: =AR49 -> 31 | AS97: 19 | AT97: =1+AT96 -> 96 | AU97: =AU85 -> 0 | AV97: =AV85 -> 0 | AW97: =AW85 -> 0 | AX97: =AX85 -> 0 | AY97: =AY85 -> 0 | AZ97: =AZ85 -> 0 | BA97: =BA85 -> 0 | BB97: =BB85 -> 0 | BC97: =BC85 -> 0 | BD97: =BD85 -> 0 | BE97: =BE85 -> 0 | BF97: =BF85 -> 1 | BG97: =BG85 -> 0 | BH97: =BH85 -> 0 | BI97: =BG97+BH97 -> 0 | BJ97: 0 | BK97: 0 | BL97: =BK97 -> 0 | BM97: =BM96 -> 0 | BN97: =$BJ97*W97 -> 0 | BO97: =$BJ97*X97 -> 0 | BP97: =$BJ97*Y97 -> 0 | BQ97: =$BJ97*Z97 -> 0 | BR97: =$BJ97*AA97 -> 0 | BS97: =$BJ97*AB97 -> 0 | BT97: =$BJ97*AC97 -> 0 | BU97: =$BJ97*AD97 -> 0 | BV97: =$BJ97*AE97 -> 0 | BW97: =$BJ97*AF97 -> 0 | BX97: =$BJ97*AG97 -> 0 | BY97: =$BJ97*AH97 -> 0 | BZ97: =$BJ97*AI97 -> 0 | CA97: =$BJ97*AJ97 -> 0 | CB97: =$BJ97*AK97 -> 0 | CC97: =$BJ97*AL97 -> 0 | CD97: =F97/Q97 -> 843.0942679 | CE97: =I97/R97 -> 2551.183481 | CF97: =L97/S97 -> 86828.31912
A98: ='[1]Monthly Data'!A98 -> 2020-01-01 | B98: ='[1]Monthly Data'!B98 -> 2020 | C98: =MONTH(A98) -> 1 | D98: ='[1]Monthly Data'!D98 -> 12866456.17 | E98: ='[1]Monthly Data'!E98 -> 604879.613 | F98: ='[1]Monthly Data'!F98 -> 13471335.78 | G98: ='[1]Monthly Data'!G98 -> 4377026.267 | H98: ='[1]Monthly Data'!H98 -> 270054.9798 | I98: ='[1]Monthly Data'!I98 -> 4647081.246 | J98: ='[1]Monthly Data'!J98 -> 10810342.45 | K98: ='[1]Monthly Data'!K98 -> 635523.4548 | L98: ='[1]Monthly Data'!L98 -> 11445865.9 | M98: ='[1]Monthly Data'!M98 -> 129767.2179 | N98: ='[1]Monthly Data'!N98 -> 33005.01661 | O98: ='[1]Monthly Data'!O98 -> 25510.52 | P98: ='[1]Monthly Data'!P98 -> 285.85 | Q98: ='[1]Monthly Data'!Q98 -> 16009 | R98: ='[1]Monthly Data'!R98 -> 1779 | S98: ='[1]Monthly Data'!S98 -> 126 | T98: ='[1]Monthly Data'!T98 -> 3261 | U98: ='[1]Monthly Data'!U98 -> 30 | V98: =[1]Weather!C218 -> -1.8 | W98: =[1]Weather!D218 -> 737.8 | X98: =[1]Weather!E218 -> 0 | Y98: =[1]Weather!F218 -> 675.8 | Z98: =[1]Weather!G218 -> 0 | AA98: =[1]Weather!H218 -> 613.8 | AB98: =[1]Weather!I218 -> 0 | AC98: =[1]Weather!J218 -> 551.8 | AD98: =[1]Weather!K218 -> 0 | AE98: =[1]Weather!L218 -> 489.8 | AF98: =[1]Weather!M218 -> 0 | AG98: =[1]Weather!N218 -> 427.8 | AH98: =[1]Weather!O218 -> 0 | AI98: =[1]Weather!P218 -> 365.8 | AJ98: =[1]Weather!Q218 -> 0 | AK98: =[1]Weather!R218 -> 303.8 | AL98: =[1]Weather!S218 -> 0 | AM98: =[1]Economic!C98 -> 710048.9 | AN98: =[1]Economic!D98 -> 7472.8 | AO98: =[1]Economic!E98 -> 7437.3 | AP98: =[1]Economic!F98 -> 125.2 | AQ98: =[1]Economic!G98 -> 122.3 | AR98: =AR50 -> 31 | AS98: 22 | AT98: =1+AT97 -> 97 | AU98: =AU86 -> 1 | AV98: =AV86 -> 0 | AW98: =AW86 -> 0 | AX98: =AX86 -> 0 | AY98: =AY86 -> 0 | AZ98: =AZ86 -> 0 | BA98: =BA86 -> 0 | BB98: =BB86 -> 0 | BC98: =BC86 -> 0 | BD98: =BD86 -> 0 | BE98: =BE86 -> 0 | BF98: =BF86 -> 0 | BG98: =BG86 -> 0 | BH98: =BH86 -> 0 | BI98: =BG98+BH98 -> 0 | BJ98: 0 | BK98: 0 | BL98: =BK98 -> 0 | BM98: =BM97 -> 0 | BN98: =$BJ98*W98 -> 0 | BO98: =$BJ98*X98 -> 0 | BP98: =$BJ98*Y98 -> 0 | BQ98: =$BJ98*Z98 -> 0 | BR98: =$BJ98*AA98 -> 0 | BS98: =$BJ98*AB98 -> 0 | BT98: =$BJ98*AC98 -> 0 | BU98: =$BJ98*AD98 -> 0 | BV98: =$BJ98*AE98 -> 0 | BW98: =$BJ98*AF98 -> 0 | BX98: =$BJ98*AG98 -> 0 | BY98: =$BJ98*AH98 -> 0 | BZ98: =$BJ98*AI98 -> 0 | CA98: =$BJ98*AJ98 -> 0 | CB98: =$BJ98*AK98 -> 0 | CC98: =$BJ98*AL98 -> 0 | CD98: =F98/Q98 -> 841.4851511 | CE98: =I98/R98 -> 2612.187322 | CF98: =L98/S98 -> 90840.20557
A99: ='[1]Monthly Data'!A99 -> 2020-02-01 | B99: ='[1]Monthly Data'!B99 -> 2020 | C99: =MONTH(A99) -> 2 | D99: ='[1]Monthly Data'!D99 -> 12122959.29 | E99: ='[1]Monthly Data'!E99 -> 604879.613 | F99: ='[1]Monthly Data'!F99 -> 12727838.9 | G99: ='[1]Monthly Data'!G99 -> 4137486.518 | H99: ='[1]Monthly Data'!H99 -> 270054.9798 | I99: ='[1]Monthly Data'!I99 -> 4407541.497 | J99: ='[1]Monthly Data'!J99 -> 10409882.87 | K99: ='[1]Monthly Data'!K99 -> 635523.4548 | L99: ='[1]Monthly Data'!L99 -> 11045406.33 | M99: ='[1]Monthly Data'!M99 -> 111611.7578 | N99: ='[1]Monthly Data'!N99 -> 32945.98162 | O99: ='[1]Monthly Data'!O99 -> 24748.48 | P99: ='[1]Monthly Data'!P99 -> 285.85 | Q99: ='[1]Monthly Data'!Q99 -> 16023 | R99: ='[1]Monthly Data'!R99 -> 1778 | S99: ='[1]Monthly Data'!S99 -> 127 | T99: ='[1]Monthly Data'!T99 -> 3261 | U99: ='[1]Monthly Data'!U99 -> 30 | V99: =[1]Weather!C219 -> -3.437931034 | W99: =[1]Weather!D219 -> 737.7 | X99: =[1]Weather!E219 -> 0 | Y99: =[1]Weather!F219 -> 679.7 | Z99: =[1]Weather!G219 -> 0 | AA99: =[1]Weather!H219 -> 621.7 | AB99: =[1]Weather!I219 -> 0 | AC99: =[1]Weather!J219 -> 563.7 | AD99: =[1]Weather!K219 -> 0 | AE99: =[1]Weather!L219 -> 505.7 | AF99: =[1]Weather!M219 -> 0 | AG99: =[1]Weather!N219 -> 447.7 | AH99: =[1]Weather!O219 -> 0 | AI99: =[1]Weather!P219 -> 389.7 | AJ99: =[1]Weather!Q219 -> 0 | AK99: =[1]Weather!R219 -> 331.7 | AL99: =[1]Weather!S219 -> 0 | AM99: =[1]Economic!C99 -> 710048.9 | AN99: =[1]Economic!D99 -> 7487.3 | AO99: =[1]Economic!E99 -> 7414.9 | AP99: =[1]Economic!F99 -> 128.7 | AQ99: =[1]Economic!G99 -> 124.5 | AR99: =AR51 -> 29 | AS99: 19 | AT99: =1+AT98 -> 98 | AU99: =AU87 -> 0 | AV99: =AV87 -> 1 | AW99: =AW87 -> 0 | AX99: =AX87 -> 0 | AY99: =AY87 -> 0 | AZ99: =AZ87 -> 0 | BA99: =BA87 -> 0 | BB99: =BB87 -> 0 | BC99: =BC87 -> 0 | BD99: =BD87 -> 0 | BE99: =BE87 -> 0 | BF99: =BF87 -> 0 | BG99: =BG87 -> 0 | BH99: =BH87 -> 0 | BI99: =BG99+BH99 -> 0 | BJ99: 0 | BK99: 0 | BL99: =BK99 -> 0 | BM99: =BM98 -> 0 | BN99: =$BJ99*W99 -> 0 | BO99: =$BJ99*X99 -> 0 | BP99: =$BJ99*Y99 -> 0 | BQ99: =$BJ99*Z99 -> 0 | BR99: =$BJ99*AA99 -> 0 | BS99: =$BJ99*AB99 -> 0 | BT99: =$BJ99*AC99 -> 0 | BU99: =$BJ99*AD99 -> 0 | BV99: =$BJ99*AE99 -> 0 | BW99: =$BJ99*AF99 -> 0 | BX99: =$BJ99*AG99 -> 0 | BY99: =$BJ99*AH99 -> 0 | BZ99: =$BJ99*AI99 -> 0 | CA99: =$BJ99*AJ99 -> 0 | CB99: =$BJ99*AK99 -> 0 | CC99: =$BJ99*AL99 -> 0 | CD99: =F99/Q99 -> 794.3480562 | CE99: =I99/R99 -> 2478.932226 | CF99: =L99/S99 -> 86971.70338
A100: ='[1]Monthly Data'!A100 -> 2020-03-01 | B100: ='[1]Monthly Data'!B100 -> 2020 | C100: =MONTH(A100) -> 3 | D100: ='[1]Monthly Data'!D100 -> 11708936.15 | E100: ='[1]Monthly Data'!E100 -> 604879.613 | F100: ='[1]Monthly Data'!F100 -> 12313815.76 | G100: ='[1]Monthly Data'!G100 -> 3689100.326 | H100: ='[1]Monthly Data'!H100 -> 270054.9798 | I100: ='[1]Monthly Data'!I100 -> 3959155.306 | J100: ='[1]Monthly Data'!J100 -> 9916764.653 | K100: ='[1]Monthly Data'!K100 -> 635523.4548 | L100: ='[1]Monthly Data'!L100 -> 10552288.11 | M100: ='[1]Monthly Data'!M100 -> 106442.8598 | N100: ='[1]Monthly Data'!N100 -> 33092.89793 | O100: ='[1]Monthly Data'!O100 -> 25540.92 | P100: ='[1]Monthly Data'!P100 -> 285.85 | Q100: ='[1]Monthly Data'!Q100 -> 16030 | R100: ='[1]Monthly Data'!R100 -> 1777 | S100: ='[1]Monthly Data'!S100 -> 127 | T100: ='[1]Monthly Data'!T100 -> 3261 | U100: ='[1]Monthly Data'!U100 -> 30 | V100: =[1]Weather!C220 -> 2.319354839 | W100: =[1]Weather!D220 -> 610.1 | X100: =[1]Weather!E220 -> 0 | Y100: =[1]Weather!F220 -> 548.1 | Z100: =[1]Weather!G220 -> 0 | AA100: =[1]Weather!H220 -> 486.1 | AB100: =[1]Weather!I220 -> 0 | AC100: =[1]Weather!J220 -> 424.1 | AD100: =[1]Weather!K220 -> 0 | AE100: =[1]Weather!L220 -> 362.1 | AF100: =[1]Weather!M220 -> 0 | AG100: =[1]Weather!N220 -> 300.1 | AH100: =[1]Weather!O220 -> 0 | AI100: =[1]Weather!P220 -> 241.3 | AJ100: =[1]Weather!Q220 -> 3.2 | AK100: =[1]Weather!R220 -> 183.3 | AL100: =[1]Weather!S220 -> 7.2 | AM100: =[1]Economic!C100 -> 710048.9 | AN100: =[1]Economic!D100 -> 7361.1 | AO100: =[1]Economic!E100 -> 7246.6 | AP100: =[1]Economic!F100 -> 125.6 | AQ100: =[1]Economic!G100 -> 122.5 | AR100: =AR52 -> 31 | AS100: 22 | AT100: =1+AT99 -> 99 | AU100: =AU88 -> 0 | AV100: =AV88 -> 0 | AW100: =AW88 -> 1 | AX100: =AX88 -> 0 | AY100: =AY88 -> 0 | AZ100: =AZ88 -> 0 | BA100: =BA88 -> 0 | BB100: =BB88 -> 0 | BC100: =BC88 -> 0 | BD100: =BD88 -> 0 | BE100: =BE88 -> 0 | BF100: =BF88 -> 0 | BG100: =BG88 -> 1 | BH100: =BH88 -> 0 | BI100: =BG100+BH100 -> 1 | BJ100: 1 | BK100: 0.5 | BL100: =BK100 -> 0.5 | BM100: =BM99 -> 0 | BN100: =$BJ100*W100 -> 610.1 | BO100: =$BJ100*X100 -> 0 | BP100: =$BJ100*Y100 -> 548.1 | BQ100: =$BJ100*Z100 -> 0 | BR100: =$BJ100*AA100 -> 486.1 | BS100: =$BJ100*AB100 -> 0 | BT100: =$BJ100*AC100 -> 424.1 | BU100: =$BJ100*AD100 -> 0 | BV100: =$BJ100*AE100 -> 362.1 | BW100: =$BJ100*AF100 -> 0 | BX100: =$BJ100*AG100 -> 300.1 | BY100: =$BJ100*AH100 -> 0 | BZ100: =$BJ100*AI100 -> 241.3 | CA100: =$BJ100*AJ100 -> 3.2 | CB100: =$BJ100*AK100 -> 183.3 | CC100: =$BJ100*AL100 -> 7.2 | CD100: =F100/Q100 -> 768.1731603 | CE100: =I100/R100 -> 2227.99961 | CF100: =L100/S100 -> 83088.88274
A101: ='[1]Monthly Data'!A101 -> 2020-04-01 | B101: ='[1]Monthly Data'!B101 -> 2020 | C101: =MONTH(A101) -> 4 | D101: ='[1]Monthly Data'!D101 -> 10594411.68 | E101: ='[1]Monthly Data'!E101 -> 604879.613 | F101: ='[1]Monthly Data'!F101 -> 11199291.29 | G101: ='[1]Monthly Data'!G101 -> 2848033.243 | H101: ='[1]Monthly Data'!H101 -> 270054.9798 | I101: ='[1]Monthly Data'!I101 -> 3118088.223 | J101: ='[1]Monthly Data'!J101 -> 7038118.27 | K101: ='[1]Monthly Data'!K101 -> 635523.4548 | L101: ='[1]Monthly Data'!L101 -> 7673641.725 | M101: ='[1]Monthly Data'!M101 -> 89747.39879 | N101: ='[1]Monthly Data'!N101 -> 32983.935 | O101: ='[1]Monthly Data'!O101 -> 24483.24 | P101: ='[1]Monthly Data'!P101 -> 285.85 | Q101: ='[1]Monthly Data'!Q101 -> 16137 | R101: ='[1]Monthly Data'!R101 -> 1778 | S101: ='[1]Monthly Data'!S101 -> 129 | T101: ='[1]Monthly Data'!T101 -> 3261 | U101: ='[1]Monthly Data'!U101 -> 30 | V101: =[1]Weather!C221 -> 4.713333333 | W101: =[1]Weather!D221 -> 518.6 | X101: =[1]Weather!E221 -> 0 | Y101: =[1]Weather!F221 -> 458.6 | Z101: =[1]Weather!G221 -> 0 | AA101: =[1]Weather!H221 -> 398.6 | AB101: =[1]Weather!I221 -> 0 | AC101: =[1]Weather!J221 -> 338.6 | AD101: =[1]Weather!K221 -> 0 | AE101: =[1]Weather!L221 -> 278.6 | AF101: =[1]Weather!M221 -> 0 | AG101: =[1]Weather!N221 -> 218.6 | AH101: =[1]Weather!O221 -> 0 | AI101: =[1]Weather!P221 -> 161.1 | AJ101: =[1]Weather!Q221 -> 2.5 | AK101: =[1]Weather!R221 -> 109.2 | AL101: =[1]Weather!S221 -> 10.6 | AM101: =[1]Economic!C101 -> 710048.9 | AN101: =[1]Economic!D101 -> 6999.7 | AO101: =[1]Economic!E101 -> 6905.7 | AP101: =[1]Economic!F101 -> 119.4 | AQ101: =[1]Economic!G101 -> 116.3 | AR101: =AR53 -> 30 | AS101: 21 | AT101: =1+AT100 -> 100 | AU101: =AU89 -> 0 | AV101: =AV89 -> 0 | AW101: =AW89 -> 0 | AX101: =AX89 -> 1 | AY101: =AY89 -> 0 | AZ101: =AZ89 -> 0 | BA101: =BA89 -> 0 | BB101: =BB89 -> 0 | BC101: =BC89 -> 0 | BD101: =BD89 -> 0 | BE101: =BE89 -> 0 | BF101: =BF89 -> 0 | BG101: =BG89 -> 1 | BH101: =BH89 -> 0 | BI101: =BG101+BH101 -> 1 | BJ101: 1 | BK101: 1 | BL101: =BK101 -> 1 | BM101: =BM100 -> 0 | BN101: =$BJ101*W101 -> 518.6 | BO101: =$BJ101*X101 -> 0 | BP101: =$BJ101*Y101 -> 458.6 | BQ101: =$BJ101*Z101 -> 0 | BR101: =$BJ101*AA101 -> 398.6 | BS101: =$BJ101*AB101 -> 0 | BT101: =$BJ101*AC101 -> 338.6 | BU101: =$BJ101*AD101 -> 0 | BV101: =$BJ101*AE101 -> 278.6 | BW101: =$BJ101*AF101 -> 0 | BX101: =$BJ101*AG101 -> 218.6 | BY101: =$BJ101*AH101 -> 0 | BZ101: =$BJ101*AI101 -> 161.1 | CA101: =$BJ101*AJ101 -> 2.5 | CB101: =$BJ101*AK101 -> 109.2 | CC101: =$BJ101*AL101 -> 10.6 | CD101: =F101/Q101 -> 694.0132176 | CE101: =I101/R101 -> 1753.705412 | CF101: =L101/S101 -> 59485.59476
A102: ='[1]Monthly Data'!A102 -> 2020-05-01 | B102: ='[1]Monthly Data'!B102 -> 2020 | C102: =MONTH(A102) -> 5 | D102: ='[1]Monthly Data'!D102 -> 10075897.74 | E102: ='[1]Monthly Data'!E102 -> 604879.613 | F102: ='[1]Monthly Data'!F102 -> 10680777.35 | G102: ='[1]Monthly Data'!G102 -> 2839173.944 | H102: ='[1]Monthly Data'!H102 -> 270054.9798 | I102: ='[1]Monthly Data'!I102 -> 3109228.924 | J102: ='[1]Monthly Data'!J102 -> 7851278.306 | K102: ='[1]Monthly Data'!K102 -> 635523.4548 | L102: ='[1]Monthly Data'!L102 -> 8486801.761 | M102: ='[1]Monthly Data'!M102 -> 80962.82138 | N102: ='[1]Monthly Data'!N102 -> 33054.94455 | O102: ='[1]Monthly Data'!O102 -> 19142.87 | P102: ='[1]Monthly Data'!P102 -> 285.85 | Q102: ='[1]Monthly Data'!Q102 -> 16100 | R102: ='[1]Monthly Data'!R102 -> 1771 | S102: ='[1]Monthly Data'!S102 -> 129 | T102: ='[1]Monthly Data'!T102 -> 3261 | U102: ='[1]Monthly Data'!U102 -> 30 | V102: =[1]Weather!C222 -> 10.52311727 | W102: =[1]Weather!D222 -> 360.1 | X102: =[1]Weather!E222 -> 4.3 | Y102: =[1]Weather!F222 -> 305.2 | Z102: =[1]Weather!G222 -> 11.4 | AA102: =[1]Weather!H222 -> 251.2 | AB102: =[1]Weather!I222 -> 19.4 | AC102: =[1]Weather!J222 -> 198.3 | AD102: =[1]Weather!K222 -> 28.5 | AE102: =[1]Weather!L222 -> 148.4 | AF102: =[1]Weather!M222 -> 40.6 | AG102: =[1]Weather!N222 -> 107.2 | AH102: =[1]Weather!O222 -> 61.4 | AI102: =[1]Weather!P222 -> 73.8 | AJ102: =[1]Weather!Q222 -> 90 | AK102: =[1]Weather!R222 -> 47.8 | AL102: =[1]Weather!S222 -> 126 | AM102: =[1]Economic!C102 -> 710048.9 | AN102: =[1]Economic!D102 -> 6621.5 | AO102: =[1]Economic!E102 -> 6577.9 | AP102: =[1]Economic!F102 -> 112.7 | AQ102: =[1]Economic!G102 -> 110.9 | AR102: =AR54 -> 31 | AS102: 20 | AT102: =1+AT101 -> 101 | AU102: =AU90 -> 0 | AV102: =AV90 -> 0 | AW102: =AW90 -> 0 | AX102: =AX90 -> 0 | AY102: =AY90 -> 1 | AZ102: =AZ90 -> 0 | BA102: =BA90 -> 0 | BB102: =BB90 -> 0 | BC102: =BC90 -> 0 | BD102: =BD90 -> 0 | BE102: =BE90 -> 0 | BF102: =BF90 -> 0 | BG102: =BG90 -> 1 | BH102: =BH90 -> 0 | BI102: =BG102+BH102 -> 1 | BJ102: 1 | BK102: 1 | BL102: =BK102 -> 1 | BM102: =BM101 -> 0 | BN102: =$BJ102*W102 -> 360.1 | BO102: =$BJ102*X102 -> 4.3 | BP102: =$BJ102*Y102 -> 305.2 | BQ102: =$BJ102*Z102 -> 11.4 | BR102: =$BJ102*AA102 -> 251.2 | BS102: =$BJ102*AB102 -> 19.4 | BT102: =$BJ102*AC102 -> 198.3 | BU102: =$BJ102*AD102 -> 28.5 | BV102: =$BJ102*AE102 -> 148.4 | BW102: =$BJ102*AF102 -> 40.6 | BX102: =$BJ102*AG102 -> 107.2 | BY102: =$BJ102*AH102 -> 61.4 | BZ102: =$BJ102*AI102 -> 73.8 | CA102: =$BJ102*AJ102 -> 90 | CB102: =$BJ102*AK102 -> 47.8 | CC102: =$BJ102*AL102 -> 126 | CD102: =F102/Q102 -> 663.40232 | CE102: =I102/R102 -> 1755.634627 | CF102: =L102/S102 -> 65789.16094
A103: ='[1]Monthly Data'!A103 -> 2020-06-01 | B103: ='[1]Monthly Data'!B103 -> 2020 | C103: =MONTH(A103) -> 6 | D103: ='[1]Monthly Data'!D103 -> 9987467.213 | E103: ='[1]Monthly Data'!E103 -> 604879.613 | F103: ='[1]Monthly Data'!F103 -> 10592346.83 | G103: ='[1]Monthly Data'!G103 -> 3055159.57 | H103: ='[1]Monthly Data'!H103 -> 270054.9798 | I103: ='[1]Monthly Data'!I103 -> 3325214.55 | J103: ='[1]Monthly Data'!J103 -> 9093235.583 | K103: ='[1]Monthly Data'!K103 -> 635523.4548 | L103: ='[1]Monthly Data'!L103 -> 9728759.037 | M103: ='[1]Monthly Data'!M103 -> 72347.56673 | N103: ='[1]Monthly Data'!N103 -> 32983.935 | O103: ='[1]Monthly Data'!O103 -> 23132 | P103: ='[1]Monthly Data'!P103 -> 285.85 | Q103: ='[1]Monthly Data'!Q103 -> 16160 | R103: ='[1]Monthly Data'!R103 -> 1775 | S103: ='[1]Monthly Data'!S103 -> 130 | T103: ='[1]Monthly Data'!T103 -> 3261 | U103: ='[1]Monthly Data'!U103 -> 30 | V103: =[1]Weather!C223 -> 17.63666667 | W103: =[1]Weather!D223 -> 138.7 | X103: =[1]Weather!E223 -> 7.8 | Y103: =[1]Weather!F223 -> 92.1 | Z103: =[1]Weather!G223 -> 21.2 | AA103: =[1]Weather!H223 -> 56.1 | AB103: =[1]Weather!I223 -> 45.2 | AC103: =[1]Weather!J223 -> 29.7 | AD103: =[1]Weather!K223 -> 78.8 | AE103: =[1]Weather!L223 -> 14.9 | AF103: =[1]Weather!M223 -> 124 | AG103: =[1]Weather!N223 -> 4.6 | AH103: =[1]Weather!O223 -> 173.7 | AI103: =[1]Weather!P223 -> 0 | AJ103: =[1]Weather!Q223 -> 229.1 | AK103: =[1]Weather!R223 -> 0 | AL103: =[1]Weather!S223 -> 289.1 | AM103: =[1]Economic!C103 -> 710048.9 | AN103: =[1]Economic!D103 -> 6497.3 | AO103: =[1]Economic!E103 -> 6533.5 | AP103: =[1]Economic!F103 -> 114 | AQ103: =[1]Economic!G103 -> 113.9 | AR103: =AR55 -> 30 | AS103: 22 | AT103: =1+AT102 -> 102 | AU103: =AU91 -> 0 | AV103: =AV91 -> 0 | AW103: =AW91 -> 0 | AX103: =AX91 -> 0 | AY103: =AY91 -> 0 | AZ103: =AZ91 -> 1 | BA103: =BA91 -> 0 | BB103: =BB91 -> 0 | BC103: =BC91 -> 0 | BD103: =BD91 -> 0 | BE103: =BE91 -> 0 | BF103: =BF91 -> 0 | BG103: =BG91 -> 0 | BH103: =BH91 -> 0 | BI103: =BG103+BH103 -> 0 | BJ103: 1 | BK103: 0.5 | BL103: =BK103 -> 0.5 | BM103: =BM102 -> 0 | BN103: =$BJ103*W103 -> 138.7 | BO103: =$BJ103*X103 -> 7.8 | BP103: =$BJ103*Y103 -> 92.1 | BQ103: =$BJ103*Z103 -> 21.2 | BR103: =$BJ103*AA103 -> 56.1 | BS103: =$BJ103*AB103 -> 45.2 | BT103: =$BJ103*AC103 -> 29.7 | BU103: =$BJ103*AD103 -> 78.8 | BV103: =$BJ103*AE103 -> 14.9 | BW103: =$BJ103*AF103 -> 124 | BX103: =$BJ103*AG103 -> 4.6 | BY103: =$BJ103*AH103 -> 173.7 | BZ103: =$BJ103*AI103 -> 0 | CA103: =$BJ103*AJ103 -> 229.1 | CB103: =$BJ103*AK103 -> 0 | CC103: =$BJ103*AL103 -> 289.1 | CD103: =F103/Q103 -> 655.4670065 | CE103: =I103/R103 -> 1873.36031 | CF103: =L103/S103 -> 74836.60798
A104: ='[1]Monthly Data'!A104 -> 2020-07-01 | B104: ='[1]Monthly Data'!B104 -> 2020 | C104: =MONTH(A104) -> 7 | D104: ='[1]Monthly Data'!D104 -> 13156024.82 | E104: ='[1]Monthly Data'!E104 -> 604879.613 | F104: ='[1]Monthly Data'!F104 -> 13760904.44 | G104: ='[1]Monthly Data'!G104 -> 3836853.598 | H104: ='[1]Monthly Data'!H104 -> 270054.9798 | I104: ='[1]Monthly Data'!I104 -> 4106908.577 | J104: ='[1]Monthly Data'!J104 -> 10422144.21 | K104: ='[1]Monthly Data'!K104 -> 635523.4548 | L104: ='[1]Monthly Data'!L104 -> 11057667.66 | M104: ='[1]Monthly Data'!M104 -> 77624.83892 | N104: ='[1]Monthly Data'!N104 -> 33054.94455 | O104: ='[1]Monthly Data'!O104 -> 23856.96 | P104: ='[1]Monthly Data'!P104 -> 285.85 | Q104: ='[1]Monthly Data'!Q104 -> 16214 | R104: ='[1]Monthly Data'!R104 -> 1773 | S104: ='[1]Monthly Data'!S104 -> 130 | T104: ='[1]Monthly Data'!T104 -> 3261 | U104: ='[1]Monthly Data'!U104 -> 30 | V104: =[1]Weather!C224 -> 22.49677419 | W104: =[1]Weather!D224 -> 24.6 | X104: =[1]Weather!E224 -> 40 | Y104: =[1]Weather!F224 -> 2.8 | Z104: =[1]Weather!G224 -> 80.2 | AA104: =[1]Weather!H224 -> 0 | AB104: =[1]Weather!I224 -> 139.4 | AC104: =[1]Weather!J224 -> 0 | AD104: =[1]Weather!K224 -> 201.4 | AE104: =[1]Weather!L224 -> 0 | AF104: =[1]Weather!M224 -> 263.4 | AG104: =[1]Weather!N224 -> 0 | AH104: =[1]Weather!O224 -> 325.4 | AI104: =[1]Weather!P224 -> 0 | AJ104: =[1]Weather!Q224 -> 387.4 | AK104: =[1]Weather!R224 -> 0 | AL104: =[1]Weather!S224 -> 449.4 | AM104: =[1]Economic!C104 -> 710048.9 | AN104: =[1]Economic!D104 -> 6655.5 | AO104: =[1]Economic!E104 -> 6731.6 | AP104: =[1]Economic!F104 -> 118 | AQ104: =[1]Economic!G104 -> 121.1 | AR104: =AR56 -> 31 | AS104: 22 | AT104: =1+AT103 -> 103 | AU104: =AU92 -> 0 | AV104: =AV92 -> 0 | AW104: =AW92 -> 0 | AX104: =AX92 -> 0 | AY104: =AY92 -> 0 | AZ104: =AZ92 -> 0 | BA104: =BA92 -> 1 | BB104: =BB92 -> 0 | BC104: =BC92 -> 0 | BD104: =BD92 -> 0 | BE104: =BE92 -> 0 | BF104: =BF92 -> 0 | BG104: =BG92 -> 0 | BH104: =BH92 -> 0 | BI104: =BG104+BH104 -> 0 | BJ104: 1 | BK104: 0.5 | BL104: 0 | BM104: =BM103 -> 0 | BN104: =$BJ104*W104 -> 24.6 | BO104: =$BJ104*X104 -> 40 | BP104: =$BJ104*Y104 -> 2.8 | BQ104: =$BJ104*Z104 -> 80.2 | BR104: =$BJ104*AA104 -> 0 | BS104: =$BJ104*AB104 -> 139.4 | BT104: =$BJ104*AC104 -> 0 | BU104: =$BJ104*AD104 -> 201.4 | BV104: =$BJ104*AE104 -> 0 | BW104: =$BJ104*AF104 -> 263.4 | BX104: =$BJ104*AG104 -> 0 | BY104: =$BJ104*AH104 -> 325.4 | BZ104: =$BJ104*AI104 -> 0 | CA104: =$BJ104*AJ104 -> 387.4 | CB104: =$BJ104*AK104 -> 0 | CC104: =$BJ104*AL104 -> 449.4 | CD104: =F104/Q104 -> 848.7050966 | CE104: =I104/R104 -> 2316.361296 | CF104: =L104/S104 -> 85058.982
A105: ='[1]Monthly Data'!A105 -> 2020-08-01 | B105: ='[1]Monthly Data'!B105 -> 2020 | C105: =MONTH(A105) -> 8 | D105: ='[1]Monthly Data'!D105 -> 11624511.13 | E105: ='[1]Monthly Data'!E105 -> 604879.613 | F105: ='[1]Monthly Data'!F105 -> 12229390.74 | G105: ='[1]Monthly Data'!G105 -> 3688140.268 | H105: ='[1]Monthly Data'!H105 -> 270054.9798 | I105: ='[1]Monthly Data'!I105 -> 3958195.248 | J105: ='[1]Monthly Data'!J105 -> 10192016.21 | K105: ='[1]Monthly Data'!K105 -> 635523.4548 | L105: ='[1]Monthly Data'!L105 -> 10827539.67 | M105: ='[1]Monthly Data'!M105 -> 87754.91642 | N105: ='[1]Monthly Data'!N105 -> 33019.43978 | O105: ='[1]Monthly Data'!O105 -> 20204.01 | P105: ='[1]Monthly Data'!P105 -> 285.85 | Q105: ='[1]Monthly Data'!Q105 -> 16218 | R105: ='[1]Monthly Data'!R105 -> 1782 | S105: ='[1]Monthly Data'!S105 -> 128 | T105: ='[1]Monthly Data'!T105 -> 3261 | U105: ='[1]Monthly Data'!U105 -> 30 | V105: =[1]Weather!C225 -> 20.4298372 | W105: =[1]Weather!D225 -> 64.4 | X105: =[1]Weather!E225 -> 15.7 | Y105: =[1]Weather!F225 -> 25 | Z105: =[1]Weather!G225 -> 38.3 | AA105: =[1]Weather!H225 -> 6 | AB105: =[1]Weather!I225 -> 81.3 | AC105: =[1]Weather!J225 -> 0.7 | AD105: =[1]Weather!K225 -> 138 | AE105: =[1]Weather!L225 -> 0 | AF105: =[1]Weather!M225 -> 199.3 | AG105: =[1]Weather!N225 -> 0 | AH105: =[1]Weather!O225 -> 261.3 | AI105: =[1]Weather!P225 -> 0 | AJ105: =[1]Weather!Q225 -> 323.3 | AK105: =[1]Weather!R225 -> 0 | AL105: =[1]Weather!S225 -> 385.3 | AM105: =[1]Economic!C105 -> 710048.9 | AN105: =[1]Economic!D105 -> 6872.3 | AO105: =[1]Economic!E105 -> 6953.8 | AP105: =[1]Economic!F105 -> 119.2 | AQ105: =[1]Economic!G105 -> 124.5 | AR105: =AR57 -> 31 | AS105: 20 | AT105: =1+AT104 -> 104 | AU105: =AU93 -> 0 | AV105: =AV93 -> 0 | AW105: =AW93 -> 0 | AX105: =AX93 -> 0 | AY105: =AY93 -> 0 | AZ105: =AZ93 -> 0 | BA105: =BA93 -> 0 | BB105: =BB93 -> 1 | BC105: =BC93 -> 0 | BD105: =BD93 -> 0 | BE105: =BE93 -> 0 | BF105: =BF93 -> 0 | BG105: =BG93 -> 0 | BH105: =BH93 -> 0 | BI105: =BG105+BH105 -> 0 | BJ105: 1 | BK105: 0.5 | BL105: 0 | BM105: =BM104 -> 0 | BN105: =$BJ105*W105 -> 64.4 | BO105: =$BJ105*X105 -> 15.7 | BP105: =$BJ105*Y105 -> 25 | BQ105: =$BJ105*Z105 -> 38.3 | BR105: =$BJ105*AA105 -> 6 | BS105: =$BJ105*AB105 -> 81.3 | BT105: =$BJ105*AC105 -> 0.7 | BU105: =$BJ105*AD105 -> 138 | BV105: =$BJ105*AE105 -> 0 | BW105: =$BJ105*AF105 -> 199.3 | BX105: =$BJ105*AG105 -> 0 | BY105: =$BJ105*AH105 -> 261.3 | BZ105: =$BJ105*AI105 -> 0 | CA105: =$BJ105*AJ105 -> 323.3 | CB105: =$BJ105*AK105 -> 0 | CC105: =$BJ105*AL105 -> 385.3 | CD105: =F105/Q105 -> 754.0628153 | CE105: =I105/R105 -> 2221.209454 | CF105: =L105/S105 -> 84590.15363
A106: ='[1]Monthly Data'!A106 -> 2020-09-01 | B106: ='[1]Monthly Data'!B106 -> 2020 | C106: =MONTH(A106) -> 9 | D106: ='[1]Monthly Data'!D106 -> 8863050.227 | E106: ='[1]Monthly Data'!E106 -> 604879.613 | F106: ='[1]Monthly Data'!F106 -> 9467929.84 | G106: ='[1]Monthly Data'!G106 -> 3202707.655 | H106: ='[1]Monthly Data'!H106 -> 270054.9798 | I106: ='[1]Monthly Data'!I106 -> 3472762.635 | J106: ='[1]Monthly Data'!J106 -> 9646470.724 | K106: ='[1]Monthly Data'!K106 -> 635523.4548 | L106: ='[1]Monthly Data'!L106 -> 10281994.18 | M106: ='[1]Monthly Data'!M106 -> 97573.56586 | N106: ='[1]Monthly Data'!N106 -> 32983.935 | O106: ='[1]Monthly Data'!O106 -> 19468.42 | P106: ='[1]Monthly Data'!P106 -> 285.85 | Q106: ='[1]Monthly Data'!Q106 -> 16220 | R106: ='[1]Monthly Data'!R106 -> 1789 | S106: ='[1]Monthly Data'!S106 -> 124 | T106: ='[1]Monthly Data'!T106 -> 3261 | U106: ='[1]Monthly Data'!U106 -> 30 | V106: =[1]Weather!C226 -> 15.94666667 | W106: =[1]Weather!D226 -> 182 | X106: =[1]Weather!E226 -> 0.4 | Y106: =[1]Weather!F226 -> 128.5 | Z106: =[1]Weather!G226 -> 6.9 | AA106: =[1]Weather!H226 -> 84.6 | AB106: =[1]Weather!I226 -> 23 | AC106: =[1]Weather!J226 -> 47.2 | AD106: =[1]Weather!K226 -> 45.6 | AE106: =[1]Weather!L226 -> 21.7 | AF106: =[1]Weather!M226 -> 80.1 | AG106: =[1]Weather!N226 -> 8.1 | AH106: =[1]Weather!O226 -> 126.5 | AI106: =[1]Weather!P226 -> 2.4 | AJ106: =[1]Weather!Q226 -> 180.8 | AK106: =[1]Weather!R226 -> 0 | AL106: =[1]Weather!S226 -> 238.4 | AM106: =[1]Economic!C106 -> 710048.9 | AN106: =[1]Economic!D106 -> 7020.1 | AO106: =[1]Economic!E106 -> 7070.2 | AP106: =[1]Economic!F106 -> 117.6 | AQ106: =[1]Economic!G106 -> 121.8 | AR106: =AR58 -> 30 | AS106: 21 | AT106: =1+AT105 -> 105 | AU106: =AU94 -> 0 | AV106: =AV94 -> 0 | AW106: =AW94 -> 0 | AX106: =AX94 -> 0 | AY106: =AY94 -> 0 | AZ106: =AZ94 -> 0 | BA106: =BA94 -> 0 | BB106: =BB94 -> 0 | BC106: =BC94 -> 1 | BD106: =BD94 -> 0 | BE106: =BE94 -> 0 | BF106: =BF94 -> 0 | BG106: =BG94 -> 0 | BH106: =BH94 -> 1 | BI106: =BG106+BH106 -> 1 | BJ106: 1 | BK106: 0.5 | BL106: 0 | BM106: =BM105 -> 0 | BN106: =$BJ106*W106 -> 182 | BO106: =$BJ106*X106 -> 0.4 | BP106: =$BJ106*Y106 -> 128.5 | BQ106: =$BJ106*Z106 -> 6.9 | BR106: =$BJ106*AA106 -> 84.6 | BS106: =$BJ106*AB106 -> 23 | BT106: =$BJ106*AC106 -> 47.2 | BU106: =$BJ106*AD106 -> 45.6 | BV106: =$BJ106*AE106 -> 21.7 | BW106: =$BJ106*AF106 -> 80.1 | BX106: =$BJ106*AG106 -> 8.1 | BY106: =$BJ106*AH106 -> 126.5 | BZ106: =$BJ106*AI106 -> 2.4 | CA106: =$BJ106*AJ106 -> 180.8 | CB106: =$BJ106*AK106 -> 0 | CC106: =$BJ106*AL106 -> 238.4 | CD106: =F106/Q106 -> 583.7194723 | CE106: =I106/R106 -> 1941.175313 | CF106: =L106/S106 -> 82919.30789
A107: ='[1]Monthly Data'!A107 -> 2020-10-01 | B107: ='[1]Monthly Data'!B107 -> 2020 | C107: =MONTH(A107) -> 10 | D107: ='[1]Monthly Data'!D107 -> 9752297.894 | E107: ='[1]Monthly Data'!E107 -> 604879.613 | F107: ='[1]Monthly Data'!F107 -> 10357177.51 | G107: ='[1]Monthly Data'!G107 -> 3288621.852 | H107: ='[1]Monthly Data'!H107 -> 270054.9798 | I107: ='[1]Monthly Data'!I107 -> 3558676.832 | J107: ='[1]Monthly Data'!J107 -> 10119827.82 | K107: ='[1]Monthly Data'!K107 -> 635523.4548 | L107: ='[1]Monthly Data'!L107 -> 10755351.28 | M107: ='[1]Monthly Data'!M107 -> 114448.1778 | N107: ='[1]Monthly Data'!N107 -> 33054.94455 | O107: ='[1]Monthly Data'!O107 -> 35104.03 | P107: ='[1]Monthly Data'!P107 -> 285.85 | Q107: ='[1]Monthly Data'!Q107 -> 16288 | R107: ='[1]Monthly Data'!R107 -> 1783 | S107: ='[1]Monthly Data'!S107 -> 125 | T107: ='[1]Monthly Data'!T107 -> 3261 | U107: ='[1]Monthly Data'!U107 -> 30 | V107: =[1]Weather!C227 -> 8.970967742 | W107: =[1]Weather!D227 -> 403.9 | X107: =[1]Weather!E227 -> 0 | Y107: =[1]Weather!F227 -> 341.9 | Z107: =[1]Weather!G227 -> 0 | AA107: =[1]Weather!H227 -> 279.9 | AB107: =[1]Weather!I227 -> 0 | AC107: =[1]Weather!J227 -> 218.1 | AD107: =[1]Weather!K227 -> 0.2 | AE107: =[1]Weather!L227 -> 159.3 | AF107: =[1]Weather!M227 -> 3.4 | AG107: =[1]Weather!N227 -> 108.1 | AH107: =[1]Weather!O227 -> 14.2 | AI107: =[1]Weather!P227 -> 67 | AJ107: =[1]Weather!Q227 -> 35.1 | AK107: =[1]Weather!R227 -> 35.8 | AL107: =[1]Weather!S227 -> 65.9 | AM107: =[1]Economic!C107 -> 710048.9 | AN107: =[1]Economic!D107 -> 7125.4 | AO107: =[1]Economic!E107 -> 7157.8 | AP107: =[1]Economic!F107 -> 116.6 | AQ107: =[1]Economic!G107 -> 119.5 | AR107: =AR59 -> 31 | AS107: 21 | AT107: =1+AT106 -> 106 | AU107: =AU95 -> 0 | AV107: =AV95 -> 0 | AW107: =AW95 -> 0 | AX107: =AX95 -> 0 | AY107: =AY95 -> 0 | AZ107: =AZ95 -> 0 | BA107: =BA95 -> 0 | BB107: =BB95 -> 0 | BC107: =BC95 -> 0 | BD107: =BD95 -> 1 | BE107: =BE95 -> 0 | BF107: =BF95 -> 0 | BG107: =BG95 -> 0 | BH107: =BH95 -> 1 | BI107: =BG107+BH107 -> 1 | BJ107: 1 | BK107: 0.5 | BL107: 0 | BM107: =BM106 -> 0 | BN107: =$BJ107*W107 -> 403.9 | BO107: =$BJ107*X107 -> 0 | BP107: =$BJ107*Y107 -> 341.9 | BQ107: =$BJ107*Z107 -> 0 | BR107: =$BJ107*AA107 -> 279.9 | BS107: =$BJ107*AB107 -> 0 | BT107: =$BJ107*AC107 -> 218.1 | BU107: =$BJ107*AD107 -> 0.2 | BV107: =$BJ107*AE107 -> 159.3 | BW107: =$BJ107*AF107 -> 3.4 | BX107: =$BJ107*AG107 -> 108.1 | BY107: =$BJ107*AH107 -> 14.2 | BZ107: =$BJ107*AI107 -> 67 | CA107: =$BJ107*AJ107 -> 35.1 | CB107: =$BJ107*AK107 -> 35.8 | CC107: =$BJ107*AL107 -> 65.9 | CD107: =F107/Q107 -> 635.8777939 | CE107: =I107/R107 -> 1995.892783 | CF107: =L107/S107 -> 86042.81022
A108: ='[1]Monthly Data'!A108 -> 2020-11-01 | B108: ='[1]Monthly Data'!B108 -> 2020 | C108: =MONTH(A108) -> 11 | D108: ='[1]Monthly Data'!D108 -> 10443762.54 | E108: ='[1]Monthly Data'!E108 -> 604879.613 | F108: ='[1]Monthly Data'!F108 -> 11048642.15 | G108: ='[1]Monthly Data'!G108 -> 3516537.535 | H108: ='[1]Monthly Data'!H108 -> 270054.9798 | I108: ='[1]Monthly Data'!I108 -> 3786592.515 | J108: ='[1]Monthly Data'!J108 -> 10208460.22 | K108: ='[1]Monthly Data'!K108 -> 635523.4548 | L108: ='[1]Monthly Data'!L108 -> 10843983.67 | M108: ='[1]Monthly Data'!M108 -> 122385.966 | N108: ='[1]Monthly Data'!N108 -> 32983.935 | O108: ='[1]Monthly Data'!O108 -> 23704.02 | P108: ='[1]Monthly Data'!P108 -> 285.85 | Q108: ='[1]Monthly Data'!Q108 -> 16191 | R108: ='[1]Monthly Data'!R108 -> 1772 | S108: ='[1]Monthly Data'!S108 -> 123 | T108: ='[1]Monthly Data'!T108 -> 3261 | U108: ='[1]Monthly Data'!U108 -> 30 | V108: =[1]Weather!C228 -> 7.776666667 | W108: =[1]Weather!D228 -> 426.7 | X108: =[1]Weather!E228 -> 0 | Y108: =[1]Weather!F228 -> 368.5 | Z108: =[1]Weather!G228 -> 1.8 | AA108: =[1]Weather!H228 -> 312.1 | AB108: =[1]Weather!I228 -> 5.4 | AC108: =[1]Weather!J228 -> 259.9 | AD108: =[1]Weather!K228 -> 13.2 | AE108: =[1]Weather!L228 -> 211.9 | AF108: =[1]Weather!M228 -> 25.2 | AG108: =[1]Weather!N228 -> 166.6 | AH108: =[1]Weather!O228 -> 39.9 | AI108: =[1]Weather!P228 -> 123.7 | AJ108: =[1]Weather!Q228 -> 57 | AK108: =[1]Weather!R228 -> 83.7 | AL108: =[1]Weather!S228 -> 77 | AM108: =[1]Economic!C108 -> 710048.9 | AN108: =[1]Economic!D108 -> 7202.6 | AO108: =[1]Economic!E108 -> 7216.9 | AP108: =[1]Economic!F108 -> 114.8 | AQ108: =[1]Economic!G108 -> 115.6 | AR108: =AR60 -> 30 | AS108: 21 | AT108: =1+AT107 -> 107 | AU108: =AU96 -> 0 | AV108: =AV96 -> 0 | AW108: =AW96 -> 0 | AX108: =AX96 -> 0 | AY108: =AY96 -> 0 | AZ108: =AZ96 -> 0 | BA108: =BA96 -> 0 | BB108: =BB96 -> 0 | BC108: =BC96 -> 0 | BD108: =BD96 -> 0 | BE108: =BE96 -> 1 | BF108: =BF96 -> 0 | BG108: =BG96 -> 0 | BH108: =BH96 -> 1 | BI108: =BG108+BH108 -> 1 | BJ108: 1 | BK108: 0.5 | BL108: 0 | BM108: =BM107 -> 0 | BN108: =$BJ108*W108 -> 426.7 | BO108: =$BJ108*X108 -> 0 | BP108: =$BJ108*Y108 -> 368.5 | BQ108: =$BJ108*Z108 -> 1.8 | BR108: =$BJ108*AA108 -> 312.1 | BS108: =$BJ108*AB108 -> 5.4 | BT108: =$BJ108*AC108 -> 259.9 | BU108: =$BJ108*AD108 -> 13.2 | BV108: =$BJ108*AE108 -> 211.9 | BW108: =$BJ108*AF108 -> 25.2 | BX108: =$BJ108*AG108 -> 166.6 | BY108: =$BJ108*AH108 -> 39.9 | BZ108: =$BJ108*AI108 -> 123.7 | CA108: =$BJ108*AJ108 -> 57 | CB108: =$BJ108*AK108 -> 83.7 | CC108: =$BJ108*AL108 -> 77 | CD108: =F108/Q108 -> 682.3940556 | CE108: =I108/R108 -> 2136.903225 | CF108: =L108/S108 -> 88162.46888
A109: ='[1]Monthly Data'!A109 -> 2020-12-01 | B109: ='[1]Monthly Data'!B109 -> 2020 | C109: =MONTH(A109) -> 12 | D109: ='[1]Monthly Data'!D109 -> 13579930.83 | E109: ='[1]Monthly Data'!E109 -> 604879.613 | F109: ='[1]Monthly Data'!F109 -> 14184810.44 | G109: ='[1]Monthly Data'!G109 -> 4068467.909 | H109: ='[1]Monthly Data'!H109 -> 270054.9798 | I109: ='[1]Monthly Data'!I109 -> 4338522.889 | J109: ='[1]Monthly Data'!J109 -> 10223304.08 | K109: ='[1]Monthly Data'!K109 -> 635523.4548 | L109: ='[1]Monthly Data'!L109 -> 10858827.53 | M109: ='[1]Monthly Data'!M109 -> 133577.6372 | N109: ='[1]Monthly Data'!N109 -> 33054.94455 | O109: ='[1]Monthly Data'!O109 -> 24848.53 | P109: ='[1]Monthly Data'!P109 -> 285.85 | Q109: ='[1]Monthly Data'!Q109 -> 16380 | R109: ='[1]Monthly Data'!R109 -> 1793 | S109: ='[1]Monthly Data'!S109 -> 124 | T109: ='[1]Monthly Data'!T109 -> 3261 | U109: ='[1]Monthly Data'!U109 -> 30 | V109: =[1]Weather!C229 -> -0.3413988575 | W109: =[1]Weather!D229 -> 692.6 | X109: =[1]Weather!E229 -> 0 | Y109: =[1]Weather!F229 -> 630.6 | Z109: =[1]Weather!G229 -> 0 | AA109: =[1]Weather!H229 -> 568.6 | AB109: =[1]Weather!I229 -> 0 | AC109: =[1]Weather!J229 -> 506.6 | AD109: =[1]Weather!K229 -> 0 | AE109: =[1]Weather!L229 -> 444.6 | AF109: =[1]Weather!M229 -> 0 | AG109: =[1]Weather!N229 -> 382.6 | AH109: =[1]Weather!O229 -> 0 | AI109: =[1]Weather!P229 -> 320.6 | AJ109: =[1]Weather!Q229 -> 0 | AK109: =[1]Weather!R229 -> 258.6 | AL109: =[1]Weather!S229 -> 0 | AM109: =[1]Economic!C109 -> 710048.9 | AN109: =[1]Economic!D109 -> 7226 | AO109: =[1]Economic!E109 -> 7236.4 | AP109: =[1]Economic!F109 -> 112.9 | AQ109: =[1]Economic!G109 -> 112.2 | AR109: =AR61 -> 31 | AS109: 21 | AT109: =1+AT108 -> 108 | AU109: =AU97 -> 0 | AV109: =AV97 -> 0 | AW109: =AW97 -> 0 | AX109: =AX97 -> 0 | AY109: =AY97 -> 0 | AZ109: =AZ97 -> 0 | BA109: =BA97 -> 0 | BB109: =BB97 -> 0 | BC109: =BC97 -> 0 | BD109: =BD97 -> 0 | BE109: =BE97 -> 0 | BF109: =BF97 -> 1 | BG109: =BG97 -> 0 | BH109: =BH97 -> 0 | BI109: =BG109+BH109 -> 0 | BJ109: 1 | BK109: 0.5 | BL109: 0 | BM109: =BM108 -> 0 | BN109: =$BJ109*W109 -> 692.6 | BO109: =$BJ109*X109 -> 0 | BP109: =$BJ109*Y109 -> 630.6 | BQ109: =$BJ109*Z109 -> 0 | BR109: =$BJ109*AA109 -> 568.6 | BS109: =$BJ109*AB109 -> 0 | BT109: =$BJ109*AC109 -> 506.6 | BU109: =$BJ109*AD109 -> 0 | BV109: =$BJ109*AE109 -> 444.6 | BW109: =$BJ109*AF109 -> 0 | BX109: =$BJ109*AG109 -> 382.6 | BY109: =$BJ109*AH109 -> 0 | BZ109: =$BJ109*AI109 -> 320.6 | CA109: =$BJ109*AJ109 -> 0 | CB109: =$BJ109*AK109 -> 258.6 | CC109: =$BJ109*AL109 -> 0 | CD109: =F109/Q109 -> 865.9835436 | CE109: =I109/R109 -> 2419.70044 | CF109: =L109/S109 -> 87571.1898
A110: ='[1]Monthly Data'!A110 -> 2021-01-01 | B110: ='[1]Monthly Data'!B110 -> 2021 | C110: =MONTH(A110) -> 1 | D110: ='[1]Monthly Data'!D110 -> 14015137.93 | E110: ='[1]Monthly Data'!E110 -> 507566.5342 | F110: ='[1]Monthly Data'!F110 -> 14522704.47 | G110: ='[1]Monthly Data'!G110 -> 4010206.758 | H110: ='[1]Monthly Data'!H110 -> 257035.5905 | I110: ='[1]Monthly Data'!I110 -> 4267242.348 | J110: ='[1]Monthly Data'!J110 -> 10805859.1 | K110: ='[1]Monthly Data'!K110 -> 617873.5837 | L110: ='[1]Monthly Data'!L110 -> 11423732.68 | M110: ='[1]Monthly Data'!M110 -> 129767.2179 | N110: ='[1]Monthly Data'!N110 -> 33019.43978 | O110: ='[1]Monthly Data'!O110 -> 24275.31 | P110: ='[1]Monthly Data'!P110 -> 285.85 | Q110: ='[1]Monthly Data'!Q110 -> 16338 | R110: ='[1]Monthly Data'!R110 -> 1783 | S110: ='[1]Monthly Data'!S110 -> 124 | T110: ='[1]Monthly Data'!T110 -> 3261 | U110: ='[1]Monthly Data'!U110 -> 30 | V110: =[1]Weather!C230 -> -2.538709677 | W110: =[1]Weather!D230 -> 760.7 | X110: =[1]Weather!E230 -> 0 | Y110: =[1]Weather!F230 -> 698.7 | Z110: =[1]Weather!G230 -> 0 | AA110: =[1]Weather!H230 -> 636.7 | AB110: =[1]Weather!I230 -> 0 | AC110: =[1]Weather!J230 -> 574.7 | AD110: =[1]Weather!K230 -> 0 | AE110: =[1]Weather!L230 -> 512.7 | AF110: =[1]Weather!M230 -> 0 | AG110: =[1]Weather!N230 -> 450.7 | AH110: =[1]Weather!O230 -> 0 | AI110: =[1]Weather!P230 -> 388.7 | AJ110: =[1]Weather!Q230 -> 0 | AK110: =[1]Weather!R230 -> 326.7 | AL110: =[1]Weather!S230 -> 0 | AM110: =[1]Economic!C110 -> 740225.9783 | AN110: =[1]Economic!D110 -> 7187.6 | AO110: =[1]Economic!E110 -> 7159 | AP110: =[1]Economic!F110 -> 108.4 | AQ110: =[1]Economic!G110 -> 106.1 | AR110: =AR62 -> 31 | AS110: 20 | AT110: =1+AT109 -> 109 | AU110: =AU98 -> 1 | AV110: =AV98 -> 0 | AW110: =AW98 -> 0 | AX110: =AX98 -> 0 | AY110: =AY98 -> 0 | AZ110: =AZ98 -> 0 | BA110: =BA98 -> 0 | BB110: =BB98 -> 0 | BC110: =BC98 -> 0 | BD110: =BD98 -> 0 | BE110: =BE98 -> 0 | BF110: =BF98 -> 0 | BG110: =BG98 -> 0 | BH110: =BH98 -> 0 | BI110: =BG110+BH110 -> 0 | BJ110: 1 | BK110: 0.5 | BL110: 0 | BM110: =BM109 -> 0 | BN110: =$BJ110*W110 -> 760.7 | BO110: =$BJ110*X110 -> 0 | BP110: =$BJ110*Y110 -> 698.7 | BQ110: =$BJ110*Z110 -> 0 | BR110: =$BJ110*AA110 -> 636.7 | BS110: =$BJ110*AB110 -> 0 | BT110: =$BJ110*AC110 -> 574.7 | BU110: =$BJ110*AD110 -> 0 | BV110: =$BJ110*AE110 -> 512.7 | BW110: =$BJ110*AF110 -> 0 | BX110: =$BJ110*AG110 -> 450.7 | BY110: =$BJ110*AH110 -> 0 | BZ110: =$BJ110*AI110 -> 388.7 | CA110: =$BJ110*AJ110 -> 0 | CB110: =$BJ110*AK110 -> 326.7 | CC110: =$BJ110*AL110 -> 0 | CD110: =F110/Q110 -> 888.8912024 | CE110: =I110/R110 -> 2393.293521 | CF110: =L110/S110 -> 92126.87644
A111: ='[1]Monthly Data'!A111 -> 2021-02-01 | B111: ='[1]Monthly Data'!B111 -> 2021 | C111: =MONTH(A111) -> 2 | D111: ='[1]Monthly Data'!D111 -> 13340787.78 | E111: ='[1]Monthly Data'!E111 -> 507566.5342 | F111: ='[1]Monthly Data'!F111 -> 13848354.31 | G111: ='[1]Monthly Data'!G111 -> 3893947.103 | H111: ='[1]Monthly Data'!H111 -> 257035.5905 | I111: ='[1]Monthly Data'!I111 -> 4150982.694 | J111: ='[1]Monthly Data'!J111 -> 10132845.57 | K111: ='[1]Monthly Data'!K111 -> 617873.5837 | L111: ='[1]Monthly Data'!L111 -> 10750719.15 | M111: ='[1]Monthly Data'!M111 -> 107960.3179 | N111: ='[1]Monthly Data'!N111 -> 32905.31729 | O111: ='[1]Monthly Data'!O111 -> 23412.6 | P111: ='[1]Monthly Data'!P111 -> 285.85 | Q111: ='[1]Monthly Data'!Q111 -> 16339 | R111: ='[1]Monthly Data'!R111 -> 1789 | S111: ='[1]Monthly Data'!S111 -> 125 | T111: ='[1]Monthly Data'!T111 -> 3261 | U111: ='[1]Monthly Data'!U111 -> 30 | V111: =[1]Weather!C231 -> -4.842857143 | W111: =[1]Weather!D231 -> 751.6 | X111: =[1]Weather!E231 -> 0 | Y111: =[1]Weather!F231 -> 695.6 | Z111: =[1]Weather!G231 -> 0 | AA111: =[1]Weather!H231 -> 639.6 | AB111: =[1]Weather!I231 -> 0 | AC111: =[1]Weather!J231 -> 583.6 | AD111: =[1]Weather!K231 -> 0 | AE111: =[1]Weather!L231 -> 527.6 | AF111: =[1]Weather!M231 -> 0 | AG111: =[1]Weather!N231 -> 471.6 | AH111: =[1]Weather!O231 -> 0 | AI111: =[1]Weather!P231 -> 415.6 | AJ111: =[1]Weather!Q231 -> 0 | AK111: =[1]Weather!R231 -> 359.6 | AL111: =[1]Weather!S231 -> 0 | AM111: =[1]Economic!C111 -> 740225.9783 | AN111: =[1]Economic!D111 -> 7170.1 | AO111: =[1]Economic!E111 -> 7107.3 | AP111: =[1]Economic!F111 -> 108 | AQ111: =[1]Economic!G111 -> 104.6 | AR111: =AR63 -> 28 | AS111: 19 | AT111: =1+AT110 -> 110 | AU111: =AU99 -> 0 | AV111: =AV99 -> 1 | AW111: =AW99 -> 0 | AX111: =AX99 -> 0 | AY111: =AY99 -> 0 | AZ111: =AZ99 -> 0 | BA111: =BA99 -> 0 | BB111: =BB99 -> 0 | BC111: =BC99 -> 0 | BD111: =BD99 -> 0 | BE111: =BE99 -> 0 | BF111: =BF99 -> 0 | BG111: =BG99 -> 0 | BH111: =BH99 -> 0 | BI111: =BG111+BH111 -> 0 | BJ111: 1 | BK111: 0.5 | BL111: 0 | BM111: =BM110 -> 0 | BN111: =$BJ111*W111 -> 751.6 | BO111: =$BJ111*X111 -> 0 | BP111: =$BJ111*Y111 -> 695.6 | BQ111: =$BJ111*Z111 -> 0 | BR111: =$BJ111*AA111 -> 639.6 | BS111: =$BJ111*AB111 -> 0 | BT111: =$BJ111*AC111 -> 583.6 | BU111: =$BJ111*AD111 -> 0 | BV111: =$BJ111*AE111 -> 527.6 | BW111: =$BJ111*AF111 -> 0 | BX111: =$BJ111*AG111 -> 471.6 | BY111: =$BJ111*AH111 -> 0 | BZ111: =$BJ111*AI111 -> 415.6 | CA111: =$BJ111*AJ111 -> 0 | CB111: =$BJ111*AK111 -> 359.6 | CC111: =$BJ111*AL111 -> 0 | CD111: =F111/Q111 -> 847.5643744 | CE111: =I111/R111 -> 2320.280991 | CF111: =L111/S111 -> 86005.75321
A112: ='[1]Monthly Data'!A112 -> 2021-03-01 | B112: ='[1]Monthly Data'!B112 -> 2021 | C112: =MONTH(A112) -> 3 | D112: ='[1]Monthly Data'!D112 -> 12296411.32 | E112: ='[1]Monthly Data'!E112 -> 507566.5342 | F112: ='[1]Monthly Data'!F112 -> 12803977.85 | G112: ='[1]Monthly Data'!G112 -> 4041550.795 | H112: ='[1]Monthly Data'!H112 -> 257035.5905 | I112: ='[1]Monthly Data'!I112 -> 4298586.385 | J112: ='[1]Monthly Data'!J112 -> 10662203.03 | K112: ='[1]Monthly Data'!K112 -> 617873.5837 | L112: ='[1]Monthly Data'!L112 -> 11280076.62 | M112: ='[1]Monthly Data'!M112 -> 106864.6518 | N112: ='[1]Monthly Data'!N112 -> 33133.56226 | O112: ='[1]Monthly Data'!O112 -> 23983.44 | P112: ='[1]Monthly Data'!P112 -> 285.85 | Q112: ='[1]Monthly Data'!Q112 -> 16380 | R112: ='[1]Monthly Data'!R112 -> 1804 | S112: ='[1]Monthly Data'!S112 -> 125 | T112: ='[1]Monthly Data'!T112 -> 3261 | U112: ='[1]Monthly Data'!U112 -> 30 | V112: =[1]Weather!C232 -> 3.132258065 | W112: =[1]Weather!D232 -> 584.9 | X112: =[1]Weather!E232 -> 0 | Y112: =[1]Weather!F232 -> 522.9 | Z112: =[1]Weather!G232 -> 0 | AA112: =[1]Weather!H232 -> 460.9 | AB112: =[1]Weather!I232 -> 0 | AC112: =[1]Weather!J232 -> 398.9 | AD112: =[1]Weather!K232 -> 0 | AE112: =[1]Weather!L232 -> 339.3 | AF112: =[1]Weather!M232 -> 2.4 | AG112: =[1]Weather!N232 -> 281.3 | AH112: =[1]Weather!O232 -> 6.4 | AI112: =[1]Weather!P232 -> 226.8 | AJ112: =[1]Weather!Q232 -> 13.9 | AK112: =[1]Weather!R232 -> 178.7 | AL112: =[1]Weather!S232 -> 27.8 | AM112: =[1]Economic!C112 -> 740225.9783 | AN112: =[1]Economic!D112 -> 7213.1 | AO112: =[1]Economic!E112 -> 7105.6 | AP112: =[1]Economic!F112 -> 109.5 | AQ112: =[1]Economic!G112 -> 107.1 | AR112: =AR64 -> 31 | AS112: 23 | AT112: =1+AT111 -> 111 | AU112: =AU100 -> 0 | AV112: =AV100 -> 0 | AW112: =AW100 -> 1 | AX112: =AX100 -> 0 | AY112: =AY100 -> 0 | AZ112: =AZ100 -> 0 | BA112: =BA100 -> 0 | BB112: =BB100 -> 0 | BC112: =BC100 -> 0 | BD112: =BD100 -> 0 | BE112: =BE100 -> 0 | BF112: =BF100 -> 0 | BG112: =BG100 -> 1 | BH112: =BH100 -> 0 | BI112: =BG112+BH112 -> 1 | BJ112: 1 | BK112: 0.5 | BL112: 0 | BM112: =BM111 -> 0 | BN112: =$BJ112*W112 -> 584.9 | BO112: =$BJ112*X112 -> 0 | BP112: =$BJ112*Y112 -> 522.9 | BQ112: =$BJ112*Z112 -> 0 | BR112: =$BJ112*AA112 -> 460.9 | BS112: =$BJ112*AB112 -> 0 | BT112: =$BJ112*AC112 -> 398.9 | BU112: =$BJ112*AD112 -> 0 | BV112: =$BJ112*AE112 -> 339.3 | BW112: =$BJ112*AF112 -> 2.4 | BX112: =$BJ112*AG112 -> 281.3 | BY112: =$BJ112*AH112 -> 6.4 | BZ112: =$BJ112*AI112 -> 226.8 | CA112: =$BJ112*AJ112 -> 13.9 | CB112: =$BJ112*AK112 -> 178.7 | CC112: =$BJ112*AL112 -> 27.8 | CD112: =F112/Q112 -> 781.6836297 | CE112: =I112/R112 -> 2382.808418 | CF112: =L112/S112 -> 90240.61292
A113: ='[1]Monthly Data'!A113 -> 2021-04-01 | B113: ='[1]Monthly Data'!B113 -> 2021 | C113: =MONTH(A113) -> 4 | D113: ='[1]Monthly Data'!D113 -> 10170203.83 | E113: ='[1]Monthly Data'!E113 -> 507566.5342 | F113: ='[1]Monthly Data'!F113 -> 10677770.36 | G113: ='[1]Monthly Data'!G113 -> 3230840.895 | H113: ='[1]Monthly Data'!H113 -> 257035.5905 | I113: ='[1]Monthly Data'!I113 -> 3487876.485 | J113: ='[1]Monthly Data'!J113 -> 9596030.564 | K113: ='[1]Monthly Data'!K113 -> 617873.5837 | L113: ='[1]Monthly Data'!L113 -> 10213904.15 | M113: ='[1]Monthly Data'!M113 -> 89761.2297 | N113: ='[1]Monthly Data'!N113 -> 32983.935 | O113: ='[1]Monthly Data'!O113 -> 23731.94 | P113: ='[1]Monthly Data'!P113 -> 285.85 | Q113: ='[1]Monthly Data'!Q113 -> 16373 | R113: ='[1]Monthly Data'!R113 -> 1810 | S113: ='[1]Monthly Data'!S113 -> 117 | T113: ='[1]Monthly Data'!T113 -> 3261 | U113: ='[1]Monthly Data'!U113 -> 30 | V113: =[1]Weather!C233 -> 7.506666667 | W113: =[1]Weather!D233 -> 434.8 | X113: =[1]Weather!E233 -> 0 | Y113: =[1]Weather!F233 -> 374.8 | Z113: =[1]Weather!G233 -> 0 | AA113: =[1]Weather!H233 -> 315.1 | AB113: =[1]Weather!I233 -> 0.3 | AC113: =[1]Weather!J233 -> 258.6 | AD113: =[1]Weather!K233 -> 3.8 | AE113: =[1]Weather!L233 -> 205.6 | AF113: =[1]Weather!M233 -> 10.8 | AG113: =[1]Weather!N233 -> 155.4 | AH113: =[1]Weather!O233 -> 20.6 | AI113: =[1]Weather!P233 -> 110.2 | AJ113: =[1]Weather!Q233 -> 35.4 | AK113: =[1]Weather!R233 -> 71.9 | AL113: =[1]Weather!S233 -> 57.1 | AM113: =[1]Economic!C113 -> 740225.9783 | AN113: =[1]Economic!D113 -> 7256.5 | AO113: =[1]Economic!E113 -> 7163.1 | AP113: =[1]Economic!F113 -> 111.2 | AQ113: =[1]Economic!G113 -> 108.4 | AR113: =AR65 -> 30 | AS113: 21 | AT113: =1+AT112 -> 112 | AU113: =AU101 -> 0 | AV113: =AV101 -> 0 | AW113: =AW101 -> 0 | AX113: =AX101 -> 1 | AY113: =AY101 -> 0 | AZ113: =AZ101 -> 0 | BA113: =BA101 -> 0 | BB113: =BB101 -> 0 | BC113: =BC101 -> 0 | BD113: =BD101 -> 0 | BE113: =BE101 -> 0 | BF113: =BF101 -> 0 | BG113: =BG101 -> 1 | BH113: =BH101 -> 0 | BI113: =BG113+BH113 -> 1 | BJ113: 1 | BK113: 0.5 | BL113: 0 | BM113: =BM112 -> 0 | BN113: =$BJ113*W113 -> 434.8 | BO113: =$BJ113*X113 -> 0 | BP113: =$BJ113*Y113 -> 374.8 | BQ113: =$BJ113*Z113 -> 0 | BR113: =$BJ113*AA113 -> 315.1 | BS113: =$BJ113*AB113 -> 0.3 | BT113: =$BJ113*AC113 -> 258.6 | BU113: =$BJ113*AD113 -> 3.8 | BV113: =$BJ113*AE113 -> 205.6 | BW113: =$BJ113*AF113 -> 10.8 | BX113: =$BJ113*AG113 -> 155.4 | BY113: =$BJ113*AH113 -> 20.6 | BZ113: =$BJ113*AI113 -> 110.2 | CA113: =$BJ113*AJ113 -> 35.4 | CB113: =$BJ113*AK113 -> 71.9 | CC113: =$BJ113*AL113 -> 57.1 | CD113: =F113/Q113 -> 652.1572321 | CE113: =I113/R113 -> 1927.003583 | CF113: =L113/S113 -> 87298.32605
A114: ='[1]Monthly Data'!A114 -> 2021-05-01 | B114: ='[1]Monthly Data'!B114 -> 2021 | C114: =MONTH(A114) -> 5 | D114: ='[1]Monthly Data'!D114 -> 9703321.103 | E114: ='[1]Monthly Data'!E114 -> 507566.5342 | F114: ='[1]Monthly Data'!F114 -> 10210887.64 | G114: ='[1]Monthly Data'!G114 -> 3180341.965 | H114: ='[1]Monthly Data'!H114 -> 257035.5905 | I114: ='[1]Monthly Data'!I114 -> 3437377.555 | J114: ='[1]Monthly Data'!J114 -> 9497213.56 | K114: ='[1]Monthly Data'!K114 -> 617873.5837 | L114: ='[1]Monthly Data'!L114 -> 10115087.14 | M114: ='[1]Monthly Data'!M114 -> 80962.82138 | N114: ='[1]Monthly Data'!N114 -> 33054.94455 | O114: ='[1]Monthly Data'!O114 -> 23387.25 | P114: ='[1]Monthly Data'!P114 -> 285.85 | Q114: ='[1]Monthly Data'!Q114 -> 16291 | R114: ='[1]Monthly Data'!R114 -> 1798 | S114: ='[1]Monthly Data'!S114 -> 125 | T114: ='[1]Monthly Data'!T114 -> 3261 | U114: ='[1]Monthly Data'!U114 -> 30 | V114: =[1]Weather!C234 -> 11.87096774 | W114: =[1]Weather!D234 -> 316.7 | X114: =[1]Weather!E234 -> 2.7 | Y114: =[1]Weather!F234 -> 260.4 | Z114: =[1]Weather!G234 -> 8.4 | AA114: =[1]Weather!H234 -> 206 | AB114: =[1]Weather!I234 -> 16 | AC114: =[1]Weather!J234 -> 154.2 | AD114: =[1]Weather!K234 -> 26.2 | AE114: =[1]Weather!L234 -> 108.6 | AF114: =[1]Weather!M234 -> 42.6 | AG114: =[1]Weather!N234 -> 69.2 | AH114: =[1]Weather!O234 -> 65.2 | AI114: =[1]Weather!P234 -> 35.3 | AJ114: =[1]Weather!Q234 -> 93.3 | AK114: =[1]Weather!R234 -> 13 | AL114: =[1]Weather!S234 -> 133 | AM114: =[1]Economic!C114 -> 740225.9783 | AN114: =[1]Economic!D114 -> 7255.8 | AO114: =[1]Economic!E114 -> 7211.3 | AP114: =[1]Economic!F114 -> 112.9 | AQ114: =[1]Economic!G114 -> 111 | AR114: =AR66 -> 31 | AS114: 20 | AT114: =1+AT113 -> 113 | AU114: =AU102 -> 0 | AV114: =AV102 -> 0 | AW114: =AW102 -> 0 | AX114: =AX102 -> 0 | AY114: =AY102 -> 1 | AZ114: =AZ102 -> 0 | BA114: =BA102 -> 0 | BB114: =BB102 -> 0 | BC114: =BC102 -> 0 | BD114: =BD102 -> 0 | BE114: =BE102 -> 0 | BF114: =BF102 -> 0 | BG114: =BG102 -> 1 | BH114: =BH102 -> 0 | BI114: =BG114+BH114 -> 1 | BJ114: 1 | BK114: 0.5 | BL114: 0 | BM114: =BM113 -> 0 | BN114: =$BJ114*W114 -> 316.7 | BO114: =$BJ114*X114 -> 2.7 | BP114: =$BJ114*Y114 -> 260.4 | BQ114: =$BJ114*Z114 -> 8.4 | BR114: =$BJ114*AA114 -> 206 | BS114: =$BJ114*AB114 -> 16 | BT114: =$BJ114*AC114 -> 154.2 | BU114: =$BJ114*AD114 -> 26.2 | BV114: =$BJ114*AE114 -> 108.6 | BW114: =$BJ114*AF114 -> 42.6 | BX114: =$BJ114*AG114 -> 69.2 | BY114: =$BJ114*AH114 -> 65.2 | BZ114: =$BJ114*AI114 -> 35.3 | CA114: =$BJ114*AJ114 -> 93.3 | CB114: =$BJ114*AK114 -> 13 | CC114: =$BJ114*AL114 -> 133 | CD114: =F114/Q114 -> 626.7808997 | CE114: =I114/R114 -> 1911.778396 | CF114: =L114/S114 -> 80920.69715
A115: ='[1]Monthly Data'!A115 -> 2021-06-01 | B115: ='[1]Monthly Data'!B115 -> 2021 | C115: =MONTH(A115) -> 6 | D115: ='[1]Monthly Data'!D115 -> 10757791.64 | E115: ='[1]Monthly Data'!E115 -> 507566.5342 | F115: ='[1]Monthly Data'!F115 -> 11265358.18 | G115: ='[1]Monthly Data'!G115 -> 3536902.674 | H115: ='[1]Monthly Data'!H115 -> 257035.5905 | I115: ='[1]Monthly Data'!I115 -> 3793938.265 | J115: ='[1]Monthly Data'!J115 -> 10041214.17 | K115: ='[1]Monthly Data'!K115 -> 617873.5837 | L115: ='[1]Monthly Data'!L115 -> 10659087.76 | M115: ='[1]Monthly Data'!M115 -> 72347.56673 | N115: ='[1]Monthly Data'!N115 -> 32983.935 | O115: ='[1]Monthly Data'!O115 -> 24116.44 | P115: ='[1]Monthly Data'!P115 -> 285.85 | Q115: ='[1]Monthly Data'!Q115 -> 16505 | R115: ='[1]Monthly Data'!R115 -> 1818 | S115: ='[1]Monthly Data'!S115 -> 127 | T115: ='[1]Monthly Data'!T115 -> 3261 | U115: ='[1]Monthly Data'!U115 -> 30 | V115: =[1]Weather!C235 -> 20.01 | W115: =[1]Weather!D235 -> 81.4 | X115: =[1]Weather!E235 -> 21.7 | Y115: =[1]Weather!F235 -> 47.6 | Z115: =[1]Weather!G235 -> 47.9 | AA115: =[1]Weather!H235 -> 22.7 | AB115: =[1]Weather!I235 -> 83 | AC115: =[1]Weather!J235 -> 7.3 | AD115: =[1]Weather!K235 -> 127.6 | AE115: =[1]Weather!L235 -> 1.6 | AF115: =[1]Weather!M235 -> 181.9 | AG115: =[1]Weather!N235 -> 0 | AH115: =[1]Weather!O235 -> 240.3 | AI115: =[1]Weather!P235 -> 0 | AJ115: =[1]Weather!Q235 -> 300.3 | AK115: =[1]Weather!R235 -> 0 | AL115: =[1]Weather!S235 -> 360.3 | AM115: =[1]Economic!C115 -> 740225.9783 | AN115: =[1]Economic!D115 -> 7233.3 | AO115: =[1]Economic!E115 -> 7273.4 | AP115: =[1]Economic!F115 -> 113 | AQ115: =[1]Economic!G115 -> 113 | AR115: =AR67 -> 30 | AS115: 22 | AT115: =1+AT114 -> 114 | AU115: =AU103 -> 0 | AV115: =AV103 -> 0 | AW115: =AW103 -> 0 | AX115: =AX103 -> 0 | AY115: =AY103 -> 0 | AZ115: =AZ103 -> 1 | BA115: =BA103 -> 0 | BB115: =BB103 -> 0 | BC115: =BC103 -> 0 | BD115: =BD103 -> 0 | BE115: =BE103 -> 0 | BF115: =BF103 -> 0 | BG115: =BG103 -> 0 | BH115: =BH103 -> 0 | BI115: =BG115+BH115 -> 0 | BJ115: 1 | BK115: 0.5 | BL115: 0 | BM115: =BM114 -> 0 | BN115: =$BJ115*W115 -> 81.4 | BO115: =$BJ115*X115 -> 21.7 | BP115: =$BJ115*Y115 -> 47.6 | BQ115: =$BJ115*Z115 -> 47.9 | BR115: =$BJ115*AA115 -> 22.7 | BS115: =$BJ115*AB115 -> 83 | BT115: =$BJ115*AC115 -> 7.3 | BU115: =$BJ115*AD115 -> 127.6 | BV115: =$BJ115*AE115 -> 1.6 | BW115: =$BJ115*AF115 -> 181.9 | BX115: =$BJ115*AG115 -> 0 | BY115: =$BJ115*AH115 -> 240.3 | BZ115: =$BJ115*AI115 -> 0 | CA115: =$BJ115*AJ115 -> 300.3 | CB115: =$BJ115*AK115 -> 0 | CC115: =$BJ115*AL115 -> 360.3 | CD115: =F115/Q115 -> 682.5421494 | CE115: =I115/R115 -> 2086.874733 | CF115: =L115/S115 -> 83929.82485
A116: ='[1]Monthly Data'!A116 -> 2021-07-01 | B116: ='[1]Monthly Data'!B116 -> 2021 | C116: =MONTH(A116) -> 7 | D116: ='[1]Monthly Data'!D116 -> 11134010.18 | E116: ='[1]Monthly Data'!E116 -> 507566.5342 | F116: ='[1]Monthly Data'!F116 -> 11641576.72 | G116: ='[1]Monthly Data'!G116 -> 3740276.811 | H116: ='[1]Monthly Data'!H116 -> 257035.5905 | I116: ='[1]Monthly Data'!I116 -> 3997312.402 | J116: ='[1]Monthly Data'!J116 -> 9874828.203 | K116: ='[1]Monthly Data'!K116 -> 617873.5837 | L116: ='[1]Monthly Data'!L116 -> 10492701.79 | M116: ='[1]Monthly Data'!M116 -> 77624.83892 | N116: ='[1]Monthly Data'!N116 -> 33054.94455 | O116: ='[1]Monthly Data'!O116 -> 25743.35 | P116: ='[1]Monthly Data'!P116 -> 285.85 | Q116: ='[1]Monthly Data'!Q116 -> 16448 | R116: ='[1]Monthly Data'!R116 -> 1805 | S116: ='[1]Monthly Data'!S116 -> 127 | T116: ='[1]Monthly Data'!T116 -> 3261 | U116: ='[1]Monthly Data'!U116 -> 30 | V116: =[1]Weather!C236 -> 19.58118179 | W116: =[1]Weather!D236 -> 87.8 | X116: =[1]Weather!E236 -> 12.8 | Y116: =[1]Weather!F236 -> 44 | Z116: =[1]Weather!G236 -> 31 | AA116: =[1]Weather!H236 -> 14.2 | AB116: =[1]Weather!I236 -> 63.2 | AC116: =[1]Weather!J236 -> 2.3 | AD116: =[1]Weather!K236 -> 113.3 | AE116: =[1]Weather!L236 -> 0 | AF116: =[1]Weather!M236 -> 173 | AG116: =[1]Weather!N236 -> 0 | AH116: =[1]Weather!O236 -> 235 | AI116: =[1]Weather!P236 -> 0 | AJ116: =[1]Weather!Q236 -> 297 | AK116: =[1]Weather!R236 -> 0 | AL116: =[1]Weather!S236 -> 359 | AM116: =[1]Economic!C116 -> 740225.9783 | AN116: =[1]Economic!D116 -> 7285.9 | AO116: =[1]Economic!E116 -> 7372.5 | AP116: =[1]Economic!F116 -> 115.5 | AQ116: =[1]Economic!G116 -> 118.7 | AR116: =AR68 -> 31 | AS116: 21 | AT116: =1+AT115 -> 115 | AU116: =AU104 -> 0 | AV116: =AV104 -> 0 | AW116: =AW104 -> 0 | AX116: =AX104 -> 0 | AY116: =AY104 -> 0 | AZ116: =AZ104 -> 0 | BA116: =BA104 -> 1 | BB116: =BB104 -> 0 | BC116: =BC104 -> 0 | BD116: =BD104 -> 0 | BE116: =BE104 -> 0 | BF116: =BF104 -> 0 | BG116: =BG104 -> 0 | BH116: =BH104 -> 0 | BI116: =BG116+BH116 -> 0 | BJ116: 1 | BK116: 0.5 | BL116: 0 | BM116: =BM115 -> 0 | BN116: =$BJ116*W116 -> 87.8 | BO116: =$BJ116*X116 -> 12.8 | BP116: =$BJ116*Y116 -> 44 | BQ116: =$BJ116*Z116 -> 31 | BR116: =$BJ116*AA116 -> 14.2 | BS116: =$BJ116*AB116 -> 63.2 | BT116: =$BJ116*AC116 -> 2.3 | BU116: =$BJ116*AD116 -> 113.3 | BV116: =$BJ116*AE116 -> 0 | BW116: =$BJ116*AF116 -> 173 | BX116: =$BJ116*AG116 -> 0 | BY116: =$BJ116*AH116 -> 235 | BZ116: =$BJ116*AI116 -> 0 | CA116: =$BJ116*AJ116 -> 297 | CB116: =$BJ116*AK116 -> 0 | CC116: =$BJ116*AL116 -> 359 | CD116: =F116/Q116 -> 707.7806857 | CE116: =I116/R116 -> 2214.577508 | CF116: =L116/S116 -> 82619.69911
A117: ='[1]Monthly Data'!A117 -> 2021-08-01 | B117: ='[1]Monthly Data'!B117 -> 2021 | C117: =MONTH(A117) -> 8 | D117: ='[1]Monthly Data'!D117 -> 12880559.88 | E117: ='[1]Monthly Data'!E117 -> 507566.5342 | F117: ='[1]Monthly Data'!F117 -> 13388126.42 | G117: ='[1]Monthly Data'!G117 -> 4156720.289 | H117: ='[1]Monthly Data'!H117 -> 257035.5905 | I117: ='[1]Monthly Data'!I117 -> 4413755.879 | J117: ='[1]Monthly Data'!J117 -> 11025591.7 | K117: ='[1]Monthly Data'!K117 -> 617873.5837 | L117: ='[1]Monthly Data'!L117 -> 11643465.28 | M117: ='[1]Monthly Data'!M117 -> 88013.20683 | N117: ='[1]Monthly Data'!N117 -> 33019.43978 | O117: ='[1]Monthly Data'!O117 -> 26672.8 | P117: ='[1]Monthly Data'!P117 -> 285.85 | Q117: ='[1]Monthly Data'!Q117 -> 16442 | R117: ='[1]Monthly Data'!R117 -> 1811 | S117: ='[1]Monthly Data'!S117 -> 135 | T117: ='[1]Monthly Data'!T117 -> 3261 | U117: ='[1]Monthly Data'!U117 -> 30 | V117: =[1]Weather!C237 -> 22.12042809 | W117: =[1]Weather!D237 -> 35.6 | X117: =[1]Weather!E237 -> 39.3 | Y117: =[1]Weather!F237 -> 13.5 | Z117: =[1]Weather!G237 -> 79.2 | AA117: =[1]Weather!H237 -> 3.5 | AB117: =[1]Weather!I237 -> 131.2 | AC117: =[1]Weather!J237 -> 0.2 | AD117: =[1]Weather!K237 -> 189.9 | AE117: =[1]Weather!L237 -> 0 | AF117: =[1]Weather!M237 -> 251.7 | AG117: =[1]Weather!N237 -> 0 | AH117: =[1]Weather!O237 -> 313.7 | AI117: =[1]Weather!P237 -> 0 | AJ117: =[1]Weather!Q237 -> 375.7 | AK117: =[1]Weather!R237 -> 0 | AL117: =[1]Weather!S237 -> 437.7 | AM117: =[1]Economic!C117 -> 740225.9783 | AN117: =[1]Economic!D117 -> 7366.7 | AO117: =[1]Economic!E117 -> 7458.5 | AP117: =[1]Economic!F117 -> 114.5 | AQ117: =[1]Economic!G117 -> 119.6 | AR117: =AR69 -> 31 | AS117: 20 | AT117: =1+AT116 -> 116 | AU117: =AU105 -> 0 | AV117: =AV105 -> 0 | AW117: =AW105 -> 0 | AX117: =AX105 -> 0 | AY117: =AY105 -> 0 | AZ117: =AZ105 -> 0 | BA117: =BA105 -> 0 | BB117: =BB105 -> 1 | BC117: =BC105 -> 0 | BD117: =BD105 -> 0 | BE117: =BE105 -> 0 | BF117: =BF105 -> 0 | BG117: =BG105 -> 0 | BH117: =BH105 -> 0 | BI117: =BG117+BH117 -> 0 | BJ117: 1 | BK117: 0.5 | BL117: 0 | BM117: =BM116 -> 0 | BN117: =$BJ117*W117 -> 35.6 | BO117: =$BJ117*X117 -> 39.3 | BP117: =$BJ117*Y117 -> 13.5 | BQ117: =$BJ117*Z117 -> 79.2 | BR117: =$BJ117*AA117 -> 3.5 | BS117: =$BJ117*AB117 -> 131.2 | BT117: =$BJ117*AC117 -> 0.2 | BU117: =$BJ117*AD117 -> 189.9 | BV117: =$BJ117*AE117 -> 0 | BW117: =$BJ117*AF117 -> 251.7 | BX117: =$BJ117*AG117 -> 0 | BY117: =$BJ117*AH117 -> 313.7 | BZ117: =$BJ117*AI117 -> 0 | CA117: =$BJ117*AJ117 -> 375.7 | CB117: =$BJ117*AK117 -> 0 | CC117: =$BJ117*AL117 -> 437.7 | CD117: =F117/Q117 -> 814.2638619 | CE117: =I117/R117 -> 2437.192644 | CF117: =L117/S117 -> 86247.89096
A118: ='[1]Monthly Data'!A118 -> 2021-09-01 | B118: ='[1]Monthly Data'!B118 -> 2021 | C118: =MONTH(A118) -> 9 | D118: ='[1]Monthly Data'!D118 -> 9119363.773 | E118: ='[1]Monthly Data'!E118 -> 507566.5342 | F118: ='[1]Monthly Data'!F118 -> 9626930.307 | G118: ='[1]Monthly Data'!G118 -> 3445349.126 | H118: ='[1]Monthly Data'!H118 -> 257035.5905 | I118: ='[1]Monthly Data'!I118 -> 3702384.716 | J118: ='[1]Monthly Data'!J118 -> 9685483.413 | K118: ='[1]Monthly Data'!K118 -> 617873.5837 | L118: ='[1]Monthly Data'!L118 -> 10303357 | M118: ='[1]Monthly Data'!M118 -> 97840.17896 | N118: ='[1]Monthly Data'!N118 -> 32983.935 | O118: ='[1]Monthly Data'!O118 -> 26563.65 | P118: ='[1]Monthly Data'!P118 -> 285.85 | Q118: ='[1]Monthly Data'!Q118 -> 16499 | R118: ='[1]Monthly Data'!R118 -> 1810 | S118: ='[1]Monthly Data'!S118 -> 122 | T118: ='[1]Monthly Data'!T118 -> 3261 | U118: ='[1]Monthly Data'!U118 -> 30 | V118: =[1]Weather!C238 -> 16.86666667 | W118: =[1]Weather!D238 -> 154 | X118: =[1]Weather!E238 -> 0 | Y118: =[1]Weather!F238 -> 97.9 | Z118: =[1]Weather!G238 -> 3.9 | AA118: =[1]Weather!H238 -> 52.9 | AB118: =[1]Weather!I238 -> 18.9 | AC118: =[1]Weather!J238 -> 21.9 | AD118: =[1]Weather!K238 -> 47.9 | AE118: =[1]Weather!L238 -> 6.1 | AF118: =[1]Weather!M238 -> 92.1 | AG118: =[1]Weather!N238 -> 0.7 | AH118: =[1]Weather!O238 -> 146.7 | AI118: =[1]Weather!P238 -> 0 | AJ118: =[1]Weather!Q238 -> 206 | AK118: =[1]Weather!R238 -> 0 | AL118: =[1]Weather!S238 -> 266 | AM118: =[1]Economic!C118 -> 740225.9783 | AN118: =[1]Economic!D118 -> 7433 | AO118: =[1]Economic!E118 -> 7485 | AP118: =[1]Economic!F118 -> 116.6 | AQ118: =[1]Economic!G118 -> 120.5 | AR118: =AR70 -> 30 | AS118: 20 | AT118: =1+AT117 -> 117 | AU118: =AU106 -> 0 | AV118: =AV106 -> 0 | AW118: =AW106 -> 0 | AX118: =AX106 -> 0 | AY118: =AY106 -> 0 | AZ118: =AZ106 -> 0 | BA118: =BA106 -> 0 | BB118: =BB106 -> 0 | BC118: =BC106 -> 1 | BD118: =BD106 -> 0 | BE118: =BE106 -> 0 | BF118: =BF106 -> 0 | BG118: =BG106 -> 0 | BH118: =BH106 -> 1 | BI118: =BG118+BH118 -> 1 | BJ118: 1 | BK118: 0.5 | BL118: 0 | BM118: =BM117 -> 0 | BN118: =$BJ118*W118 -> 154 | BO118: =$BJ118*X118 -> 0 | BP118: =$BJ118*Y118 -> 97.9 | BQ118: =$BJ118*Z118 -> 3.9 | BR118: =$BJ118*AA118 -> 52.9 | BS118: =$BJ118*AB118 -> 18.9 | BT118: =$BJ118*AC118 -> 21.9 | BU118: =$BJ118*AD118 -> 47.9 | BV118: =$BJ118*AE118 -> 6.1 | BW118: =$BJ118*AF118 -> 92.1 | BX118: =$BJ118*AG118 -> 0.7 | BY118: =$BJ118*AH118 -> 146.7 | BZ118: =$BJ118*AI118 -> 0 | CA118: =$BJ118*AJ118 -> 206 | CB118: =$BJ118*AK118 -> 0 | CC118: =$BJ118*AL118 -> 266 | CD118: =F118/Q118 -> 583.4856844 | CE118: =I118/R118 -> 2045.516418 | CF118: =L118/S118 -> 84453.74587
A119: ='[1]Monthly Data'!A119 -> 2021-10-01 | B119: ='[1]Monthly Data'!B119 -> 2021 | C119: =MONTH(A119) -> 10 | D119: ='[1]Monthly Data'!D119 -> 9406750.769 | E119: ='[1]Monthly Data'!E119 -> 507566.5342 | F119: ='[1]Monthly Data'!F119 -> 9914317.304 | G119: ='[1]Monthly Data'!G119 -> 3428168.14 | H119: ='[1]Monthly Data'!H119 -> 257035.5905 | I119: ='[1]Monthly Data'!I119 -> 3685203.73 | J119: ='[1]Monthly Data'!J119 -> 10420909.22 | K119: ='[1]Monthly Data'!K119 -> 617873.5837 | L119: ='[1]Monthly Data'!L119 -> 11038782.8 | M119: ='[1]Monthly Data'!M119 -> 114457.0744 | N119: ='[1]Monthly Data'!N119 -> 33054.94455 | O119: ='[1]Monthly Data'!O119 -> 25179.22 | P119: ='[1]Monthly Data'!P119 -> 285.85 | Q119: ='[1]Monthly Data'!Q119 -> 16380 | R119: ='[1]Monthly Data'!R119 -> 1802 | S119: ='[1]Monthly Data'!S119 -> 122 | T119: ='[1]Monthly Data'!T119 -> 3261 | U119: ='[1]Monthly Data'!U119 -> 30 | V119: =[1]Weather!C239 -> 14.02903226 | W119: =[1]Weather!D239 -> 247.5 | X119: =[1]Weather!E239 -> 0.4 | Y119: =[1]Weather!F239 -> 188.9 | Z119: =[1]Weather!G239 -> 3.8 | AA119: =[1]Weather!H239 -> 137.3 | AB119: =[1]Weather!I239 -> 14.2 | AC119: =[1]Weather!J239 -> 96.4 | AD119: =[1]Weather!K239 -> 35.3 | AE119: =[1]Weather!L239 -> 65.9 | AF119: =[1]Weather!M239 -> 66.8 | AG119: =[1]Weather!N239 -> 40 | AH119: =[1]Weather!O239 -> 102.9 | AI119: =[1]Weather!P239 -> 18.7 | AJ119: =[1]Weather!Q239 -> 143.6 | AK119: =[1]Weather!R239 -> 4.3 | AL119: =[1]Weather!S239 -> 191.2 | AM119: =[1]Economic!C119 -> 740225.9783 | AN119: =[1]Economic!D119 -> 7487.5 | AO119: =[1]Economic!E119 -> 7514.2 | AP119: =[1]Economic!F119 -> 118 | AQ119: =[1]Economic!G119 -> 121 | AR119: =AR71 -> 31 | AS119: 20 | AT119: =1+AT118 -> 118 | AU119: =AU107 -> 0 | AV119: =AV107 -> 0 | AW119: =AW107 -> 0 | AX119: =AX107 -> 0 | AY119: =AY107 -> 0 | AZ119: =AZ107 -> 0 | BA119: =BA107 -> 0 | BB119: =BB107 -> 0 | BC119: =BC107 -> 0 | BD119: =BD107 -> 1 | BE119: =BE107 -> 0 | BF119: =BF107 -> 0 | BG119: =BG107 -> 0 | BH119: =BH107 -> 1 | BI119: =BG119+BH119 -> 1 | BJ119: 1 | BK119: 0.5 | BL119: 0 | BM119: =BM118 -> 0 | BN119: =$BJ119*W119 -> 247.5 | BO119: =$BJ119*X119 -> 0.4 | BP119: =$BJ119*Y119 -> 188.9 | BQ119: =$BJ119*Z119 -> 3.8 | BR119: =$BJ119*AA119 -> 137.3 | BS119: =$BJ119*AB119 -> 14.2 | BT119: =$BJ119*AC119 -> 96.4 | BU119: =$BJ119*AD119 -> 35.3 | BV119: =$BJ119*AE119 -> 65.9 | BW119: =$BJ119*AF119 -> 66.8 | BX119: =$BJ119*AG119 -> 40 | BY119: =$BJ119*AH119 -> 102.9 | BZ119: =$BJ119*AI119 -> 18.7 | CA119: =$BJ119*AJ119 -> 143.6 | CB119: =$BJ119*AK119 -> 4.3 | CC119: =$BJ119*AL119 -> 191.2 | CD119: =F119/Q119 -> 605.2696767 | CE119: =I119/R119 -> 2045.063113 | CF119: =L119/S119 -> 90481.82624
A120: ='[1]Monthly Data'!A120 -> 2021-11-01 | B120: ='[1]Monthly Data'!B120 -> 2021 | C120: =MONTH(A120) -> 11 | D120: ='[1]Monthly Data'!D120 -> 10917126.86 | E120: ='[1]Monthly Data'!E120 -> 507566.5342 | F120: ='[1]Monthly Data'!F120 -> 11424693.39 | G120: ='[1]Monthly Data'!G120 -> 3722801.508 | H120: ='[1]Monthly Data'!H120 -> 257035.5905 | I120: ='[1]Monthly Data'!I120 -> 3979837.098 | J120: ='[1]Monthly Data'!J120 -> 10386529.82 | K120: ='[1]Monthly Data'!K120 -> 617873.5837 | L120: ='[1]Monthly Data'!L120 -> 11004403.41 | M120: ='[1]Monthly Data'!M120 -> 122385.966 | N120: ='[1]Monthly Data'!N120 -> 32983.935 | O120: ='[1]Monthly Data'!O120 -> 25109.87 | P120: ='[1]Monthly Data'!P120 -> 285.85 | Q120: ='[1]Monthly Data'!Q120 -> 16634 | R120: ='[1]Monthly Data'!R120 -> 1818 | S120: ='[1]Monthly Data'!S120 -> 122 | T120: ='[1]Monthly Data'!T120 -> 3261 | U120: ='[1]Monthly Data'!U120 -> 30 | V120: =[1]Weather!C240 -> 4.25 | W120: =[1]Weather!D240 -> 532.5 | X120: =[1]Weather!E240 -> 0 | Y120: =[1]Weather!F240 -> 472.5 | Z120: =[1]Weather!G240 -> 0 | AA120: =[1]Weather!H240 -> 412.5 | AB120: =[1]Weather!I240 -> 0 | AC120: =[1]Weather!J240 -> 352.5 | AD120: =[1]Weather!K240 -> 0 | AE120: =[1]Weather!L240 -> 292.6 | AF120: =[1]Weather!M240 -> 0.1 | AG120: =[1]Weather!N240 -> 234.6 | AH120: =[1]Weather!O240 -> 2.1 | AI120: =[1]Weather!P240 -> 177.6 | AJ120: =[1]Weather!Q240 -> 5.1 | AK120: =[1]Weather!R240 -> 122.3 | AL120: =[1]Weather!S240 -> 9.8 | AM120: =[1]Economic!C120 -> 740225.9783 | AN120: =[1]Economic!D120 -> 7538.6 | AO120: =[1]Economic!E120 -> 7552.6 | AP120: =[1]Economic!F120 -> 120 | AQ120: =[1]Economic!G120 -> 121.4 | AR120: =AR72 -> 30 | AS120: 22 | AT120: =1+AT119 -> 119 | AU120: =AU108 -> 0 | AV120: =AV108 -> 0 | AW120: =AW108 -> 0 | AX120: =AX108 -> 0 | AY120: =AY108 -> 0 | AZ120: =AZ108 -> 0 | BA120: =BA108 -> 0 | BB120: =BB108 -> 0 | BC120: =BC108 -> 0 | BD120: =BD108 -> 0 | BE120: =BE108 -> 1 | BF120: =BF108 -> 0 | BG120: =BG108 -> 0 | BH120: =BH108 -> 1 | BI120: =BG120+BH120 -> 1 | BJ120: 1 | BK120: 0.5 | BL120: 0 | BM120: =BM119 -> 0 | BN120: =$BJ120*W120 -> 532.5 | BO120: =$BJ120*X120 -> 0 | BP120: =$BJ120*Y120 -> 472.5 | BQ120: =$BJ120*Z120 -> 0 | BR120: =$BJ120*AA120 -> 412.5 | BS120: =$BJ120*AB120 -> 0 | BT120: =$BJ120*AC120 -> 352.5 | BU120: =$BJ120*AD120 -> 0 | BV120: =$BJ120*AE120 -> 292.6 | BW120: =$BJ120*AF120 -> 0.1 | BX120: =$BJ120*AG120 -> 234.6 | BY120: =$BJ120*AH120 -> 2.1 | BZ120: =$BJ120*AI120 -> 177.6 | CA120: =$BJ120*AJ120 -> 5.1 | CB120: =$BJ120*AK120 -> 122.3 | CC120: =$BJ120*AL120 -> 9.8 | CD120: =F120/Q120 -> 686.8277861 | CE120: =I120/R120 -> 2189.129317 | CF120: =L120/S120 -> 90200.02793
